Workbook

Sheet Infos
A1: Présentation du générateur de codes d'éco-participation 2026
A6: Créer les codes pour l'application de l'éco-participation sur les Articles de Bricolage et de Jardin (ABJ)
A7: Version 3.0 - 30 juin 2025
A8: Mise à jour des tarifs applicables au 1er janvier 2026 Ajout des codes éco-modulés et de la codification simplifiée 2026
A10: A qui s’adresse cet outil ?
A11: Cet outil s'adresse aux metteurs sur le marché d'Articles de Bricolage et de Jardin des catégories 3 et 4 (ABJ - cat. 3 et 4)
A13: A quoi sert-il ?
A14: Ce fichier permet de générer les codes produits qui servent à déclarer les mises en marché auprès d'Ecomaison. Ces codes produits permettent d'appliquer le tarif de l'éco-participation aux Articles de Bricolage et de Jardin (ABJ - cat. 3 et 4) en fonction de leurs caractéristiques.
A15: Pour comprendre comment est constitué ce code produit à 11 chiffres, cliquez sur l’onglet « Comprendre la codification »
A17: Comment générer un code produit ?
A18: Pour générer un code produit cliquez sur l’onglet « Générateur code produit »
A19: Attention : Pour être certain de renseigner les bons codes lors de votre déclaration, utilisez l'onglet « ABJ - Code produit » et la fonction « copier-coller » en sélectionnant « collage spécial valeur absolue ».
A21: Déclarer l’éco-participation
A23: A quel moment faire votre déclaration ?
A24: Les déclarations se font selon une modalité trimestrielle ou annuelle. Pour les déclarations trimestrielles, celles-ci doivent être faites le mois suivant chaque trimestre calendaire (avril pour le T1, juillet pour le T2, octobre pour le T3 et janvier pour le T4).
A25: Pour les déclarations annuelles, la déclaration de l'année N est à réaliser en janvier N+1
A26: Si vous déclarez des codes éco-modulés ou ouvrant droit à une prime d'incorporation des éléments de preuve supplémentaires peuvent être nécessaire. Il est conseillé de se reporter au guide Ecomodulation pour compléter la déclaration.
A28: Comment faire votre déclaration (avec les codes produits) ?
A29: La déclaration des mises en marché avec les codes produits se fait par saisie ou chargement d'un fichier* format .csv sur l'Extranet : https://espace-services.ecomaison.com/ *Vous pouvez télécharger le fichier type dans la rubrique Déclarations.
A32: > Pour savoir comment effectuer votre déclaration, consultez le mode opératoire complet :
A33: https://espace-services.ecomaison.com/mode-operatoire-declarer

Sheet Périmètre
B1: =MID(CELL("filename",A1),FIND("]",CELL("filename",A1))+1,256) -> Périmètre
B4: ARTICLES DE BRICOLAGE ET DE JARDIN - ABJ | E4: POUR INFORMATION - AGREMENT EN COURS (fin 2027)
B6: Catégorie 3 - Articles de bricolage
B8: 100 | C8: Outillage à main et leurs accessoires
C10: Rayon | D10: Catégorie | E10: Exemples de produits (non-exhaustif)
C11: =$B$6 -> Catégorie 3 - Articles de bricolage | D11: =$C$8 -> Outillage à main et leurs accessoires | E11: abrasifs en feuilles, en roulleaux…)
C12: Catégorie 3 - Articles de bricolage | D12: =$C$8 -> Outillage à main et leurs accessoires | E12: agrafeuse
C13: Catégorie 3 - Articles de bricolage | D13: =$C$8 -> Outillage à main et leurs accessoires | E13: arrache-liteaux
C14: Catégorie 3 - Articles de bricolage | D14: =$C$8 -> Outillage à main et leurs accessoires | E14: bande de ponçage
C15: Catégorie 3 - Articles de bricolage | D15: Outillage à main et leurs accessoires | E15: barre à creuser
C16: Catégorie 3 - Articles de bricolage | D16: Outillage à main et leurs accessoires | E16: barre à mine
C17: Catégorie 3 - Articles de bricolage | D17: Outillage à main et leurs accessoires | E17: bédane
C18: Catégorie 3 - Articles de bricolage | D18: Outillage à main et leurs accessoires | E18: boites et scies a onglets
C19: Catégorie 3 - Articles de bricolage | D19: Outillage à main et leurs accessoires | E19: burin
C20: Catégorie 3 - Articles de bricolage | D20: Outillage à main et leurs accessoires | E20: cale de ponçage
C21: Catégorie 3 - Articles de bricolage | D21: Outillage à main et leurs accessoires | E21: chevillette
C22: Catégorie 3 - Articles de bricolage | D22: =$C$8 -> Outillage à main et leurs accessoires | E22: ciseaux
C23: Catégorie 3 - Articles de bricolage | D23: =$C$8 -> Outillage à main et leurs accessoires | E23: ciseaux à bois
C24: Catégorie 3 - Articles de bricolage | D24: Outillage à main et leurs accessoires | E24: ciseaux à brique
C25: Catégorie 3 - Articles de bricolage | D25: Outillage à main et leurs accessoires | E25: Cle a molette
C26: =$B$6 -> Catégorie 3 - Articles de bricolage | D26: =$C$8 -> Outillage à main et leurs accessoires | E26: clé à pipe
C27: Catégorie 3 - Articles de bricolage | D27: Outillage à main et leurs accessoires | E27: clé diverses
C28: Catégorie 3 - Articles de bricolage | D28: Outillage à main et leurs accessoires | E28: clé dynamométrique
C29: Catégorie 3 - Articles de bricolage | D29: Outillage à main et leurs accessoires | E29: clé mixte
C30: Catégorie 3 - Articles de bricolage | D30: Outillage à main et leurs accessoires | E30: Cle suedoise ou cle serre tube
C31: Catégorie 3 - Articles de bricolage | D31: Outillage à main et leurs accessoires | E31: cliquets
C32: Catégorie 3 - Articles de bricolage | D32: Outillage à main et leurs accessoires | E32: coupe tube
C33: Catégorie 3 - Articles de bricolage | D33: Outillage à main et leurs accessoires | E33: Couteau
C34: Catégorie 3 - Articles de bricolage | D34: Outillage à main et leurs accessoires | E34: couteau à asphalte
C35: Catégorie 3 - Articles de bricolage | D35: Outillage à main et leurs accessoires | E35: couteau à enduire
C36: Catégorie 3 - Articles de bricolage | D36: Outillage à main et leurs accessoires | E36: couteau de bricolage , couteau de poche
C37: Catégorie 3 - Articles de bricolage | D37: Outillage à main et leurs accessoires | E37: cutter
C38: Catégorie 3 - Articles de bricolage | D38: Outillage à main et leurs accessoires | E38: douilles
C39: Catégorie 3 - Articles de bricolage | D39: Outillage à main et leurs accessoires | E39: embouts de vissage
C40: Catégorie 3 - Articles de bricolage | D40: Outillage à main et leurs accessoires | E40: emporte pieces
C41: Catégorie 3 - Articles de bricolage | D41: Outillage à main et leurs accessoires | E41: éponge abrasive
C42: Catégorie 3 - Articles de bricolage | D42: =$C$8 -> Outillage à main et leurs accessoires | E42: Eponge gros travaux
C43: Catégorie 3 - Articles de bricolage | D43: =$C$8 -> Outillage à main et leurs accessoires | E43: equerre (outil)
C44: Catégorie 3 - Articles de bricolage | D44: =$C$8 -> Outillage à main et leurs accessoires | E44: etais
C45: Catégorie 3 - Articles de bricolage | D45: =$C$8 -> Outillage à main et leurs accessoires | E45: etancheur
C46: Catégorie 3 - Articles de bricolage | D46: Outillage à main et leurs accessoires | E46: Extracteur et lisseur de joint
C47: Catégorie 3 - Articles de bricolage | D47: =$C$8 -> Outillage à main et leurs accessoires | E47: fil à plomb
C48: Catégorie 3 - Articles de bricolage | D48: =$C$8 -> Outillage à main et leurs accessoires | E48: grattoirs
C49: Catégorie 3 - Articles de bricolage | D49: =$C$8 -> Outillage à main et leurs accessoires | E49: grattoirs à béton
C50: Catégorie 3 - Articles de bricolage | D50: =$C$8 -> Outillage à main et leurs accessoires | E50: griffe à cintrer
C51: Catégorie 3 - Articles de bricolage | D51: Outillage à main et leurs accessoires | E51: griffe de zingueur
C52: Catégorie 3 - Articles de bricolage | D52: Outillage à main et leurs accessoires | E52: lame
C53: Catégorie 3 - Articles de bricolage | D53: Outillage à main et leurs accessoires | E53: lame de scie
C54: Catégorie 3 - Articles de bricolage | D54: Outillage à main et leurs accessoires | E54: limes et limes de précision
C55: Catégorie 3 - Articles de bricolage | D55: Outillage à main et leurs accessoires | E55: lisseur de joints
C56: Catégorie 3 - Articles de bricolage | D56: Outillage à main et leurs accessoires | E56: Machoire a sertir
C57: Catégorie 3 - Articles de bricolage | D57: Outillage à main et leurs accessoires | E57: maillet
C58: Catégorie 3 - Articles de bricolage | D58: Outillage à main et leurs accessoires | E58: maillet de pavage
C59: Catégorie 3 - Articles de bricolage | D59: Outillage à main et leurs accessoires | E59: marteau
C60: Catégorie 3 - Articles de bricolage | D60: Outillage à main et leurs accessoires | E60: marteau de pavage
C61: Catégorie 3 - Articles de bricolage | D61: Outillage à main et leurs accessoires | E61: masses
C62: Catégorie 3 - Articles de bricolage | D62: =$C$8 -> Outillage à main et leurs accessoires | E62: massette
C63: Catégorie 3 - Articles de bricolage | D63: Outillage à main et leurs accessoires | E63: mesure de précision
C64: Catégorie 3 - Articles de bricolage | D64: Outillage à main et leurs accessoires | E64: Metre
C65: Catégorie 3 - Articles de bricolage | D65: Outillage à main et leurs accessoires | E65: métrologie
C66: Catégorie 3 - Articles de bricolage | D66: Outillage à main et leurs accessoires | E66: niveau à bulle
C67: Catégorie 3 - Articles de bricolage | D67: Outillage à main et leurs accessoires | E67: Niveaux
C68: Catégorie 3 - Articles de bricolage | D68: Outillage à main et leurs accessoires | E68: outillage aep
C69: Catégorie 3 - Articles de bricolage | D69: Outillage à main et leurs accessoires | E69: outillage de fontainerie
C70: Catégorie 3 - Articles de bricolage | D70: Outillage à main et leurs accessoires | E70: outillage d'électricien
C71: Catégorie 3 - Articles de bricolage | D71: Outillage à main et leurs accessoires | E71: outillage du couvreur
C72: Catégorie 3 - Articles de bricolage | D72: Outillage à main et leurs accessoires | E72: outillage du maçon
C73: Catégorie 3 - Articles de bricolage | D73: Outillage à main et leurs accessoires | E73: outillage pour le travail du bois
C74: Catégorie 3 - Articles de bricolage | D74: Outillage à main et leurs accessoires | E74: outillage spécifique du plâtrier-plaquiste
C75: Catégorie 3 - Articles de bricolage | D75: Outillage à main et leurs accessoires | E75: outils de mesure et de traçage
C76: Catégorie 3 - Articles de bricolage | D76: Outillage à main et leurs accessoires | E76: outils du plombier
C77: Catégorie 3 - Articles de bricolage | D77: Outillage à main et leurs accessoires | E77: outils et accessoires du carreleur
C78: Catégorie 3 - Articles de bricolage | D78: Outillage à main et leurs accessoires | E78: outils pour travaux d'étanchéité
C79: Catégorie 3 - Articles de bricolage | D79: Outillage à main et leurs accessoires | E79: ouvre-caisse
C80: Catégorie 3 - Articles de bricolage | D80: Outillage à main et leurs accessoires | E80: pied de biche
C81: Catégorie 3 - Articles de bricolage | D81: Outillage à main et leurs accessoires | E81: Pince
C82: Catégorie 3 - Articles de bricolage | D82: Outillage à main et leurs accessoires | E82: pince à bec
C83: Catégorie 3 - Articles de bricolage | D83: Outillage à main et leurs accessoires | E83: pince à décoffrer
C84: Catégorie 3 - Articles de bricolage | D84: Outillage à main et leurs accessoires | E84: pince à sertir
C85: Catégorie 3 - Articles de bricolage | D85: Outillage à main et leurs accessoires | E85: pince coupe-boulon
C86: Catégorie 3 - Articles de bricolage | D86: Outillage à main et leurs accessoires | E86: pince de carrelleur
C87: Catégorie 3 - Articles de bricolage | D87: Outillage à main et leurs accessoires | E87: pince monseigneur
C88: =$B$6 -> Catégorie 3 - Articles de bricolage | D88: Outillage à main et leurs accessoires | E88: pince rivet
C89: Catégorie 3 - Articles de bricolage | D89: Outillage à main et leurs accessoires | E89: pioche à bec, pioche de terrassement
C90: Catégorie 3 - Articles de bricolage | D90: Outillage à main et leurs accessoires | E90: pioche de terrassement
C91: Catégorie 3 - Articles de bricolage | D91: =$C$8 -> Outillage à main et leurs accessoires | E91: pistolet à cartouche
C92: Catégorie 3 - Articles de bricolage | D92: Outillage à main et leurs accessoires | E92: pistolet à colle
C93: Catégorie 3 - Articles de bricolage | D93: Outillage à main et leurs accessoires | E93: pistolet à poche
C94: Catégorie 3 - Articles de bricolage | D94: Outillage à main et leurs accessoires | E94: pointe à tracer
C95: Catégorie 3 - Articles de bricolage | D95: Outillage à main et leurs accessoires | E95: pointeau
C96: Catégorie 3 - Articles de bricolage | D96: Outillage à main et leurs accessoires | E96: pointerolle
C97: Catégorie 3 - Articles de bricolage | D97: Outillage à main et leurs accessoires | E97: pointes
C98: Catégorie 3 - Articles de bricolage | D98: Outillage à main et leurs accessoires | E98: presses
C99: Catégorie 3 - Articles de bricolage | D99: Outillage à main et leurs accessoires | E99: rabot
C100: Catégorie 3 - Articles de bricolage | D100: Outillage à main et leurs accessoires | E100: rape
C101: Catégorie 3 - Articles de bricolage | D101: Outillage à main et leurs accessoires | E101: Regle de bricolage
C102: Catégorie 3 - Articles de bricolage | D102: Outillage à main et leurs accessoires | E102: règle aluminium
C103: Catégorie 3 - Articles de bricolage | D103: Outillage à main et leurs accessoires | E103: riflard
C104: Catégorie 3 - Articles de bricolage | D104: Outillage à main et leurs accessoires | E104: scie à bois
C105: Catégorie 3 - Articles de bricolage | D105: Outillage à main et leurs accessoires | E105: scie à métaux
C106: =$B$6 -> Catégorie 3 - Articles de bricolage | D106: =$C$8 -> Outillage à main et leurs accessoires | E106: serre-joint
C107: =$B$6 -> Catégorie 3 - Articles de bricolage | D107: =$C$8 -> Outillage à main et leurs accessoires | E107: souflette
C108: Catégorie 3 - Articles de bricolage | D108: Outillage à main et leurs accessoires | E108: taloche
C109: =$B$6 -> Catégorie 3 - Articles de bricolage | D109: =$C$8 -> Outillage à main et leurs accessoires | E109: tamis
C110: =$B$6 -> Catégorie 3 - Articles de bricolage | D110: =$C$8 -> Outillage à main et leurs accessoires | E110: tenaille
C111: =$B$6 -> Catégorie 3 - Articles de bricolage | D111: =$C$8 -> Outillage à main et leurs accessoires | E111: tournevis
C112: Catégorie 3 - Articles de bricolage | D112: Outillage à main et leurs accessoires | E112: traçage et topographie
C113: =$B$6 -> Catégorie 3 - Articles de bricolage | D113: =$C$8 -> Outillage à main et leurs accessoires | E113: treteaux de sciage
C114: Catégorie 3 - Articles de bricolage | D114: Outillage à main et leurs accessoires | E114: Truelle
C115: Catégorie 3 - Articles de bricolage | D115: Outillage à main et leurs accessoires | E115: trusquin
B118: 101 | C118: Gros objets et machines non électriques et non thermiques et leurs accessoires
C120: Rayon | D120: Catégorie | E120: Exemples de produits (non-exhaustif)
C121: =$B$6 -> Catégorie 3 - Articles de bricolage | D121: =$C$118 -> Gros objets et machines non électriques et non thermiques et leurs accessoires | E121: boites encastrement pour appareillage et accessoires
C122: Catégorie 3 - Articles de bricolage | D122: Gros objets et machines non électriques et non thermiques et leurs accessoires | E122: chariot de manutention
C123: Catégorie 3 - Articles de bricolage | D123: Gros objets et machines non électriques et non thermiques et leurs accessoires | E123: Coupe carreaux
C124: Catégorie 3 - Articles de bricolage | D124: Gros objets et machines non électriques et non thermiques et leurs accessoires | E124: coupe carreaux manuel
C125: Catégorie 3 - Articles de bricolage | D125: Gros objets et machines non électriques et non thermiques et leurs accessoires | E125: enclumes
C126: =$B$6 -> Catégorie 3 - Articles de bricolage | D126: =$C$118 -> Gros objets et machines non électriques et non thermiques et leurs accessoires | E126: etaux
C127: =$B$6 -> Catégorie 3 - Articles de bricolage | D127: =$C$118 -> Gros objets et machines non électriques et non thermiques et leurs accessoires | E127: extracteur
C128: Catégorie 3 - Articles de bricolage | D128: Gros objets et machines non électriques et non thermiques et leurs accessoires | E128: leviers de force
C129: Catégorie 3 - Articles de bricolage | D129: Gros objets et machines non électriques et non thermiques et leurs accessoires | E129: lissarde à béton
C130: Catégorie 3 - Articles de bricolage | D130: Gros objets et machines non électriques et non thermiques et leurs accessoires | E130: marteau burineur
C131: Catégorie 3 - Articles de bricolage | D131: Gros objets et machines non électriques et non thermiques et leurs accessoires | E131: mesure longue
C132: Catégorie 3 - Articles de bricolage | D132: Gros objets et machines non électriques et non thermiques et leurs accessoires | E132: mire
C133: Catégorie 3 - Articles de bricolage | D133: Gros objets et machines non électriques et non thermiques et leurs accessoires | E133: nivelle pour mire
C134: Catégorie 3 - Articles de bricolage | D134: Gros objets et machines non électriques et non thermiques et leurs accessoires | E134: outillage de serrage et découpage
C135: Catégorie 3 - Articles de bricolage | D135: Gros objets et machines non électriques et non thermiques et leurs accessoires | E135: outillage lourd de carreleur
C136: Catégorie 3 - Articles de bricolage | D136: Gros objets et machines non électriques et non thermiques et leurs accessoires | E136: outillage pour tuyauterie
C137: Catégorie 3 - Articles de bricolage | D137: Gros objets et machines non électriques et non thermiques et leurs accessoires | E137: outils de terrassement
C138: Catégorie 3 - Articles de bricolage | D138: Gros objets et machines non électriques et non thermiques et leurs accessoires | E138: outils pneumatiques
C139: Catégorie 3 - Articles de bricolage | D139: Gros objets et machines non électriques et non thermiques et leurs accessoires | E139: Pistolet à clou (hors EEE)
C140: =$B$6 -> Catégorie 3 - Articles de bricolage | D140: =$C$118 -> Gros objets et machines non électriques et non thermiques et leurs accessoires | E140: racleur pehd
C141: Catégorie 3 - Articles de bricolage | D141: Gros objets et machines non électriques et non thermiques et leurs accessoires | E141: règle à niveau
B144: 102 | C144: Outils et supports de travail en hauteur
C146: Rayon | D146: Catégorie | E146: Exemples de produits (non-exhaustif)
C147: =$B$6 -> Catégorie 3 - Articles de bricolage | D147: =$C$144 -> Outils et supports de travail en hauteur | E147: accessoires de levage
C148: Catégorie 3 - Articles de bricolage | D148: Outils et supports de travail en hauteur | E148: accessoires de manutention
C149: Catégorie 3 - Articles de bricolage | D149: Outils et supports de travail en hauteur | E149: anneau de levage
C150: Catégorie 3 - Articles de bricolage | D150: Outils et supports de travail en hauteur | E150: crochet de levage
C151: Catégorie 3 - Articles de bricolage | D151: Outils et supports de travail en hauteur | E151: échafaudages et structures tubulaires
C152: Catégorie 3 - Articles de bricolage | D152: Outils et supports de travail en hauteur | E152: échafaudages mobiles
C153: =$B$6 -> Catégorie 3 - Articles de bricolage | D153: =$C$144 -> Outils et supports de travail en hauteur | E153: Echelle
C154: =$B$6 -> Catégorie 3 - Articles de bricolage | D154: =$C$144 -> Outils et supports de travail en hauteur | E154: echelle coulissante
C155: =$B$6 -> Catégorie 3 - Articles de bricolage | D155: =$C$144 -> Outils et supports de travail en hauteur | E155: echelle simple
C156: Catégorie 3 - Articles de bricolage | D156: Outils et supports de travail en hauteur | E156: echelle transformable
C157: Catégorie 3 - Articles de bricolage | D157: Outils et supports de travail en hauteur | E157: échelles téléscopiques
C158: Catégorie 3 - Articles de bricolage | D158: Outils et supports de travail en hauteur | E158: échelles pour chantiers
C159: Catégorie 3 - Articles de bricolage | D159: Outils et supports de travail en hauteur | E159: Escabeau
C160: Catégorie 3 - Articles de bricolage | D160: Outils et supports de travail en hauteur | E160: marche pied, marchepied
C161: Catégorie 3 - Articles de bricolage | D161: Outils et supports de travail en hauteur | E161: Marche pieds
C162: Catégorie 3 - Articles de bricolage | D162: Outils et supports de travail en hauteur | E162: tables élévatrices
C163: Catégorie 3 - Articles de bricolage | D163: Outils et supports de travail en hauteur | E163: treuil
B166: 103 | C166: Equipement personnel et accessoires de protection de bricolage
C168: Rayon | D168: Catégorie | E168: Exemples de produits (non-exhaustif)
C169: =$B$6 -> Catégorie 3 - Articles de bricolage | D169: =$C$166 -> Equipement personnel et accessoires de protection de bricolage | E169: bouchons anti-bruit
C170: Catégorie 3 - Articles de bricolage | D170: =$C$166 -> Equipement personnel et accessoires de protection de bricolage | E170: cartouches pour masques
C171: Catégorie 3 - Articles de bricolage | D171: Equipement personnel et accessoires de protection de bricolage | E171: casque de soudeur
C172: Catégorie 3 - Articles de bricolage | D172: Equipement personnel et accessoires de protection de bricolage | E172: casques de chantier
C173: =$B$6 -> Catégorie 3 - Articles de bricolage | D173: =$C$166 -> Equipement personnel et accessoires de protection de bricolage | E173: Casque de protection
C174: Catégorie 3 - Articles de bricolage | D174: Equipement personnel et accessoires de protection de bricolage | E174: chaussure de protection (ISO 20346 et 20345 : SB, SBP, S1, S1P, S2 et S3)
C175: Catégorie 3 - Articles de bricolage | D175: Equipement personnel et accessoires de protection de bricolage | E175: equipement du corps (visière, genouillère, jambière…)
C176: Catégorie 3 - Articles de bricolage | D176: Equipement personnel et accessoires de protection de bricolage | E176: gants de protection pour le bricolage
C177: Catégorie 3 - Articles de bricolage | D177: Equipement personnel et accessoires de protection de bricolage | E177: Lunettes de protection
C178: Catégorie 3 - Articles de bricolage | D178: Equipement personnel et accessoires de protection de bricolage | E178: masques
C179: Catégorie 3 - Articles de bricolage | D179: Equipement personnel et accessoires de protection de bricolage | E179: protection auditive
C180: Catégorie 3 - Articles de bricolage | D180: Equipement personnel et accessoires de protection de bricolage | E180: protection des yeux
C181: Catégorie 3 - Articles de bricolage | D181: Equipement personnel et accessoires de protection de bricolage | E181: Protection voies respiratoires
B183: 104 | C183: Bâches, housses, filets et films de bricolage
C185: Rayon | D185: Catégorie | E185: Exemples de produits (non-exhaustif)
C186: =B6 -> Catégorie 3 - Articles de bricolage | D186: =$C$183 -> Bâches, housses, filets et films de bricolage | E186: bâche de bricolage
H188: =TRIM((LOWER(E188))) -> 
H189: =TRIM((LOWER(E189))) -> 
H190: =TRIM((LOWER(E190))) -> 
B191: Catégorie 4 - Entretien et aménagement du jardin | H191: =TRIM((LOWER(E191))) -> 
H192: =TRIM((LOWER(E192))) -> 
B193: 150 | C193: Outils à main d’entretien du jardin et petits accessoires
C195: Rayon | D195: Catégorie | E195: Exemples de produits (non-exhaustif)
C196: =$B$191 -> Catégorie 4 - Entretien et aménagement du jardin | D196: =$C$193 -> Outils à main d’entretien du jardin et petits accessoires | E196: accessoires de culture
C197: Catégorie 4 - Entretien et aménagement du jardin | D197: Outils à main d’entretien du jardin et petits accessoires | E197: arrosage goutte à goutte
C198: Catégorie 4 - Entretien et aménagement du jardin | D198: Outils à main d’entretien du jardin et petits accessoires | E198: arroseur
C199: Catégorie 4 - Entretien et aménagement du jardin | D199: Outils à main d’entretien du jardin et petits accessoires | E199: Arrosoir
C200: Catégorie 4 - Entretien et aménagement du jardin | D200: Outils à main d’entretien du jardin et petits accessoires | E200: autres grands outils de jardin
C201: Catégorie 4 - Entretien et aménagement du jardin | D201: Outils à main d’entretien du jardin et petits accessoires | E201: balai à gazon
C202: Catégorie 4 - Entretien et aménagement du jardin | D202: Outils à main d’entretien du jardin et petits accessoires | E202: Balai de jardin
C203: Catégorie 4 - Entretien et aménagement du jardin | D203: Outils à main d’entretien du jardin et petits accessoires | E203: Beche
C204: Catégorie 4 - Entretien et aménagement du jardin | D204: Outils à main d’entretien du jardin et petits accessoires | E204: bisaigue
C205: Catégorie 4 - Entretien et aménagement du jardin | D205: Outils à main d’entretien du jardin et petits accessoires | E205: Brosse
C206: =$B$191 -> Catégorie 4 - Entretien et aménagement du jardin | D206: =$C$193 -> Outils à main d’entretien du jardin et petits accessoires | E206: bucheronnage
C207: Catégorie 4 - Entretien et aménagement du jardin | D207: Outils à main d’entretien du jardin et petits accessoires | E207: buse
C208: Catégorie 4 - Entretien et aménagement du jardin | D208: Outils à main d’entretien du jardin et petits accessoires | E208: Cisaille
C209: Catégorie 4 - Entretien et aménagement du jardin | D209: Outils à main d’entretien du jardin et petits accessoires | E209: cognée
C210: Catégorie 4 - Entretien et aménagement du jardin | D210: Outils à main d’entretien du jardin et petits accessoires | E210: coin éclateur
C211: Catégorie 4 - Entretien et aménagement du jardin | D211: Outils à main d’entretien du jardin et petits accessoires | E211: Coupe branche
C212: Catégorie 4 - Entretien et aménagement du jardin | D212: Outils à main d’entretien du jardin et petits accessoires | E212: coupe-bordure
C213: Catégorie 4 - Entretien et aménagement du jardin | D213: Outils à main d’entretien du jardin et petits accessoires | E213: cueille fruits
C214: Catégorie 4 - Entretien et aménagement du jardin | D214: Outils à main d’entretien du jardin et petits accessoires | E214: Devidoir enrouleur
C215: Catégorie 4 - Entretien et aménagement du jardin | D215: Outils à main d’entretien du jardin et petits accessoires | E215: divers arrosage et pulvérisation
C216: Catégorie 4 - Entretien et aménagement du jardin | D216: Outils à main d’entretien du jardin et petits accessoires | E216: enrouleurs de tuyau d'arrosage
C217: Catégorie 4 - Entretien et aménagement du jardin | D217: Outils à main d’entretien du jardin et petits accessoires | E217: epuisette
C218: Catégorie 4 - Entretien et aménagement du jardin | D218: Outils à main d’entretien du jardin et petits accessoires | E218: équipements d’entretien du jardin
... 158 more rows

Sheet Comprendre la codification
B1: Système de codification ecomaison
B4: Structure générale du code
B16: Code Rayon : XX 000 00 000 0
B18: REP | C18: _ | D18: Rayon | E18: _2 | F18: Code Rayon
B20: Articles Bricolage et Jardin - ABJ | D20: Articles de bricolage | F20: 21
B21: Articles Bricolage et Jardin - ABJ | D21: Entretien et aménagement du jardin | F21: 22
B23: Code Catégorie Produit : 00 XXX 00 000 0
B25: REP | C25: _ | D25: Rayon | E25: Catégorie | F25: Code Produit
B27: ABJ | D27: =$D$20 -> Articles de bricolage | E27: Outillage à main et leurs accessoires | F27: 100
B29: ABJ | D29: =$D$20 -> Articles de bricolage | E29: Gros objets et machines non électriques et non thermiques et leurs accessoires | F29: =F27+1 -> 101
B30: ABJ | D30: Articles de bricolage | E30: Outils et supports de travail en hauteur | F30: =F29+1 -> 102
B31: ABJ | D31: Articles de bricolage | E31: Equipement personnel et accessoires de protection de bricolage | F31: 103
B32: ABJ | D32: Articles de bricolage | E32: Bâches, housses, filets et films de bricolage | F32: 104
B33: ABJ | D33: Articles de bricolage | E33: Seaux, auges et contenants | F33: =IF(D33=D32,F32+1,ROUNDUP((F32+1)*2,-1)/2) -> 105
B34: ABJ | D34: =$D$21 -> Entretien et aménagement du jardin | E34: Outils à main d’entretien du jardin et petits accessoires | F34: 150
B35: ABJ | D35: =$D$21 -> Entretien et aménagement du jardin | E35: Equipement personnel et accessoires de protection de jardinage | F35: =F34+1 -> 151
B36: ABJ | D36: =$D$21 -> Entretien et aménagement du jardin | E36: Pots de fleur et contenants | F36: =F35+1 -> 152
B37: ABJ | D37: Entretien et aménagement du jardin | E37: Bâches, housses, filets et films de jardinage | F37: 153
B38: ABJ | D38: Entretien et aménagement du jardin | E38: Equipements de plein air et leurs accessoires (hors bâches, filets, housses) | F38: 154
B39: ABJ | D39: Entretien et aménagement du jardin | E39: Structures extérieures non-maçonnées | F39: 155
B41: Code Matériaux : 00 000 XX 000 0
B43: Type de matériaux | C43: _ | D43: Matériaux | E43: Exemples de matériaux | F43: Code matériaux | G43: Colonne1
B45: 1 - Métal | D45: Métal >95% | E45: Ferreux (Acier, Acier inoxydable, Fer forgé, Fonte, Acier au carbone, acier zingué, tole, alliages…) et non-ferreux (Aluminium, plomb, zinc, étain, chrome, cuivre, bronze, argent, zamac, nickel, titane, laiton...) | F45: 28
B46: 1 - Métal | D46: Assemblage avec métal >50% et autres matériaux | E46: Assemblage métal-bois, métal-plastique, métal-inertes … | F46: 02
B48: 2 - Bois et dérivés de bois | D48: Massif et assimilés certifiés >95% | E48: Toutes essences (douglas, sapin, chène, hêtre, pin maritime, pin sylvestre, moabi , mélèze, teak, épicea ...), dont contreplaqué, contrecollé, lamellé, plaqué | F48: 52
B49: 2 - Bois et dérivés de bois | D49: Massif et assimilés certifiés >75% | E49: Toutes essences (douglas, sapin, chène, hêtre, pin maritime, pin sylvestre, moabi , mélèze, teak, épicea ...), dont contreplaqué, contrecollé, lamellé, plaqué | F49: 20
B50: 2 - Bois et dérivés de bois | D50: Massif et assimilés non certifiés >95% | E50: Toutes essences (douglas, sapin, chène, hêtre, pin maritime, pin sylvestre, moabi , mélèze, teak, épicea ...), dont contreplaqué, contrecollé, lamellé, plaqué | F50: 53
B51: 2 - Bois et dérivés de bois | D51: Massif et assimilés non certifiés >75% | E51: Toutes essences (douglas, sapin, chène, hêtre, pin maritime, pin sylvestre, moabi , mélèze, teak, épicea ...), dont contreplaqué, contrecollé, lamellé, plaqué | F51: 21
B52: 2 - Bois et dérivés de bois | D52: Panneaux de particules ou OSB certifiés >95% | E52: Panneaux de particules, OSB | F52: 59
B53: 2 - Bois et dérivés de bois | D53: Panneaux de particules ou OSB certifiés >75% | E53: Panneaux de particules, OSB | F53: 60
B54: 2 - Bois et dérivés de bois | D54: Panneaux de particules ou OSB non certifiés >95% | E54: Panneaux de particules, OSB | F54: 61
B55: 2 - Bois et dérivés de bois | D55: Panneaux de particules ou OSB non certifiés >75% | E55: Panneaux de particules, OSB | F55: 25
B56: 2 - Bois et dérivés de bois | D56: Dérivés de bois >95% certifiés | E56: Bois composite, MDF, HDF, alvéolaire, stratifé, HPL…. | F56: 62
B57: 2 - Bois et dérivés de bois | D57: Dérivés de bois >95% non certifiés | E57: Bois composite, MDF, HDF, alvéolaire, stratifé, HPL…. | F57: 54
B58: 2 - Bois et dérivés de bois | D58: Assemblage de bois, dérivés de bois à plus de 50% avec d'autres matériaux ou bois composite (hors verre) | E58: Assemblage bois-métal, bois-plastique … | F58: 01
B59: 2 - Bois et dérivés de bois | D59: Assemblage de bois, dérivés de bois à plus de 50% avec d'autres matériaux ou bois composite (hors verre) non certifiés | E59: Assemblage bois-métal, bois-plastique … | F59: 51
B61: 3 - Papier carton | D61: Papier carton >50% avec d'autres matériaux (hors verre) | E61: Papier, Carton, Compact, Papier Kraft | F61: 19
B63: 4 - Matériaux et fibres d'origine végétal ou animal autres que bois et papier, carton | D63: Matériaux bio sourcés ou textiles non synthétiques >95% | E63: Tiges végétales (bambou, rotin, osiers, jute, paille, liège), textiles naturels d'origine végétale non mélangés (coton, lin, chanvre, soie, ramie, fibres de noix de coco, rafia…) | F63: 55
B64: 4 - Matériaux et fibres d'origine végétal ou animal autres que bois et papier, carton | D64: Matériaux bio sourcés ou textiles non synthétiques >50% | E64: Assemblage de matériaux bio sourcés avec du plastique, du métal … | F64: 04
B65: 4 - Matériaux et fibres d'origine végétal ou animal autres que bois et papier, carton | D65: Caoutchouc naturel >95% | E65: Caoutchouc, latex | F65: 63
B66: 4 - Matériaux et fibres d'origine végétal ou animal autres que bois et papier, carton | D66: Caoutchouc naturel >50% | E66: Caoutchouc, latex | F66: 64
B67: 4 - Matériaux et fibres d'origine végétal ou animal autres que bois et papier, carton | D67: Matériaux d'origine animale >50% | E67: Matières textiles ou rembourrages d'origine animale (laine, feutre, mohair, plumes, duvets, poils, cuirs...) | F67: 06
B69: 5 - Plastique, matériaux et fibres synthétiques | D69: Plastiques (mono résine) >95% | E69: Plastiques et autres matériaux synthétiques : acrylique, PP, PE, PS, XPS, EPS, PER, Nylon, Polyamide, PU, PVC, vinyle, époxy, fibres synthétiques, PL, matériaux composites, carbone…. | F69: 41
B70: 5 - Plastique, matériaux et fibres synthétiques | D70: PE ou PP ou mélange PP/PE >95% | E70: Polyéthylène (PE), Polypropylène (PP), mélange PP/PE | F70: 45
B71: 5 - Plastique, matériaux et fibres synthétiques | D71: PVC >95% | F71: 48
B72: 5 - Plastique, matériaux et fibres synthétiques | D72: Polyterephtalate d'Ethylène (PET) >95% | F72: 42
B73: 5 - Plastique, matériaux et fibres synthétiques | D73: ABS >95% | F73: 46
B74: 5 - Plastique, matériaux et fibres synthétiques | D74: Polystyrène >95% | F74: 47
B75: 5 - Plastique, matériaux et fibres synthétiques | D75: Plastiques ou autres matériaux synthétiques >50% | E75: Assemblage de matériaux et textiles synthétiques, ensemble | F75: 05
B76: 5 - Plastique, matériaux et fibres synthétiques | D76: Caoutchouc synthétique >95% | E76: Caoutchouc | F76: 49
B77: 5 - Plastique, matériaux et fibres synthétiques | D77: Eléments contenant du latex | E77: Latex | F77: 10
B78: 5 - Plastique, matériaux et fibres synthétiques | D78: Assemblage caoutchouc synthétique ou latex >50% avec d'autres matériaux | E78: Caoutchouc, latex avec d'autres matériaux synthétiques, du bois, du métal … | F78: 40
B79: 5 - Plastique, matériaux et fibres synthétiques | D79: Matériaux ou fibres synthétiques >95% | E79: Polyamides, nylon, polyester (PES) et polyterephtalate d'Ethylène (PET), viscose, polyester, élastane, mousses … | F79: 65
B80: 5 - Plastique, matériaux et fibres synthétiques | D80: Textile et rembourrage en polyester >95% | E80: Polyester | F80: 66
B81: 5 - Plastique, matériaux et fibres synthétiques | D81: Eléments contenant de la mousse | F81: 09
B82: 5 - Plastique, matériaux et fibres synthétiques | D82: Eléments textiles contenant des ressorts | F82: 11
B83: 5 - Plastique, matériaux et fibres synthétiques | D83: Assemblage matériaux ou fibres synthétiques >50% avec d'autres matériaux | E83: Assemblage de matériaux et textiles synthétiques avec du métal, du bois … | F83: 67
B85: 6 - Verre et parois vitrées | D85: Verre >95% | E85: Verre plat, brique de verre … | F85: 68
B86: 6 - Verre et parois vitrées | D86: Assemblage verre à plus de 50% avec métal | E86: Assemblage de verre avec des métaux | F86: 70
B87: 6 - Verre et parois vitrées | D87: Assemblage verre à plus de 50% avec Inerte | E87: Assemblage de verre avec de l'inerte | F87: 71
B88: 6 - Verre et parois vitrées | D88: Assemblage verre à plus de 50% avec bois ou dérivés de bois | E88: Assemblage de verre avec du bois ou des matériaux biosourcés | F88: 72
B89: 6 - Verre et parois vitrées | D89: Assemblage verre à plus de 50% avec plastique | E89: Assemblage de verre avec du plastique | F89: 73
B90: 6 - Verre et parois vitrées | D90: Miroir >95% | E90: Miroir | F90: 69
B92: 7 - Plâtre | D92: Plâtre >95% | E92: Matière en plâtre, plaque de plâtre (placo) et fibre gypse | F92: 75
B93: 7 - Plâtre | D93: Plâtre >50% | E93: Elément composé majoritaitement de plâtre et associé à d'autres matériaux | F93: 76
B95: 8- Laines de verre et laines de roches | D95: Laines de roche à plus de 95 % | E95: Matière isolante fabriquée à partir d'un matériau naturel issu de l'activité volcanique | F95: 77
B96: 8- Laines de verre et laines de roches | D96: Laine de verre à plus de 95 % | E96: Matière composée de fils de verre, utilisé comme filtrant ou isolant | F96: 78
B97: 8- Laines de verre et laines de roches | D97: Assemblage de laines de verre ou laines de roches à plus de 50% et d'autres matériaux | E97: Elément composé majoritaitement de laine minérale | F97: 79
B99: 9 - Membranes bitumineuses | D99: Membranes bitumineuses à plus de 95 % | E99: Membrane d'étanchéité synthétique | F99: 80
B101: 10 - Autres mix matériaux ou matériaux non classés ou non spécifiés | D101: Assemblage dont la composition conjointe en bois, dérivés de bois et en métal dépasse 95% | F101: 81
B102: 10 - Autres mix matériaux ou matériaux non classés ou non spécifiés | D102: Assemblage de 3 matériaux ou plus sans un matériau à plus de 50% | E102: Elément composé de parties en matériaux divers avec souvent mais non exclusivement une partie de plastique ou de textile synthétique | F102: 82
B103: 10 - Autres mix matériaux ou matériaux non classés ou non spécifiés | D103: Non connu ou non spécifié par l'entreprise | E103: Non connu ou non spécifié par l'entreprise | F103: 00
B105: 11 - Mortiers, enduits, peintures, vernis, résines, produits de préparation | D105: Produits liquides, y.c. dangereux >95% | E105: Sous couches, préparation des sols et étanchéité, Peintures extérieures, Traitement des sols et toitures, Peintures intérieures, Colles et adhésifs, Résines PU et expansive (aérosol), Mastics, joints et mousses PU, Adjuvants, Traitement des bois, Traitement des matériaux (aérosol), Traitement des matériaux hors bois, Vernis et vitrificateurs et dérivés, Vernis et vitrificateurs et dérivés (aérosols), Enduits poudre, Enduits pate | F105: 83
B107: 12 - Matériaux inertes | D107: Assemblage de matériaux avec de l'inerte >50% | F107: 08
B108: 12 - Matériaux inertes | D108: Composites et autres matériaux minéraux reconstitués >50% | F108: 15
B109: 12 - Matériaux inertes | D109: Ardoise >95% | E109: Ardoise | F109: 84
B110: 12 - Matériaux inertes | D110: Granulats hors pierre >95% | E110: Matière minérale de petite taille (granulats, gravillons, sable, grave, gravier, moellon, concassé, …) hors pierre | F110: 85
B111: 12 - Matériaux inertes | D111: Pierre calcaire >95% | E111: Matière minérale de grosse taille, hors granulats, gravillons, sable et hors pierres spécifiques comme l'ardoise | F111: 86
B112: 12 - Matériaux inertes | D112: Lave >95% | F112: 87
B113: 12 - Matériaux inertes | D113: Mélange bitumineux >95% | E113: Matière liquide à base de bitume | F113: 88
B114: 12 - Matériaux inertes | D114: Terre cuite ou crue >95% | E114: Matière terre cuite | F114: 89
B115: 12 - Matériaux inertes | D115: Béton >95% | E115: Assemblage de granulats (graviers, gravillons, sables, etc.), d'un liant (ciment, bitume, argile) d'adjuvants et d'eau | F115: 74
B116: 12 - Matériaux inertes | D116: Béton cellulaire >95% | F116: 96
B117: 12 - Matériaux inertes | D117: Ciment >95% | F117: 90
B118: 12 - Matériaux inertes | D118: Granit >95% | F118: 91
B119: 12 - Matériaux inertes | D119: Céramique >95% | E119: Matière à base de faïence ou grès | F119: 97
B120: 12 - Matériaux inertes | D120: Mortier >95% | F120: 92
B121: 12 - Matériaux inertes | D121: Adjuvants >95% | F121: 93
B122: 12 - Matériaux inertes | D122: Grès >95% | F122: 94
B123: 12 - Matériaux inertes | D123: Chaux >95% | F123: 95
B124: 12 - Matériaux inertes | D124: Pierre artificielle >95% | E124: Matériau obtenu par moulage d'agrégats divers, charges et liants (béton, pierre reconstituée) ou par synthèse chimique | F124: 98
B127: Code Mesure : 00 000 00 XXX 0
B129: Type de mesure | C129: concat | D129: Mode de calcul | E129: Périmètres produits d'application | F129: Code Mesure
C130: =Tbl_Code_Mesure[[#This Row],[Mode de calcul]]&Tbl_Code_Mesure[[#This Row],[Périmètres produits d''application]] -> 
B131: Général | C131: =Tbl_Code_Mesure[[#This Row],[Mode de calcul]]&Tbl_Code_Mesure[[#This Row],[Périmètres produits d''application]] -> € / TonneEléments de toutes dimensions et poids | D131: € / Tonne | E131: Eléments de toutes dimensions et poids | F131: 000
B132: Général | C132: =Tbl_Code_Mesure[[#This Row],[Mode de calcul]]&Tbl_Code_Mesure[[#This Row],[Périmètres produits d''application]] -> € / UnitéInférieur strictement à 0,5 kg | D132: € / Unité | E132: Inférieur strictement à 0,5 kg | F132: 020
B133: Général | C133: =Tbl_Code_Mesure[[#This Row],[Mode de calcul]]&Tbl_Code_Mesure[[#This Row],[Périmètres produits d''application]] -> € / UnitéCompris entre 0,5 kg et 1 kg exclus | D133: € / Unité | E133: Compris entre 0,5 kg et 1 kg exclus | F133: 021
B134: Général | C134: =Tbl_Code_Mesure[[#This Row],[Mode de calcul]]&Tbl_Code_Mesure[[#This Row],[Périmètres produits d''application]] -> € / UnitéCompris entre 1 kg et 2 kg exclus | D134: € / Unité | E134: Compris entre 1 kg et 2 kg exclus | F134: 022
B135: Général | C135: =Tbl_Code_Mesure[[#This Row],[Mode de calcul]]&Tbl_Code_Mesure[[#This Row],[Périmètres produits d''application]] -> € / UnitéCompris entre 2 kg et 3 kg exclus | D135: € / Unité | E135: Compris entre 2 kg et 3 kg exclus | F135: 052
B136: Général | C136: =Tbl_Code_Mesure[[#This Row],[Mode de calcul]]&Tbl_Code_Mesure[[#This Row],[Périmètres produits d''application]] -> € / UnitéCompris entre 3 kg et 5 kg exclus | D136: € / Unité | E136: Compris entre 3 kg et 5 kg exclus | F136: 053
B137: Général | C137: =Tbl_Code_Mesure[[#This Row],[Mode de calcul]]&Tbl_Code_Mesure[[#This Row],[Périmètres produits d''application]] -> € / UnitéCompris entre 5 kg et 7 kg exclus | D137: € / Unité | E137: Compris entre 5 kg et 7 kg exclus | F137: 054
B138: Général | C138: =Tbl_Code_Mesure[[#This Row],[Mode de calcul]]&Tbl_Code_Mesure[[#This Row],[Périmètres produits d''application]] -> € / UnitéCompris entre 7 kg et 10 kg exclus | D138: € / Unité | E138: Compris entre 7 kg et 10 kg exclus | F138: 055
B139: Général | C139: =Tbl_Code_Mesure[[#This Row],[Mode de calcul]]&Tbl_Code_Mesure[[#This Row],[Périmètres produits d''application]] -> € / UnitéCompris entre 10 kg et 15 kg exclus | D139: € / Unité | E139: Compris entre 10 kg et 15 kg exclus | F139: 056
B140: Général | C140: =Tbl_Code_Mesure[[#This Row],[Mode de calcul]]&Tbl_Code_Mesure[[#This Row],[Périmètres produits d''application]] -> € / UnitéCompris entre 15 kg et 20 kg exclus | D140: € / Unité | E140: Compris entre 15 kg et 20 kg exclus | F140: 057
B141: Général | C141: =Tbl_Code_Mesure[[#This Row],[Mode de calcul]]&Tbl_Code_Mesure[[#This Row],[Périmètres produits d''application]] -> € / UnitéCompris entre 20 kg et 25 kg exclus | D141: € / Unité | E141: Compris entre 20 kg et 25 kg exclus | F141: 058
B142: Général | C142: =Tbl_Code_Mesure[[#This Row],[Mode de calcul]]&Tbl_Code_Mesure[[#This Row],[Périmètres produits d''application]] -> € / UnitéCompris entre 25 kg et 30 kg exclus | D142: € / Unité | E142: Compris entre 25 kg et 30 kg exclus | F142: 059
B143: Général | C143: =Tbl_Code_Mesure[[#This Row],[Mode de calcul]]&Tbl_Code_Mesure[[#This Row],[Périmètres produits d''application]] -> € / UnitéCompris entre 30 kg et 40 kg exclus | D143: € / Unité | E143: Compris entre 30 kg et 40 kg exclus | F143: 027
B144: Général | C144: =Tbl_Code_Mesure[[#This Row],[Mode de calcul]]&Tbl_Code_Mesure[[#This Row],[Périmètres produits d''application]] -> € / UnitéCompris entre 40 kg et 50 kg exclus | D144: € / Unité | E144: Compris entre 40 kg et 50 kg exclus | F144: 060
B145: Général | C145: =Tbl_Code_Mesure[[#This Row],[Mode de calcul]]&Tbl_Code_Mesure[[#This Row],[Périmètres produits d''application]] -> € / UnitéCodes petits producteurs | D145: € / Unité | E145: Codes petits producteurs | F145: 089
B148: Code Eco-modulation : 00 000 00 000 X
B150: Type | C150: concat | D150: Mode de calcul | E150: Périmètre d'application | F150: Code Eco-modulation
C151: =Tbl_Code_Mesure2[[#This Row],[Mode de calcul]]&Tbl_Code_Mesure2[[#This Row],[Périmètre d''application]] -> 
B152: Sans eco-modultation | D152: - | E152: Tous les produits | F152: 0
B153: Avec éco-modulation mise à disposition de pièces détachées | D153: Prime de 10% de la contribution du produit | E153: Tous les produits | F153: 1

Sheet ABJ - Code produit
A1: Générateur de code produit - ABJ - Barème applicable à partir du 1er janvier 2026 | H1: MASQUER | I1: MASQUER | J1: Masquer | L1: =Infos!$A$7 -> Version 3.0 - 30 juin 2025
A2: Sélectionner les éléments dans les cases vertes Penser à actionner le bouton "RESET" avant de faire une nouvelle génération. Le montant TTC de l’éco-participation est donné à titre indicatif ; le barème applicable est le barème HT.
G4: Code: | I4: A
A6: 1 - Choisissez un rayon : | G6: =IF(D6="","",VLOOKUP(D6,'Param masqué'!$D$3:$E$4,2,FALSE)) ->  | H6: =LEFT(A6,1)+0 -> 1 | I6: =I4&"_"&G6 -> A_
A8: =H6+1&" - Choisissez une catégorie de produit : " -> 2 - Choisissez une catégorie de produit : | E8: _ | G8: =IF(D8="","",VLOOKUP(D8,'Param masqué'!$J$3:$K$15,2,FALSE)) ->  | H8: =LEFT(A8,1)+0 -> 2 | I8: =I4&"_"&G8 -> A_
D9: =IF($G$8=155,"Attention, ce produit relève peut-être d'une autre filière REP. Pensez à bien vérifier son appartenance à la REP ABJ","") -> 
A11: =H8+1&" - Choisissez la caractéristique (ou conditionnement) en fonction du type de produit : " -> 3 - Choisissez la caractéristique (ou conditionnement) en fonction du type de produit : | G11: =IF(D11="","",VLOOKUP(D11,'Param masqué'!$AD$1:$AE$16,2,FALSE)) ->  | H11: =LEFT(A11,1)+0 -> 3 | J11: =G6&G8&G11 ->  | L11: =IF(OR(AND(D20<>"",G17<>""),OR(G6="",G8="",G11="")),"",IF(J15="","En fonction de sa conception, le tarif de ce produit se situe entre "&_xlfn.MINIFS(Tableau2[Eco-participation 2026],Tableau2[Tarifs types prod carac],$J$11)&F24&" et "&_xlfn.MAXIFS(Tableau2[Eco-participation 2026],Tableau2[Tarifs types prod carac],$J$11)&F24,"En fonction de sa conception, le tarif de ce produit se situe entre "&_xlfn.MINIFS(Tableau2[Eco-participation 2026],Tableau2[Tarifs types prod carac mat],$J$15)&F24&" et "&_xlfn.MAXIFS(Tableau2[Eco-participation 2026],Tableau2[Tarifs types prod carac mat],$J$15)&F24)) -> 
A13: =H11+1&" - Choisissez votre famille de matériaux :" -> 4 - Choisissez votre famille de matériaux : | H13: =LEFT(A13,1)+0 -> 4 | I13: =IFERROR(VLOOKUP($D$13,'Param masqué'!$AT$2:$AU$13,2,FALSE),0) -> 0
I14: =IF(D13="Prix en fonction d'une autre unité fonctionelle",I8&"F","") -> 
A15: =H13+1&" - Choisissez un matériau : " -> 5 - Choisissez un matériau : | G15: =IF(D15="","",VLOOKUP(D15,'Param masqué'!$R$3:$T$81,3,FALSE)) ->  | H15: =LEFT(A15,1)+0 -> 5 | I15: =IF($D$13="Prix en fonction d'une autre unité fonctionelle",VLOOKUP(I14,'Param masqué'!AG:AJ,4,FALSE),VLOOKUP(I8,'Param masqué'!AG:AJ,4,FALSE)) ->  | J15: =IF(G15<>"",G6&G8&G15&G11,"") -> 
A17: =H15+1&" - Le produit bénéficie-t-il d'une éco-modulation pour la mise à disposition de pièces détachées ? " -> 6 - Le produit bénéficie-t-il d'une éco-modulation pour la mise à disposition de pièces détachées ? | G17: =IF(D17="","",IF(D17="oui",1,0)) -> 
D18: =IF($G$17=1,"Attention, pensez à bien vérifier l'éligibilité de ce produit aux éco-modulations","") -> 
A20: D'où le code produit: | D20: =IF(AND(D6<>"",D8<>"",D11<>"",D15=""),CONCATENATE(G6,G8,"00",G11,"0"),IF(AND(D6<>"",D8<>"",D11<>"",D15<>"",G17=""),CONCATENATE(G6,G8,G15,G11,"0"),IF(OR(D6="",D8="",D11="",D15="",G17=""),"",CONCATENATE(G6,G8,G15,G11,G17)))) -> 
D21: =IF(D20="","",IFERROR(VLOOKUP(D20,Tableau2[[Code Ecomaison]:[Libellé]],12,FALSE),"Cette combinaison de matériau non certifié et de prime pour mise à disposition de pièces détachées n'est pas permise")) -> 
G23: et son code éco-participation associé :
A24: =IF(D13="forfait","Le montant de l'éco-participation (€/conditionnement retenu)","Le montant de l'éco-participation (€/T) est :") -> Le montant de l'éco-participation (€/T) est : | C24: HT : | D24: =IFERROR(VLOOKUP('ABJ - Code produit'!$D$20,Tableau2[[Code Ecomaison]:[Tarifs types prod carac mat]],8,FALSE),"") ->  | F24: =IFERROR(VLOOKUP('ABJ - Code produit'!$D$20,Codes!$C:$J,7,FALSE),"") ->  | G24: =IFERROR(VLOOKUP(D20,Codes!$C:$L,10,FALSE),"") -> 
A25: Vous pouvez le paramétrer le taux de TVA | B25: 0.2 | C25: TTC : | D25: =IF(D24="","",D24*(1+$B$25)) ->  | F25: =IFERROR(VLOOKUP('ABJ - Code produit'!$D$20,Codes!$C:$J,7,FALSE),"") -> 
A31: =IF(F24="€ / Tonne","Indiquez ici le poids de votre produit en kg :","") -> 
C33: =IF(F24="€ / Tonne","soit une éco-participation unitaire de :","") ->  | D33: =IFERROR(IF(D31="","",IF(F24="€ / Tonne",IF(D31*D24/1000<0.01,"<0,01€",D31*D24/1000),D31*D24)),"") ->  | F33: =IF(F24="€ / Tonne","HT hors éco-modulation si applicable","") -> 

Sheet ABJ - saisie multiple
A1: Générateur de code produit - ABJ - Barème applicable à partir du 1er janvier 2026 | N1: MASQUER | O1: MASQUER | P1: MASQUER | Q1: MASQUER | R1: =Infos!$A$7 -> Version 3.0 - 30 juin 2025
A2: Sélectionner les éléments dans les cases vertes
B4: Référence interne | C4: Libellé | D4: Poids du produit en kg | E4: Choisissez un rayon : | F4: Choisissez une catégorie de produit : | G4: Choisissez votre famille de matériaux : | H4: Choisissez un matériau : | I4: Choisissez la caractéristique (ou conditionnement) en fonction du type de produit : | J4: Le produit bénéficie-t-il d'une éco-modulation pour la mise à disposition de pièces détachées ? | K4: Code: | M4: Tarif | R4: Tarif unitaire | AE4: Ici
B6: Ref 1 | C6: Marteau | D6: 0.8 | E6: Articles de bricolage | F6: Outillage à main et leurs accessoires | G6: 2 - Bois et dérivés de bois | H6: Massif et assimilés non certifiés >95% | I6: Compris entre 1 kg et 2 kg exclus | J6: Non | K6: =IF(OR(I6="",H6="",F6="",E6=""),"",CONCATENATE(N6,O6,P6,Q6,IF(J6="Oui",1,0))) -> 21100530220 | L6: =IF(K6="","",IFERROR(VLOOKUP(K6,Codes!$C$2:$N$9845,12,FALSE),"Cette combinaison de matériau non certifié et de prime pour mise à disposition de pièces détachées n'est pas permise")) -> Articles de bricolage - Outillage à main et leurs accessoires - Massif et assimilés non certifiés >95% - Compris entre 1 kg et 2 kg exclus | M6: =IFERROR(VLOOKUP('ABJ - saisie multiple'!$K6,Codes!$C:$J,8,FALSE),"") -> 0.3 | N6: =IF(E6="","",VLOOKUP(E6,'Param masqué'!$D$3:$E$4,2,FALSE)) -> 21 | O6: =IF(F6="","",VLOOKUP(F6,'Param masqué'!$J$3:$K$14,2,FALSE)) -> 100 | P6: =IF(H6="","",VLOOKUP(H6,'Param masqué'!$R$3:$T$82,3,FALSE)) -> 53 | Q6: =IF(I6="","",VLOOKUP(I6,'Param masqué'!$AD$1:$AE$16,2,FALSE)) -> 022 | R6: =IFERROR(IF(AF6="€/unité",M6,D6*M6/1000),"") -> 0.3 | W6: A | X6: =W6&"_"&N6 -> A_21 | Y6: =W6&"_"&O6 -> A_100 | AB6: =IFERROR(VLOOKUP($G6,'Param masqué'!$AT$2:$AU$13,2,FALSE),0) -> Cat_2 | AD6: =VLOOKUP(Y6,'Param masqué'!AG:AJ,4,FALSE) -> Dim_2 | AF6: =VLOOKUP(K6,Tableau2[[Code Ecomaison]:[Mesure]],7,FALSE) -> €/unité
B7: Ref 2 | C7: Tuyau | D7: 2 | E7: Entretien et aménagement du jardin | F7: Pots de fleur et contenants | G7: 5 - Plastique, matériaux et fibres synthétiques | H7: Plastiques (mono résine) >95% | I7: Eléments de toutes dimensions et poids (T) | J7: Oui | K7: =IF(OR(I7="",H7="",F7="",E7=""),"",CONCATENATE(N7,O7,P7,Q7,IF(J7="Oui",1,0))) -> 22152410001 | L7: =IF(K7="","",IFERROR(VLOOKUP(K7,Codes!$C$2:$N$9845,12,FALSE),"Cette combinaison de matériau non certifié et de prime pour mise à disposition de pièces détachées n'est pas permise")) -> Entretien et aménagement du jardin - Pots de fleur et contenants - Plastiques (mono résine) >95% - Eléments de toutes dimensions et poids | M7: =IFERROR(VLOOKUP('ABJ - saisie multiple'!$K7,Codes!$C:$J,8,FALSE),"") -> 168.3 | N7: =IF(E7="","",VLOOKUP(E7,'Param masqué'!$D$3:$E$4,2,FALSE)) -> 22 | O7: =IF(F7="","",VLOOKUP(F7,'Param masqué'!$J$3:$K$14,2,FALSE)) -> 152 | P7: =IF(H7="","",VLOOKUP(H7,'Param masqué'!$R$3:$T$82,3,FALSE)) -> 41 | Q7: =IF(I7="","",VLOOKUP(I7,'Param masqué'!$AD$1:$AE$16,2,FALSE)) -> 000 | R7: =IFERROR(IF(AF7="€/unité",M7,D7*M7/1000),"") -> 0.3366 | W7: A | X7: =W7&"_"&N7 -> A_22 | Y7: =W7&"_"&O7 -> A_152 | AB7: =IFERROR(VLOOKUP($G7,'Param masqué'!$AT$2:$AU$13,2,FALSE),0) -> Cat_5 | AD7: =VLOOKUP(Y7,'Param masqué'!AG:AJ,4,FALSE) -> Dim_3 | AF7: =VLOOKUP(K7,Tableau2[[Code Ecomaison]:[Mesure]],7,FALSE) -> € / Tonne
B8: Ref 3 | C8: Tournevis | D8: 0.23 | E8: Articles de bricolage | F8: Outillage à main et leurs accessoires | G8: 10 - Autres mix matériaux ou matériaux non classés ou non spécifiés | H8: Non connu ou non spécifié par l'entreprise | I8: Eléments de toutes dimensions et poids (T) | J8: Non | K8: 21100000000 | L8: =IF(K8="","",IFERROR(VLOOKUP(K8,Codes!$C$2:$N$9845,12,FALSE),"Cette combinaison de matériau non certifié et de prime pour mise à disposition de pièces détachées n'est pas permise")) -> Articles de bricolage - Outillage à main et leurs accessoires - Non connu ou non spécifié par l'entreprise - Eléments de toutes dimensions et poids | M8: =IFERROR(VLOOKUP('ABJ - saisie multiple'!$K8,Codes!$C:$J,8,FALSE),"") -> 460 | N8: =IF(E8="","",VLOOKUP(E8,'Param masqué'!$D$3:$E$4,2,FALSE)) -> 21 | O8: =IF(F8="","",VLOOKUP(F8,'Param masqué'!$J$3:$K$14,2,FALSE)) -> 100 | P8: =IF(H8="","",VLOOKUP(H8,'Param masqué'!$R$3:$T$82,3,FALSE)) -> 00 | Q8: =IF(I8="","",VLOOKUP(I8,'Param masqué'!$AD$1:$AE$16,2,FALSE)) -> 000 | R8: 0.1058 | W8: A | X8: A_21 | Y8: A_100 | AB8: =IFERROR(VLOOKUP($G8,'Param masqué'!$AT$2:$AU$13,2,FALSE),0) -> Cat_10 | AD8: =VLOOKUP(Y8,'Param masqué'!AG:AJ,4,FALSE) -> Dim_2 | AF8: =VLOOKUP(K8,Tableau2[[Code Ecomaison]:[Mesure]],7,FALSE) -> € / Tonne
B9: Ref 4 | C9: pot de fleurs 1 | D9: 0.23 | E9: Entretien et aménagement du jardin | F9: Pots de fleur et contenants | G9: 12 - Matériaux inertes | H9: Céramique >95% | I9: Compris entre 5 kg et 7 kg exclus | J9: Oui | K9: 22152970541 | L9: =IF(K9="","",IFERROR(VLOOKUP(K9,Codes!$C$2:$N$9845,12,FALSE),"Cette combinaison de matériau non certifié et de prime pour mise à disposition de pièces détachées n'est pas permise")) -> Entretien et aménagement du jardin - Pots de fleur et contenants - Céramique >95% - Compris entre 5 kg et 7 kg exclus | M9: =IFERROR(VLOOKUP('ABJ - saisie multiple'!$K9,Codes!$C:$J,8,FALSE),"") -> 0.14 | N9: =IF(E9="","",VLOOKUP(E9,'Param masqué'!$D$3:$E$4,2,FALSE)) -> 22 | O9: =IF(F9="","",VLOOKUP(F9,'Param masqué'!$J$3:$K$14,2,FALSE)) -> 152 | P9: =IF(H9="","",VLOOKUP(H9,'Param masqué'!$R$3:$T$82,3,FALSE)) -> 97 | Q9: =IF(I9="","",VLOOKUP(I9,'Param masqué'!$AD$1:$AE$16,2,FALSE)) -> 054 | R9: 0.14 | W9: A | X9: A_22 | Y9: A_152 | AB9: =IFERROR(VLOOKUP($G9,'Param masqué'!$AT$2:$AU$13,2,FALSE),0) -> Cat_12 | AD9: =VLOOKUP(Y9,'Param masqué'!AG:AJ,4,FALSE) -> Dim_3 | AF9: =VLOOKUP(K9,Tableau2[[Code Ecomaison]:[Mesure]],7,FALSE) -> €/unité
B10: Ref 5 | L10: =IF(K10="","",IFERROR(VLOOKUP(K10,Codes!$C$2:$N$9845,12,FALSE),"Cette combinaison de matériau non certifié et de prime pour mise à disposition de pièces détachées n'est pas permise")) ->  | M10: =IFERROR(VLOOKUP('ABJ - saisie multiple'!$K10,Codes!$C:$J,8,FALSE),"") ->  | N10: =IF(E10="","",VLOOKUP(E10,'Param masqué'!$D$3:$E$4,2,FALSE)) ->  | O10: =IF(F10="","",VLOOKUP(F10,'Param masqué'!$J$3:$K$14,2,FALSE)) ->  | P10: =IF(H10="","",VLOOKUP(H10,'Param masqué'!$R$3:$T$82,3,FALSE)) ->  | Q10: =IF(I10="","",VLOOKUP(I10,'Param masqué'!$AD$1:$AE$16,2,FALSE)) ->  | W10: A | X10: A_ | Y10: A_ | AB10: =IFERROR(VLOOKUP($G10,'Param masqué'!$AT$2:$AU$13,2,FALSE),0) -> 0 | AD10: =VLOOKUP(Y10,'Param masqué'!AG:AJ,4,FALSE) ->  | AF10: =VLOOKUP(K10,Tableau2[[Code Ecomaison]:[Mesure]],7,FALSE) -> 
B11: Ref 6 | L11: =IF(K11="","",IFERROR(VLOOKUP(K11,Codes!$C$2:$N$9845,12,FALSE),"Cette combinaison de matériau non certifié et de prime pour mise à disposition de pièces détachées n'est pas permise")) ->  | M11: =IFERROR(VLOOKUP('ABJ - saisie multiple'!$K11,Codes!$C:$J,8,FALSE),"") ->  | N11: =IF(E11="","",VLOOKUP(E11,'Param masqué'!$D$3:$E$4,2,FALSE)) ->  | O11: =IF(F11="","",VLOOKUP(F11,'Param masqué'!$J$3:$K$14,2,FALSE)) ->  | P11: =IF(H11="","",VLOOKUP(H11,'Param masqué'!$R$3:$T$82,3,FALSE)) ->  | Q11: =IF(I11="","",VLOOKUP(I11,'Param masqué'!$AD$1:$AE$16,2,FALSE)) ->  | W11: A | X11: A_ | Y11: A_ | AB11: =IFERROR(VLOOKUP($G11,'Param masqué'!$AT$2:$AU$13,2,FALSE),0) -> 0 | AD11: =VLOOKUP(Y11,'Param masqué'!AG:AJ,4,FALSE) ->  | AF11: =VLOOKUP(K11,Tableau2[[Code Ecomaison]:[Mesure]],7,FALSE) -> 
B12: Ref 7 | L12: =IF(K12="","",IFERROR(VLOOKUP(K12,Codes!$C$2:$N$9845,12,FALSE),"Cette combinaison de matériau non certifié et de prime pour mise à disposition de pièces détachées n'est pas permise")) ->  | M12: =IFERROR(VLOOKUP('ABJ - saisie multiple'!$K12,Codes!$C:$J,8,FALSE),"") ->  | N12: =IF(E12="","",VLOOKUP(E12,'Param masqué'!$D$3:$E$4,2,FALSE)) ->  | O12: =IF(F12="","",VLOOKUP(F12,'Param masqué'!$J$3:$K$14,2,FALSE)) ->  | P12: =IF(H12="","",VLOOKUP(H12,'Param masqué'!$R$3:$T$82,3,FALSE)) ->  | Q12: =IF(I12="","",VLOOKUP(I12,'Param masqué'!$AD$1:$AE$16,2,FALSE)) ->  | W12: A | X12: A_ | Y12: A_ | AB12: =IFERROR(VLOOKUP($G12,'Param masqué'!$AT$2:$AU$13,2,FALSE),0) -> 0 | AD12: =VLOOKUP(Y12,'Param masqué'!AG:AJ,4,FALSE) ->  | AF12: =VLOOKUP(K12,Tableau2[[Code Ecomaison]:[Mesure]],7,FALSE) -> 
B13: Ref 8 | L13: =IF(K13="","",IFERROR(VLOOKUP(K13,Codes!$C$2:$N$9845,12,FALSE),"Cette combinaison de matériau non certifié et de prime pour mise à disposition de pièces détachées n'est pas permise")) ->  | M13: =IFERROR(VLOOKUP('ABJ - saisie multiple'!$K13,Codes!$C:$J,8,FALSE),"") ->  | N13: =IF(E13="","",VLOOKUP(E13,'Param masqué'!$D$3:$E$4,2,FALSE)) ->  | O13: =IF(F13="","",VLOOKUP(F13,'Param masqué'!$J$3:$K$14,2,FALSE)) ->  | P13: =IF(H13="","",VLOOKUP(H13,'Param masqué'!$R$3:$T$82,3,FALSE)) ->  | Q13: =IF(I13="","",VLOOKUP(I13,'Param masqué'!$AD$1:$AE$16,2,FALSE)) ->  | W13: A | X13: A_ | Y13: A_ | AB13: =IFERROR(VLOOKUP($G13,'Param masqué'!$AT$2:$AU$13,2,FALSE),0) -> 0 | AD13: =VLOOKUP(Y13,'Param masqué'!AG:AJ,4,FALSE) ->  | AF13: =VLOOKUP(K13,Tableau2[[Code Ecomaison]:[Mesure]],7,FALSE) -> 
B14: Ref 9 | L14: =IF(K14="","",IFERROR(VLOOKUP(K14,Codes!$C$2:$N$9845,12,FALSE),"Cette combinaison de matériau non certifié et de prime pour mise à disposition de pièces détachées n'est pas permise")) ->  | M14: =IFERROR(VLOOKUP('ABJ - saisie multiple'!$K14,Codes!$C:$J,8,FALSE),"") ->  | N14: =IF(E14="","",VLOOKUP(E14,'Param masqué'!$D$3:$E$4,2,FALSE)) ->  | O14: =IF(F14="","",VLOOKUP(F14,'Param masqué'!$J$3:$K$14,2,FALSE)) ->  | P14: =IF(H14="","",VLOOKUP(H14,'Param masqué'!$R$3:$T$82,3,FALSE)) ->  | Q14: =IF(I14="","",VLOOKUP(I14,'Param masqué'!$AD$1:$AE$16,2,FALSE)) ->  | W14: A | X14: A_ | Y14: A_ | AB14: =IFERROR(VLOOKUP($G14,'Param masqué'!$AT$2:$AU$13,2,FALSE),0) -> 0 | AD14: =VLOOKUP(Y14,'Param masqué'!AG:AJ,4,FALSE) ->  | AF14: =VLOOKUP(K14,Tableau2[[Code Ecomaison]:[Mesure]],7,FALSE) -> 
B15: Ref 10 | L15: =IF(K15="","",IFERROR(VLOOKUP(K15,Codes!$C$2:$N$9845,12,FALSE),"Cette combinaison de matériau non certifié et de prime pour mise à disposition de pièces détachées n'est pas permise")) ->  | M15: =IFERROR(VLOOKUP('ABJ - saisie multiple'!$K15,Codes!$C:$J,8,FALSE),"") ->  | N15: =IF(E15="","",VLOOKUP(E15,'Param masqué'!$D$3:$E$4,2,FALSE)) ->  | O15: =IF(F15="","",VLOOKUP(F15,'Param masqué'!$J$3:$K$14,2,FALSE)) ->  | P15: =IF(H15="","",VLOOKUP(H15,'Param masqué'!$R$3:$T$82,3,FALSE)) ->  | Q15: =IF(I15="","",VLOOKUP(I15,'Param masqué'!$AD$1:$AE$16,2,FALSE)) ->  | W15: A | X15: A_ | Y15: A_ | AB15: =IFERROR(VLOOKUP($G15,'Param masqué'!$AT$2:$AU$13,2,FALSE),0) -> 0 | AD15: =VLOOKUP(Y15,'Param masqué'!AG:AJ,4,FALSE) ->  | AF15: =VLOOKUP(K15,Tableau2[[Code Ecomaison]:[Mesure]],7,FALSE) -> 
B16: Ref 11 | L16: =IF(K16="","",IFERROR(VLOOKUP(K16,Codes!$C$2:$N$9845,12,FALSE),"Cette combinaison de matériau non certifié et de prime pour mise à disposition de pièces détachées n'est pas permise")) ->  | M16: =IFERROR(VLOOKUP('ABJ - saisie multiple'!$K16,Codes!$C:$J,8,FALSE),"") ->  | N16: =IF(E16="","",VLOOKUP(E16,'Param masqué'!$D$3:$E$4,2,FALSE)) ->  | O16: =IF(F16="","",VLOOKUP(F16,'Param masqué'!$J$3:$K$14,2,FALSE)) ->  | P16: =IF(H16="","",VLOOKUP(H16,'Param masqué'!$R$3:$T$82,3,FALSE)) ->  | Q16: =IF(I16="","",VLOOKUP(I16,'Param masqué'!$AD$1:$AE$16,2,FALSE)) ->  | W16: A | X16: A_ | Y16: A_ | AB16: =IFERROR(VLOOKUP($G16,'Param masqué'!$AT$2:$AU$13,2,FALSE),0) -> 0 | AD16: =VLOOKUP(Y16,'Param masqué'!AG:AJ,4,FALSE) ->  | AF16: =VLOOKUP(K16,Tableau2[[Code Ecomaison]:[Mesure]],7,FALSE) -> 
B17: Ref 12 | L17: =IF(K17="","",IFERROR(VLOOKUP(K17,Codes!$C$2:$N$9845,12,FALSE),"Cette combinaison de matériau non certifié et de prime pour mise à disposition de pièces détachées n'est pas permise")) ->  | M17: =IFERROR(VLOOKUP('ABJ - saisie multiple'!$K17,Codes!$C:$J,8,FALSE),"") ->  | N17: =IF(E17="","",VLOOKUP(E17,'Param masqué'!$D$3:$E$4,2,FALSE)) ->  | O17: =IF(F17="","",VLOOKUP(F17,'Param masqué'!$J$3:$K$14,2,FALSE)) ->  | P17: =IF(H17="","",VLOOKUP(H17,'Param masqué'!$R$3:$T$82,3,FALSE)) ->  | Q17: =IF(I17="","",VLOOKUP(I17,'Param masqué'!$AD$1:$AE$16,2,FALSE)) ->  | W17: A | X17: A_ | Y17: A_ | AB17: =IFERROR(VLOOKUP($G17,'Param masqué'!$AT$2:$AU$13,2,FALSE),0) -> 0 | AD17: =VLOOKUP(Y17,'Param masqué'!AG:AJ,4,FALSE) ->  | AF17: =VLOOKUP(K17,Tableau2[[Code Ecomaison]:[Mesure]],7,FALSE) -> 
B18: Ref 13 | L18: =IF(K18="","",IFERROR(VLOOKUP(K18,Codes!$C$2:$N$9845,12,FALSE),"Cette combinaison de matériau non certifié et de prime pour mise à disposition de pièces détachées n'est pas permise")) ->  | M18: =IFERROR(VLOOKUP('ABJ - saisie multiple'!$K18,Codes!$C:$J,8,FALSE),"") ->  | N18: =IF(E18="","",VLOOKUP(E18,'Param masqué'!$D$3:$E$4,2,FALSE)) ->  | O18: =IF(F18="","",VLOOKUP(F18,'Param masqué'!$J$3:$K$14,2,FALSE)) ->  | P18: =IF(H18="","",VLOOKUP(H18,'Param masqué'!$R$3:$T$82,3,FALSE)) ->  | Q18: =IF(I18="","",VLOOKUP(I18,'Param masqué'!$AD$1:$AE$16,2,FALSE)) ->  | W18: A | X18: A_ | Y18: A_ | AB18: =IFERROR(VLOOKUP($G18,'Param masqué'!$AT$2:$AU$13,2,FALSE),0) -> 0 | AD18: =VLOOKUP(Y18,'Param masqué'!AG:AJ,4,FALSE) ->  | AF18: =VLOOKUP(K18,Tableau2[[Code Ecomaison]:[Mesure]],7,FALSE) -> 
B19: Ref 14 | L19: =IF(K19="","",IFERROR(VLOOKUP(K19,Codes!$C$2:$N$9845,12,FALSE),"Cette combinaison de matériau non certifié et de prime pour mise à disposition de pièces détachées n'est pas permise")) ->  | M19: =IFERROR(VLOOKUP('ABJ - saisie multiple'!$K19,Codes!$C:$J,8,FALSE),"") ->  | N19: =IF(E19="","",VLOOKUP(E19,'Param masqué'!$D$3:$E$4,2,FALSE)) ->  | O19: =IF(F19="","",VLOOKUP(F19,'Param masqué'!$J$3:$K$14,2,FALSE)) ->  | P19: =IF(H19="","",VLOOKUP(H19,'Param masqué'!$R$3:$T$82,3,FALSE)) ->  | Q19: =IF(I19="","",VLOOKUP(I19,'Param masqué'!$AD$1:$AE$16,2,FALSE)) ->  | W19: A | X19: A_ | Y19: A_ | AB19: =IFERROR(VLOOKUP($G19,'Param masqué'!$AT$2:$AU$13,2,FALSE),0) -> 0 | AD19: =VLOOKUP(Y19,'Param masqué'!AG:AJ,4,FALSE) ->  | AF19: =VLOOKUP(K19,Tableau2[[Code Ecomaison]:[Mesure]],7,FALSE) -> 
B20: Ref 15 | L20: =IF(K20="","",IFERROR(VLOOKUP(K20,Codes!$C$2:$N$9845,12,FALSE),"Cette combinaison de matériau non certifié et de prime pour mise à disposition de pièces détachées n'est pas permise")) ->  | M20: =IFERROR(VLOOKUP('ABJ - saisie multiple'!$K20,Codes!$C:$J,8,FALSE),"") ->  | N20: =IF(E20="","",VLOOKUP(E20,'Param masqué'!$D$3:$E$4,2,FALSE)) ->  | O20: =IF(F20="","",VLOOKUP(F20,'Param masqué'!$J$3:$K$14,2,FALSE)) ->  | P20: =IF(H20="","",VLOOKUP(H20,'Param masqué'!$R$3:$T$82,3,FALSE)) ->  | Q20: =IF(I20="","",VLOOKUP(I20,'Param masqué'!$AD$1:$AE$16,2,FALSE)) ->  | W20: A | X20: A_ | Y20: A_ | AB20: =IFERROR(VLOOKUP($G20,'Param masqué'!$AT$2:$AU$13,2,FALSE),0) -> 0 | AD20: =VLOOKUP(Y20,'Param masqué'!AG:AJ,4,FALSE) ->  | AF20: =VLOOKUP(K20,Tableau2[[Code Ecomaison]:[Mesure]],7,FALSE) -> 
B21: Ref 16 | L21: =IF(K21="","",IFERROR(VLOOKUP(K21,Codes!$C$2:$N$9845,12,FALSE),"Cette combinaison de matériau non certifié et de prime pour mise à disposition de pièces détachées n'est pas permise")) ->  | M21: =IFERROR(VLOOKUP('ABJ - saisie multiple'!$K21,Codes!$C:$J,8,FALSE),"") ->  | N21: =IF(E21="","",VLOOKUP(E21,'Param masqué'!$D$3:$E$4,2,FALSE)) ->  | O21: =IF(F21="","",VLOOKUP(F21,'Param masqué'!$J$3:$K$14,2,FALSE)) ->  | P21: =IF(H21="","",VLOOKUP(H21,'Param masqué'!$R$3:$T$82,3,FALSE)) ->  | Q21: =IF(I21="","",VLOOKUP(I21,'Param masqué'!$AD$1:$AE$16,2,FALSE)) ->  | W21: A | X21: A_ | Y21: A_ | AB21: =IFERROR(VLOOKUP($G21,'Param masqué'!$AT$2:$AU$13,2,FALSE),0) -> 0 | AD21: =VLOOKUP(Y21,'Param masqué'!AG:AJ,4,FALSE) ->  | AF21: =VLOOKUP(K21,Tableau2[[Code Ecomaison]:[Mesure]],7,FALSE) -> 
B22: Ref 17 | L22: =IF(K22="","",IFERROR(VLOOKUP(K22,Codes!$C$2:$N$9845,12,FALSE),"Cette combinaison de matériau non certifié et de prime pour mise à disposition de pièces détachées n'est pas permise")) ->  | M22: =IFERROR(VLOOKUP('ABJ - saisie multiple'!$K22,Codes!$C:$J,8,FALSE),"") ->  | N22: =IF(E22="","",VLOOKUP(E22,'Param masqué'!$D$3:$E$4,2,FALSE)) ->  | O22: =IF(F22="","",VLOOKUP(F22,'Param masqué'!$J$3:$K$14,2,FALSE)) ->  | P22: =IF(H22="","",VLOOKUP(H22,'Param masqué'!$R$3:$T$82,3,FALSE)) ->  | Q22: =IF(I22="","",VLOOKUP(I22,'Param masqué'!$AD$1:$AE$16,2,FALSE)) ->  | W22: A | X22: A_ | Y22: A_ | AB22: =IFERROR(VLOOKUP($G22,'Param masqué'!$AT$2:$AU$13,2,FALSE),0) -> 0 | AD22: =VLOOKUP(Y22,'Param masqué'!AG:AJ,4,FALSE) ->  | AF22: =VLOOKUP(K22,Tableau2[[Code Ecomaison]:[Mesure]],7,FALSE) -> 
B23: Ref 18 | L23: =IF(K23="","",IFERROR(VLOOKUP(K23,Codes!$C$2:$N$9845,12,FALSE),"Cette combinaison de matériau non certifié et de prime pour mise à disposition de pièces détachées n'est pas permise")) ->  | M23: =IFERROR(VLOOKUP('ABJ - saisie multiple'!$K23,Codes!$C:$J,8,FALSE),"") ->  | N23: =IF(E23="","",VLOOKUP(E23,'Param masqué'!$D$3:$E$4,2,FALSE)) ->  | O23: =IF(F23="","",VLOOKUP(F23,'Param masqué'!$J$3:$K$14,2,FALSE)) ->  | P23: =IF(H23="","",VLOOKUP(H23,'Param masqué'!$R$3:$T$82,3,FALSE)) ->  | Q23: =IF(I23="","",VLOOKUP(I23,'Param masqué'!$AD$1:$AE$16,2,FALSE)) ->  | W23: A | X23: A_ | Y23: A_ | AB23: =IFERROR(VLOOKUP($G23,'Param masqué'!$AT$2:$AU$13,2,FALSE),0) -> 0 | AD23: =VLOOKUP(Y23,'Param masqué'!AG:AJ,4,FALSE) ->  | AF23: =VLOOKUP(K23,Tableau2[[Code Ecomaison]:[Mesure]],7,FALSE) -> 
B24: Ref 19 | L24: =IF(K24="","",IFERROR(VLOOKUP(K24,Codes!$C$2:$N$9845,12,FALSE),"Cette combinaison de matériau non certifié et de prime pour mise à disposition de pièces détachées n'est pas permise")) ->  | M24: =IFERROR(VLOOKUP('ABJ - saisie multiple'!$K24,Codes!$C:$J,8,FALSE),"") ->  | N24: =IF(E24="","",VLOOKUP(E24,'Param masqué'!$D$3:$E$4,2,FALSE)) ->  | O24: =IF(F24="","",VLOOKUP(F24,'Param masqué'!$J$3:$K$14,2,FALSE)) ->  | P24: =IF(H24="","",VLOOKUP(H24,'Param masqué'!$R$3:$T$82,3,FALSE)) ->  | Q24: =IF(I24="","",VLOOKUP(I24,'Param masqué'!$AD$1:$AE$16,2,FALSE)) ->  | W24: A | X24: A_ | Y24: A_ | AB24: =IFERROR(VLOOKUP($G24,'Param masqué'!$AT$2:$AU$13,2,FALSE),0) -> 0 | AD24: =VLOOKUP(Y24,'Param masqué'!AG:AJ,4,FALSE) ->  | AF24: =VLOOKUP(K24,Tableau2[[Code Ecomaison]:[Mesure]],7,FALSE) -> 
B25: Ref 20 | L25: =IF(K25="","",IFERROR(VLOOKUP(K25,Codes!$C$2:$N$9845,12,FALSE),"Cette combinaison de matériau non certifié et de prime pour mise à disposition de pièces détachées n'est pas permise")) ->  | M25: =IFERROR(VLOOKUP('ABJ - saisie multiple'!$K25,Codes!$C:$J,8,FALSE),"") ->  | N25: =IF(E25="","",VLOOKUP(E25,'Param masqué'!$D$3:$E$4,2,FALSE)) ->  | O25: =IF(F25="","",VLOOKUP(F25,'Param masqué'!$J$3:$K$14,2,FALSE)) ->  | P25: =IF(H25="","",VLOOKUP(H25,'Param masqué'!$R$3:$T$82,3,FALSE)) ->  | Q25: =IF(I25="","",VLOOKUP(I25,'Param masqué'!$AD$1:$AE$16,2,FALSE)) ->  | W25: A | X25: A_ | Y25: A_ | AB25: =IFERROR(VLOOKUP($G25,'Param masqué'!$AT$2:$AU$13,2,FALSE),0) -> 0 | AD25: =VLOOKUP(Y25,'Param masqué'!AG:AJ,4,FALSE) ->  | AF25: =VLOOKUP(K25,Tableau2[[Code Ecomaison]:[Mesure]],7,FALSE) -> 
B26: Ref 21 | L26: =IF(K26="","",IFERROR(VLOOKUP(K26,Codes!$C$2:$N$9845,12,FALSE),"Cette combinaison de matériau non certifié et de prime pour mise à disposition de pièces détachées n'est pas permise")) ->  | M26: =IFERROR(VLOOKUP('ABJ - saisie multiple'!$K26,Codes!$C:$J,8,FALSE),"") ->  | N26: =IF(E26="","",VLOOKUP(E26,'Param masqué'!$D$3:$E$4,2,FALSE)) ->  | O26: =IF(F26="","",VLOOKUP(F26,'Param masqué'!$J$3:$K$14,2,FALSE)) ->  | P26: =IF(H26="","",VLOOKUP(H26,'Param masqué'!$R$3:$T$82,3,FALSE)) ->  | Q26: =IF(I26="","",VLOOKUP(I26,'Param masqué'!$AD$1:$AE$16,2,FALSE)) ->  | W26: A | X26: A_ | Y26: A_ | AB26: =IFERROR(VLOOKUP($G26,'Param masqué'!$AT$2:$AU$13,2,FALSE),0) -> 0 | AD26: =VLOOKUP(Y26,'Param masqué'!AG:AJ,4,FALSE) ->  | AF26: =VLOOKUP(K26,Tableau2[[Code Ecomaison]:[Mesure]],7,FALSE) -> 
B27: Ref 22 | L27: =IF(K27="","",IFERROR(VLOOKUP(K27,Codes!$C$2:$N$9845,12,FALSE),"Cette combinaison de matériau non certifié et de prime pour mise à disposition de pièces détachées n'est pas permise")) ->  | M27: =IFERROR(VLOOKUP('ABJ - saisie multiple'!$K27,Codes!$C:$J,8,FALSE),"") ->  | N27: =IF(E27="","",VLOOKUP(E27,'Param masqué'!$D$3:$E$4,2,FALSE)) ->  | O27: =IF(F27="","",VLOOKUP(F27,'Param masqué'!$J$3:$K$14,2,FALSE)) ->  | P27: =IF(H27="","",VLOOKUP(H27,'Param masqué'!$R$3:$T$82,3,FALSE)) ->  | Q27: =IF(I27="","",VLOOKUP(I27,'Param masqué'!$AD$1:$AE$16,2,FALSE)) ->  | W27: A | X27: A_ | Y27: A_ | AB27: =IFERROR(VLOOKUP($G27,'Param masqué'!$AT$2:$AU$13,2,FALSE),0) -> 0 | AD27: =VLOOKUP(Y27,'Param masqué'!AG:AJ,4,FALSE) ->  | AF27: =VLOOKUP(K27,Tableau2[[Code Ecomaison]:[Mesure]],7,FALSE) -> 
B28: Ref 23 | L28: =IF(K28="","",IFERROR(VLOOKUP(K28,Codes!$C$2:$N$9845,12,FALSE),"Cette combinaison de matériau non certifié et de prime pour mise à disposition de pièces détachées n'est pas permise")) ->  | M28: =IFERROR(VLOOKUP('ABJ - saisie multiple'!$K28,Codes!$C:$J,8,FALSE),"") ->  | N28: =IF(E28="","",VLOOKUP(E28,'Param masqué'!$D$3:$E$4,2,FALSE)) ->  | O28: =IF(F28="","",VLOOKUP(F28,'Param masqué'!$J$3:$K$14,2,FALSE)) ->  | P28: =IF(H28="","",VLOOKUP(H28,'Param masqué'!$R$3:$T$82,3,FALSE)) ->  | Q28: =IF(I28="","",VLOOKUP(I28,'Param masqué'!$AD$1:$AE$16,2,FALSE)) ->  | W28: A | X28: A_ | Y28: A_ | AB28: =IFERROR(VLOOKUP($G28,'Param masqué'!$AT$2:$AU$13,2,FALSE),0) -> 0 | AD28: =VLOOKUP(Y28,'Param masqué'!AG:AJ,4,FALSE) ->  | AF28: =VLOOKUP(K28,Tableau2[[Code Ecomaison]:[Mesure]],7,FALSE) -> 
B29: Ref 24 | L29: =IF(K29="","",IFERROR(VLOOKUP(K29,Codes!$C$2:$N$9845,12,FALSE),"Cette combinaison de matériau non certifié et de prime pour mise à disposition de pièces détachées n'est pas permise")) ->  | M29: =IFERROR(VLOOKUP('ABJ - saisie multiple'!$K29,Codes!$C:$J,8,FALSE),"") ->  | N29: =IF(E29="","",VLOOKUP(E29,'Param masqué'!$D$3:$E$4,2,FALSE)) ->  | O29: =IF(F29="","",VLOOKUP(F29,'Param masqué'!$J$3:$K$14,2,FALSE)) ->  | P29: =IF(H29="","",VLOOKUP(H29,'Param masqué'!$R$3:$T$82,3,FALSE)) ->  | Q29: =IF(I29="","",VLOOKUP(I29,'Param masqué'!$AD$1:$AE$16,2,FALSE)) ->  | W29: A | X29: A_ | Y29: A_ | AB29: =IFERROR(VLOOKUP($G29,'Param masqué'!$AT$2:$AU$13,2,FALSE),0) -> 0 | AD29: =VLOOKUP(Y29,'Param masqué'!AG:AJ,4,FALSE) ->  | AF29: =VLOOKUP(K29,Tableau2[[Code Ecomaison]:[Mesure]],7,FALSE) -> 
B30: Ref 25 | L30: =IF(K30="","",IFERROR(VLOOKUP(K30,Codes!$C$2:$N$9845,12,FALSE),"Cette combinaison de matériau non certifié et de prime pour mise à disposition de pièces détachées n'est pas permise")) ->  | M30: =IFERROR(VLOOKUP('ABJ - saisie multiple'!$K30,Codes!$C:$J,8,FALSE),"") ->  | N30: =IF(E30="","",VLOOKUP(E30,'Param masqué'!$D$3:$E$4,2,FALSE)) ->  | O30: =IF(F30="","",VLOOKUP(F30,'Param masqué'!$J$3:$K$14,2,FALSE)) ->  | P30: =IF(H30="","",VLOOKUP(H30,'Param masqué'!$R$3:$T$82,3,FALSE)) ->  | Q30: =IF(I30="","",VLOOKUP(I30,'Param masqué'!$AD$1:$AE$16,2,FALSE)) ->  | W30: A | X30: A_ | Y30: A_ | AB30: =IFERROR(VLOOKUP($G30,'Param masqué'!$AT$2:$AU$13,2,FALSE),0) -> 0 | AD30: =VLOOKUP(Y30,'Param masqué'!AG:AJ,4,FALSE) ->  | AF30: =VLOOKUP(K30,Tableau2[[Code Ecomaison]:[Mesure]],7,FALSE) -> 
B31: Ref 26 | L31: =IF(K31="","",IFERROR(VLOOKUP(K31,Codes!$C$2:$N$9845,12,FALSE),"Cette combinaison de matériau non certifié et de prime pour mise à disposition de pièces détachées n'est pas permise")) ->  | M31: =IFERROR(VLOOKUP('ABJ - saisie multiple'!$K31,Codes!$C:$J,8,FALSE),"") ->  | N31: =IF(E31="","",VLOOKUP(E31,'Param masqué'!$D$3:$E$4,2,FALSE)) ->  | O31: =IF(F31="","",VLOOKUP(F31,'Param masqué'!$J$3:$K$14,2,FALSE)) ->  | P31: =IF(H31="","",VLOOKUP(H31,'Param masqué'!$R$3:$T$82,3,FALSE)) ->  | Q31: =IF(I31="","",VLOOKUP(I31,'Param masqué'!$AD$1:$AE$16,2,FALSE)) ->  | W31: A | X31: A_ | Y31: A_ | AB31: =IFERROR(VLOOKUP($G31,'Param masqué'!$AT$2:$AU$13,2,FALSE),0) -> 0 | AD31: =VLOOKUP(Y31,'Param masqué'!AG:AJ,4,FALSE) ->  | AF31: =VLOOKUP(K31,Tableau2[[Code Ecomaison]:[Mesure]],7,FALSE) -> 
B32: Ref 27 | L32: =IF(K32="","",IFERROR(VLOOKUP(K32,Codes!$C$2:$N$9845,12,FALSE),"Cette combinaison de matériau non certifié et de prime pour mise à disposition de pièces détachées n'est pas permise")) ->  | M32: =IFERROR(VLOOKUP('ABJ - saisie multiple'!$K32,Codes!$C:$J,8,FALSE),"") ->  | N32: =IF(E32="","",VLOOKUP(E32,'Param masqué'!$D$3:$E$4,2,FALSE)) ->  | O32: =IF(F32="","",VLOOKUP(F32,'Param masqué'!$J$3:$K$14,2,FALSE)) ->  | P32: =IF(H32="","",VLOOKUP(H32,'Param masqué'!$R$3:$T$82,3,FALSE)) ->  | Q32: =IF(I32="","",VLOOKUP(I32,'Param masqué'!$AD$1:$AE$16,2,FALSE)) ->  | W32: A | X32: A_ | Y32: A_ | AB32: =IFERROR(VLOOKUP($G32,'Param masqué'!$AT$2:$AU$13,2,FALSE),0) -> 0 | AD32: =VLOOKUP(Y32,'Param masqué'!AG:AJ,4,FALSE) ->  | AF32: =VLOOKUP(K32,Tableau2[[Code Ecomaison]:[Mesure]],7,FALSE) -> 
B33: Ref 28 | L33: =IF(K33="","",IFERROR(VLOOKUP(K33,Codes!$C$2:$N$9845,12,FALSE),"Cette combinaison de matériau non certifié et de prime pour mise à disposition de pièces détachées n'est pas permise")) ->  | M33: =IFERROR(VLOOKUP('ABJ - saisie multiple'!$K33,Codes!$C:$J,8,FALSE),"") ->  | N33: =IF(E33="","",VLOOKUP(E33,'Param masqué'!$D$3:$E$4,2,FALSE)) ->  | O33: =IF(F33="","",VLOOKUP(F33,'Param masqué'!$J$3:$K$14,2,FALSE)) ->  | P33: =IF(H33="","",VLOOKUP(H33,'Param masqué'!$R$3:$T$82,3,FALSE)) ->  | Q33: =IF(I33="","",VLOOKUP(I33,'Param masqué'!$AD$1:$AE$16,2,FALSE)) ->  | W33: A | X33: A_ | Y33: A_ | AB33: =IFERROR(VLOOKUP($G33,'Param masqué'!$AT$2:$AU$13,2,FALSE),0) -> 0 | AD33: =VLOOKUP(Y33,'Param masqué'!AG:AJ,4,FALSE) ->  | AF33: =VLOOKUP(K33,Tableau2[[Code Ecomaison]:[Mesure]],7,FALSE) -> 
B34: Ref 29 | L34: =IF(K34="","",IFERROR(VLOOKUP(K34,Codes!$C$2:$N$9845,12,FALSE),"Cette combinaison de matériau non certifié et de prime pour mise à disposition de pièces détachées n'est pas permise")) ->  | M34: =IFERROR(VLOOKUP('ABJ - saisie multiple'!$K34,Codes!$C:$J,8,FALSE),"") ->  | N34: =IF(E34="","",VLOOKUP(E34,'Param masqué'!$D$3:$E$4,2,FALSE)) ->  | O34: =IF(F34="","",VLOOKUP(F34,'Param masqué'!$J$3:$K$14,2,FALSE)) ->  | P34: =IF(H34="","",VLOOKUP(H34,'Param masqué'!$R$3:$T$82,3,FALSE)) ->  | Q34: =IF(I34="","",VLOOKUP(I34,'Param masqué'!$AD$1:$AE$16,2,FALSE)) ->  | W34: A | X34: A_ | Y34: A_ | AB34: =IFERROR(VLOOKUP($G34,'Param masqué'!$AT$2:$AU$13,2,FALSE),0) -> 0 | AD34: =VLOOKUP(Y34,'Param masqué'!AG:AJ,4,FALSE) ->  | AF34: =VLOOKUP(K34,Tableau2[[Code Ecomaison]:[Mesure]],7,FALSE) -> 
B35: Ref 30 | L35: =IF(K35="","",IFERROR(VLOOKUP(K35,Codes!$C$2:$N$9845,12,FALSE),"Cette combinaison de matériau non certifié et de prime pour mise à disposition de pièces détachées n'est pas permise")) ->  | M35: =IFERROR(VLOOKUP('ABJ - saisie multiple'!$K35,Codes!$C:$J,8,FALSE),"") ->  | N35: =IF(E35="","",VLOOKUP(E35,'Param masqué'!$D$3:$E$4,2,FALSE)) ->  | O35: =IF(F35="","",VLOOKUP(F35,'Param masqué'!$J$3:$K$14,2,FALSE)) ->  | P35: =IF(H35="","",VLOOKUP(H35,'Param masqué'!$R$3:$T$82,3,FALSE)) ->  | Q35: =IF(I35="","",VLOOKUP(I35,'Param masqué'!$AD$1:$AE$16,2,FALSE)) ->  | W35: A | X35: A_ | Y35: A_ | AB35: =IFERROR(VLOOKUP($G35,'Param masqué'!$AT$2:$AU$13,2,FALSE),0) -> 0 | AD35: =VLOOKUP(Y35,'Param masqué'!AG:AJ,4,FALSE) ->  | AF35: =VLOOKUP(K35,Tableau2[[Code Ecomaison]:[Mesure]],7,FALSE) -> 
B36: Ref 31 | L36: =IF(K36="","",IFERROR(VLOOKUP(K36,Codes!$C$2:$N$9845,12,FALSE),"Cette combinaison de matériau non certifié et de prime pour mise à disposition de pièces détachées n'est pas permise")) ->  | M36: =IFERROR(VLOOKUP('ABJ - saisie multiple'!$K36,Codes!$C:$J,8,FALSE),"") ->  | N36: =IF(E36="","",VLOOKUP(E36,'Param masqué'!$D$3:$E$4,2,FALSE)) ->  | O36: =IF(F36="","",VLOOKUP(F36,'Param masqué'!$J$3:$K$14,2,FALSE)) ->  | P36: =IF(H36="","",VLOOKUP(H36,'Param masqué'!$R$3:$T$82,3,FALSE)) ->  | Q36: =IF(I36="","",VLOOKUP(I36,'Param masqué'!$AD$1:$AE$16,2,FALSE)) ->  | W36: A | X36: A_ | Y36: A_ | AB36: =IFERROR(VLOOKUP($G36,'Param masqué'!$AT$2:$AU$13,2,FALSE),0) -> 0 | AD36: =VLOOKUP(Y36,'Param masqué'!AG:AJ,4,FALSE) ->  | AF36: =VLOOKUP(K36,Tableau2[[Code Ecomaison]:[Mesure]],7,FALSE) -> 
B37: Ref 32 | L37: =IF(K37="","",IFERROR(VLOOKUP(K37,Codes!$C$2:$N$9845,12,FALSE),"Cette combinaison de matériau non certifié et de prime pour mise à disposition de pièces détachées n'est pas permise")) ->  | M37: =IFERROR(VLOOKUP('ABJ - saisie multiple'!$K37,Codes!$C:$J,8,FALSE),"") ->  | N37: =IF(E37="","",VLOOKUP(E37,'Param masqué'!$D$3:$E$4,2,FALSE)) ->  | O37: =IF(F37="","",VLOOKUP(F37,'Param masqué'!$J$3:$K$14,2,FALSE)) ->  | P37: =IF(H37="","",VLOOKUP(H37,'Param masqué'!$R$3:$T$82,3,FALSE)) ->  | Q37: =IF(I37="","",VLOOKUP(I37,'Param masqué'!$AD$1:$AE$16,2,FALSE)) ->  | W37: A | X37: A_ | Y37: A_ | AB37: =IFERROR(VLOOKUP($G37,'Param masqué'!$AT$2:$AU$13,2,FALSE),0) -> 0 | AD37: =VLOOKUP(Y37,'Param masqué'!AG:AJ,4,FALSE) ->  | AF37: =VLOOKUP(K37,Tableau2[[Code Ecomaison]:[Mesure]],7,FALSE) -> 
B38: Ref 33 | L38: =IF(K38="","",IFERROR(VLOOKUP(K38,Codes!$C$2:$N$9845,12,FALSE),"Cette combinaison de matériau non certifié et de prime pour mise à disposition de pièces détachées n'est pas permise")) ->  | M38: =IFERROR(VLOOKUP('ABJ - saisie multiple'!$K38,Codes!$C:$J,8,FALSE),"") ->  | N38: =IF(E38="","",VLOOKUP(E38,'Param masqué'!$D$3:$E$4,2,FALSE)) ->  | O38: =IF(F38="","",VLOOKUP(F38,'Param masqué'!$J$3:$K$14,2,FALSE)) ->  | P38: =IF(H38="","",VLOOKUP(H38,'Param masqué'!$R$3:$T$82,3,FALSE)) ->  | Q38: =IF(I38="","",VLOOKUP(I38,'Param masqué'!$AD$1:$AE$16,2,FALSE)) ->  | W38: A | X38: A_ | Y38: A_ | AB38: =IFERROR(VLOOKUP($G38,'Param masqué'!$AT$2:$AU$13,2,FALSE),0) -> 0 | AD38: =VLOOKUP(Y38,'Param masqué'!AG:AJ,4,FALSE) ->  | AF38: =VLOOKUP(K38,Tableau2[[Code Ecomaison]:[Mesure]],7,FALSE) -> 
B39: Ref 34 | L39: =IF(K39="","",IFERROR(VLOOKUP(K39,Codes!$C$2:$N$9845,12,FALSE),"Cette combinaison de matériau non certifié et de prime pour mise à disposition de pièces détachées n'est pas permise")) ->  | M39: =IFERROR(VLOOKUP('ABJ - saisie multiple'!$K39,Codes!$C:$J,8,FALSE),"") ->  | N39: =IF(E39="","",VLOOKUP(E39,'Param masqué'!$D$3:$E$4,2,FALSE)) ->  | O39: =IF(F39="","",VLOOKUP(F39,'Param masqué'!$J$3:$K$14,2,FALSE)) ->  | P39: =IF(H39="","",VLOOKUP(H39,'Param masqué'!$R$3:$T$82,3,FALSE)) ->  | Q39: =IF(I39="","",VLOOKUP(I39,'Param masqué'!$AD$1:$AE$16,2,FALSE)) ->  | W39: A | X39: A_ | Y39: A_ | AB39: =IFERROR(VLOOKUP($G39,'Param masqué'!$AT$2:$AU$13,2,FALSE),0) -> 0 | AD39: =VLOOKUP(Y39,'Param masqué'!AG:AJ,4,FALSE) ->  | AF39: =VLOOKUP(K39,Tableau2[[Code Ecomaison]:[Mesure]],7,FALSE) -> 
B40: Ref 35 | L40: =IF(K40="","",IFERROR(VLOOKUP(K40,Codes!$C$2:$N$9845,12,FALSE),"Cette combinaison de matériau non certifié et de prime pour mise à disposition de pièces détachées n'est pas permise")) ->  | M40: =IFERROR(VLOOKUP('ABJ - saisie multiple'!$K40,Codes!$C:$J,8,FALSE),"") ->  | N40: =IF(E40="","",VLOOKUP(E40,'Param masqué'!$D$3:$E$4,2,FALSE)) ->  | O40: =IF(F40="","",VLOOKUP(F40,'Param masqué'!$J$3:$K$14,2,FALSE)) ->  | P40: =IF(H40="","",VLOOKUP(H40,'Param masqué'!$R$3:$T$82,3,FALSE)) ->  | Q40: =IF(I40="","",VLOOKUP(I40,'Param masqué'!$AD$1:$AE$16,2,FALSE)) ->  | W40: A | X40: A_ | Y40: A_ | AB40: =IFERROR(VLOOKUP($G40,'Param masqué'!$AT$2:$AU$13,2,FALSE),0) -> 0 | AD40: =VLOOKUP(Y40,'Param masqué'!AG:AJ,4,FALSE) ->  | AF40: =VLOOKUP(K40,Tableau2[[Code Ecomaison]:[Mesure]],7,FALSE) -> 
B41: Ref 36 | L41: =IF(K41="","",IFERROR(VLOOKUP(K41,Codes!$C$2:$N$9845,12,FALSE),"Cette combinaison de matériau non certifié et de prime pour mise à disposition de pièces détachées n'est pas permise")) ->  | M41: =IFERROR(VLOOKUP('ABJ - saisie multiple'!$K41,Codes!$C:$J,8,FALSE),"") ->  | N41: =IF(E41="","",VLOOKUP(E41,'Param masqué'!$D$3:$E$4,2,FALSE)) ->  | O41: =IF(F41="","",VLOOKUP(F41,'Param masqué'!$J$3:$K$14,2,FALSE)) ->  | P41: =IF(H41="","",VLOOKUP(H41,'Param masqué'!$R$3:$T$82,3,FALSE)) ->  | Q41: =IF(I41="","",VLOOKUP(I41,'Param masqué'!$AD$1:$AE$16,2,FALSE)) ->  | W41: A | X41: A_ | Y41: A_ | AB41: =IFERROR(VLOOKUP($G41,'Param masqué'!$AT$2:$AU$13,2,FALSE),0) -> 0 | AD41: =VLOOKUP(Y41,'Param masqué'!AG:AJ,4,FALSE) ->  | AF41: =VLOOKUP(K41,Tableau2[[Code Ecomaison]:[Mesure]],7,FALSE) -> 
B42: Ref 37 | L42: =IF(K42="","",IFERROR(VLOOKUP(K42,Codes!$C$2:$N$9845,12,FALSE),"Cette combinaison de matériau non certifié et de prime pour mise à disposition de pièces détachées n'est pas permise")) ->  | M42: =IFERROR(VLOOKUP('ABJ - saisie multiple'!$K42,Codes!$C:$J,8,FALSE),"") ->  | N42: =IF(E42="","",VLOOKUP(E42,'Param masqué'!$D$3:$E$4,2,FALSE)) ->  | O42: =IF(F42="","",VLOOKUP(F42,'Param masqué'!$J$3:$K$14,2,FALSE)) ->  | P42: =IF(H42="","",VLOOKUP(H42,'Param masqué'!$R$3:$T$82,3,FALSE)) ->  | Q42: =IF(I42="","",VLOOKUP(I42,'Param masqué'!$AD$1:$AE$16,2,FALSE)) ->  | W42: A | X42: A_ | Y42: A_ | AB42: =IFERROR(VLOOKUP($G42,'Param masqué'!$AT$2:$AU$13,2,FALSE),0) -> 0 | AD42: =VLOOKUP(Y42,'Param masqué'!AG:AJ,4,FALSE) ->  | AF42: =VLOOKUP(K42,Tableau2[[Code Ecomaison]:[Mesure]],7,FALSE) -> 
B43: Ref 38 | L43: =IF(K43="","",IFERROR(VLOOKUP(K43,Codes!$C$2:$N$9845,12,FALSE),"Cette combinaison de matériau non certifié et de prime pour mise à disposition de pièces détachées n'est pas permise")) ->  | M43: =IFERROR(VLOOKUP('ABJ - saisie multiple'!$K43,Codes!$C:$J,8,FALSE),"") ->  | N43: =IF(E43="","",VLOOKUP(E43,'Param masqué'!$D$3:$E$4,2,FALSE)) ->  | O43: =IF(F43="","",VLOOKUP(F43,'Param masqué'!$J$3:$K$14,2,FALSE)) ->  | P43: =IF(H43="","",VLOOKUP(H43,'Param masqué'!$R$3:$T$82,3,FALSE)) ->  | Q43: =IF(I43="","",VLOOKUP(I43,'Param masqué'!$AD$1:$AE$16,2,FALSE)) ->  | W43: A | X43: A_ | Y43: A_ | AB43: =IFERROR(VLOOKUP($G43,'Param masqué'!$AT$2:$AU$13,2,FALSE),0) -> 0 | AD43: =VLOOKUP(Y43,'Param masqué'!AG:AJ,4,FALSE) ->  | AF43: =VLOOKUP(K43,Tableau2[[Code Ecomaison]:[Mesure]],7,FALSE) -> 
B44: Ref 39 | L44: =IF(K44="","",IFERROR(VLOOKUP(K44,Codes!$C$2:$N$9845,12,FALSE),"Cette combinaison de matériau non certifié et de prime pour mise à disposition de pièces détachées n'est pas permise")) ->  | M44: =IFERROR(VLOOKUP('ABJ - saisie multiple'!$K44,Codes!$C:$J,8,FALSE),"") ->  | N44: =IF(E44="","",VLOOKUP(E44,'Param masqué'!$D$3:$E$4,2,FALSE)) ->  | O44: =IF(F44="","",VLOOKUP(F44,'Param masqué'!$J$3:$K$14,2,FALSE)) ->  | P44: =IF(H44="","",VLOOKUP(H44,'Param masqué'!$R$3:$T$82,3,FALSE)) ->  | Q44: =IF(I44="","",VLOOKUP(I44,'Param masqué'!$AD$1:$AE$16,2,FALSE)) ->  | W44: A | X44: A_ | Y44: A_ | AB44: =IFERROR(VLOOKUP($G44,'Param masqué'!$AT$2:$AU$13,2,FALSE),0) -> 0 | AD44: =VLOOKUP(Y44,'Param masqué'!AG:AJ,4,FALSE) ->  | AF44: =VLOOKUP(K44,Tableau2[[Code Ecomaison]:[Mesure]],7,FALSE) -> 
B45: Ref 40 | L45: =IF(K45="","",IFERROR(VLOOKUP(K45,Codes!$C$2:$N$9845,12,FALSE),"Cette combinaison de matériau non certifié et de prime pour mise à disposition de pièces détachées n'est pas permise")) ->  | M45: =IFERROR(VLOOKUP('ABJ - saisie multiple'!$K45,Codes!$C:$J,8,FALSE),"") ->  | N45: =IF(E45="","",VLOOKUP(E45,'Param masqué'!$D$3:$E$4,2,FALSE)) ->  | O45: =IF(F45="","",VLOOKUP(F45,'Param masqué'!$J$3:$K$14,2,FALSE)) ->  | P45: =IF(H45="","",VLOOKUP(H45,'Param masqué'!$R$3:$T$82,3,FALSE)) ->  | Q45: =IF(I45="","",VLOOKUP(I45,'Param masqué'!$AD$1:$AE$16,2,FALSE)) ->  | W45: A | X45: A_ | Y45: A_ | AB45: =IFERROR(VLOOKUP($G45,'Param masqué'!$AT$2:$AU$13,2,FALSE),0) -> 0 | AD45: =VLOOKUP(Y45,'Param masqué'!AG:AJ,4,FALSE) ->  | AF45: =VLOOKUP(K45,Tableau2[[Code Ecomaison]:[Mesure]],7,FALSE) -> 
B46: Ref 41 | L46: =IF(K46="","",IFERROR(VLOOKUP(K46,Codes!$C$2:$N$9845,12,FALSE),"Cette combinaison de matériau non certifié et de prime pour mise à disposition de pièces détachées n'est pas permise")) ->  | M46: =IFERROR(VLOOKUP('ABJ - saisie multiple'!$K46,Codes!$C:$J,8,FALSE),"") ->  | N46: =IF(E46="","",VLOOKUP(E46,'Param masqué'!$D$3:$E$4,2,FALSE)) ->  | O46: =IF(F46="","",VLOOKUP(F46,'Param masqué'!$J$3:$K$14,2,FALSE)) ->  | P46: =IF(H46="","",VLOOKUP(H46,'Param masqué'!$R$3:$T$82,3,FALSE)) ->  | Q46: =IF(I46="","",VLOOKUP(I46,'Param masqué'!$AD$1:$AE$16,2,FALSE)) ->  | W46: A | X46: A_ | Y46: A_ | AB46: =IFERROR(VLOOKUP($G46,'Param masqué'!$AT$2:$AU$13,2,FALSE),0) -> 0 | AD46: =VLOOKUP(Y46,'Param masqué'!AG:AJ,4,FALSE) ->  | AF46: =VLOOKUP(K46,Tableau2[[Code Ecomaison]:[Mesure]],7,FALSE) -> 
B47: Ref 42 | L47: =IF(K47="","",IFERROR(VLOOKUP(K47,Codes!$C$2:$N$9845,12,FALSE),"Cette combinaison de matériau non certifié et de prime pour mise à disposition de pièces détachées n'est pas permise")) ->  | M47: =IFERROR(VLOOKUP('ABJ - saisie multiple'!$K47,Codes!$C:$J,8,FALSE),"") ->  | N47: =IF(E47="","",VLOOKUP(E47,'Param masqué'!$D$3:$E$4,2,FALSE)) ->  | O47: =IF(F47="","",VLOOKUP(F47,'Param masqué'!$J$3:$K$14,2,FALSE)) ->  | P47: =IF(H47="","",VLOOKUP(H47,'Param masqué'!$R$3:$T$82,3,FALSE)) ->  | Q47: =IF(I47="","",VLOOKUP(I47,'Param masqué'!$AD$1:$AE$16,2,FALSE)) ->  | W47: A | X47: A_ | Y47: A_ | AB47: =IFERROR(VLOOKUP($G47,'Param masqué'!$AT$2:$AU$13,2,FALSE),0) -> 0 | AD47: =VLOOKUP(Y47,'Param masqué'!AG:AJ,4,FALSE) ->  | AF47: =VLOOKUP(K47,Tableau2[[Code Ecomaison]:[Mesure]],7,FALSE) -> 
B48: Ref 43 | L48: =IF(K48="","",IFERROR(VLOOKUP(K48,Codes!$C$2:$N$9845,12,FALSE),"Cette combinaison de matériau non certifié et de prime pour mise à disposition de pièces détachées n'est pas permise")) ->  | M48: =IFERROR(VLOOKUP('ABJ - saisie multiple'!$K48,Codes!$C:$J,8,FALSE),"") ->  | N48: =IF(E48="","",VLOOKUP(E48,'Param masqué'!$D$3:$E$4,2,FALSE)) ->  | O48: =IF(F48="","",VLOOKUP(F48,'Param masqué'!$J$3:$K$14,2,FALSE)) ->  | P48: =IF(H48="","",VLOOKUP(H48,'Param masqué'!$R$3:$T$82,3,FALSE)) ->  | Q48: =IF(I48="","",VLOOKUP(I48,'Param masqué'!$AD$1:$AE$16,2,FALSE)) ->  | W48: A | X48: A_ | Y48: A_ | AB48: =IFERROR(VLOOKUP($G48,'Param masqué'!$AT$2:$AU$13,2,FALSE),0) -> 0 | AD48: =VLOOKUP(Y48,'Param masqué'!AG:AJ,4,FALSE) ->  | AF48: =VLOOKUP(K48,Tableau2[[Code Ecomaison]:[Mesure]],7,FALSE) -> 
B49: Ref 44 | L49: =IF(K49="","",IFERROR(VLOOKUP(K49,Codes!$C$2:$N$9845,12,FALSE),"Cette combinaison de matériau non certifié et de prime pour mise à disposition de pièces détachées n'est pas permise")) ->  | M49: =IFERROR(VLOOKUP('ABJ - saisie multiple'!$K49,Codes!$C:$J,8,FALSE),"") ->  | N49: =IF(E49="","",VLOOKUP(E49,'Param masqué'!$D$3:$E$4,2,FALSE)) ->  | O49: =IF(F49="","",VLOOKUP(F49,'Param masqué'!$J$3:$K$14,2,FALSE)) ->  | P49: =IF(H49="","",VLOOKUP(H49,'Param masqué'!$R$3:$T$82,3,FALSE)) ->  | Q49: =IF(I49="","",VLOOKUP(I49,'Param masqué'!$AD$1:$AE$16,2,FALSE)) ->  | W49: A | X49: A_ | Y49: A_ | AB49: =IFERROR(VLOOKUP($G49,'Param masqué'!$AT$2:$AU$13,2,FALSE),0) -> 0 | AD49: =VLOOKUP(Y49,'Param masqué'!AG:AJ,4,FALSE) ->  | AF49: =VLOOKUP(K49,Tableau2[[Code Ecomaison]:[Mesure]],7,FALSE) -> 
B50: Ref 45 | L50: =IF(K50="","",IFERROR(VLOOKUP(K50,Codes!$C$2:$N$9845,12,FALSE),"Cette combinaison de matériau non certifié et de prime pour mise à disposition de pièces détachées n'est pas permise")) ->  | M50: =IFERROR(VLOOKUP('ABJ - saisie multiple'!$K50,Codes!$C:$J,8,FALSE),"") ->  | N50: =IF(E50="","",VLOOKUP(E50,'Param masqué'!$D$3:$E$4,2,FALSE)) ->  | O50: =IF(F50="","",VLOOKUP(F50,'Param masqué'!$J$3:$K$14,2,FALSE)) ->  | P50: =IF(H50="","",VLOOKUP(H50,'Param masqué'!$R$3:$T$82,3,FALSE)) ->  | Q50: =IF(I50="","",VLOOKUP(I50,'Param masqué'!$AD$1:$AE$16,2,FALSE)) ->  | W50: A | X50: A_ | Y50: A_ | AB50: =IFERROR(VLOOKUP($G50,'Param masqué'!$AT$2:$AU$13,2,FALSE),0) -> 0 | AD50: =VLOOKUP(Y50,'Param masqué'!AG:AJ,4,FALSE) ->  | AF50: =VLOOKUP(K50,Tableau2[[Code Ecomaison]:[Mesure]],7,FALSE) -> 
B51: Ref 46 | L51: =IF(K51="","",IFERROR(VLOOKUP(K51,Codes!$C$2:$N$9845,12,FALSE),"Cette combinaison de matériau non certifié et de prime pour mise à disposition de pièces détachées n'est pas permise")) ->  | M51: =IFERROR(VLOOKUP('ABJ - saisie multiple'!$K51,Codes!$C:$J,8,FALSE),"") ->  | N51: =IF(E51="","",VLOOKUP(E51,'Param masqué'!$D$3:$E$4,2,FALSE)) ->  | O51: =IF(F51="","",VLOOKUP(F51,'Param masqué'!$J$3:$K$14,2,FALSE)) ->  | P51: =IF(H51="","",VLOOKUP(H51,'Param masqué'!$R$3:$T$82,3,FALSE)) ->  | Q51: =IF(I51="","",VLOOKUP(I51,'Param masqué'!$AD$1:$AE$16,2,FALSE)) ->  | W51: A | X51: A_ | Y51: A_ | AB51: =IFERROR(VLOOKUP($G51,'Param masqué'!$AT$2:$AU$13,2,FALSE),0) -> 0 | AD51: =VLOOKUP(Y51,'Param masqué'!AG:AJ,4,FALSE) ->  | AF51: =VLOOKUP(K51,Tableau2[[Code Ecomaison]:[Mesure]],7,FALSE) -> 
B52: Ref 47 | L52: =IF(K52="","",IFERROR(VLOOKUP(K52,Codes!$C$2:$N$9845,12,FALSE),"Cette combinaison de matériau non certifié et de prime pour mise à disposition de pièces détachées n'est pas permise")) ->  | M52: =IFERROR(VLOOKUP('ABJ - saisie multiple'!$K52,Codes!$C:$J,8,FALSE),"") ->  | N52: =IF(E52="","",VLOOKUP(E52,'Param masqué'!$D$3:$E$4,2,FALSE)) ->  | O52: =IF(F52="","",VLOOKUP(F52,'Param masqué'!$J$3:$K$14,2,FALSE)) ->  | P52: =IF(H52="","",VLOOKUP(H52,'Param masqué'!$R$3:$T$82,3,FALSE)) ->  | Q52: =IF(I52="","",VLOOKUP(I52,'Param masqué'!$AD$1:$AE$16,2,FALSE)) ->  | W52: A | X52: A_ | Y52: A_ | AB52: =IFERROR(VLOOKUP($G52,'Param masqué'!$AT$2:$AU$13,2,FALSE),0) -> 0 | AD52: =VLOOKUP(Y52,'Param masqué'!AG:AJ,4,FALSE) ->  | AF52: =VLOOKUP(K52,Tableau2[[Code Ecomaison]:[Mesure]],7,FALSE) -> 
B53: Ref 48 | L53: =IF(K53="","",IFERROR(VLOOKUP(K53,Codes!$C$2:$N$9845,12,FALSE),"Cette combinaison de matériau non certifié et de prime pour mise à disposition de pièces détachées n'est pas permise")) ->  | M53: =IFERROR(VLOOKUP('ABJ - saisie multiple'!$K53,Codes!$C:$J,8,FALSE),"") ->  | N53: =IF(E53="","",VLOOKUP(E53,'Param masqué'!$D$3:$E$4,2,FALSE)) ->  | O53: =IF(F53="","",VLOOKUP(F53,'Param masqué'!$J$3:$K$14,2,FALSE)) ->  | P53: =IF(H53="","",VLOOKUP(H53,'Param masqué'!$R$3:$T$82,3,FALSE)) ->  | Q53: =IF(I53="","",VLOOKUP(I53,'Param masqué'!$AD$1:$AE$16,2,FALSE)) ->  | W53: A | X53: A_ | Y53: A_ | AB53: =IFERROR(VLOOKUP($G53,'Param masqué'!$AT$2:$AU$13,2,FALSE),0) -> 0 | AD53: =VLOOKUP(Y53,'Param masqué'!AG:AJ,4,FALSE) ->  | AF53: =VLOOKUP(K53,Tableau2[[Code Ecomaison]:[Mesure]],7,FALSE) -> 
B54: Ref 49 | L54: =IF(K54="","",IFERROR(VLOOKUP(K54,Codes!$C$2:$N$9845,12,FALSE),"Cette combinaison de matériau non certifié et de prime pour mise à disposition de pièces détachées n'est pas permise")) ->  | M54: =IFERROR(VLOOKUP('ABJ - saisie multiple'!$K54,Codes!$C:$J,8,FALSE),"") ->  | N54: =IF(E54="","",VLOOKUP(E54,'Param masqué'!$D$3:$E$4,2,FALSE)) ->  | O54: =IF(F54="","",VLOOKUP(F54,'Param masqué'!$J$3:$K$14,2,FALSE)) ->  | P54: =IF(H54="","",VLOOKUP(H54,'Param masqué'!$R$3:$T$82,3,FALSE)) ->  | Q54: =IF(I54="","",VLOOKUP(I54,'Param masqué'!$AD$1:$AE$16,2,FALSE)) ->  | W54: A | X54: A_ | Y54: A_ | AB54: =IFERROR(VLOOKUP($G54,'Param masqué'!$AT$2:$AU$13,2,FALSE),0) -> 0 | AD54: =VLOOKUP(Y54,'Param masqué'!AG:AJ,4,FALSE) ->  | AF54: =VLOOKUP(K54,Tableau2[[Code Ecomaison]:[Mesure]],7,FALSE) -> 
B55: Ref 50 | L55: =IF(K55="","",IFERROR(VLOOKUP(K55,Codes!$C$2:$N$9845,12,FALSE),"Cette combinaison de matériau non certifié et de prime pour mise à disposition de pièces détachées n'est pas permise")) ->  | M55: =IFERROR(VLOOKUP('ABJ - saisie multiple'!$K55,Codes!$C:$J,8,FALSE),"") ->  | N55: =IF(E55="","",VLOOKUP(E55,'Param masqué'!$D$3:$E$4,2,FALSE)) ->  | O55: =IF(F55="","",VLOOKUP(F55,'Param masqué'!$J$3:$K$14,2,FALSE)) ->  | P55: =IF(H55="","",VLOOKUP(H55,'Param masqué'!$R$3:$T$82,3,FALSE)) ->  | Q55: =IF(I55="","",VLOOKUP(I55,'Param masqué'!$AD$1:$AE$16,2,FALSE)) ->  | W55: A | X55: A_ | Y55: A_ | AB55: =IFERROR(VLOOKUP($G55,'Param masqué'!$AT$2:$AU$13,2,FALSE),0) -> 0 | AD55: =VLOOKUP(Y55,'Param masqué'!AG:AJ,4,FALSE) ->  | AF55: =VLOOKUP(K55,Tableau2[[Code Ecomaison]:[Mesure]],7,FALSE) -> 
B56: Ref 51 | L56: =IF(K56="","",IFERROR(VLOOKUP(K56,Codes!$C$2:$N$9845,12,FALSE),"Cette combinaison de matériau non certifié et de prime pour mise à disposition de pièces détachées n'est pas permise")) ->  | M56: =IFERROR(VLOOKUP('ABJ - saisie multiple'!$K56,Codes!$C:$J,8,FALSE),"") ->  | N56: =IF(E56="","",VLOOKUP(E56,'Param masqué'!$D$3:$E$4,2,FALSE)) ->  | O56: =IF(F56="","",VLOOKUP(F56,'Param masqué'!$J$3:$K$14,2,FALSE)) ->  | P56: =IF(H56="","",VLOOKUP(H56,'Param masqué'!$R$3:$T$82,3,FALSE)) ->  | Q56: =IF(I56="","",VLOOKUP(I56,'Param masqué'!$AD$1:$AE$16,2,FALSE)) ->  | W56: A | X56: A_ | Y56: A_ | AB56: =IFERROR(VLOOKUP($G56,'Param masqué'!$AT$2:$AU$13,2,FALSE),0) -> 0 | AD56: =VLOOKUP(Y56,'Param masqué'!AG:AJ,4,FALSE) ->  | AF56: =VLOOKUP(K56,Tableau2[[Code Ecomaison]:[Mesure]],7,FALSE) -> 
B57: Ref 52 | L57: =IF(K57="","",IFERROR(VLOOKUP(K57,Codes!$C$2:$N$9845,12,FALSE),"Cette combinaison de matériau non certifié et de prime pour mise à disposition de pièces détachées n'est pas permise")) ->  | M57: =IFERROR(VLOOKUP('ABJ - saisie multiple'!$K57,Codes!$C:$J,8,FALSE),"") ->  | N57: =IF(E57="","",VLOOKUP(E57,'Param masqué'!$D$3:$E$4,2,FALSE)) ->  | O57: =IF(F57="","",VLOOKUP(F57,'Param masqué'!$J$3:$K$14,2,FALSE)) ->  | P57: =IF(H57="","",VLOOKUP(H57,'Param masqué'!$R$3:$T$82,3,FALSE)) ->  | Q57: =IF(I57="","",VLOOKUP(I57,'Param masqué'!$AD$1:$AE$16,2,FALSE)) ->  | W57: A | X57: A_ | Y57: A_ | AB57: =IFERROR(VLOOKUP($G57,'Param masqué'!$AT$2:$AU$13,2,FALSE),0) -> 0 | AD57: =VLOOKUP(Y57,'Param masqué'!AG:AJ,4,FALSE) ->  | AF57: =VLOOKUP(K57,Tableau2[[Code Ecomaison]:[Mesure]],7,FALSE) -> 
B58: Ref 53 | L58: =IF(K58="","",IFERROR(VLOOKUP(K58,Codes!$C$2:$N$9845,12,FALSE),"Cette combinaison de matériau non certifié et de prime pour mise à disposition de pièces détachées n'est pas permise")) ->  | M58: =IFERROR(VLOOKUP('ABJ - saisie multiple'!$K58,Codes!$C:$J,8,FALSE),"") ->  | N58: =IF(E58="","",VLOOKUP(E58,'Param masqué'!$D$3:$E$4,2,FALSE)) ->  | O58: =IF(F58="","",VLOOKUP(F58,'Param masqué'!$J$3:$K$14,2,FALSE)) ->  | P58: =IF(H58="","",VLOOKUP(H58,'Param masqué'!$R$3:$T$82,3,FALSE)) ->  | Q58: =IF(I58="","",VLOOKUP(I58,'Param masqué'!$AD$1:$AE$16,2,FALSE)) ->  | W58: A | X58: A_ | Y58: A_ | AB58: =IFERROR(VLOOKUP($G58,'Param masqué'!$AT$2:$AU$13,2,FALSE),0) -> 0 | AD58: =VLOOKUP(Y58,'Param masqué'!AG:AJ,4,FALSE) ->  | AF58: =VLOOKUP(K58,Tableau2[[Code Ecomaison]:[Mesure]],7,FALSE) -> 
B59: Ref 54 | L59: =IF(K59="","",IFERROR(VLOOKUP(K59,Codes!$C$2:$N$9845,12,FALSE),"Cette combinaison de matériau non certifié et de prime pour mise à disposition de pièces détachées n'est pas permise")) ->  | M59: =IFERROR(VLOOKUP('ABJ - saisie multiple'!$K59,Codes!$C:$J,8,FALSE),"") ->  | N59: =IF(E59="","",VLOOKUP(E59,'Param masqué'!$D$3:$E$4,2,FALSE)) ->  | O59: =IF(F59="","",VLOOKUP(F59,'Param masqué'!$J$3:$K$14,2,FALSE)) ->  | P59: =IF(H59="","",VLOOKUP(H59,'Param masqué'!$R$3:$T$82,3,FALSE)) ->  | Q59: =IF(I59="","",VLOOKUP(I59,'Param masqué'!$AD$1:$AE$16,2,FALSE)) ->  | W59: A | X59: A_ | Y59: A_ | AB59: =IFERROR(VLOOKUP($G59,'Param masqué'!$AT$2:$AU$13,2,FALSE),0) -> 0 | AD59: =VLOOKUP(Y59,'Param masqué'!AG:AJ,4,FALSE) ->  | AF59: =VLOOKUP(K59,Tableau2[[Code Ecomaison]:[Mesure]],7,FALSE) -> 
B60: Ref 55 | L60: =IF(K60="","",IFERROR(VLOOKUP(K60,Codes!$C$2:$N$9845,12,FALSE),"Cette combinaison de matériau non certifié et de prime pour mise à disposition de pièces détachées n'est pas permise")) ->  | M60: =IFERROR(VLOOKUP('ABJ - saisie multiple'!$K60,Codes!$C:$J,8,FALSE),"") ->  | N60: =IF(E60="","",VLOOKUP(E60,'Param masqué'!$D$3:$E$4,2,FALSE)) ->  | O60: =IF(F60="","",VLOOKUP(F60,'Param masqué'!$J$3:$K$14,2,FALSE)) ->  | P60: =IF(H60="","",VLOOKUP(H60,'Param masqué'!$R$3:$T$82,3,FALSE)) ->  | Q60: =IF(I60="","",VLOOKUP(I60,'Param masqué'!$AD$1:$AE$16,2,FALSE)) ->  | W60: A | X60: A_ | Y60: A_ | AB60: =IFERROR(VLOOKUP($G60,'Param masqué'!$AT$2:$AU$13,2,FALSE),0) -> 0 | AD60: =VLOOKUP(Y60,'Param masqué'!AG:AJ,4,FALSE) ->  | AF60: =VLOOKUP(K60,Tableau2[[Code Ecomaison]:[Mesure]],7,FALSE) -> 
B61: Ref 56 | L61: =IF(K61="","",IFERROR(VLOOKUP(K61,Codes!$C$2:$N$9845,12,FALSE),"Cette combinaison de matériau non certifié et de prime pour mise à disposition de pièces détachées n'est pas permise")) ->  | M61: =IFERROR(VLOOKUP('ABJ - saisie multiple'!$K61,Codes!$C:$J,8,FALSE),"") ->  | N61: =IF(E61="","",VLOOKUP(E61,'Param masqué'!$D$3:$E$4,2,FALSE)) ->  | O61: =IF(F61="","",VLOOKUP(F61,'Param masqué'!$J$3:$K$14,2,FALSE)) ->  | P61: =IF(H61="","",VLOOKUP(H61,'Param masqué'!$R$3:$T$82,3,FALSE)) ->  | Q61: =IF(I61="","",VLOOKUP(I61,'Param masqué'!$AD$1:$AE$16,2,FALSE)) ->  | W61: A | X61: A_ | Y61: A_ | AB61: =IFERROR(VLOOKUP($G61,'Param masqué'!$AT$2:$AU$13,2,FALSE),0) -> 0 | AD61: =VLOOKUP(Y61,'Param masqué'!AG:AJ,4,FALSE) ->  | AF61: =VLOOKUP(K61,Tableau2[[Code Ecomaison]:[Mesure]],7,FALSE) -> 
B62: Ref 57 | L62: =IF(K62="","",IFERROR(VLOOKUP(K62,Codes!$C$2:$N$9845,12,FALSE),"Cette combinaison de matériau non certifié et de prime pour mise à disposition de pièces détachées n'est pas permise")) ->  | M62: =IFERROR(VLOOKUP('ABJ - saisie multiple'!$K62,Codes!$C:$J,8,FALSE),"") ->  | N62: =IF(E62="","",VLOOKUP(E62,'Param masqué'!$D$3:$E$4,2,FALSE)) ->  | O62: =IF(F62="","",VLOOKUP(F62,'Param masqué'!$J$3:$K$14,2,FALSE)) ->  | P62: =IF(H62="","",VLOOKUP(H62,'Param masqué'!$R$3:$T$82,3,FALSE)) ->  | Q62: =IF(I62="","",VLOOKUP(I62,'Param masqué'!$AD$1:$AE$16,2,FALSE)) ->  | W62: A | X62: A_ | Y62: A_ | AB62: =IFERROR(VLOOKUP($G62,'Param masqué'!$AT$2:$AU$13,2,FALSE),0) -> 0 | AD62: =VLOOKUP(Y62,'Param masqué'!AG:AJ,4,FALSE) ->  | AF62: =VLOOKUP(K62,Tableau2[[Code Ecomaison]:[Mesure]],7,FALSE) -> 
B63: Ref 58 | L63: =IF(K63="","",IFERROR(VLOOKUP(K63,Codes!$C$2:$N$9845,12,FALSE),"Cette combinaison de matériau non certifié et de prime pour mise à disposition de pièces détachées n'est pas permise")) ->  | M63: =IFERROR(VLOOKUP('ABJ - saisie multiple'!$K63,Codes!$C:$J,8,FALSE),"") ->  | N63: =IF(E63="","",VLOOKUP(E63,'Param masqué'!$D$3:$E$4,2,FALSE)) ->  | O63: =IF(F63="","",VLOOKUP(F63,'Param masqué'!$J$3:$K$14,2,FALSE)) ->  | P63: =IF(H63="","",VLOOKUP(H63,'Param masqué'!$R$3:$T$82,3,FALSE)) ->  | Q63: =IF(I63="","",VLOOKUP(I63,'Param masqué'!$AD$1:$AE$16,2,FALSE)) ->  | W63: A | X63: A_ | Y63: A_ | AB63: =IFERROR(VLOOKUP($G63,'Param masqué'!$AT$2:$AU$13,2,FALSE),0) -> 0 | AD63: =VLOOKUP(Y63,'Param masqué'!AG:AJ,4,FALSE) ->  | AF63: =VLOOKUP(K63,Tableau2[[Code Ecomaison]:[Mesure]],7,FALSE) -> 
B64: Ref 59 | L64: =IF(K64="","",IFERROR(VLOOKUP(K64,Codes!$C$2:$N$9845,12,FALSE),"Cette combinaison de matériau non certifié et de prime pour mise à disposition de pièces détachées n'est pas permise")) ->  | M64: =IFERROR(VLOOKUP('ABJ - saisie multiple'!$K64,Codes!$C:$J,8,FALSE),"") ->  | N64: =IF(E64="","",VLOOKUP(E64,'Param masqué'!$D$3:$E$4,2,FALSE)) ->  | O64: =IF(F64="","",VLOOKUP(F64,'Param masqué'!$J$3:$K$14,2,FALSE)) ->  | P64: =IF(H64="","",VLOOKUP(H64,'Param masqué'!$R$3:$T$82,3,FALSE)) ->  | Q64: =IF(I64="","",VLOOKUP(I64,'Param masqué'!$AD$1:$AE$16,2,FALSE)) ->  | W64: A | X64: A_ | Y64: A_ | AB64: =IFERROR(VLOOKUP($G64,'Param masqué'!$AT$2:$AU$13,2,FALSE),0) -> 0 | AD64: =VLOOKUP(Y64,'Param masqué'!AG:AJ,4,FALSE) ->  | AF64: =VLOOKUP(K64,Tableau2[[Code Ecomaison]:[Mesure]],7,FALSE) -> 
B65: Ref 60 | L65: =IF(K65="","",IFERROR(VLOOKUP(K65,Codes!$C$2:$N$9845,12,FALSE),"Cette combinaison de matériau non certifié et de prime pour mise à disposition de pièces détachées n'est pas permise")) ->  | M65: =IFERROR(VLOOKUP('ABJ - saisie multiple'!$K65,Codes!$C:$J,8,FALSE),"") ->  | N65: =IF(E65="","",VLOOKUP(E65,'Param masqué'!$D$3:$E$4,2,FALSE)) ->  | O65: =IF(F65="","",VLOOKUP(F65,'Param masqué'!$J$3:$K$14,2,FALSE)) ->  | P65: =IF(H65="","",VLOOKUP(H65,'Param masqué'!$R$3:$T$82,3,FALSE)) ->  | Q65: =IF(I65="","",VLOOKUP(I65,'Param masqué'!$AD$1:$AE$16,2,FALSE)) ->  | W65: A | X65: A_ | Y65: A_ | AB65: =IFERROR(VLOOKUP($G65,'Param masqué'!$AT$2:$AU$13,2,FALSE),0) -> 0 | AD65: =VLOOKUP(Y65,'Param masqué'!AG:AJ,4,FALSE) ->  | AF65: =VLOOKUP(K65,Tableau2[[Code Ecomaison]:[Mesure]],7,FALSE) -> 
B66: Ref 61 | L66: =IF(K66="","",IFERROR(VLOOKUP(K66,Codes!$C$2:$N$9845,12,FALSE),"Cette combinaison de matériau non certifié et de prime pour mise à disposition de pièces détachées n'est pas permise")) ->  | M66: =IFERROR(VLOOKUP('ABJ - saisie multiple'!$K66,Codes!$C:$J,8,FALSE),"") ->  | N66: =IF(E66="","",VLOOKUP(E66,'Param masqué'!$D$3:$E$4,2,FALSE)) ->  | O66: =IF(F66="","",VLOOKUP(F66,'Param masqué'!$J$3:$K$14,2,FALSE)) ->  | P66: =IF(H66="","",VLOOKUP(H66,'Param masqué'!$R$3:$T$82,3,FALSE)) ->  | Q66: =IF(I66="","",VLOOKUP(I66,'Param masqué'!$AD$1:$AE$16,2,FALSE)) ->  | W66: A | X66: A_ | Y66: A_ | AB66: =IFERROR(VLOOKUP($G66,'Param masqué'!$AT$2:$AU$13,2,FALSE),0) -> 0 | AD66: =VLOOKUP(Y66,'Param masqué'!AG:AJ,4,FALSE) ->  | AF66: =VLOOKUP(K66,Tableau2[[Code Ecomaison]:[Mesure]],7,FALSE) -> 
B67: Ref 62 | L67: =IF(K67="","",IFERROR(VLOOKUP(K67,Codes!$C$2:$N$9845,12,FALSE),"Cette combinaison de matériau non certifié et de prime pour mise à disposition de pièces détachées n'est pas permise")) ->  | M67: =IFERROR(VLOOKUP('ABJ - saisie multiple'!$K67,Codes!$C:$J,8,FALSE),"") ->  | N67: =IF(E67="","",VLOOKUP(E67,'Param masqué'!$D$3:$E$4,2,FALSE)) ->  | O67: =IF(F67="","",VLOOKUP(F67,'Param masqué'!$J$3:$K$14,2,FALSE)) ->  | P67: =IF(H67="","",VLOOKUP(H67,'Param masqué'!$R$3:$T$82,3,FALSE)) ->  | Q67: =IF(I67="","",VLOOKUP(I67,'Param masqué'!$AD$1:$AE$16,2,FALSE)) ->  | W67: A | X67: A_ | Y67: A_ | AB67: =IFERROR(VLOOKUP($G67,'Param masqué'!$AT$2:$AU$13,2,FALSE),0) -> 0 | AD67: =VLOOKUP(Y67,'Param masqué'!AG:AJ,4,FALSE) ->  | AF67: =VLOOKUP(K67,Tableau2[[Code Ecomaison]:[Mesure]],7,FALSE) -> 
B68: Ref 63 | L68: =IF(K68="","",IFERROR(VLOOKUP(K68,Codes!$C$2:$N$9845,12,FALSE),"Cette combinaison de matériau non certifié et de prime pour mise à disposition de pièces détachées n'est pas permise")) ->  | M68: =IFERROR(VLOOKUP('ABJ - saisie multiple'!$K68,Codes!$C:$J,8,FALSE),"") ->  | N68: =IF(E68="","",VLOOKUP(E68,'Param masqué'!$D$3:$E$4,2,FALSE)) ->  | O68: =IF(F68="","",VLOOKUP(F68,'Param masqué'!$J$3:$K$14,2,FALSE)) ->  | P68: =IF(H68="","",VLOOKUP(H68,'Param masqué'!$R$3:$T$82,3,FALSE)) ->  | Q68: =IF(I68="","",VLOOKUP(I68,'Param masqué'!$AD$1:$AE$16,2,FALSE)) ->  | W68: A | X68: A_ | Y68: A_ | AB68: =IFERROR(VLOOKUP($G68,'Param masqué'!$AT$2:$AU$13,2,FALSE),0) -> 0 | AD68: =VLOOKUP(Y68,'Param masqué'!AG:AJ,4,FALSE) ->  | AF68: =VLOOKUP(K68,Tableau2[[Code Ecomaison]:[Mesure]],7,FALSE) -> 
B69: Ref 64 | L69: =IF(K69="","",IFERROR(VLOOKUP(K69,Codes!$C$2:$N$9845,12,FALSE),"Cette combinaison de matériau non certifié et de prime pour mise à disposition de pièces détachées n'est pas permise")) ->  | M69: =IFERROR(VLOOKUP('ABJ - saisie multiple'!$K69,Codes!$C:$J,8,FALSE),"") ->  | N69: =IF(E69="","",VLOOKUP(E69,'Param masqué'!$D$3:$E$4,2,FALSE)) ->  | O69: =IF(F69="","",VLOOKUP(F69,'Param masqué'!$J$3:$K$14,2,FALSE)) ->  | P69: =IF(H69="","",VLOOKUP(H69,'Param masqué'!$R$3:$T$82,3,FALSE)) ->  | Q69: =IF(I69="","",VLOOKUP(I69,'Param masqué'!$AD$1:$AE$16,2,FALSE)) ->  | W69: A | X69: A_ | Y69: A_ | AB69: =IFERROR(VLOOKUP($G69,'Param masqué'!$AT$2:$AU$13,2,FALSE),0) -> 0 | AD69: =VLOOKUP(Y69,'Param masqué'!AG:AJ,4,FALSE) ->  | AF69: =VLOOKUP(K69,Tableau2[[Code Ecomaison]:[Mesure]],7,FALSE) -> 
B70: Ref 65 | L70: =IF(K70="","",IFERROR(VLOOKUP(K70,Codes!$C$2:$N$9845,12,FALSE),"Cette combinaison de matériau non certifié et de prime pour mise à disposition de pièces détachées n'est pas permise")) ->  | M70: =IFERROR(VLOOKUP('ABJ - saisie multiple'!$K70,Codes!$C:$J,8,FALSE),"") ->  | N70: =IF(E70="","",VLOOKUP(E70,'Param masqué'!$D$3:$E$4,2,FALSE)) ->  | O70: =IF(F70="","",VLOOKUP(F70,'Param masqué'!$J$3:$K$14,2,FALSE)) ->  | P70: =IF(H70="","",VLOOKUP(H70,'Param masqué'!$R$3:$T$82,3,FALSE)) ->  | Q70: =IF(I70="","",VLOOKUP(I70,'Param masqué'!$AD$1:$AE$16,2,FALSE)) ->  | W70: A | X70: A_ | Y70: A_ | AB70: =IFERROR(VLOOKUP($G70,'Param masqué'!$AT$2:$AU$13,2,FALSE),0) -> 0 | AD70: =VLOOKUP(Y70,'Param masqué'!AG:AJ,4,FALSE) ->  | AF70: =VLOOKUP(K70,Tableau2[[Code Ecomaison]:[Mesure]],7,FALSE) -> 
B71: Ref 66 | K71: =IF(OR(I71="",H71="",F71="",E71=""),"",CONCATENATE(N71,O71,P71,Q71,IF(J71="Oui",1,0))) ->  | L71: =IF(K71="","",IFERROR(VLOOKUP(K71,Codes!$C$2:$N$9845,12,FALSE),"Cette combinaison de matériau non certifié et de prime pour mise à disposition de pièces détachées n'est pas permise")) ->  | M71: =IFERROR(VLOOKUP('ABJ - saisie multiple'!$K71,Codes!$C:$J,8,FALSE),"") ->  | N71: =IF(E71="","",VLOOKUP(E71,'Param masqué'!$D$3:$E$4,2,FALSE)) ->  | O71: =IF(F71="","",VLOOKUP(F71,'Param masqué'!$J$3:$K$14,2,FALSE)) ->  | P71: =IF(H71="","",VLOOKUP(H71,'Param masqué'!$R$3:$T$82,3,FALSE)) ->  | Q71: =IF(I71="","",VLOOKUP(I71,'Param masqué'!$AD$1:$AE$16,2,FALSE)) ->  | R71: =IFERROR(IF(AF71="€/unité",M71,D71*M71/1000),"") ->  | W71: A | X71: =W71&"_"&N71 -> A_ | Y71: =W71&"_"&O71 -> A_ | AB71: =IFERROR(VLOOKUP($G71,'Param masqué'!$AT$2:$AU$13,2,FALSE),0) -> 0 | AD71: =VLOOKUP(Y71,'Param masqué'!AG:AJ,4,FALSE) ->  | AF71: =VLOOKUP(K71,Tableau2[[Code Ecomaison]:[Mesure]],7,FALSE) -> 
B72: Ref 67 | L72: =IF(K72="","",IFERROR(VLOOKUP(K72,Codes!$C$2:$N$9845,12,FALSE),"Cette combinaison de matériau non certifié et de prime pour mise à disposition de pièces détachées n'est pas permise")) ->  | M72: =IFERROR(VLOOKUP('ABJ - saisie multiple'!$K72,Codes!$C:$J,8,FALSE),"") ->  | N72: =IF(E72="","",VLOOKUP(E72,'Param masqué'!$D$3:$E$4,2,FALSE)) ->  | O72: =IF(F72="","",VLOOKUP(F72,'Param masqué'!$J$3:$K$14,2,FALSE)) ->  | P72: =IF(H72="","",VLOOKUP(H72,'Param masqué'!$R$3:$T$82,3,FALSE)) ->  | Q72: =IF(I72="","",VLOOKUP(I72,'Param masqué'!$AD$1:$AE$16,2,FALSE)) ->  | W72: A | X72: A_ | Y72: A_ | AB72: =IFERROR(VLOOKUP($G72,'Param masqué'!$AT$2:$AU$13,2,FALSE),0) -> 0 | AD72: =VLOOKUP(Y72,'Param masqué'!AG:AJ,4,FALSE) ->  | AF72: =VLOOKUP(K72,Tableau2[[Code Ecomaison]:[Mesure]],7,FALSE) -> 
B73: Ref 68 | L73: =IF(K73="","",IFERROR(VLOOKUP(K73,Codes!$C$2:$N$9845,12,FALSE),"Cette combinaison de matériau non certifié et de prime pour mise à disposition de pièces détachées n'est pas permise")) ->  | M73: =IFERROR(VLOOKUP('ABJ - saisie multiple'!$K73,Codes!$C:$J,8,FALSE),"") ->  | N73: =IF(E73="","",VLOOKUP(E73,'Param masqué'!$D$3:$E$4,2,FALSE)) ->  | O73: =IF(F73="","",VLOOKUP(F73,'Param masqué'!$J$3:$K$14,2,FALSE)) ->  | P73: =IF(H73="","",VLOOKUP(H73,'Param masqué'!$R$3:$T$82,3,FALSE)) ->  | Q73: =IF(I73="","",VLOOKUP(I73,'Param masqué'!$AD$1:$AE$16,2,FALSE)) ->  | W73: A | X73: A_ | Y73: A_ | AB73: =IFERROR(VLOOKUP($G73,'Param masqué'!$AT$2:$AU$13,2,FALSE),0) -> 0 | AD73: =VLOOKUP(Y73,'Param masqué'!AG:AJ,4,FALSE) ->  | AF73: =VLOOKUP(K73,Tableau2[[Code Ecomaison]:[Mesure]],7,FALSE) -> 
B74: Ref 69 | L74: =IF(K74="","",IFERROR(VLOOKUP(K74,Codes!$C$2:$N$9845,12,FALSE),"Cette combinaison de matériau non certifié et de prime pour mise à disposition de pièces détachées n'est pas permise")) ->  | M74: =IFERROR(VLOOKUP('ABJ - saisie multiple'!$K74,Codes!$C:$J,8,FALSE),"") ->  | N74: =IF(E74="","",VLOOKUP(E74,'Param masqué'!$D$3:$E$4,2,FALSE)) ->  | O74: =IF(F74="","",VLOOKUP(F74,'Param masqué'!$J$3:$K$14,2,FALSE)) ->  | P74: =IF(H74="","",VLOOKUP(H74,'Param masqué'!$R$3:$T$82,3,FALSE)) ->  | Q74: =IF(I74="","",VLOOKUP(I74,'Param masqué'!$AD$1:$AE$16,2,FALSE)) ->  | W74: A | X74: A_ | Y74: A_ | AB74: =IFERROR(VLOOKUP($G74,'Param masqué'!$AT$2:$AU$13,2,FALSE),0) -> 0 | AD74: =VLOOKUP(Y74,'Param masqué'!AG:AJ,4,FALSE) ->  | AF74: =VLOOKUP(K74,Tableau2[[Code Ecomaison]:[Mesure]],7,FALSE) -> 
B75: Ref 70 | L75: =IF(K75="","",IFERROR(VLOOKUP(K75,Codes!$C$2:$N$9845,12,FALSE),"Cette combinaison de matériau non certifié et de prime pour mise à disposition de pièces détachées n'est pas permise")) ->  | M75: =IFERROR(VLOOKUP('ABJ - saisie multiple'!$K75,Codes!$C:$J,8,FALSE),"") ->  | N75: =IF(E75="","",VLOOKUP(E75,'Param masqué'!$D$3:$E$4,2,FALSE)) ->  | O75: =IF(F75="","",VLOOKUP(F75,'Param masqué'!$J$3:$K$14,2,FALSE)) ->  | P75: =IF(H75="","",VLOOKUP(H75,'Param masqué'!$R$3:$T$82,3,FALSE)) ->  | Q75: =IF(I75="","",VLOOKUP(I75,'Param masqué'!$AD$1:$AE$16,2,FALSE)) ->  | W75: A | X75: A_ | Y75: A_ | AB75: =IFERROR(VLOOKUP($G75,'Param masqué'!$AT$2:$AU$13,2,FALSE),0) -> 0 | AD75: =VLOOKUP(Y75,'Param masqué'!AG:AJ,4,FALSE) ->  | AF75: =VLOOKUP(K75,Tableau2[[Code Ecomaison]:[Mesure]],7,FALSE) -> 
B76: Ref 71 | L76: =IF(K76="","",IFERROR(VLOOKUP(K76,Codes!$C$2:$N$9845,12,FALSE),"Cette combinaison de matériau non certifié et de prime pour mise à disposition de pièces détachées n'est pas permise")) ->  | M76: =IFERROR(VLOOKUP('ABJ - saisie multiple'!$K76,Codes!$C:$J,8,FALSE),"") ->  | N76: =IF(E76="","",VLOOKUP(E76,'Param masqué'!$D$3:$E$4,2,FALSE)) ->  | O76: =IF(F76="","",VLOOKUP(F76,'Param masqué'!$J$3:$K$14,2,FALSE)) ->  | P76: =IF(H76="","",VLOOKUP(H76,'Param masqué'!$R$3:$T$82,3,FALSE)) ->  | Q76: =IF(I76="","",VLOOKUP(I76,'Param masqué'!$AD$1:$AE$16,2,FALSE)) ->  | W76: A | X76: A_ | Y76: A_ | AB76: =IFERROR(VLOOKUP($G76,'Param masqué'!$AT$2:$AU$13,2,FALSE),0) -> 0 | AD76: =VLOOKUP(Y76,'Param masqué'!AG:AJ,4,FALSE) ->  | AF76: =VLOOKUP(K76,Tableau2[[Code Ecomaison]:[Mesure]],7,FALSE) -> 
B77: Ref 72 | L77: =IF(K77="","",IFERROR(VLOOKUP(K77,Codes!$C$2:$N$9845,12,FALSE),"Cette combinaison de matériau non certifié et de prime pour mise à disposition de pièces détachées n'est pas permise")) ->  | M77: =IFERROR(VLOOKUP('ABJ - saisie multiple'!$K77,Codes!$C:$J,8,FALSE),"") ->  | N77: =IF(E77="","",VLOOKUP(E77,'Param masqué'!$D$3:$E$4,2,FALSE)) ->  | O77: =IF(F77="","",VLOOKUP(F77,'Param masqué'!$J$3:$K$14,2,FALSE)) ->  | P77: =IF(H77="","",VLOOKUP(H77,'Param masqué'!$R$3:$T$82,3,FALSE)) ->  | Q77: =IF(I77="","",VLOOKUP(I77,'Param masqué'!$AD$1:$AE$16,2,FALSE)) ->  | W77: A | X77: A_ | Y77: A_ | AB77: =IFERROR(VLOOKUP($G77,'Param masqué'!$AT$2:$AU$13,2,FALSE),0) -> 0 | AD77: =VLOOKUP(Y77,'Param masqué'!AG:AJ,4,FALSE) ->  | AF77: =VLOOKUP(K77,Tableau2[[Code Ecomaison]:[Mesure]],7,FALSE) -> 
B78: Ref 73 | L78: =IF(K78="","",IFERROR(VLOOKUP(K78,Codes!$C$2:$N$9845,12,FALSE),"Cette combinaison de matériau non certifié et de prime pour mise à disposition de pièces détachées n'est pas permise")) ->  | M78: =IFERROR(VLOOKUP('ABJ - saisie multiple'!$K78,Codes!$C:$J,8,FALSE),"") ->  | N78: =IF(E78="","",VLOOKUP(E78,'Param masqué'!$D$3:$E$4,2,FALSE)) ->  | O78: =IF(F78="","",VLOOKUP(F78,'Param masqué'!$J$3:$K$14,2,FALSE)) ->  | P78: =IF(H78="","",VLOOKUP(H78,'Param masqué'!$R$3:$T$82,3,FALSE)) ->  | Q78: =IF(I78="","",VLOOKUP(I78,'Param masqué'!$AD$1:$AE$16,2,FALSE)) ->  | W78: A | X78: A_ | Y78: A_ | AB78: =IFERROR(VLOOKUP($G78,'Param masqué'!$AT$2:$AU$13,2,FALSE),0) -> 0 | AD78: =VLOOKUP(Y78,'Param masqué'!AG:AJ,4,FALSE) ->  | AF78: =VLOOKUP(K78,Tableau2[[Code Ecomaison]:[Mesure]],7,FALSE) -> 
B79: Ref 74 | L79: =IF(K79="","",IFERROR(VLOOKUP(K79,Codes!$C$2:$N$9845,12,FALSE),"Cette combinaison de matériau non certifié et de prime pour mise à disposition de pièces détachées n'est pas permise")) ->  | M79: =IFERROR(VLOOKUP('ABJ - saisie multiple'!$K79,Codes!$C:$J,8,FALSE),"") ->  | N79: =IF(E79="","",VLOOKUP(E79,'Param masqué'!$D$3:$E$4,2,FALSE)) ->  | O79: =IF(F79="","",VLOOKUP(F79,'Param masqué'!$J$3:$K$14,2,FALSE)) ->  | P79: =IF(H79="","",VLOOKUP(H79,'Param masqué'!$R$3:$T$82,3,FALSE)) ->  | Q79: =IF(I79="","",VLOOKUP(I79,'Param masqué'!$AD$1:$AE$16,2,FALSE)) ->  | W79: A | X79: A_ | Y79: A_ | AB79: =IFERROR(VLOOKUP($G79,'Param masqué'!$AT$2:$AU$13,2,FALSE),0) -> 0 | AD79: =VLOOKUP(Y79,'Param masqué'!AG:AJ,4,FALSE) ->  | AF79: =VLOOKUP(K79,Tableau2[[Code Ecomaison]:[Mesure]],7,FALSE) -> 
B80: Ref 75 | L80: =IF(K80="","",IFERROR(VLOOKUP(K80,Codes!$C$2:$N$9845,12,FALSE),"Cette combinaison de matériau non certifié et de prime pour mise à disposition de pièces détachées n'est pas permise")) ->  | M80: =IFERROR(VLOOKUP('ABJ - saisie multiple'!$K80,Codes!$C:$J,8,FALSE),"") ->  | N80: =IF(E80="","",VLOOKUP(E80,'Param masqué'!$D$3:$E$4,2,FALSE)) ->  | O80: =IF(F80="","",VLOOKUP(F80,'Param masqué'!$J$3:$K$14,2,FALSE)) ->  | P80: =IF(H80="","",VLOOKUP(H80,'Param masqué'!$R$3:$T$82,3,FALSE)) ->  | Q80: =IF(I80="","",VLOOKUP(I80,'Param masqué'!$AD$1:$AE$16,2,FALSE)) ->  | W80: A | X80: A_ | Y80: A_ | AB80: =IFERROR(VLOOKUP($G80,'Param masqué'!$AT$2:$AU$13,2,FALSE),0) -> 0 | AD80: =VLOOKUP(Y80,'Param masqué'!AG:AJ,4,FALSE) ->  | AF80: =VLOOKUP(K80,Tableau2[[Code Ecomaison]:[Mesure]],7,FALSE) -> 
B81: Ref 76 | L81: =IF(K81="","",IFERROR(VLOOKUP(K81,Codes!$C$2:$N$9845,12,FALSE),"Cette combinaison de matériau non certifié et de prime pour mise à disposition de pièces détachées n'est pas permise")) ->  | M81: =IFERROR(VLOOKUP('ABJ - saisie multiple'!$K81,Codes!$C:$J,8,FALSE),"") ->  | N81: =IF(E81="","",VLOOKUP(E81,'Param masqué'!$D$3:$E$4,2,FALSE)) ->  | O81: =IF(F81="","",VLOOKUP(F81,'Param masqué'!$J$3:$K$14,2,FALSE)) ->  | P81: =IF(H81="","",VLOOKUP(H81,'Param masqué'!$R$3:$T$82,3,FALSE)) ->  | Q81: =IF(I81="","",VLOOKUP(I81,'Param masqué'!$AD$1:$AE$16,2,FALSE)) ->  | W81: A | X81: A_ | Y81: A_ | AB81: =IFERROR(VLOOKUP($G81,'Param masqué'!$AT$2:$AU$13,2,FALSE),0) -> 0 | AD81: =VLOOKUP(Y81,'Param masqué'!AG:AJ,4,FALSE) ->  | AF81: =VLOOKUP(K81,Tableau2[[Code Ecomaison]:[Mesure]],7,FALSE) -> 
B82: Ref 77 | L82: =IF(K82="","",IFERROR(VLOOKUP(K82,Codes!$C$2:$N$9845,12,FALSE),"Cette combinaison de matériau non certifié et de prime pour mise à disposition de pièces détachées n'est pas permise")) ->  | M82: =IFERROR(VLOOKUP('ABJ - saisie multiple'!$K82,Codes!$C:$J,8,FALSE),"") ->  | N82: =IF(E82="","",VLOOKUP(E82,'Param masqué'!$D$3:$E$4,2,FALSE)) ->  | O82: =IF(F82="","",VLOOKUP(F82,'Param masqué'!$J$3:$K$14,2,FALSE)) ->  | P82: =IF(H82="","",VLOOKUP(H82,'Param masqué'!$R$3:$T$82,3,FALSE)) ->  | Q82: =IF(I82="","",VLOOKUP(I82,'Param masqué'!$AD$1:$AE$16,2,FALSE)) ->  | W82: A | X82: A_ | Y82: A_ | AB82: =IFERROR(VLOOKUP($G82,'Param masqué'!$AT$2:$AU$13,2,FALSE),0) -> 0 | AD82: =VLOOKUP(Y82,'Param masqué'!AG:AJ,4,FALSE) ->  | AF82: =VLOOKUP(K82,Tableau2[[Code Ecomaison]:[Mesure]],7,FALSE) -> 
B83: Ref 78 | L83: =IF(K83="","",IFERROR(VLOOKUP(K83,Codes!$C$2:$N$9845,12,FALSE),"Cette combinaison de matériau non certifié et de prime pour mise à disposition de pièces détachées n'est pas permise")) ->  | M83: =IFERROR(VLOOKUP('ABJ - saisie multiple'!$K83,Codes!$C:$J,8,FALSE),"") ->  | N83: =IF(E83="","",VLOOKUP(E83,'Param masqué'!$D$3:$E$4,2,FALSE)) ->  | O83: =IF(F83="","",VLOOKUP(F83,'Param masqué'!$J$3:$K$14,2,FALSE)) ->  | P83: =IF(H83="","",VLOOKUP(H83,'Param masqué'!$R$3:$T$82,3,FALSE)) ->  | Q83: =IF(I83="","",VLOOKUP(I83,'Param masqué'!$AD$1:$AE$16,2,FALSE)) ->  | W83: A | X83: A_ | Y83: A_ | AB83: =IFERROR(VLOOKUP($G83,'Param masqué'!$AT$2:$AU$13,2,FALSE),0) -> 0 | AD83: =VLOOKUP(Y83,'Param masqué'!AG:AJ,4,FALSE) ->  | AF83: =VLOOKUP(K83,Tableau2[[Code Ecomaison]:[Mesure]],7,FALSE) -> 
B84: Ref 79 | L84: =IF(K84="","",IFERROR(VLOOKUP(K84,Codes!$C$2:$N$9845,12,FALSE),"Cette combinaison de matériau non certifié et de prime pour mise à disposition de pièces détachées n'est pas permise")) ->  | M84: =IFERROR(VLOOKUP('ABJ - saisie multiple'!$K84,Codes!$C:$J,8,FALSE),"") ->  | N84: =IF(E84="","",VLOOKUP(E84,'Param masqué'!$D$3:$E$4,2,FALSE)) ->  | O84: =IF(F84="","",VLOOKUP(F84,'Param masqué'!$J$3:$K$14,2,FALSE)) ->  | P84: =IF(H84="","",VLOOKUP(H84,'Param masqué'!$R$3:$T$82,3,FALSE)) ->  | Q84: =IF(I84="","",VLOOKUP(I84,'Param masqué'!$AD$1:$AE$16,2,FALSE)) ->  | W84: A | X84: A_ | Y84: A_ | AB84: =IFERROR(VLOOKUP($G84,'Param masqué'!$AT$2:$AU$13,2,FALSE),0) -> 0 | AD84: =VLOOKUP(Y84,'Param masqué'!AG:AJ,4,FALSE) ->  | AF84: =VLOOKUP(K84,Tableau2[[Code Ecomaison]:[Mesure]],7,FALSE) -> 
B85: Ref 80 | L85: =IF(K85="","",IFERROR(VLOOKUP(K85,Codes!$C$2:$N$9845,12,FALSE),"Cette combinaison de matériau non certifié et de prime pour mise à disposition de pièces détachées n'est pas permise")) ->  | M85: =IFERROR(VLOOKUP('ABJ - saisie multiple'!$K85,Codes!$C:$J,8,FALSE),"") ->  | N85: =IF(E85="","",VLOOKUP(E85,'Param masqué'!$D$3:$E$4,2,FALSE)) ->  | O85: =IF(F85="","",VLOOKUP(F85,'Param masqué'!$J$3:$K$14,2,FALSE)) ->  | P85: =IF(H85="","",VLOOKUP(H85,'Param masqué'!$R$3:$T$82,3,FALSE)) ->  | Q85: =IF(I85="","",VLOOKUP(I85,'Param masqué'!$AD$1:$AE$16,2,FALSE)) ->  | W85: A | X85: A_ | Y85: A_ | AB85: =IFERROR(VLOOKUP($G85,'Param masqué'!$AT$2:$AU$13,2,FALSE),0) -> 0 | AD85: =VLOOKUP(Y85,'Param masqué'!AG:AJ,4,FALSE) ->  | AF85: =VLOOKUP(K85,Tableau2[[Code Ecomaison]:[Mesure]],7,FALSE) -> 
B86: Ref 81 | L86: =IF(K86="","",IFERROR(VLOOKUP(K86,Codes!$C$2:$N$9845,12,FALSE),"Cette combinaison de matériau non certifié et de prime pour mise à disposition de pièces détachées n'est pas permise")) ->  | M86: =IFERROR(VLOOKUP('ABJ - saisie multiple'!$K86,Codes!$C:$J,8,FALSE),"") ->  | N86: =IF(E86="","",VLOOKUP(E86,'Param masqué'!$D$3:$E$4,2,FALSE)) ->  | O86: =IF(F86="","",VLOOKUP(F86,'Param masqué'!$J$3:$K$14,2,FALSE)) ->  | P86: =IF(H86="","",VLOOKUP(H86,'Param masqué'!$R$3:$T$82,3,FALSE)) ->  | Q86: =IF(I86="","",VLOOKUP(I86,'Param masqué'!$AD$1:$AE$16,2,FALSE)) ->  | W86: A | X86: A_ | Y86: A_ | AB86: =IFERROR(VLOOKUP($G86,'Param masqué'!$AT$2:$AU$13,2,FALSE),0) -> 0 | AD86: =VLOOKUP(Y86,'Param masqué'!AG:AJ,4,FALSE) ->  | AF86: =VLOOKUP(K86,Tableau2[[Code Ecomaison]:[Mesure]],7,FALSE) -> 
B87: Ref 82 | L87: =IF(K87="","",IFERROR(VLOOKUP(K87,Codes!$C$2:$N$9845,12,FALSE),"Cette combinaison de matériau non certifié et de prime pour mise à disposition de pièces détachées n'est pas permise")) ->  | M87: =IFERROR(VLOOKUP('ABJ - saisie multiple'!$K87,Codes!$C:$J,8,FALSE),"") ->  | N87: =IF(E87="","",VLOOKUP(E87,'Param masqué'!$D$3:$E$4,2,FALSE)) ->  | O87: =IF(F87="","",VLOOKUP(F87,'Param masqué'!$J$3:$K$14,2,FALSE)) ->  | P87: =IF(H87="","",VLOOKUP(H87,'Param masqué'!$R$3:$T$82,3,FALSE)) ->  | Q87: =IF(I87="","",VLOOKUP(I87,'Param masqué'!$AD$1:$AE$16,2,FALSE)) ->  | W87: A | X87: A_ | Y87: A_ | AB87: =IFERROR(VLOOKUP($G87,'Param masqué'!$AT$2:$AU$13,2,FALSE),0) -> 0 | AD87: =VLOOKUP(Y87,'Param masqué'!AG:AJ,4,FALSE) ->  | AF87: =VLOOKUP(K87,Tableau2[[Code Ecomaison]:[Mesure]],7,FALSE) -> 
B88: Ref 83 | L88: =IF(K88="","",IFERROR(VLOOKUP(K88,Codes!$C$2:$N$9845,12,FALSE),"Cette combinaison de matériau non certifié et de prime pour mise à disposition de pièces détachées n'est pas permise")) ->  | M88: =IFERROR(VLOOKUP('ABJ - saisie multiple'!$K88,Codes!$C:$J,8,FALSE),"") ->  | N88: =IF(E88="","",VLOOKUP(E88,'Param masqué'!$D$3:$E$4,2,FALSE)) ->  | O88: =IF(F88="","",VLOOKUP(F88,'Param masqué'!$J$3:$K$14,2,FALSE)) ->  | P88: =IF(H88="","",VLOOKUP(H88,'Param masqué'!$R$3:$T$82,3,FALSE)) ->  | Q88: =IF(I88="","",VLOOKUP(I88,'Param masqué'!$AD$1:$AE$16,2,FALSE)) ->  | W88: A | X88: A_ | Y88: A_ | AB88: =IFERROR(VLOOKUP($G88,'Param masqué'!$AT$2:$AU$13,2,FALSE),0) -> 0 | AD88: =VLOOKUP(Y88,'Param masqué'!AG:AJ,4,FALSE) ->  | AF88: =VLOOKUP(K88,Tableau2[[Code Ecomaison]:[Mesure]],7,FALSE) -> 
B89: Ref 84 | L89: =IF(K89="","",IFERROR(VLOOKUP(K89,Codes!$C$2:$N$9845,12,FALSE),"Cette combinaison de matériau non certifié et de prime pour mise à disposition de pièces détachées n'est pas permise")) ->  | M89: =IFERROR(VLOOKUP('ABJ - saisie multiple'!$K89,Codes!$C:$J,8,FALSE),"") ->  | N89: =IF(E89="","",VLOOKUP(E89,'Param masqué'!$D$3:$E$4,2,FALSE)) ->  | O89: =IF(F89="","",VLOOKUP(F89,'Param masqué'!$J$3:$K$14,2,FALSE)) ->  | P89: =IF(H89="","",VLOOKUP(H89,'Param masqué'!$R$3:$T$82,3,FALSE)) ->  | Q89: =IF(I89="","",VLOOKUP(I89,'Param masqué'!$AD$1:$AE$16,2,FALSE)) ->  | W89: A | X89: A_ | Y89: A_ | AB89: =IFERROR(VLOOKUP($G89,'Param masqué'!$AT$2:$AU$13,2,FALSE),0) -> 0 | AD89: =VLOOKUP(Y89,'Param masqué'!AG:AJ,4,FALSE) ->  | AF89: =VLOOKUP(K89,Tableau2[[Code Ecomaison]:[Mesure]],7,FALSE) -> 
B90: Ref 85 | L90: =IF(K90="","",IFERROR(VLOOKUP(K90,Codes!$C$2:$N$9845,12,FALSE),"Cette combinaison de matériau non certifié et de prime pour mise à disposition de pièces détachées n'est pas permise")) ->  | M90: =IFERROR(VLOOKUP('ABJ - saisie multiple'!$K90,Codes!$C:$J,8,FALSE),"") ->  | N90: =IF(E90="","",VLOOKUP(E90,'Param masqué'!$D$3:$E$4,2,FALSE)) ->  | O90: =IF(F90="","",VLOOKUP(F90,'Param masqué'!$J$3:$K$14,2,FALSE)) ->  | P90: =IF(H90="","",VLOOKUP(H90,'Param masqué'!$R$3:$T$82,3,FALSE)) ->  | Q90: =IF(I90="","",VLOOKUP(I90,'Param masqué'!$AD$1:$AE$16,2,FALSE)) ->  | W90: A | X90: A_ | Y90: A_ | AB90: =IFERROR(VLOOKUP($G90,'Param masqué'!$AT$2:$AU$13,2,FALSE),0) -> 0 | AD90: =VLOOKUP(Y90,'Param masqué'!AG:AJ,4,FALSE) ->  | AF90: =VLOOKUP(K90,Tableau2[[Code Ecomaison]:[Mesure]],7,FALSE) -> 
B91: Ref 86 | L91: =IF(K91="","",IFERROR(VLOOKUP(K91,Codes!$C$2:$N$9845,12,FALSE),"Cette combinaison de matériau non certifié et de prime pour mise à disposition de pièces détachées n'est pas permise")) ->  | M91: =IFERROR(VLOOKUP('ABJ - saisie multiple'!$K91,Codes!$C:$J,8,FALSE),"") ->  | N91: =IF(E91="","",VLOOKUP(E91,'Param masqué'!$D$3:$E$4,2,FALSE)) ->  | O91: =IF(F91="","",VLOOKUP(F91,'Param masqué'!$J$3:$K$14,2,FALSE)) ->  | P91: =IF(H91="","",VLOOKUP(H91,'Param masqué'!$R$3:$T$82,3,FALSE)) ->  | Q91: =IF(I91="","",VLOOKUP(I91,'Param masqué'!$AD$1:$AE$16,2,FALSE)) ->  | W91: A | X91: A_ | Y91: A_ | AB91: =IFERROR(VLOOKUP($G91,'Param masqué'!$AT$2:$AU$13,2,FALSE),0) -> 0 | AD91: =VLOOKUP(Y91,'Param masqué'!AG:AJ,4,FALSE) ->  | AF91: =VLOOKUP(K91,Tableau2[[Code Ecomaison]:[Mesure]],7,FALSE) -> 
B92: Ref 87 | L92: =IF(K92="","",IFERROR(VLOOKUP(K92,Codes!$C$2:$N$9845,12,FALSE),"Cette combinaison de matériau non certifié et de prime pour mise à disposition de pièces détachées n'est pas permise")) ->  | M92: =IFERROR(VLOOKUP('ABJ - saisie multiple'!$K92,Codes!$C:$J,8,FALSE),"") ->  | N92: =IF(E92="","",VLOOKUP(E92,'Param masqué'!$D$3:$E$4,2,FALSE)) ->  | O92: =IF(F92="","",VLOOKUP(F92,'Param masqué'!$J$3:$K$14,2,FALSE)) ->  | P92: =IF(H92="","",VLOOKUP(H92,'Param masqué'!$R$3:$T$82,3,FALSE)) ->  | Q92: =IF(I92="","",VLOOKUP(I92,'Param masqué'!$AD$1:$AE$16,2,FALSE)) ->  | W92: A | X92: A_ | Y92: A_ | AB92: =IFERROR(VLOOKUP($G92,'Param masqué'!$AT$2:$AU$13,2,FALSE),0) -> 0 | AD92: =VLOOKUP(Y92,'Param masqué'!AG:AJ,4,FALSE) ->  | AF92: =VLOOKUP(K92,Tableau2[[Code Ecomaison]:[Mesure]],7,FALSE) -> 
B93: Ref 88 | L93: =IF(K93="","",IFERROR(VLOOKUP(K93,Codes!$C$2:$N$9845,12,FALSE),"Cette combinaison de matériau non certifié et de prime pour mise à disposition de pièces détachées n'est pas permise")) ->  | M93: =IFERROR(VLOOKUP('ABJ - saisie multiple'!$K93,Codes!$C:$J,8,FALSE),"") ->  | N93: =IF(E93="","",VLOOKUP(E93,'Param masqué'!$D$3:$E$4,2,FALSE)) ->  | O93: =IF(F93="","",VLOOKUP(F93,'Param masqué'!$J$3:$K$14,2,FALSE)) ->  | P93: =IF(H93="","",VLOOKUP(H93,'Param masqué'!$R$3:$T$82,3,FALSE)) ->  | Q93: =IF(I93="","",VLOOKUP(I93,'Param masqué'!$AD$1:$AE$16,2,FALSE)) ->  | W93: A | X93: A_ | Y93: A_ | AB93: =IFERROR(VLOOKUP($G93,'Param masqué'!$AT$2:$AU$13,2,FALSE),0) -> 0 | AD93: =VLOOKUP(Y93,'Param masqué'!AG:AJ,4,FALSE) ->  | AF93: =VLOOKUP(K93,Tableau2[[Code Ecomaison]:[Mesure]],7,FALSE) -> 
B94: Ref 89 | L94: =IF(K94="","",IFERROR(VLOOKUP(K94,Codes!$C$2:$N$9845,12,FALSE),"Cette combinaison de matériau non certifié et de prime pour mise à disposition de pièces détachées n'est pas permise")) ->  | M94: =IFERROR(VLOOKUP('ABJ - saisie multiple'!$K94,Codes!$C:$J,8,FALSE),"") ->  | N94: =IF(E94="","",VLOOKUP(E94,'Param masqué'!$D$3:$E$4,2,FALSE)) ->  | O94: =IF(F94="","",VLOOKUP(F94,'Param masqué'!$J$3:$K$14,2,FALSE)) ->  | P94: =IF(H94="","",VLOOKUP(H94,'Param masqué'!$R$3:$T$82,3,FALSE)) ->  | Q94: =IF(I94="","",VLOOKUP(I94,'Param masqué'!$AD$1:$AE$16,2,FALSE)) ->  | W94: A | X94: A_ | Y94: A_ | AB94: =IFERROR(VLOOKUP($G94,'Param masqué'!$AT$2:$AU$13,2,FALSE),0) -> 0 | AD94: =VLOOKUP(Y94,'Param masqué'!AG:AJ,4,FALSE) ->  | AF94: =VLOOKUP(K94,Tableau2[[Code Ecomaison]:[Mesure]],7,FALSE) -> 
B95: Ref 90 | L95: =IF(K95="","",IFERROR(VLOOKUP(K95,Codes!$C$2:$N$9845,12,FALSE),"Cette combinaison de matériau non certifié et de prime pour mise à disposition de pièces détachées n'est pas permise")) ->  | M95: =IFERROR(VLOOKUP('ABJ - saisie multiple'!$K95,Codes!$C:$J,8,FALSE),"") ->  | N95: =IF(E95="","",VLOOKUP(E95,'Param masqué'!$D$3:$E$4,2,FALSE)) ->  | O95: =IF(F95="","",VLOOKUP(F95,'Param masqué'!$J$3:$K$14,2,FALSE)) ->  | P95: =IF(H95="","",VLOOKUP(H95,'Param masqué'!$R$3:$T$82,3,FALSE)) ->  | Q95: =IF(I95="","",VLOOKUP(I95,'Param masqué'!$AD$1:$AE$16,2,FALSE)) ->  | W95: A | X95: A_ | Y95: A_ | AB95: =IFERROR(VLOOKUP($G95,'Param masqué'!$AT$2:$AU$13,2,FALSE),0) -> 0 | AD95: =VLOOKUP(Y95,'Param masqué'!AG:AJ,4,FALSE) ->  | AF95: =VLOOKUP(K95,Tableau2[[Code Ecomaison]:[Mesure]],7,FALSE) -> 
B96: Ref 91 | L96: =IF(K96="","",IFERROR(VLOOKUP(K96,Codes!$C$2:$N$9845,12,FALSE),"Cette combinaison de matériau non certifié et de prime pour mise à disposition de pièces détachées n'est pas permise")) ->  | M96: =IFERROR(VLOOKUP('ABJ - saisie multiple'!$K96,Codes!$C:$J,8,FALSE),"") ->  | N96: =IF(E96="","",VLOOKUP(E96,'Param masqué'!$D$3:$E$4,2,FALSE)) ->  | O96: =IF(F96="","",VLOOKUP(F96,'Param masqué'!$J$3:$K$14,2,FALSE)) ->  | P96: =IF(H96="","",VLOOKUP(H96,'Param masqué'!$R$3:$T$82,3,FALSE)) ->  | Q96: =IF(I96="","",VLOOKUP(I96,'Param masqué'!$AD$1:$AE$16,2,FALSE)) ->  | W96: A | X96: A_ | Y96: A_ | AB96: =IFERROR(VLOOKUP($G96,'Param masqué'!$AT$2:$AU$13,2,FALSE),0) -> 0 | AD96: =VLOOKUP(Y96,'Param masqué'!AG:AJ,4,FALSE) ->  | AF96: =VLOOKUP(K96,Tableau2[[Code Ecomaison]:[Mesure]],7,FALSE) -> 
B97: Ref 92 | L97: =IF(K97="","",IFERROR(VLOOKUP(K97,Codes!$C$2:$N$9845,12,FALSE),"Cette combinaison de matériau non certifié et de prime pour mise à disposition de pièces détachées n'est pas permise")) ->  | M97: =IFERROR(VLOOKUP('ABJ - saisie multiple'!$K97,Codes!$C:$J,8,FALSE),"") ->  | N97: =IF(E97="","",VLOOKUP(E97,'Param masqué'!$D$3:$E$4,2,FALSE)) ->  | O97: =IF(F97="","",VLOOKUP(F97,'Param masqué'!$J$3:$K$14,2,FALSE)) ->  | P97: =IF(H97="","",VLOOKUP(H97,'Param masqué'!$R$3:$T$82,3,FALSE)) ->  | Q97: =IF(I97="","",VLOOKUP(I97,'Param masqué'!$AD$1:$AE$16,2,FALSE)) ->  | W97: A | X97: A_ | Y97: A_ | AB97: =IFERROR(VLOOKUP($G97,'Param masqué'!$AT$2:$AU$13,2,FALSE),0) -> 0 | AD97: =VLOOKUP(Y97,'Param masqué'!AG:AJ,4,FALSE) ->  | AF97: =VLOOKUP(K97,Tableau2[[Code Ecomaison]:[Mesure]],7,FALSE) -> 
B98: Ref 93 | L98: =IF(K98="","",IFERROR(VLOOKUP(K98,Codes!$C$2:$N$9845,12,FALSE),"Cette combinaison de matériau non certifié et de prime pour mise à disposition de pièces détachées n'est pas permise")) ->  | M98: =IFERROR(VLOOKUP('ABJ - saisie multiple'!$K98,Codes!$C:$J,8,FALSE),"") ->  | N98: =IF(E98="","",VLOOKUP(E98,'Param masqué'!$D$3:$E$4,2,FALSE)) ->  | O98: =IF(F98="","",VLOOKUP(F98,'Param masqué'!$J$3:$K$14,2,FALSE)) ->  | P98: =IF(H98="","",VLOOKUP(H98,'Param masqué'!$R$3:$T$82,3,FALSE)) ->  | Q98: =IF(I98="","",VLOOKUP(I98,'Param masqué'!$AD$1:$AE$16,2,FALSE)) ->  | W98: A | X98: A_ | Y98: A_ | AB98: =IFERROR(VLOOKUP($G98,'Param masqué'!$AT$2:$AU$13,2,FALSE),0) -> 0 | AD98: =VLOOKUP(Y98,'Param masqué'!AG:AJ,4,FALSE) ->  | AF98: =VLOOKUP(K98,Tableau2[[Code Ecomaison]:[Mesure]],7,FALSE) -> 
B99: Ref 94 | L99: =IF(K99="","",IFERROR(VLOOKUP(K99,Codes!$C$2:$N$9845,12,FALSE),"Cette combinaison de matériau non certifié et de prime pour mise à disposition de pièces détachées n'est pas permise")) ->  | M99: =IFERROR(VLOOKUP('ABJ - saisie multiple'!$K99,Codes!$C:$J,8,FALSE),"") ->  | N99: =IF(E99="","",VLOOKUP(E99,'Param masqué'!$D$3:$E$4,2,FALSE)) ->  | O99: =IF(F99="","",VLOOKUP(F99,'Param masqué'!$J$3:$K$14,2,FALSE)) ->  | P99: =IF(H99="","",VLOOKUP(H99,'Param masqué'!$R$3:$T$82,3,FALSE)) ->  | Q99: =IF(I99="","",VLOOKUP(I99,'Param masqué'!$AD$1:$AE$16,2,FALSE)) ->  | W99: A | X99: A_ | Y99: A_ | AB99: =IFERROR(VLOOKUP($G99,'Param masqué'!$AT$2:$AU$13,2,FALSE),0) -> 0 | AD99: =VLOOKUP(Y99,'Param masqué'!AG:AJ,4,FALSE) ->  | AF99: =VLOOKUP(K99,Tableau2[[Code Ecomaison]:[Mesure]],7,FALSE) -> 
B100: Ref 95 | L100: =IF(K100="","",IFERROR(VLOOKUP(K100,Codes!$C$2:$N$9845,12,FALSE),"Cette combinaison de matériau non certifié et de prime pour mise à disposition de pièces détachées n'est pas permise")) ->  | M100: =IFERROR(VLOOKUP('ABJ - saisie multiple'!$K100,Codes!$C:$J,8,FALSE),"") ->  | N100: =IF(E100="","",VLOOKUP(E100,'Param masqué'!$D$3:$E$4,2,FALSE)) ->  | O100: =IF(F100="","",VLOOKUP(F100,'Param masqué'!$J$3:$K$14,2,FALSE)) ->  | P100: =IF(H100="","",VLOOKUP(H100,'Param masqué'!$R$3:$T$82,3,FALSE)) ->  | Q100: =IF(I100="","",VLOOKUP(I100,'Param masqué'!$AD$1:$AE$16,2,FALSE)) ->  | W100: A | X100: A_ | Y100: A_ | AB100: =IFERROR(VLOOKUP($G100,'Param masqué'!$AT$2:$AU$13,2,FALSE),0) -> 0 | AD100: =VLOOKUP(Y100,'Param masqué'!AG:AJ,4,FALSE) ->  | AF100: =VLOOKUP(K100,Tableau2[[Code Ecomaison]:[Mesure]],7,FALSE) -> 
B101: Ref 96 | L101: =IF(K101="","",IFERROR(VLOOKUP(K101,Codes!$C$2:$N$9845,12,FALSE),"Cette combinaison de matériau non certifié et de prime pour mise à disposition de pièces détachées n'est pas permise")) ->  | M101: =IFERROR(VLOOKUP('ABJ - saisie multiple'!$K101,Codes!$C:$J,8,FALSE),"") ->  | N101: =IF(E101="","",VLOOKUP(E101,'Param masqué'!$D$3:$E$4,2,FALSE)) ->  | O101: =IF(F101="","",VLOOKUP(F101,'Param masqué'!$J$3:$K$14,2,FALSE)) ->  | P101: =IF(H101="","",VLOOKUP(H101,'Param masqué'!$R$3:$T$82,3,FALSE)) ->  | Q101: =IF(I101="","",VLOOKUP(I101,'Param masqué'!$AD$1:$AE$16,2,FALSE)) ->  | W101: A | X101: A_ | Y101: A_ | AB101: =IFERROR(VLOOKUP($G101,'Param masqué'!$AT$2:$AU$13,2,FALSE),0) -> 0 | AD101: =VLOOKUP(Y101,'Param masqué'!AG:AJ,4,FALSE) ->  | AF101: =VLOOKUP(K101,Tableau2[[Code Ecomaison]:[Mesure]],7,FALSE) -> 
B102: Ref 97 | L102: =IF(K102="","",IFERROR(VLOOKUP(K102,Codes!$C$2:$N$9845,12,FALSE),"Cette combinaison de matériau non certifié et de prime pour mise à disposition de pièces détachées n'est pas permise")) ->  | M102: =IFERROR(VLOOKUP('ABJ - saisie multiple'!$K102,Codes!$C:$J,8,FALSE),"") ->  | N102: =IF(E102="","",VLOOKUP(E102,'Param masqué'!$D$3:$E$4,2,FALSE)) ->  | O102: =IF(F102="","",VLOOKUP(F102,'Param masqué'!$J$3:$K$14,2,FALSE)) ->  | P102: =IF(H102="","",VLOOKUP(H102,'Param masqué'!$R$3:$T$82,3,FALSE)) ->  | Q102: =IF(I102="","",VLOOKUP(I102,'Param masqué'!$AD$1:$AE$16,2,FALSE)) ->  | W102: A | X102: A_ | Y102: A_ | AB102: =IFERROR(VLOOKUP($G102,'Param masqué'!$AT$2:$AU$13,2,FALSE),0) -> 0 | AD102: =VLOOKUP(Y102,'Param masqué'!AG:AJ,4,FALSE) ->  | AF102: =VLOOKUP(K102,Tableau2[[Code Ecomaison]:[Mesure]],7,FALSE) -> 
B103: Ref 98 | L103: =IF(K103="","",IFERROR(VLOOKUP(K103,Codes!$C$2:$N$9845,12,FALSE),"Cette combinaison de matériau non certifié et de prime pour mise à disposition de pièces détachées n'est pas permise")) ->  | M103: =IFERROR(VLOOKUP('ABJ - saisie multiple'!$K103,Codes!$C:$J,8,FALSE),"") ->  | N103: =IF(E103="","",VLOOKUP(E103,'Param masqué'!$D$3:$E$4,2,FALSE)) ->  | O103: =IF(F103="","",VLOOKUP(F103,'Param masqué'!$J$3:$K$14,2,FALSE)) ->  | P103: =IF(H103="","",VLOOKUP(H103,'Param masqué'!$R$3:$T$82,3,FALSE)) ->  | Q103: =IF(I103="","",VLOOKUP(I103,'Param masqué'!$AD$1:$AE$16,2,FALSE)) ->  | W103: A | X103: A_ | Y103: A_ | AB103: =IFERROR(VLOOKUP($G103,'Param masqué'!$AT$2:$AU$13,2,FALSE),0) -> 0 | AD103: =VLOOKUP(Y103,'Param masqué'!AG:AJ,4,FALSE) ->  | AF103: =VLOOKUP(K103,Tableau2[[Code Ecomaison]:[Mesure]],7,FALSE) -> 
B104: Ref 99 | L104: =IF(K104="","",IFERROR(VLOOKUP(K104,Codes!$C$2:$N$9845,12,FALSE),"Cette combinaison de matériau non certifié et de prime pour mise à disposition de pièces détachées n'est pas permise")) ->  | M104: =IFERROR(VLOOKUP('ABJ - saisie multiple'!$K104,Codes!$C:$J,8,FALSE),"") ->  | N104: =IF(E104="","",VLOOKUP(E104,'Param masqué'!$D$3:$E$4,2,FALSE)) ->  | O104: =IF(F104="","",VLOOKUP(F104,'Param masqué'!$J$3:$K$14,2,FALSE)) ->  | P104: =IF(H104="","",VLOOKUP(H104,'Param masqué'!$R$3:$T$82,3,FALSE)) ->  | Q104: =IF(I104="","",VLOOKUP(I104,'Param masqué'!$AD$1:$AE$16,2,FALSE)) ->  | W104: A | X104: A_ | Y104: A_ | AB104: =IFERROR(VLOOKUP($G104,'Param masqué'!$AT$2:$AU$13,2,FALSE),0) -> 0 | AD104: =VLOOKUP(Y104,'Param masqué'!AG:AJ,4,FALSE) ->  | AF104: =VLOOKUP(K104,Tableau2[[Code Ecomaison]:[Mesure]],7,FALSE) -> 
B105: Ref 100 | L105: =IF(K105="","",IFERROR(VLOOKUP(K105,Codes!$C$2:$N$9845,12,FALSE),"Cette combinaison de matériau non certifié et de prime pour mise à disposition de pièces détachées n'est pas permise")) ->  | M105: =IFERROR(VLOOKUP('ABJ - saisie multiple'!$K105,Codes!$C:$J,8,FALSE),"") ->  | N105: =IF(E105="","",VLOOKUP(E105,'Param masqué'!$D$3:$E$4,2,FALSE)) ->  | O105: =IF(F105="","",VLOOKUP(F105,'Param masqué'!$J$3:$K$14,2,FALSE)) ->  | P105: =IF(H105="","",VLOOKUP(H105,'Param masqué'!$R$3:$T$82,3,FALSE)) ->  | Q105: =IF(I105="","",VLOOKUP(I105,'Param masqué'!$AD$1:$AE$16,2,FALSE)) ->  | W105: A | X105: A_ | Y105: A_ | AB105: =IFERROR(VLOOKUP($G105,'Param masqué'!$AT$2:$AU$13,2,FALSE),0) -> 0 | AD105: =VLOOKUP(Y105,'Param masqué'!AG:AJ,4,FALSE) ->  | AF105: =VLOOKUP(K105,Tableau2[[Code Ecomaison]:[Mesure]],7,FALSE) -> 
B106: Ref 101 | L106: =IF(K106="","",IFERROR(VLOOKUP(K106,Codes!$C$2:$N$9845,12,FALSE),"Cette combinaison de matériau non certifié et de prime pour mise à disposition de pièces détachées n'est pas permise")) ->  | M106: =IFERROR(VLOOKUP('ABJ - saisie multiple'!$K106,Codes!$C:$J,8,FALSE),"") ->  | N106: =IF(E106="","",VLOOKUP(E106,'Param masqué'!$D$3:$E$4,2,FALSE)) ->  | O106: =IF(F106="","",VLOOKUP(F106,'Param masqué'!$J$3:$K$14,2,FALSE)) ->  | P106: =IF(H106="","",VLOOKUP(H106,'Param masqué'!$R$3:$T$82,3,FALSE)) ->  | Q106: =IF(I106="","",VLOOKUP(I106,'Param masqué'!$AD$1:$AE$16,2,FALSE)) ->  | W106: A | X106: A_ | Y106: A_ | AB106: =IFERROR(VLOOKUP($G106,'Param masqué'!$AT$2:$AU$13,2,FALSE),0) -> 0 | AD106: =VLOOKUP(Y106,'Param masqué'!AG:AJ,4,FALSE) ->  | AF106: =VLOOKUP(K106,Tableau2[[Code Ecomaison]:[Mesure]],7,FALSE) -> 
B107: Ref 102 | L107: =IF(K107="","",IFERROR(VLOOKUP(K107,Codes!$C$2:$N$9845,12,FALSE),"Cette combinaison de matériau non certifié et de prime pour mise à disposition de pièces détachées n'est pas permise")) ->  | M107: =IFERROR(VLOOKUP('ABJ - saisie multiple'!$K107,Codes!$C:$J,8,FALSE),"") ->  | N107: =IF(E107="","",VLOOKUP(E107,'Param masqué'!$D$3:$E$4,2,FALSE)) ->  | O107: =IF(F107="","",VLOOKUP(F107,'Param masqué'!$J$3:$K$14,2,FALSE)) ->  | P107: =IF(H107="","",VLOOKUP(H107,'Param masqué'!$R$3:$T$82,3,FALSE)) ->  | Q107: =IF(I107="","",VLOOKUP(I107,'Param masqué'!$AD$1:$AE$16,2,FALSE)) ->  | W107: A | X107: A_ | Y107: A_ | AB107: =IFERROR(VLOOKUP($G107,'Param masqué'!$AT$2:$AU$13,2,FALSE),0) -> 0 | AD107: =VLOOKUP(Y107,'Param masqué'!AG:AJ,4,FALSE) ->  | AF107: =VLOOKUP(K107,Tableau2[[Code Ecomaison]:[Mesure]],7,FALSE) -> 
B108: Ref 103 | L108: =IF(K108="","",IFERROR(VLOOKUP(K108,Codes!$C$2:$N$9845,12,FALSE),"Cette combinaison de matériau non certifié et de prime pour mise à disposition de pièces détachées n'est pas permise")) ->  | M108: =IFERROR(VLOOKUP('ABJ - saisie multiple'!$K108,Codes!$C:$J,8,FALSE),"") ->  | N108: =IF(E108="","",VLOOKUP(E108,'Param masqué'!$D$3:$E$4,2,FALSE)) ->  | O108: =IF(F108="","",VLOOKUP(F108,'Param masqué'!$J$3:$K$14,2,FALSE)) ->  | P108: =IF(H108="","",VLOOKUP(H108,'Param masqué'!$R$3:$T$82,3,FALSE)) ->  | Q108: =IF(I108="","",VLOOKUP(I108,'Param masqué'!$AD$1:$AE$16,2,FALSE)) ->  | W108: A | X108: A_ | Y108: A_ | AB108: =IFERROR(VLOOKUP($G108,'Param masqué'!$AT$2:$AU$13,2,FALSE),0) -> 0 | AD108: =VLOOKUP(Y108,'Param masqué'!AG:AJ,4,FALSE) ->  | AF108: =VLOOKUP(K108,Tableau2[[Code Ecomaison]:[Mesure]],7,FALSE) -> 
B109: Ref 104 | L109: =IF(K109="","",IFERROR(VLOOKUP(K109,Codes!$C$2:$N$9845,12,FALSE),"Cette combinaison de matériau non certifié et de prime pour mise à disposition de pièces détachées n'est pas permise")) ->  | M109: =IFERROR(VLOOKUP('ABJ - saisie multiple'!$K109,Codes!$C:$J,8,FALSE),"") ->  | N109: =IF(E109="","",VLOOKUP(E109,'Param masqué'!$D$3:$E$4,2,FALSE)) ->  | O109: =IF(F109="","",VLOOKUP(F109,'Param masqué'!$J$3:$K$14,2,FALSE)) ->  | P109: =IF(H109="","",VLOOKUP(H109,'Param masqué'!$R$3:$T$82,3,FALSE)) ->  | Q109: =IF(I109="","",VLOOKUP(I109,'Param masqué'!$AD$1:$AE$16,2,FALSE)) ->  | W109: A | X109: A_ | Y109: A_ | AB109: =IFERROR(VLOOKUP($G109,'Param masqué'!$AT$2:$AU$13,2,FALSE),0) -> 0 | AD109: =VLOOKUP(Y109,'Param masqué'!AG:AJ,4,FALSE) ->  | AF109: =VLOOKUP(K109,Tableau2[[Code Ecomaison]:[Mesure]],7,FALSE) -> 
B110: Ref 105 | L110: =IF(K110="","",IFERROR(VLOOKUP(K110,Codes!$C$2:$N$9845,12,FALSE),"Cette combinaison de matériau non certifié et de prime pour mise à disposition de pièces détachées n'est pas permise")) ->  | M110: =IFERROR(VLOOKUP('ABJ - saisie multiple'!$K110,Codes!$C:$J,8,FALSE),"") ->  | N110: =IF(E110="","",VLOOKUP(E110,'Param masqué'!$D$3:$E$4,2,FALSE)) ->  | O110: =IF(F110="","",VLOOKUP(F110,'Param masqué'!$J$3:$K$14,2,FALSE)) ->  | P110: =IF(H110="","",VLOOKUP(H110,'Param masqué'!$R$3:$T$82,3,FALSE)) ->  | Q110: =IF(I110="","",VLOOKUP(I110,'Param masqué'!$AD$1:$AE$16,2,FALSE)) ->  | W110: A | X110: A_ | Y110: A_ | AB110: =IFERROR(VLOOKUP($G110,'Param masqué'!$AT$2:$AU$13,2,FALSE),0) -> 0 | AD110: =VLOOKUP(Y110,'Param masqué'!AG:AJ,4,FALSE) ->  | AF110: =VLOOKUP(K110,Tableau2[[Code Ecomaison]:[Mesure]],7,FALSE) -> 
B111: Ref 106 | L111: =IF(K111="","",IFERROR(VLOOKUP(K111,Codes!$C$2:$N$9845,12,FALSE),"Cette combinaison de matériau non certifié et de prime pour mise à disposition de pièces détachées n'est pas permise")) ->  | M111: =IFERROR(VLOOKUP('ABJ - saisie multiple'!$K111,Codes!$C:$J,8,FALSE),"") ->  | N111: =IF(E111="","",VLOOKUP(E111,'Param masqué'!$D$3:$E$4,2,FALSE)) ->  | O111: =IF(F111="","",VLOOKUP(F111,'Param masqué'!$J$3:$K$14,2,FALSE)) ->  | P111: =IF(H111="","",VLOOKUP(H111,'Param masqué'!$R$3:$T$82,3,FALSE)) ->  | Q111: =IF(I111="","",VLOOKUP(I111,'Param masqué'!$AD$1:$AE$16,2,FALSE)) ->  | W111: A | X111: A_ | Y111: A_ | AB111: =IFERROR(VLOOKUP($G111,'Param masqué'!$AT$2:$AU$13,2,FALSE),0) -> 0 | AD111: =VLOOKUP(Y111,'Param masqué'!AG:AJ,4,FALSE) ->  | AF111: =VLOOKUP(K111,Tableau2[[Code Ecomaison]:[Mesure]],7,FALSE) -> 
B112: Ref 107 | L112: =IF(K112="","",IFERROR(VLOOKUP(K112,Codes!$C$2:$N$9845,12,FALSE),"Cette combinaison de matériau non certifié et de prime pour mise à disposition de pièces détachées n'est pas permise")) ->  | M112: =IFERROR(VLOOKUP('ABJ - saisie multiple'!$K112,Codes!$C:$J,8,FALSE),"") ->  | N112: =IF(E112="","",VLOOKUP(E112,'Param masqué'!$D$3:$E$4,2,FALSE)) ->  | O112: =IF(F112="","",VLOOKUP(F112,'Param masqué'!$J$3:$K$14,2,FALSE)) ->  | P112: =IF(H112="","",VLOOKUP(H112,'Param masqué'!$R$3:$T$82,3,FALSE)) ->  | Q112: =IF(I112="","",VLOOKUP(I112,'Param masqué'!$AD$1:$AE$16,2,FALSE)) ->  | W112: A | X112: A_ | Y112: A_ | AB112: =IFERROR(VLOOKUP($G112,'Param masqué'!$AT$2:$AU$13,2,FALSE),0) -> 0 | AD112: =VLOOKUP(Y112,'Param masqué'!AG:AJ,4,FALSE) ->  | AF112: =VLOOKUP(K112,Tableau2[[Code Ecomaison]:[Mesure]],7,FALSE) -> 
B113: Ref 108 | L113: =IF(K113="","",IFERROR(VLOOKUP(K113,Codes!$C$2:$N$9845,12,FALSE),"Cette combinaison de matériau non certifié et de prime pour mise à disposition de pièces détachées n'est pas permise")) ->  | M113: =IFERROR(VLOOKUP('ABJ - saisie multiple'!$K113,Codes!$C:$J,8,FALSE),"") ->  | N113: =IF(E113="","",VLOOKUP(E113,'Param masqué'!$D$3:$E$4,2,FALSE)) ->  | O113: =IF(F113="","",VLOOKUP(F113,'Param masqué'!$J$3:$K$14,2,FALSE)) ->  | P113: =IF(H113="","",VLOOKUP(H113,'Param masqué'!$R$3:$T$82,3,FALSE)) ->  | Q113: =IF(I113="","",VLOOKUP(I113,'Param masqué'!$AD$1:$AE$16,2,FALSE)) ->  | W113: A | X113: A_ | Y113: A_ | AB113: =IFERROR(VLOOKUP($G113,'Param masqué'!$AT$2:$AU$13,2,FALSE),0) -> 0 | AD113: =VLOOKUP(Y113,'Param masqué'!AG:AJ,4,FALSE) ->  | AF113: =VLOOKUP(K113,Tableau2[[Code Ecomaison]:[Mesure]],7,FALSE) -> 
B114: Ref 109 | L114: =IF(K114="","",IFERROR(VLOOKUP(K114,Codes!$C$2:$N$9845,12,FALSE),"Cette combinaison de matériau non certifié et de prime pour mise à disposition de pièces détachées n'est pas permise")) ->  | M114: =IFERROR(VLOOKUP('ABJ - saisie multiple'!$K114,Codes!$C:$J,8,FALSE),"") ->  | N114: =IF(E114="","",VLOOKUP(E114,'Param masqué'!$D$3:$E$4,2,FALSE)) ->  | O114: =IF(F114="","",VLOOKUP(F114,'Param masqué'!$J$3:$K$14,2,FALSE)) ->  | P114: =IF(H114="","",VLOOKUP(H114,'Param masqué'!$R$3:$T$82,3,FALSE)) ->  | Q114: =IF(I114="","",VLOOKUP(I114,'Param masqué'!$AD$1:$AE$16,2,FALSE)) ->  | W114: A | X114: A_ | Y114: A_ | AB114: =IFERROR(VLOOKUP($G114,'Param masqué'!$AT$2:$AU$13,2,FALSE),0) -> 0 | AD114: =VLOOKUP(Y114,'Param masqué'!AG:AJ,4,FALSE) ->  | AF114: =VLOOKUP(K114,Tableau2[[Code Ecomaison]:[Mesure]],7,FALSE) -> 
B115: Ref 110 | L115: =IF(K115="","",IFERROR(VLOOKUP(K115,Codes!$C$2:$N$9845,12,FALSE),"Cette combinaison de matériau non certifié et de prime pour mise à disposition de pièces détachées n'est pas permise")) ->  | M115: =IFERROR(VLOOKUP('ABJ - saisie multiple'!$K115,Codes!$C:$J,8,FALSE),"") ->  | N115: =IF(E115="","",VLOOKUP(E115,'Param masqué'!$D$3:$E$4,2,FALSE)) ->  | O115: =IF(F115="","",VLOOKUP(F115,'Param masqué'!$J$3:$K$14,2,FALSE)) ->  | P115: =IF(H115="","",VLOOKUP(H115,'Param masqué'!$R$3:$T$82,3,FALSE)) ->  | Q115: =IF(I115="","",VLOOKUP(I115,'Param masqué'!$AD$1:$AE$16,2,FALSE)) ->  | W115: A | X115: A_ | Y115: A_ | AB115: =IFERROR(VLOOKUP($G115,'Param masqué'!$AT$2:$AU$13,2,FALSE),0) -> 0 | AD115: =VLOOKUP(Y115,'Param masqué'!AG:AJ,4,FALSE) ->  | AF115: =VLOOKUP(K115,Tableau2[[Code Ecomaison]:[Mesure]],7,FALSE) -> 
B116: Ref 111 | L116: =IF(K116="","",IFERROR(VLOOKUP(K116,Codes!$C$2:$N$9845,12,FALSE),"Cette combinaison de matériau non certifié et de prime pour mise à disposition de pièces détachées n'est pas permise")) ->  | M116: =IFERROR(VLOOKUP('ABJ - saisie multiple'!$K116,Codes!$C:$J,8,FALSE),"") ->  | N116: =IF(E116="","",VLOOKUP(E116,'Param masqué'!$D$3:$E$4,2,FALSE)) ->  | O116: =IF(F116="","",VLOOKUP(F116,'Param masqué'!$J$3:$K$14,2,FALSE)) ->  | P116: =IF(H116="","",VLOOKUP(H116,'Param masqué'!$R$3:$T$82,3,FALSE)) ->  | Q116: =IF(I116="","",VLOOKUP(I116,'Param masqué'!$AD$1:$AE$16,2,FALSE)) ->  | W116: A | X116: A_ | Y116: A_ | AB116: =IFERROR(VLOOKUP($G116,'Param masqué'!$AT$2:$AU$13,2,FALSE),0) -> 0 | AD116: =VLOOKUP(Y116,'Param masqué'!AG:AJ,4,FALSE) ->  | AF116: =VLOOKUP(K116,Tableau2[[Code Ecomaison]:[Mesure]],7,FALSE) -> 
B117: Ref 112 | L117: =IF(K117="","",IFERROR(VLOOKUP(K117,Codes!$C$2:$N$9845,12,FALSE),"Cette combinaison de matériau non certifié et de prime pour mise à disposition de pièces détachées n'est pas permise")) ->  | M117: =IFERROR(VLOOKUP('ABJ - saisie multiple'!$K117,Codes!$C:$J,8,FALSE),"") ->  | N117: =IF(E117="","",VLOOKUP(E117,'Param masqué'!$D$3:$E$4,2,FALSE)) ->  | O117: =IF(F117="","",VLOOKUP(F117,'Param masqué'!$J$3:$K$14,2,FALSE)) ->  | P117: =IF(H117="","",VLOOKUP(H117,'Param masqué'!$R$3:$T$82,3,FALSE)) ->  | Q117: =IF(I117="","",VLOOKUP(I117,'Param masqué'!$AD$1:$AE$16,2,FALSE)) ->  | W117: A | X117: A_ | Y117: A_ | AB117: =IFERROR(VLOOKUP($G117,'Param masqué'!$AT$2:$AU$13,2,FALSE),0) -> 0 | AD117: =VLOOKUP(Y117,'Param masqué'!AG:AJ,4,FALSE) ->  | AF117: =VLOOKUP(K117,Tableau2[[Code Ecomaison]:[Mesure]],7,FALSE) -> 
B118: Ref 113 | L118: =IF(K118="","",IFERROR(VLOOKUP(K118,Codes!$C$2:$N$9845,12,FALSE),"Cette combinaison de matériau non certifié et de prime pour mise à disposition de pièces détachées n'est pas permise")) ->  | M118: =IFERROR(VLOOKUP('ABJ - saisie multiple'!$K118,Codes!$C:$J,8,FALSE),"") ->  | N118: =IF(E118="","",VLOOKUP(E118,'Param masqué'!$D$3:$E$4,2,FALSE)) ->  | O118: =IF(F118="","",VLOOKUP(F118,'Param masqué'!$J$3:$K$14,2,FALSE)) ->  | P118: =IF(H118="","",VLOOKUP(H118,'Param masqué'!$R$3:$T$82,3,FALSE)) ->  | Q118: =IF(I118="","",VLOOKUP(I118,'Param masqué'!$AD$1:$AE$16,2,FALSE)) ->  | W118: A | X118: A_ | Y118: A_ | AB118: =IFERROR(VLOOKUP($G118,'Param masqué'!$AT$2:$AU$13,2,FALSE),0) -> 0 | AD118: =VLOOKUP(Y118,'Param masqué'!AG:AJ,4,FALSE) ->  | AF118: =VLOOKUP(K118,Tableau2[[Code Ecomaison]:[Mesure]],7,FALSE) -> 
B119: Ref 114 | L119: =IF(K119="","",IFERROR(VLOOKUP(K119,Codes!$C$2:$N$9845,12,FALSE),"Cette combinaison de matériau non certifié et de prime pour mise à disposition de pièces détachées n'est pas permise")) ->  | M119: =IFERROR(VLOOKUP('ABJ - saisie multiple'!$K119,Codes!$C:$J,8,FALSE),"") ->  | N119: =IF(E119="","",VLOOKUP(E119,'Param masqué'!$D$3:$E$4,2,FALSE)) ->  | O119: =IF(F119="","",VLOOKUP(F119,'Param masqué'!$J$3:$K$14,2,FALSE)) ->  | P119: =IF(H119="","",VLOOKUP(H119,'Param masqué'!$R$3:$T$82,3,FALSE)) ->  | Q119: =IF(I119="","",VLOOKUP(I119,'Param masqué'!$AD$1:$AE$16,2,FALSE)) ->  | W119: A | X119: A_ | Y119: A_ | AB119: =IFERROR(VLOOKUP($G119,'Param masqué'!$AT$2:$AU$13,2,FALSE),0) -> 0 | AD119: =VLOOKUP(Y119,'Param masqué'!AG:AJ,4,FALSE) ->  | AF119: =VLOOKUP(K119,Tableau2[[Code Ecomaison]:[Mesure]],7,FALSE) -> 
B120: Ref 115 | L120: =IF(K120="","",IFERROR(VLOOKUP(K120,Codes!$C$2:$N$9845,12,FALSE),"Cette combinaison de matériau non certifié et de prime pour mise à disposition de pièces détachées n'est pas permise")) ->  | M120: =IFERROR(VLOOKUP('ABJ - saisie multiple'!$K120,Codes!$C:$J,8,FALSE),"") ->  | N120: =IF(E120="","",VLOOKUP(E120,'Param masqué'!$D$3:$E$4,2,FALSE)) ->  | O120: =IF(F120="","",VLOOKUP(F120,'Param masqué'!$J$3:$K$14,2,FALSE)) ->  | P120: =IF(H120="","",VLOOKUP(H120,'Param masqué'!$R$3:$T$82,3,FALSE)) ->  | Q120: =IF(I120="","",VLOOKUP(I120,'Param masqué'!$AD$1:$AE$16,2,FALSE)) ->  | W120: A | X120: A_ | Y120: A_ | AB120: =IFERROR(VLOOKUP($G120,'Param masqué'!$AT$2:$AU$13,2,FALSE),0) -> 0 | AD120: =VLOOKUP(Y120,'Param masqué'!AG:AJ,4,FALSE) ->  | AF120: =VLOOKUP(K120,Tableau2[[Code Ecomaison]:[Mesure]],7,FALSE) -> 
B121: Ref 116 | L121: =IF(K121="","",IFERROR(VLOOKUP(K121,Codes!$C$2:$N$9845,12,FALSE),"Cette combinaison de matériau non certifié et de prime pour mise à disposition de pièces détachées n'est pas permise")) ->  | M121: =IFERROR(VLOOKUP('ABJ - saisie multiple'!$K121,Codes!$C:$J,8,FALSE),"") ->  | N121: =IF(E121="","",VLOOKUP(E121,'Param masqué'!$D$3:$E$4,2,FALSE)) ->  | O121: =IF(F121="","",VLOOKUP(F121,'Param masqué'!$J$3:$K$14,2,FALSE)) ->  | P121: =IF(H121="","",VLOOKUP(H121,'Param masqué'!$R$3:$T$82,3,FALSE)) ->  | Q121: =IF(I121="","",VLOOKUP(I121,'Param masqué'!$AD$1:$AE$16,2,FALSE)) ->  | W121: A | X121: A_ | Y121: A_ | AB121: =IFERROR(VLOOKUP($G121,'Param masqué'!$AT$2:$AU$13,2,FALSE),0) -> 0 | AD121: =VLOOKUP(Y121,'Param masqué'!AG:AJ,4,FALSE) ->  | AF121: =VLOOKUP(K121,Tableau2[[Code Ecomaison]:[Mesure]],7,FALSE) -> 
B122: Ref 117 | L122: =IF(K122="","",IFERROR(VLOOKUP(K122,Codes!$C$2:$N$9845,12,FALSE),"Cette combinaison de matériau non certifié et de prime pour mise à disposition de pièces détachées n'est pas permise")) ->  | M122: =IFERROR(VLOOKUP('ABJ - saisie multiple'!$K122,Codes!$C:$J,8,FALSE),"") ->  | N122: =IF(E122="","",VLOOKUP(E122,'Param masqué'!$D$3:$E$4,2,FALSE)) ->  | O122: =IF(F122="","",VLOOKUP(F122,'Param masqué'!$J$3:$K$14,2,FALSE)) ->  | P122: =IF(H122="","",VLOOKUP(H122,'Param masqué'!$R$3:$T$82,3,FALSE)) ->  | Q122: =IF(I122="","",VLOOKUP(I122,'Param masqué'!$AD$1:$AE$16,2,FALSE)) ->  | W122: A | X122: A_ | Y122: A_ | AB122: =IFERROR(VLOOKUP($G122,'Param masqué'!$AT$2:$AU$13,2,FALSE),0) -> 0 | AD122: =VLOOKUP(Y122,'Param masqué'!AG:AJ,4,FALSE) ->  | AF122: =VLOOKUP(K122,Tableau2[[Code Ecomaison]:[Mesure]],7,FALSE) -> 
B123: Ref 118 | L123: =IF(K123="","",IFERROR(VLOOKUP(K123,Codes!$C$2:$N$9845,12,FALSE),"Cette combinaison de matériau non certifié et de prime pour mise à disposition de pièces détachées n'est pas permise")) ->  | M123: =IFERROR(VLOOKUP('ABJ - saisie multiple'!$K123,Codes!$C:$J,8,FALSE),"") ->  | N123: =IF(E123="","",VLOOKUP(E123,'Param masqué'!$D$3:$E$4,2,FALSE)) ->  | O123: =IF(F123="","",VLOOKUP(F123,'Param masqué'!$J$3:$K$14,2,FALSE)) ->  | P123: =IF(H123="","",VLOOKUP(H123,'Param masqué'!$R$3:$T$82,3,FALSE)) ->  | Q123: =IF(I123="","",VLOOKUP(I123,'Param masqué'!$AD$1:$AE$16,2,FALSE)) ->  | W123: A | X123: A_ | Y123: A_ | AB123: =IFERROR(VLOOKUP($G123,'Param masqué'!$AT$2:$AU$13,2,FALSE),0) -> 0 | AD123: =VLOOKUP(Y123,'Param masqué'!AG:AJ,4,FALSE) ->  | AF123: =VLOOKUP(K123,Tableau2[[Code Ecomaison]:[Mesure]],7,FALSE) -> 
B124: Ref 119 | L124: =IF(K124="","",IFERROR(VLOOKUP(K124,Codes!$C$2:$N$9845,12,FALSE),"Cette combinaison de matériau non certifié et de prime pour mise à disposition de pièces détachées n'est pas permise")) ->  | M124: =IFERROR(VLOOKUP('ABJ - saisie multiple'!$K124,Codes!$C:$J,8,FALSE),"") ->  | N124: =IF(E124="","",VLOOKUP(E124,'Param masqué'!$D$3:$E$4,2,FALSE)) ->  | O124: =IF(F124="","",VLOOKUP(F124,'Param masqué'!$J$3:$K$14,2,FALSE)) ->  | P124: =IF(H124="","",VLOOKUP(H124,'Param masqué'!$R$3:$T$82,3,FALSE)) ->  | Q124: =IF(I124="","",VLOOKUP(I124,'Param masqué'!$AD$1:$AE$16,2,FALSE)) ->  | W124: A | X124: A_ | Y124: A_ | AB124: =IFERROR(VLOOKUP($G124,'Param masqué'!$AT$2:$AU$13,2,FALSE),0) -> 0 | AD124: =VLOOKUP(Y124,'Param masqué'!AG:AJ,4,FALSE) ->  | AF124: =VLOOKUP(K124,Tableau2[[Code Ecomaison]:[Mesure]],7,FALSE) -> 
B125: Ref 120 | L125: =IF(K125="","",IFERROR(VLOOKUP(K125,Codes!$C$2:$N$9845,12,FALSE),"Cette combinaison de matériau non certifié et de prime pour mise à disposition de pièces détachées n'est pas permise")) ->  | M125: =IFERROR(VLOOKUP('ABJ - saisie multiple'!$K125,Codes!$C:$J,8,FALSE),"") ->  | N125: =IF(E125="","",VLOOKUP(E125,'Param masqué'!$D$3:$E$4,2,FALSE)) ->  | O125: =IF(F125="","",VLOOKUP(F125,'Param masqué'!$J$3:$K$14,2,FALSE)) ->  | P125: =IF(H125="","",VLOOKUP(H125,'Param masqué'!$R$3:$T$82,3,FALSE)) ->  | Q125: =IF(I125="","",VLOOKUP(I125,'Param masqué'!$AD$1:$AE$16,2,FALSE)) ->  | W125: A | X125: A_ | Y125: A_ | AB125: =IFERROR(VLOOKUP($G125,'Param masqué'!$AT$2:$AU$13,2,FALSE),0) -> 0 | AD125: =VLOOKUP(Y125,'Param masqué'!AG:AJ,4,FALSE) ->  | AF125: =VLOOKUP(K125,Tableau2[[Code Ecomaison]:[Mesure]],7,FALSE) -> 
B126: Ref 121 | L126: =IF(K126="","",IFERROR(VLOOKUP(K126,Codes!$C$2:$N$9845,12,FALSE),"Cette combinaison de matériau non certifié et de prime pour mise à disposition de pièces détachées n'est pas permise")) ->  | M126: =IFERROR(VLOOKUP('ABJ - saisie multiple'!$K126,Codes!$C:$J,8,FALSE),"") ->  | N126: =IF(E126="","",VLOOKUP(E126,'Param masqué'!$D$3:$E$4,2,FALSE)) ->  | O126: =IF(F126="","",VLOOKUP(F126,'Param masqué'!$J$3:$K$14,2,FALSE)) ->  | P126: =IF(H126="","",VLOOKUP(H126,'Param masqué'!$R$3:$T$82,3,FALSE)) ->  | Q126: =IF(I126="","",VLOOKUP(I126,'Param masqué'!$AD$1:$AE$16,2,FALSE)) ->  | W126: A | X126: A_ | Y126: A_ | AB126: =IFERROR(VLOOKUP($G126,'Param masqué'!$AT$2:$AU$13,2,FALSE),0) -> 0 | AD126: =VLOOKUP(Y126,'Param masqué'!AG:AJ,4,FALSE) ->  | AF126: =VLOOKUP(K126,Tableau2[[Code Ecomaison]:[Mesure]],7,FALSE) -> 
B127: Ref 122 | L127: =IF(K127="","",IFERROR(VLOOKUP(K127,Codes!$C$2:$N$9845,12,FALSE),"Cette combinaison de matériau non certifié et de prime pour mise à disposition de pièces détachées n'est pas permise")) ->  | M127: =IFERROR(VLOOKUP('ABJ - saisie multiple'!$K127,Codes!$C:$J,8,FALSE),"") ->  | N127: =IF(E127="","",VLOOKUP(E127,'Param masqué'!$D$3:$E$4,2,FALSE)) ->  | O127: =IF(F127="","",VLOOKUP(F127,'Param masqué'!$J$3:$K$14,2,FALSE)) ->  | P127: =IF(H127="","",VLOOKUP(H127,'Param masqué'!$R$3:$T$82,3,FALSE)) ->  | Q127: =IF(I127="","",VLOOKUP(I127,'Param masqué'!$AD$1:$AE$16,2,FALSE)) ->  | W127: A | X127: A_ | Y127: A_ | AB127: =IFERROR(VLOOKUP($G127,'Param masqué'!$AT$2:$AU$13,2,FALSE),0) -> 0 | AD127: =VLOOKUP(Y127,'Param masqué'!AG:AJ,4,FALSE) ->  | AF127: =VLOOKUP(K127,Tableau2[[Code Ecomaison]:[Mesure]],7,FALSE) -> 
B128: Ref 123 | L128: =IF(K128="","",IFERROR(VLOOKUP(K128,Codes!$C$2:$N$9845,12,FALSE),"Cette combinaison de matériau non certifié et de prime pour mise à disposition de pièces détachées n'est pas permise")) ->  | M128: =IFERROR(VLOOKUP('ABJ - saisie multiple'!$K128,Codes!$C:$J,8,FALSE),"") ->  | N128: =IF(E128="","",VLOOKUP(E128,'Param masqué'!$D$3:$E$4,2,FALSE)) ->  | O128: =IF(F128="","",VLOOKUP(F128,'Param masqué'!$J$3:$K$14,2,FALSE)) ->  | P128: =IF(H128="","",VLOOKUP(H128,'Param masqué'!$R$3:$T$82,3,FALSE)) ->  | Q128: =IF(I128="","",VLOOKUP(I128,'Param masqué'!$AD$1:$AE$16,2,FALSE)) ->  | W128: A | X128: A_ | Y128: A_ | AB128: =IFERROR(VLOOKUP($G128,'Param masqué'!$AT$2:$AU$13,2,FALSE),0) -> 0 | AD128: =VLOOKUP(Y128,'Param masqué'!AG:AJ,4,FALSE) ->  | AF128: =VLOOKUP(K128,Tableau2[[Code Ecomaison]:[Mesure]],7,FALSE) -> 
B129: Ref 124 | L129: =IF(K129="","",IFERROR(VLOOKUP(K129,Codes!$C$2:$N$9845,12,FALSE),"Cette combinaison de matériau non certifié et de prime pour mise à disposition de pièces détachées n'est pas permise")) ->  | M129: =IFERROR(VLOOKUP('ABJ - saisie multiple'!$K129,Codes!$C:$J,8,FALSE),"") ->  | N129: =IF(E129="","",VLOOKUP(E129,'Param masqué'!$D$3:$E$4,2,FALSE)) ->  | O129: =IF(F129="","",VLOOKUP(F129,'Param masqué'!$J$3:$K$14,2,FALSE)) ->  | P129: =IF(H129="","",VLOOKUP(H129,'Param masqué'!$R$3:$T$82,3,FALSE)) ->  | Q129: =IF(I129="","",VLOOKUP(I129,'Param masqué'!$AD$1:$AE$16,2,FALSE)) ->  | W129: A | X129: A_ | Y129: A_ | AB129: =IFERROR(VLOOKUP($G129,'Param masqué'!$AT$2:$AU$13,2,FALSE),0) -> 0 | AD129: =VLOOKUP(Y129,'Param masqué'!AG:AJ,4,FALSE) ->  | AF129: =VLOOKUP(K129,Tableau2[[Code Ecomaison]:[Mesure]],7,FALSE) -> 
B130: Ref 125 | L130: =IF(K130="","",IFERROR(VLOOKUP(K130,Codes!$C$2:$N$9845,12,FALSE),"Cette combinaison de matériau non certifié et de prime pour mise à disposition de pièces détachées n'est pas permise")) ->  | M130: =IFERROR(VLOOKUP('ABJ - saisie multiple'!$K130,Codes!$C:$J,8,FALSE),"") ->  | N130: =IF(E130="","",VLOOKUP(E130,'Param masqué'!$D$3:$E$4,2,FALSE)) ->  | O130: =IF(F130="","",VLOOKUP(F130,'Param masqué'!$J$3:$K$14,2,FALSE)) ->  | P130: =IF(H130="","",VLOOKUP(H130,'Param masqué'!$R$3:$T$82,3,FALSE)) ->  | Q130: =IF(I130="","",VLOOKUP(I130,'Param masqué'!$AD$1:$AE$16,2,FALSE)) ->  | W130: A | X130: A_ | Y130: A_ | AB130: =IFERROR(VLOOKUP($G130,'Param masqué'!$AT$2:$AU$13,2,FALSE),0) -> 0 | AD130: =VLOOKUP(Y130,'Param masqué'!AG:AJ,4,FALSE) ->  | AF130: =VLOOKUP(K130,Tableau2[[Code Ecomaison]:[Mesure]],7,FALSE) -> 
B131: Ref 126 | L131: =IF(K131="","",IFERROR(VLOOKUP(K131,Codes!$C$2:$N$9845,12,FALSE),"Cette combinaison de matériau non certifié et de prime pour mise à disposition de pièces détachées n'est pas permise")) ->  | M131: =IFERROR(VLOOKUP('ABJ - saisie multiple'!$K131,Codes!$C:$J,8,FALSE),"") ->  | N131: =IF(E131="","",VLOOKUP(E131,'Param masqué'!$D$3:$E$4,2,FALSE)) ->  | O131: =IF(F131="","",VLOOKUP(F131,'Param masqué'!$J$3:$K$14,2,FALSE)) ->  | P131: =IF(H131="","",VLOOKUP(H131,'Param masqué'!$R$3:$T$82,3,FALSE)) ->  | Q131: =IF(I131="","",VLOOKUP(I131,'Param masqué'!$AD$1:$AE$16,2,FALSE)) ->  | W131: A | X131: A_ | Y131: A_ | AB131: =IFERROR(VLOOKUP($G131,'Param masqué'!$AT$2:$AU$13,2,FALSE),0) -> 0 | AD131: =VLOOKUP(Y131,'Param masqué'!AG:AJ,4,FALSE) ->  | AF131: =VLOOKUP(K131,Tableau2[[Code Ecomaison]:[Mesure]],7,FALSE) -> 
B132: Ref 127 | L132: =IF(K132="","",IFERROR(VLOOKUP(K132,Codes!$C$2:$N$9845,12,FALSE),"Cette combinaison de matériau non certifié et de prime pour mise à disposition de pièces détachées n'est pas permise")) ->  | M132: =IFERROR(VLOOKUP('ABJ - saisie multiple'!$K132,Codes!$C:$J,8,FALSE),"") ->  | N132: =IF(E132="","",VLOOKUP(E132,'Param masqué'!$D$3:$E$4,2,FALSE)) ->  | O132: =IF(F132="","",VLOOKUP(F132,'Param masqué'!$J$3:$K$14,2,FALSE)) ->  | P132: =IF(H132="","",VLOOKUP(H132,'Param masqué'!$R$3:$T$82,3,FALSE)) ->  | Q132: =IF(I132="","",VLOOKUP(I132,'Param masqué'!$AD$1:$AE$16,2,FALSE)) ->  | W132: A | X132: A_ | Y132: A_ | AB132: =IFERROR(VLOOKUP($G132,'Param masqué'!$AT$2:$AU$13,2,FALSE),0) -> 0 | AD132: =VLOOKUP(Y132,'Param masqué'!AG:AJ,4,FALSE) ->  | AF132: =VLOOKUP(K132,Tableau2[[Code Ecomaison]:[Mesure]],7,FALSE) -> 
B133: Ref 128 | L133: =IF(K133="","",IFERROR(VLOOKUP(K133,Codes!$C$2:$N$9845,12,FALSE),"Cette combinaison de matériau non certifié et de prime pour mise à disposition de pièces détachées n'est pas permise")) ->  | M133: =IFERROR(VLOOKUP('ABJ - saisie multiple'!$K133,Codes!$C:$J,8,FALSE),"") ->  | N133: =IF(E133="","",VLOOKUP(E133,'Param masqué'!$D$3:$E$4,2,FALSE)) ->  | O133: =IF(F133="","",VLOOKUP(F133,'Param masqué'!$J$3:$K$14,2,FALSE)) ->  | P133: =IF(H133="","",VLOOKUP(H133,'Param masqué'!$R$3:$T$82,3,FALSE)) ->  | Q133: =IF(I133="","",VLOOKUP(I133,'Param masqué'!$AD$1:$AE$16,2,FALSE)) ->  | W133: A | X133: A_ | Y133: A_ | AB133: =IFERROR(VLOOKUP($G133,'Param masqué'!$AT$2:$AU$13,2,FALSE),0) -> 0 | AD133: =VLOOKUP(Y133,'Param masqué'!AG:AJ,4,FALSE) ->  | AF133: =VLOOKUP(K133,Tableau2[[Code Ecomaison]:[Mesure]],7,FALSE) -> 
B134: Ref 129 | L134: =IF(K134="","",IFERROR(VLOOKUP(K134,Codes!$C$2:$N$9845,12,FALSE),"Cette combinaison de matériau non certifié et de prime pour mise à disposition de pièces détachées n'est pas permise")) ->  | M134: =IFERROR(VLOOKUP('ABJ - saisie multiple'!$K134,Codes!$C:$J,8,FALSE),"") ->  | N134: =IF(E134="","",VLOOKUP(E134,'Param masqué'!$D$3:$E$4,2,FALSE)) ->  | O134: =IF(F134="","",VLOOKUP(F134,'Param masqué'!$J$3:$K$14,2,FALSE)) ->  | P134: =IF(H134="","",VLOOKUP(H134,'Param masqué'!$R$3:$T$82,3,FALSE)) ->  | Q134: =IF(I134="","",VLOOKUP(I134,'Param masqué'!$AD$1:$AE$16,2,FALSE)) ->  | W134: A | X134: A_ | Y134: A_ | AB134: =IFERROR(VLOOKUP($G134,'Param masqué'!$AT$2:$AU$13,2,FALSE),0) -> 0 | AD134: =VLOOKUP(Y134,'Param masqué'!AG:AJ,4,FALSE) ->  | AF134: =VLOOKUP(K134,Tableau2[[Code Ecomaison]:[Mesure]],7,FALSE) -> 
B135: Ref 130 | K135: =IF(OR(I135="",H135="",F135="",E135=""),"",CONCATENATE(N135,O135,P135,Q135,IF(J135="Oui",1,0))) ->  | L135: =IF(K135="","",IFERROR(VLOOKUP(K135,Codes!$C$2:$N$9845,12,FALSE),"Cette combinaison de matériau non certifié et de prime pour mise à disposition de pièces détachées n'est pas permise")) ->  | M135: =IFERROR(VLOOKUP('ABJ - saisie multiple'!$K135,Codes!$C:$J,8,FALSE),"") ->  | N135: =IF(E135="","",VLOOKUP(E135,'Param masqué'!$D$3:$E$4,2,FALSE)) ->  | O135: =IF(F135="","",VLOOKUP(F135,'Param masqué'!$J$3:$K$14,2,FALSE)) ->  | P135: =IF(H135="","",VLOOKUP(H135,'Param masqué'!$R$3:$T$82,3,FALSE)) ->  | Q135: =IF(I135="","",VLOOKUP(I135,'Param masqué'!$AD$1:$AE$16,2,FALSE)) ->  | R135: =IFERROR(IF(AF135="€/unité",M135,D135*M135/1000),"") ->  | W135: A | X135: =W135&"_"&N135 -> A_ | Y135: =W135&"_"&O135 -> A_ | AB135: =IFERROR(VLOOKUP($G135,'Param masqué'!$AT$2:$AU$13,2,FALSE),0) -> 0 | AD135: =VLOOKUP(Y135,'Param masqué'!AG:AJ,4,FALSE) ->  | AF135: =VLOOKUP(K135,Tableau2[[Code Ecomaison]:[Mesure]],7,FALSE) -> 
B136: Ref 131 | L136: =IF(K136="","",IFERROR(VLOOKUP(K136,Codes!$C$2:$N$9845,12,FALSE),"Cette combinaison de matériau non certifié et de prime pour mise à disposition de pièces détachées n'est pas permise")) ->  | M136: =IFERROR(VLOOKUP('ABJ - saisie multiple'!$K136,Codes!$C:$J,8,FALSE),"") ->  | N136: =IF(E136="","",VLOOKUP(E136,'Param masqué'!$D$3:$E$4,2,FALSE)) ->  | O136: =IF(F136="","",VLOOKUP(F136,'Param masqué'!$J$3:$K$14,2,FALSE)) ->  | P136: =IF(H136="","",VLOOKUP(H136,'Param masqué'!$R$3:$T$82,3,FALSE)) ->  | Q136: =IF(I136="","",VLOOKUP(I136,'Param masqué'!$AD$1:$AE$16,2,FALSE)) ->  | W136: A | X136: A_ | Y136: A_ | AB136: =IFERROR(VLOOKUP($G136,'Param masqué'!$AT$2:$AU$13,2,FALSE),0) -> 0 | AD136: =VLOOKUP(Y136,'Param masqué'!AG:AJ,4,FALSE) ->  | AF136: =VLOOKUP(K136,Tableau2[[Code Ecomaison]:[Mesure]],7,FALSE) -> 
B137: Ref 132 | L137: =IF(K137="","",IFERROR(VLOOKUP(K137,Codes!$C$2:$N$9845,12,FALSE),"Cette combinaison de matériau non certifié et de prime pour mise à disposition de pièces détachées n'est pas permise")) ->  | M137: =IFERROR(VLOOKUP('ABJ - saisie multiple'!$K137,Codes!$C:$J,8,FALSE),"") ->  | N137: =IF(E137="","",VLOOKUP(E137,'Param masqué'!$D$3:$E$4,2,FALSE)) ->  | O137: =IF(F137="","",VLOOKUP(F137,'Param masqué'!$J$3:$K$14,2,FALSE)) ->  | P137: =IF(H137="","",VLOOKUP(H137,'Param masqué'!$R$3:$T$82,3,FALSE)) ->  | Q137: =IF(I137="","",VLOOKUP(I137,'Param masqué'!$AD$1:$AE$16,2,FALSE)) ->  | W137: A | X137: A_ | Y137: A_ | AB137: =IFERROR(VLOOKUP($G137,'Param masqué'!$AT$2:$AU$13,2,FALSE),0) -> 0 | AD137: =VLOOKUP(Y137,'Param masqué'!AG:AJ,4,FALSE) ->  | AF137: =VLOOKUP(K137,Tableau2[[Code Ecomaison]:[Mesure]],7,FALSE) -> 
B138: Ref 133 | L138: =IF(K138="","",IFERROR(VLOOKUP(K138,Codes!$C$2:$N$9845,12,FALSE),"Cette combinaison de matériau non certifié et de prime pour mise à disposition de pièces détachées n'est pas permise")) ->  | M138: =IFERROR(VLOOKUP('ABJ - saisie multiple'!$K138,Codes!$C:$J,8,FALSE),"") ->  | N138: =IF(E138="","",VLOOKUP(E138,'Param masqué'!$D$3:$E$4,2,FALSE)) ->  | O138: =IF(F138="","",VLOOKUP(F138,'Param masqué'!$J$3:$K$14,2,FALSE)) ->  | P138: =IF(H138="","",VLOOKUP(H138,'Param masqué'!$R$3:$T$82,3,FALSE)) ->  | Q138: =IF(I138="","",VLOOKUP(I138,'Param masqué'!$AD$1:$AE$16,2,FALSE)) ->  | W138: A | X138: A_ | Y138: A_ | AB138: =IFERROR(VLOOKUP($G138,'Param masqué'!$AT$2:$AU$13,2,FALSE),0) -> 0 | AD138: =VLOOKUP(Y138,'Param masqué'!AG:AJ,4,FALSE) ->  | AF138: =VLOOKUP(K138,Tableau2[[Code Ecomaison]:[Mesure]],7,FALSE) -> 
B139: Ref 134 | L139: =IF(K139="","",IFERROR(VLOOKUP(K139,Codes!$C$2:$N$9845,12,FALSE),"Cette combinaison de matériau non certifié et de prime pour mise à disposition de pièces détachées n'est pas permise")) ->  | M139: =IFERROR(VLOOKUP('ABJ - saisie multiple'!$K139,Codes!$C:$J,8,FALSE),"") ->  | N139: =IF(E139="","",VLOOKUP(E139,'Param masqué'!$D$3:$E$4,2,FALSE)) ->  | O139: =IF(F139="","",VLOOKUP(F139,'Param masqué'!$J$3:$K$14,2,FALSE)) ->  | P139: =IF(H139="","",VLOOKUP(H139,'Param masqué'!$R$3:$T$82,3,FALSE)) ->  | Q139: =IF(I139="","",VLOOKUP(I139,'Param masqué'!$AD$1:$AE$16,2,FALSE)) ->  | W139: A | X139: A_ | Y139: A_ | AB139: =IFERROR(VLOOKUP($G139,'Param masqué'!$AT$2:$AU$13,2,FALSE),0) -> 0 | AD139: =VLOOKUP(Y139,'Param masqué'!AG:AJ,4,FALSE) ->  | AF139: =VLOOKUP(K139,Tableau2[[Code Ecomaison]:[Mesure]],7,FALSE) -> 
B140: Ref 135 | L140: =IF(K140="","",IFERROR(VLOOKUP(K140,Codes!$C$2:$N$9845,12,FALSE),"Cette combinaison de matériau non certifié et de prime pour mise à disposition de pièces détachées n'est pas permise")) ->  | M140: =IFERROR(VLOOKUP('ABJ - saisie multiple'!$K140,Codes!$C:$J,8,FALSE),"") ->  | N140: =IF(E140="","",VLOOKUP(E140,'Param masqué'!$D$3:$E$4,2,FALSE)) ->  | O140: =IF(F140="","",VLOOKUP(F140,'Param masqué'!$J$3:$K$14,2,FALSE)) ->  | P140: =IF(H140="","",VLOOKUP(H140,'Param masqué'!$R$3:$T$82,3,FALSE)) ->  | Q140: =IF(I140="","",VLOOKUP(I140,'Param masqué'!$AD$1:$AE$16,2,FALSE)) ->  | W140: A | X140: A_ | Y140: A_ | AB140: =IFERROR(VLOOKUP($G140,'Param masqué'!$AT$2:$AU$13,2,FALSE),0) -> 0 | AD140: =VLOOKUP(Y140,'Param masqué'!AG:AJ,4,FALSE) ->  | AF140: =VLOOKUP(K140,Tableau2[[Code Ecomaison]:[Mesure]],7,FALSE) -> 
B141: Ref 136 | L141: =IF(K141="","",IFERROR(VLOOKUP(K141,Codes!$C$2:$N$9845,12,FALSE),"Cette combinaison de matériau non certifié et de prime pour mise à disposition de pièces détachées n'est pas permise")) ->  | M141: =IFERROR(VLOOKUP('ABJ - saisie multiple'!$K141,Codes!$C:$J,8,FALSE),"") ->  | N141: =IF(E141="","",VLOOKUP(E141,'Param masqué'!$D$3:$E$4,2,FALSE)) ->  | O141: =IF(F141="","",VLOOKUP(F141,'Param masqué'!$J$3:$K$14,2,FALSE)) ->  | P141: =IF(H141="","",VLOOKUP(H141,'Param masqué'!$R$3:$T$82,3,FALSE)) ->  | Q141: =IF(I141="","",VLOOKUP(I141,'Param masqué'!$AD$1:$AE$16,2,FALSE)) ->  | W141: A | X141: A_ | Y141: A_ | AB141: =IFERROR(VLOOKUP($G141,'Param masqué'!$AT$2:$AU$13,2,FALSE),0) -> 0 | AD141: =VLOOKUP(Y141,'Param masqué'!AG:AJ,4,FALSE) ->  | AF141: =VLOOKUP(K141,Tableau2[[Code Ecomaison]:[Mesure]],7,FALSE) -> 
B142: Ref 137 | L142: =IF(K142="","",IFERROR(VLOOKUP(K142,Codes!$C$2:$N$9845,12,FALSE),"Cette combinaison de matériau non certifié et de prime pour mise à disposition de pièces détachées n'est pas permise")) ->  | M142: =IFERROR(VLOOKUP('ABJ - saisie multiple'!$K142,Codes!$C:$J,8,FALSE),"") ->  | N142: =IF(E142="","",VLOOKUP(E142,'Param masqué'!$D$3:$E$4,2,FALSE)) ->  | O142: =IF(F142="","",VLOOKUP(F142,'Param masqué'!$J$3:$K$14,2,FALSE)) ->  | P142: =IF(H142="","",VLOOKUP(H142,'Param masqué'!$R$3:$T$82,3,FALSE)) ->  | Q142: =IF(I142="","",VLOOKUP(I142,'Param masqué'!$AD$1:$AE$16,2,FALSE)) ->  | W142: A | X142: A_ | Y142: A_ | AB142: =IFERROR(VLOOKUP($G142,'Param masqué'!$AT$2:$AU$13,2,FALSE),0) -> 0 | AD142: =VLOOKUP(Y142,'Param masqué'!AG:AJ,4,FALSE) ->  | AF142: =VLOOKUP(K142,Tableau2[[Code Ecomaison]:[Mesure]],7,FALSE) -> 
B143: Ref 138 | L143: =IF(K143="","",IFERROR(VLOOKUP(K143,Codes!$C$2:$N$9845,12,FALSE),"Cette combinaison de matériau non certifié et de prime pour mise à disposition de pièces détachées n'est pas permise")) ->  | M143: =IFERROR(VLOOKUP('ABJ - saisie multiple'!$K143,Codes!$C:$J,8,FALSE),"") ->  | N143: =IF(E143="","",VLOOKUP(E143,'Param masqué'!$D$3:$E$4,2,FALSE)) ->  | O143: =IF(F143="","",VLOOKUP(F143,'Param masqué'!$J$3:$K$14,2,FALSE)) ->  | P143: =IF(H143="","",VLOOKUP(H143,'Param masqué'!$R$3:$T$82,3,FALSE)) ->  | Q143: =IF(I143="","",VLOOKUP(I143,'Param masqué'!$AD$1:$AE$16,2,FALSE)) ->  | W143: A | X143: A_ | Y143: A_ | AB143: =IFERROR(VLOOKUP($G143,'Param masqué'!$AT$2:$AU$13,2,FALSE),0) -> 0 | AD143: =VLOOKUP(Y143,'Param masqué'!AG:AJ,4,FALSE) ->  | AF143: =VLOOKUP(K143,Tableau2[[Code Ecomaison]:[Mesure]],7,FALSE) -> 
B144: Ref 139 | L144: =IF(K144="","",IFERROR(VLOOKUP(K144,Codes!$C$2:$N$9845,12,FALSE),"Cette combinaison de matériau non certifié et de prime pour mise à disposition de pièces détachées n'est pas permise")) ->  | M144: =IFERROR(VLOOKUP('ABJ - saisie multiple'!$K144,Codes!$C:$J,8,FALSE),"") ->  | N144: =IF(E144="","",VLOOKUP(E144,'Param masqué'!$D$3:$E$4,2,FALSE)) ->  | O144: =IF(F144="","",VLOOKUP(F144,'Param masqué'!$J$3:$K$14,2,FALSE)) ->  | P144: =IF(H144="","",VLOOKUP(H144,'Param masqué'!$R$3:$T$82,3,FALSE)) ->  | Q144: =IF(I144="","",VLOOKUP(I144,'Param masqué'!$AD$1:$AE$16,2,FALSE)) ->  | W144: A | X144: A_ | Y144: A_ | AB144: =IFERROR(VLOOKUP($G144,'Param masqué'!$AT$2:$AU$13,2,FALSE),0) -> 0 | AD144: =VLOOKUP(Y144,'Param masqué'!AG:AJ,4,FALSE) ->  | AF144: =VLOOKUP(K144,Tableau2[[Code Ecomaison]:[Mesure]],7,FALSE) -> 
B145: Ref 140 | L145: =IF(K145="","",IFERROR(VLOOKUP(K145,Codes!$C$2:$N$9845,12,FALSE),"Cette combinaison de matériau non certifié et de prime pour mise à disposition de pièces détachées n'est pas permise")) ->  | M145: =IFERROR(VLOOKUP('ABJ - saisie multiple'!$K145,Codes!$C:$J,8,FALSE),"") ->  | N145: =IF(E145="","",VLOOKUP(E145,'Param masqué'!$D$3:$E$4,2,FALSE)) ->  | O145: =IF(F145="","",VLOOKUP(F145,'Param masqué'!$J$3:$K$14,2,FALSE)) ->  | P145: =IF(H145="","",VLOOKUP(H145,'Param masqué'!$R$3:$T$82,3,FALSE)) ->  | Q145: =IF(I145="","",VLOOKUP(I145,'Param masqué'!$AD$1:$AE$16,2,FALSE)) ->  | W145: A | X145: A_ | Y145: A_ | AB145: =IFERROR(VLOOKUP($G145,'Param masqué'!$AT$2:$AU$13,2,FALSE),0) -> 0 | AD145: =VLOOKUP(Y145,'Param masqué'!AG:AJ,4,FALSE) ->  | AF145: =VLOOKUP(K145,Tableau2[[Code Ecomaison]:[Mesure]],7,FALSE) -> 
B146: Ref 141 | L146: =IF(K146="","",IFERROR(VLOOKUP(K146,Codes!$C$2:$N$9845,12,FALSE),"Cette combinaison de matériau non certifié et de prime pour mise à disposition de pièces détachées n'est pas permise")) ->  | M146: =IFERROR(VLOOKUP('ABJ - saisie multiple'!$K146,Codes!$C:$J,8,FALSE),"") ->  | N146: =IF(E146="","",VLOOKUP(E146,'Param masqué'!$D$3:$E$4,2,FALSE)) ->  | O146: =IF(F146="","",VLOOKUP(F146,'Param masqué'!$J$3:$K$14,2,FALSE)) ->  | P146: =IF(H146="","",VLOOKUP(H146,'Param masqué'!$R$3:$T$82,3,FALSE)) ->  | Q146: =IF(I146="","",VLOOKUP(I146,'Param masqué'!$AD$1:$AE$16,2,FALSE)) ->  | W146: A | X146: A_ | Y146: A_ | AB146: =IFERROR(VLOOKUP($G146,'Param masqué'!$AT$2:$AU$13,2,FALSE),0) -> 0 | AD146: =VLOOKUP(Y146,'Param masqué'!AG:AJ,4,FALSE) ->  | AF146: =VLOOKUP(K146,Tableau2[[Code Ecomaison]:[Mesure]],7,FALSE) -> 
B147: Ref 142 | L147: =IF(K147="","",IFERROR(VLOOKUP(K147,Codes!$C$2:$N$9845,12,FALSE),"Cette combinaison de matériau non certifié et de prime pour mise à disposition de pièces détachées n'est pas permise")) ->  | M147: =IFERROR(VLOOKUP('ABJ - saisie multiple'!$K147,Codes!$C:$J,8,FALSE),"") ->  | N147: =IF(E147="","",VLOOKUP(E147,'Param masqué'!$D$3:$E$4,2,FALSE)) ->  | O147: =IF(F147="","",VLOOKUP(F147,'Param masqué'!$J$3:$K$14,2,FALSE)) ->  | P147: =IF(H147="","",VLOOKUP(H147,'Param masqué'!$R$3:$T$82,3,FALSE)) ->  | Q147: =IF(I147="","",VLOOKUP(I147,'Param masqué'!$AD$1:$AE$16,2,FALSE)) ->  | W147: A | X147: A_ | Y147: A_ | AB147: =IFERROR(VLOOKUP($G147,'Param masqué'!$AT$2:$AU$13,2,FALSE),0) -> 0 | AD147: =VLOOKUP(Y147,'Param masqué'!AG:AJ,4,FALSE) ->  | AF147: =VLOOKUP(K147,Tableau2[[Code Ecomaison]:[Mesure]],7,FALSE) -> 
B148: Ref 143 | L148: =IF(K148="","",IFERROR(VLOOKUP(K148,Codes!$C$2:$N$9845,12,FALSE),"Cette combinaison de matériau non certifié et de prime pour mise à disposition de pièces détachées n'est pas permise")) ->  | M148: =IFERROR(VLOOKUP('ABJ - saisie multiple'!$K148,Codes!$C:$J,8,FALSE),"") ->  | N148: =IF(E148="","",VLOOKUP(E148,'Param masqué'!$D$3:$E$4,2,FALSE)) ->  | O148: =IF(F148="","",VLOOKUP(F148,'Param masqué'!$J$3:$K$14,2,FALSE)) ->  | P148: =IF(H148="","",VLOOKUP(H148,'Param masqué'!$R$3:$T$82,3,FALSE)) ->  | Q148: =IF(I148="","",VLOOKUP(I148,'Param masqué'!$AD$1:$AE$16,2,FALSE)) ->  | W148: A | X148: A_ | Y148: A_ | AB148: =IFERROR(VLOOKUP($G148,'Param masqué'!$AT$2:$AU$13,2,FALSE),0) -> 0 | AD148: =VLOOKUP(Y148,'Param masqué'!AG:AJ,4,FALSE) ->  | AF148: =VLOOKUP(K148,Tableau2[[Code Ecomaison]:[Mesure]],7,FALSE) -> 
B149: Ref 144 | L149: =IF(K149="","",IFERROR(VLOOKUP(K149,Codes!$C$2:$N$9845,12,FALSE),"Cette combinaison de matériau non certifié et de prime pour mise à disposition de pièces détachées n'est pas permise")) ->  | M149: =IFERROR(VLOOKUP('ABJ - saisie multiple'!$K149,Codes!$C:$J,8,FALSE),"") ->  | N149: =IF(E149="","",VLOOKUP(E149,'Param masqué'!$D$3:$E$4,2,FALSE)) ->  | O149: =IF(F149="","",VLOOKUP(F149,'Param masqué'!$J$3:$K$14,2,FALSE)) ->  | P149: =IF(H149="","",VLOOKUP(H149,'Param masqué'!$R$3:$T$82,3,FALSE)) ->  | Q149: =IF(I149="","",VLOOKUP(I149,'Param masqué'!$AD$1:$AE$16,2,FALSE)) ->  | W149: A | X149: A_ | Y149: A_ | AB149: =IFERROR(VLOOKUP($G149,'Param masqué'!$AT$2:$AU$13,2,FALSE),0) -> 0 | AD149: =VLOOKUP(Y149,'Param masqué'!AG:AJ,4,FALSE) ->  | AF149: =VLOOKUP(K149,Tableau2[[Code Ecomaison]:[Mesure]],7,FALSE) -> 
B150: Ref 145 | L150: =IF(K150="","",IFERROR(VLOOKUP(K150,Codes!$C$2:$N$9845,12,FALSE),"Cette combinaison de matériau non certifié et de prime pour mise à disposition de pièces détachées n'est pas permise")) ->  | M150: =IFERROR(VLOOKUP('ABJ - saisie multiple'!$K150,Codes!$C:$J,8,FALSE),"") ->  | N150: =IF(E150="","",VLOOKUP(E150,'Param masqué'!$D$3:$E$4,2,FALSE)) ->  | O150: =IF(F150="","",VLOOKUP(F150,'Param masqué'!$J$3:$K$14,2,FALSE)) ->  | P150: =IF(H150="","",VLOOKUP(H150,'Param masqué'!$R$3:$T$82,3,FALSE)) ->  | Q150: =IF(I150="","",VLOOKUP(I150,'Param masqué'!$AD$1:$AE$16,2,FALSE)) ->  | W150: A | X150: A_ | Y150: A_ | AB150: =IFERROR(VLOOKUP($G150,'Param masqué'!$AT$2:$AU$13,2,FALSE),0) -> 0 | AD150: =VLOOKUP(Y150,'Param masqué'!AG:AJ,4,FALSE) ->  | AF150: =VLOOKUP(K150,Tableau2[[Code Ecomaison]:[Mesure]],7,FALSE) -> 
B151: Ref 146 | L151: =IF(K151="","",IFERROR(VLOOKUP(K151,Codes!$C$2:$N$9845,12,FALSE),"Cette combinaison de matériau non certifié et de prime pour mise à disposition de pièces détachées n'est pas permise")) ->  | M151: =IFERROR(VLOOKUP('ABJ - saisie multiple'!$K151,Codes!$C:$J,8,FALSE),"") ->  | N151: =IF(E151="","",VLOOKUP(E151,'Param masqué'!$D$3:$E$4,2,FALSE)) ->  | O151: =IF(F151="","",VLOOKUP(F151,'Param masqué'!$J$3:$K$14,2,FALSE)) ->  | P151: =IF(H151="","",VLOOKUP(H151,'Param masqué'!$R$3:$T$82,3,FALSE)) ->  | Q151: =IF(I151="","",VLOOKUP(I151,'Param masqué'!$AD$1:$AE$16,2,FALSE)) ->  | W151: A | X151: A_ | Y151: A_ | AB151: =IFERROR(VLOOKUP($G151,'Param masqué'!$AT$2:$AU$13,2,FALSE),0) -> 0 | AD151: =VLOOKUP(Y151,'Param masqué'!AG:AJ,4,FALSE) ->  | AF151: =VLOOKUP(K151,Tableau2[[Code Ecomaison]:[Mesure]],7,FALSE) -> 
B152: Ref 147 | L152: =IF(K152="","",IFERROR(VLOOKUP(K152,Codes!$C$2:$N$9845,12,FALSE),"Cette combinaison de matériau non certifié et de prime pour mise à disposition de pièces détachées n'est pas permise")) ->  | M152: =IFERROR(VLOOKUP('ABJ - saisie multiple'!$K152,Codes!$C:$J,8,FALSE),"") ->  | N152: =IF(E152="","",VLOOKUP(E152,'Param masqué'!$D$3:$E$4,2,FALSE)) ->  | O152: =IF(F152="","",VLOOKUP(F152,'Param masqué'!$J$3:$K$14,2,FALSE)) ->  | P152: =IF(H152="","",VLOOKUP(H152,'Param masqué'!$R$3:$T$82,3,FALSE)) ->  | Q152: =IF(I152="","",VLOOKUP(I152,'Param masqué'!$AD$1:$AE$16,2,FALSE)) ->  | W152: A | X152: A_ | Y152: A_ | AB152: =IFERROR(VLOOKUP($G152,'Param masqué'!$AT$2:$AU$13,2,FALSE),0) -> 0 | AD152: =VLOOKUP(Y152,'Param masqué'!AG:AJ,4,FALSE) ->  | AF152: =VLOOKUP(K152,Tableau2[[Code Ecomaison]:[Mesure]],7,FALSE) -> 
B153: Ref 148 | L153: =IF(K153="","",IFERROR(VLOOKUP(K153,Codes!$C$2:$N$9845,12,FALSE),"Cette combinaison de matériau non certifié et de prime pour mise à disposition de pièces détachées n'est pas permise")) ->  | M153: =IFERROR(VLOOKUP('ABJ - saisie multiple'!$K153,Codes!$C:$J,8,FALSE),"") ->  | N153: =IF(E153="","",VLOOKUP(E153,'Param masqué'!$D$3:$E$4,2,FALSE)) ->  | O153: =IF(F153="","",VLOOKUP(F153,'Param masqué'!$J$3:$K$14,2,FALSE)) ->  | P153: =IF(H153="","",VLOOKUP(H153,'Param masqué'!$R$3:$T$82,3,FALSE)) ->  | Q153: =IF(I153="","",VLOOKUP(I153,'Param masqué'!$AD$1:$AE$16,2,FALSE)) ->  | W153: A | X153: A_ | Y153: A_ | AB153: =IFERROR(VLOOKUP($G153,'Param masqué'!$AT$2:$AU$13,2,FALSE),0) -> 0 | AD153: =VLOOKUP(Y153,'Param masqué'!AG:AJ,4,FALSE) ->  | AF153: =VLOOKUP(K153,Tableau2[[Code Ecomaison]:[Mesure]],7,FALSE) -> 
B154: Ref 149 | L154: =IF(K154="","",IFERROR(VLOOKUP(K154,Codes!$C$2:$N$9845,12,FALSE),"Cette combinaison de matériau non certifié et de prime pour mise à disposition de pièces détachées n'est pas permise")) ->  | M154: =IFERROR(VLOOKUP('ABJ - saisie multiple'!$K154,Codes!$C:$J,8,FALSE),"") ->  | N154: =IF(E154="","",VLOOKUP(E154,'Param masqué'!$D$3:$E$4,2,FALSE)) ->  | O154: =IF(F154="","",VLOOKUP(F154,'Param masqué'!$J$3:$K$14,2,FALSE)) ->  | P154: =IF(H154="","",VLOOKUP(H154,'Param masqué'!$R$3:$T$82,3,FALSE)) ->  | Q154: =IF(I154="","",VLOOKUP(I154,'Param masqué'!$AD$1:$AE$16,2,FALSE)) ->  | W154: A | X154: A_ | Y154: A_ | AB154: =IFERROR(VLOOKUP($G154,'Param masqué'!$AT$2:$AU$13,2,FALSE),0) -> 0 | AD154: =VLOOKUP(Y154,'Param masqué'!AG:AJ,4,FALSE) ->  | AF154: =VLOOKUP(K154,Tableau2[[Code Ecomaison]:[Mesure]],7,FALSE) -> 
B155: Ref 150 | L155: =IF(K155="","",IFERROR(VLOOKUP(K155,Codes!$C$2:$N$9845,12,FALSE),"Cette combinaison de matériau non certifié et de prime pour mise à disposition de pièces détachées n'est pas permise")) ->  | M155: =IFERROR(VLOOKUP('ABJ - saisie multiple'!$K155,Codes!$C:$J,8,FALSE),"") ->  | N155: =IF(E155="","",VLOOKUP(E155,'Param masqué'!$D$3:$E$4,2,FALSE)) ->  | O155: =IF(F155="","",VLOOKUP(F155,'Param masqué'!$J$3:$K$14,2,FALSE)) ->  | P155: =IF(H155="","",VLOOKUP(H155,'Param masqué'!$R$3:$T$82,3,FALSE)) ->  | Q155: =IF(I155="","",VLOOKUP(I155,'Param masqué'!$AD$1:$AE$16,2,FALSE)) ->  | W155: A | X155: A_ | Y155: A_ | AB155: =IFERROR(VLOOKUP($G155,'Param masqué'!$AT$2:$AU$13,2,FALSE),0) -> 0 | AD155: =VLOOKUP(Y155,'Param masqué'!AG:AJ,4,FALSE) ->  | AF155: =VLOOKUP(K155,Tableau2[[Code Ecomaison]:[Mesure]],7,FALSE) -> 
B156: Ref 151 | L156: =IF(K156="","",IFERROR(VLOOKUP(K156,Codes!$C$2:$N$9845,12,FALSE),"Cette combinaison de matériau non certifié et de prime pour mise à disposition de pièces détachées n'est pas permise")) ->  | M156: =IFERROR(VLOOKUP('ABJ - saisie multiple'!$K156,Codes!$C:$J,8,FALSE),"") ->  | N156: =IF(E156="","",VLOOKUP(E156,'Param masqué'!$D$3:$E$4,2,FALSE)) ->  | O156: =IF(F156="","",VLOOKUP(F156,'Param masqué'!$J$3:$K$14,2,FALSE)) ->  | P156: =IF(H156="","",VLOOKUP(H156,'Param masqué'!$R$3:$T$82,3,FALSE)) ->  | Q156: =IF(I156="","",VLOOKUP(I156,'Param masqué'!$AD$1:$AE$16,2,FALSE)) ->  | W156: A | X156: A_ | Y156: A_ | AB156: =IFERROR(VLOOKUP($G156,'Param masqué'!$AT$2:$AU$13,2,FALSE),0) -> 0 | AD156: =VLOOKUP(Y156,'Param masqué'!AG:AJ,4,FALSE) ->  | AF156: =VLOOKUP(K156,Tableau2[[Code Ecomaison]:[Mesure]],7,FALSE) -> 
B157: Ref 152 | L157: =IF(K157="","",IFERROR(VLOOKUP(K157,Codes!$C$2:$N$9845,12,FALSE),"Cette combinaison de matériau non certifié et de prime pour mise à disposition de pièces détachées n'est pas permise")) ->  | M157: =IFERROR(VLOOKUP('ABJ - saisie multiple'!$K157,Codes!$C:$J,8,FALSE),"") ->  | N157: =IF(E157="","",VLOOKUP(E157,'Param masqué'!$D$3:$E$4,2,FALSE)) ->  | O157: =IF(F157="","",VLOOKUP(F157,'Param masqué'!$J$3:$K$14,2,FALSE)) ->  | P157: =IF(H157="","",VLOOKUP(H157,'Param masqué'!$R$3:$T$82,3,FALSE)) ->  | Q157: =IF(I157="","",VLOOKUP(I157,'Param masqué'!$AD$1:$AE$16,2,FALSE)) ->  | W157: A | X157: A_ | Y157: A_ | AB157: =IFERROR(VLOOKUP($G157,'Param masqué'!$AT$2:$AU$13,2,FALSE),0) -> 0 | AD157: =VLOOKUP(Y157,'Param masqué'!AG:AJ,4,FALSE) ->  | AF157: =VLOOKUP(K157,Tableau2[[Code Ecomaison]:[Mesure]],7,FALSE) -> 
B158: Ref 153 | L158: =IF(K158="","",IFERROR(VLOOKUP(K158,Codes!$C$2:$N$9845,12,FALSE),"Cette combinaison de matériau non certifié et de prime pour mise à disposition de pièces détachées n'est pas permise")) ->  | M158: =IFERROR(VLOOKUP('ABJ - saisie multiple'!$K158,Codes!$C:$J,8,FALSE),"") ->  | N158: =IF(E158="","",VLOOKUP(E158,'Param masqué'!$D$3:$E$4,2,FALSE)) ->  | O158: =IF(F158="","",VLOOKUP(F158,'Param masqué'!$J$3:$K$14,2,FALSE)) ->  | P158: =IF(H158="","",VLOOKUP(H158,'Param masqué'!$R$3:$T$82,3,FALSE)) ->  | Q158: =IF(I158="","",VLOOKUP(I158,'Param masqué'!$AD$1:$AE$16,2,FALSE)) ->  | W158: A | X158: A_ | Y158: A_ | AB158: =IFERROR(VLOOKUP($G158,'Param masqué'!$AT$2:$AU$13,2,FALSE),0) -> 0 | AD158: =VLOOKUP(Y158,'Param masqué'!AG:AJ,4,FALSE) ->  | AF158: =VLOOKUP(K158,Tableau2[[Code Ecomaison]:[Mesure]],7,FALSE) -> 
B159: Ref 154 | L159: =IF(K159="","",IFERROR(VLOOKUP(K159,Codes!$C$2:$N$9845,12,FALSE),"Cette combinaison de matériau non certifié et de prime pour mise à disposition de pièces détachées n'est pas permise")) ->  | M159: =IFERROR(VLOOKUP('ABJ - saisie multiple'!$K159,Codes!$C:$J,8,FALSE),"") ->  | N159: =IF(E159="","",VLOOKUP(E159,'Param masqué'!$D$3:$E$4,2,FALSE)) ->  | O159: =IF(F159="","",VLOOKUP(F159,'Param masqué'!$J$3:$K$14,2,FALSE)) ->  | P159: =IF(H159="","",VLOOKUP(H159,'Param masqué'!$R$3:$T$82,3,FALSE)) ->  | Q159: =IF(I159="","",VLOOKUP(I159,'Param masqué'!$AD$1:$AE$16,2,FALSE)) ->  | W159: A | X159: A_ | Y159: A_ | AB159: =IFERROR(VLOOKUP($G159,'Param masqué'!$AT$2:$AU$13,2,FALSE),0) -> 0 | AD159: =VLOOKUP(Y159,'Param masqué'!AG:AJ,4,FALSE) ->  | AF159: =VLOOKUP(K159,Tableau2[[Code Ecomaison]:[Mesure]],7,FALSE) -> 
B160: Ref 155 | L160: =IF(K160="","",IFERROR(VLOOKUP(K160,Codes!$C$2:$N$9845,12,FALSE),"Cette combinaison de matériau non certifié et de prime pour mise à disposition de pièces détachées n'est pas permise")) ->  | M160: =IFERROR(VLOOKUP('ABJ - saisie multiple'!$K160,Codes!$C:$J,8,FALSE),"") ->  | N160: =IF(E160="","",VLOOKUP(E160,'Param masqué'!$D$3:$E$4,2,FALSE)) ->  | O160: =IF(F160="","",VLOOKUP(F160,'Param masqué'!$J$3:$K$14,2,FALSE)) ->  | P160: =IF(H160="","",VLOOKUP(H160,'Param masqué'!$R$3:$T$82,3,FALSE)) ->  | Q160: =IF(I160="","",VLOOKUP(I160,'Param masqué'!$AD$1:$AE$16,2,FALSE)) ->  | W160: A | X160: A_ | Y160: A_ | AB160: =IFERROR(VLOOKUP($G160,'Param masqué'!$AT$2:$AU$13,2,FALSE),0) -> 0 | AD160: =VLOOKUP(Y160,'Param masqué'!AG:AJ,4,FALSE) ->  | AF160: =VLOOKUP(K160,Tableau2[[Code Ecomaison]:[Mesure]],7,FALSE) -> 
B161: Ref 156 | L161: =IF(K161="","",IFERROR(VLOOKUP(K161,Codes!$C$2:$N$9845,12,FALSE),"Cette combinaison de matériau non certifié et de prime pour mise à disposition de pièces détachées n'est pas permise")) ->  | M161: =IFERROR(VLOOKUP('ABJ - saisie multiple'!$K161,Codes!$C:$J,8,FALSE),"") ->  | N161: =IF(E161="","",VLOOKUP(E161,'Param masqué'!$D$3:$E$4,2,FALSE)) ->  | O161: =IF(F161="","",VLOOKUP(F161,'Param masqué'!$J$3:$K$14,2,FALSE)) ->  | P161: =IF(H161="","",VLOOKUP(H161,'Param masqué'!$R$3:$T$82,3,FALSE)) ->  | Q161: =IF(I161="","",VLOOKUP(I161,'Param masqué'!$AD$1:$AE$16,2,FALSE)) ->  | W161: A | X161: A_ | Y161: A_ | AB161: =IFERROR(VLOOKUP($G161,'Param masqué'!$AT$2:$AU$13,2,FALSE),0) -> 0 | AD161: =VLOOKUP(Y161,'Param masqué'!AG:AJ,4,FALSE) ->  | AF161: =VLOOKUP(K161,Tableau2[[Code Ecomaison]:[Mesure]],7,FALSE) -> 
B162: Ref 157 | L162: =IF(K162="","",IFERROR(VLOOKUP(K162,Codes!$C$2:$N$9845,12,FALSE),"Cette combinaison de matériau non certifié et de prime pour mise à disposition de pièces détachées n'est pas permise")) ->  | M162: =IFERROR(VLOOKUP('ABJ - saisie multiple'!$K162,Codes!$C:$J,8,FALSE),"") ->  | N162: =IF(E162="","",VLOOKUP(E162,'Param masqué'!$D$3:$E$4,2,FALSE)) ->  | O162: =IF(F162="","",VLOOKUP(F162,'Param masqué'!$J$3:$K$14,2,FALSE)) ->  | P162: =IF(H162="","",VLOOKUP(H162,'Param masqué'!$R$3:$T$82,3,FALSE)) ->  | Q162: =IF(I162="","",VLOOKUP(I162,'Param masqué'!$AD$1:$AE$16,2,FALSE)) ->  | W162: A | X162: A_ | Y162: A_ | AB162: =IFERROR(VLOOKUP($G162,'Param masqué'!$AT$2:$AU$13,2,FALSE),0) -> 0 | AD162: =VLOOKUP(Y162,'Param masqué'!AG:AJ,4,FALSE) ->  | AF162: =VLOOKUP(K162,Tableau2[[Code Ecomaison]:[Mesure]],7,FALSE) -> 
B163: Ref 158 | L163: =IF(K163="","",IFERROR(VLOOKUP(K163,Codes!$C$2:$N$9845,12,FALSE),"Cette combinaison de matériau non certifié et de prime pour mise à disposition de pièces détachées n'est pas permise")) ->  | M163: =IFERROR(VLOOKUP('ABJ - saisie multiple'!$K163,Codes!$C:$J,8,FALSE),"") ->  | N163: =IF(E163="","",VLOOKUP(E163,'Param masqué'!$D$3:$E$4,2,FALSE)) ->  | O163: =IF(F163="","",VLOOKUP(F163,'Param masqué'!$J$3:$K$14,2,FALSE)) ->  | P163: =IF(H163="","",VLOOKUP(H163,'Param masqué'!$R$3:$T$82,3,FALSE)) ->  | Q163: =IF(I163="","",VLOOKUP(I163,'Param masqué'!$AD$1:$AE$16,2,FALSE)) ->  | W163: A | X163: A_ | Y163: A_ | AB163: =IFERROR(VLOOKUP($G163,'Param masqué'!$AT$2:$AU$13,2,FALSE),0) -> 0 | AD163: =VLOOKUP(Y163,'Param masqué'!AG:AJ,4,FALSE) ->  | AF163: =VLOOKUP(K163,Tableau2[[Code Ecomaison]:[Mesure]],7,FALSE) -> 
B164: Ref 159 | L164: =IF(K164="","",IFERROR(VLOOKUP(K164,Codes!$C$2:$N$9845,12,FALSE),"Cette combinaison de matériau non certifié et de prime pour mise à disposition de pièces détachées n'est pas permise")) ->  | M164: =IFERROR(VLOOKUP('ABJ - saisie multiple'!$K164,Codes!$C:$J,8,FALSE),"") ->  | N164: =IF(E164="","",VLOOKUP(E164,'Param masqué'!$D$3:$E$4,2,FALSE)) ->  | O164: =IF(F164="","",VLOOKUP(F164,'Param masqué'!$J$3:$K$14,2,FALSE)) ->  | P164: =IF(H164="","",VLOOKUP(H164,'Param masqué'!$R$3:$T$82,3,FALSE)) ->  | Q164: =IF(I164="","",VLOOKUP(I164,'Param masqué'!$AD$1:$AE$16,2,FALSE)) ->  | W164: A | X164: A_ | Y164: A_ | AB164: =IFERROR(VLOOKUP($G164,'Param masqué'!$AT$2:$AU$13,2,FALSE),0) -> 0 | AD164: =VLOOKUP(Y164,'Param masqué'!AG:AJ,4,FALSE) ->  | AF164: =VLOOKUP(K164,Tableau2[[Code Ecomaison]:[Mesure]],7,FALSE) -> 
B165: Ref 160 | L165: =IF(K165="","",IFERROR(VLOOKUP(K165,Codes!$C$2:$N$9845,12,FALSE),"Cette combinaison de matériau non certifié et de prime pour mise à disposition de pièces détachées n'est pas permise")) ->  | M165: =IFERROR(VLOOKUP('ABJ - saisie multiple'!$K165,Codes!$C:$J,8,FALSE),"") ->  | N165: =IF(E165="","",VLOOKUP(E165,'Param masqué'!$D$3:$E$4,2,FALSE)) ->  | O165: =IF(F165="","",VLOOKUP(F165,'Param masqué'!$J$3:$K$14,2,FALSE)) ->  | P165: =IF(H165="","",VLOOKUP(H165,'Param masqué'!$R$3:$T$82,3,FALSE)) ->  | Q165: =IF(I165="","",VLOOKUP(I165,'Param masqué'!$AD$1:$AE$16,2,FALSE)) ->  | W165: A | X165: A_ | Y165: A_ | AB165: =IFERROR(VLOOKUP($G165,'Param masqué'!$AT$2:$AU$13,2,FALSE),0) -> 0 | AD165: =VLOOKUP(Y165,'Param masqué'!AG:AJ,4,FALSE) ->  | AF165: =VLOOKUP(K165,Tableau2[[Code Ecomaison]:[Mesure]],7,FALSE) -> 
B166: Ref 161 | L166: =IF(K166="","",IFERROR(VLOOKUP(K166,Codes!$C$2:$N$9845,12,FALSE),"Cette combinaison de matériau non certifié et de prime pour mise à disposition de pièces détachées n'est pas permise")) ->  | M166: =IFERROR(VLOOKUP('ABJ - saisie multiple'!$K166,Codes!$C:$J,8,FALSE),"") ->  | N166: =IF(E166="","",VLOOKUP(E166,'Param masqué'!$D$3:$E$4,2,FALSE)) ->  | O166: =IF(F166="","",VLOOKUP(F166,'Param masqué'!$J$3:$K$14,2,FALSE)) ->  | P166: =IF(H166="","",VLOOKUP(H166,'Param masqué'!$R$3:$T$82,3,FALSE)) ->  | Q166: =IF(I166="","",VLOOKUP(I166,'Param masqué'!$AD$1:$AE$16,2,FALSE)) ->  | W166: A | X166: A_ | Y166: A_ | AB166: =IFERROR(VLOOKUP($G166,'Param masqué'!$AT$2:$AU$13,2,FALSE),0) -> 0 | AD166: =VLOOKUP(Y166,'Param masqué'!AG:AJ,4,FALSE) ->  | AF166: =VLOOKUP(K166,Tableau2[[Code Ecomaison]:[Mesure]],7,FALSE) -> 
B167: Ref 162 | L167: =IF(K167="","",IFERROR(VLOOKUP(K167,Codes!$C$2:$N$9845,12,FALSE),"Cette combinaison de matériau non certifié et de prime pour mise à disposition de pièces détachées n'est pas permise")) ->  | M167: =IFERROR(VLOOKUP('ABJ - saisie multiple'!$K167,Codes!$C:$J,8,FALSE),"") ->  | N167: =IF(E167="","",VLOOKUP(E167,'Param masqué'!$D$3:$E$4,2,FALSE)) ->  | O167: =IF(F167="","",VLOOKUP(F167,'Param masqué'!$J$3:$K$14,2,FALSE)) ->  | P167: =IF(H167="","",VLOOKUP(H167,'Param masqué'!$R$3:$T$82,3,FALSE)) ->  | Q167: =IF(I167="","",VLOOKUP(I167,'Param masqué'!$AD$1:$AE$16,2,FALSE)) ->  | W167: A | X167: A_ | Y167: A_ | AB167: =IFERROR(VLOOKUP($G167,'Param masqué'!$AT$2:$AU$13,2,FALSE),0) -> 0 | AD167: =VLOOKUP(Y167,'Param masqué'!AG:AJ,4,FALSE) ->  | AF167: =VLOOKUP(K167,Tableau2[[Code Ecomaison]:[Mesure]],7,FALSE) -> 
B168: Ref 163 | L168: =IF(K168="","",IFERROR(VLOOKUP(K168,Codes!$C$2:$N$9845,12,FALSE),"Cette combinaison de matériau non certifié et de prime pour mise à disposition de pièces détachées n'est pas permise")) ->  | M168: =IFERROR(VLOOKUP('ABJ - saisie multiple'!$K168,Codes!$C:$J,8,FALSE),"") ->  | N168: =IF(E168="","",VLOOKUP(E168,'Param masqué'!$D$3:$E$4,2,FALSE)) ->  | O168: =IF(F168="","",VLOOKUP(F168,'Param masqué'!$J$3:$K$14,2,FALSE)) ->  | P168: =IF(H168="","",VLOOKUP(H168,'Param masqué'!$R$3:$T$82,3,FALSE)) ->  | Q168: =IF(I168="","",VLOOKUP(I168,'Param masqué'!$AD$1:$AE$16,2,FALSE)) ->  | W168: A | X168: A_ | Y168: A_ | AB168: =IFERROR(VLOOKUP($G168,'Param masqué'!$AT$2:$AU$13,2,FALSE),0) -> 0 | AD168: =VLOOKUP(Y168,'Param masqué'!AG:AJ,4,FALSE) ->  | AF168: =VLOOKUP(K168,Tableau2[[Code Ecomaison]:[Mesure]],7,FALSE) -> 
B169: Ref 164 | L169: =IF(K169="","",IFERROR(VLOOKUP(K169,Codes!$C$2:$N$9845,12,FALSE),"Cette combinaison de matériau non certifié et de prime pour mise à disposition de pièces détachées n'est pas permise")) ->  | M169: =IFERROR(VLOOKUP('ABJ - saisie multiple'!$K169,Codes!$C:$J,8,FALSE),"") ->  | N169: =IF(E169="","",VLOOKUP(E169,'Param masqué'!$D$3:$E$4,2,FALSE)) ->  | O169: =IF(F169="","",VLOOKUP(F169,'Param masqué'!$J$3:$K$14,2,FALSE)) ->  | P169: =IF(H169="","",VLOOKUP(H169,'Param masqué'!$R$3:$T$82,3,FALSE)) ->  | Q169: =IF(I169="","",VLOOKUP(I169,'Param masqué'!$AD$1:$AE$16,2,FALSE)) ->  | W169: A | X169: A_ | Y169: A_ | AB169: =IFERROR(VLOOKUP($G169,'Param masqué'!$AT$2:$AU$13,2,FALSE),0) -> 0 | AD169: =VLOOKUP(Y169,'Param masqué'!AG:AJ,4,FALSE) ->  | AF169: =VLOOKUP(K169,Tableau2[[Code Ecomaison]:[Mesure]],7,FALSE) -> 
B170: Ref 165 | L170: =IF(K170="","",IFERROR(VLOOKUP(K170,Codes!$C$2:$N$9845,12,FALSE),"Cette combinaison de matériau non certifié et de prime pour mise à disposition de pièces détachées n'est pas permise")) ->  | M170: =IFERROR(VLOOKUP('ABJ - saisie multiple'!$K170,Codes!$C:$J,8,FALSE),"") ->  | N170: =IF(E170="","",VLOOKUP(E170,'Param masqué'!$D$3:$E$4,2,FALSE)) ->  | O170: =IF(F170="","",VLOOKUP(F170,'Param masqué'!$J$3:$K$14,2,FALSE)) ->  | P170: =IF(H170="","",VLOOKUP(H170,'Param masqué'!$R$3:$T$82,3,FALSE)) ->  | Q170: =IF(I170="","",VLOOKUP(I170,'Param masqué'!$AD$1:$AE$16,2,FALSE)) ->  | W170: A | X170: A_ | Y170: A_ | AB170: =IFERROR(VLOOKUP($G170,'Param masqué'!$AT$2:$AU$13,2,FALSE),0) -> 0 | AD170: =VLOOKUP(Y170,'Param masqué'!AG:AJ,4,FALSE) ->  | AF170: =VLOOKUP(K170,Tableau2[[Code Ecomaison]:[Mesure]],7,FALSE) -> 
B171: Ref 166 | L171: =IF(K171="","",IFERROR(VLOOKUP(K171,Codes!$C$2:$N$9845,12,FALSE),"Cette combinaison de matériau non certifié et de prime pour mise à disposition de pièces détachées n'est pas permise")) ->  | M171: =IFERROR(VLOOKUP('ABJ - saisie multiple'!$K171,Codes!$C:$J,8,FALSE),"") ->  | N171: =IF(E171="","",VLOOKUP(E171,'Param masqué'!$D$3:$E$4,2,FALSE)) ->  | O171: =IF(F171="","",VLOOKUP(F171,'Param masqué'!$J$3:$K$14,2,FALSE)) ->  | P171: =IF(H171="","",VLOOKUP(H171,'Param masqué'!$R$3:$T$82,3,FALSE)) ->  | Q171: =IF(I171="","",VLOOKUP(I171,'Param masqué'!$AD$1:$AE$16,2,FALSE)) ->  | W171: A | X171: A_ | Y171: A_ | AB171: =IFERROR(VLOOKUP($G171,'Param masqué'!$AT$2:$AU$13,2,FALSE),0) -> 0 | AD171: =VLOOKUP(Y171,'Param masqué'!AG:AJ,4,FALSE) ->  | AF171: =VLOOKUP(K171,Tableau2[[Code Ecomaison]:[Mesure]],7,FALSE) -> 
B172: Ref 167 | L172: =IF(K172="","",IFERROR(VLOOKUP(K172,Codes!$C$2:$N$9845,12,FALSE),"Cette combinaison de matériau non certifié et de prime pour mise à disposition de pièces détachées n'est pas permise")) ->  | M172: =IFERROR(VLOOKUP('ABJ - saisie multiple'!$K172,Codes!$C:$J,8,FALSE),"") ->  | N172: =IF(E172="","",VLOOKUP(E172,'Param masqué'!$D$3:$E$4,2,FALSE)) ->  | O172: =IF(F172="","",VLOOKUP(F172,'Param masqué'!$J$3:$K$14,2,FALSE)) ->  | P172: =IF(H172="","",VLOOKUP(H172,'Param masqué'!$R$3:$T$82,3,FALSE)) ->  | Q172: =IF(I172="","",VLOOKUP(I172,'Param masqué'!$AD$1:$AE$16,2,FALSE)) ->  | W172: A | X172: A_ | Y172: A_ | AB172: =IFERROR(VLOOKUP($G172,'Param masqué'!$AT$2:$AU$13,2,FALSE),0) -> 0 | AD172: =VLOOKUP(Y172,'Param masqué'!AG:AJ,4,FALSE) ->  | AF172: =VLOOKUP(K172,Tableau2[[Code Ecomaison]:[Mesure]],7,FALSE) -> 
B173: Ref 168 | L173: =IF(K173="","",IFERROR(VLOOKUP(K173,Codes!$C$2:$N$9845,12,FALSE),"Cette combinaison de matériau non certifié et de prime pour mise à disposition de pièces détachées n'est pas permise")) ->  | M173: =IFERROR(VLOOKUP('ABJ - saisie multiple'!$K173,Codes!$C:$J,8,FALSE),"") ->  | N173: =IF(E173="","",VLOOKUP(E173,'Param masqué'!$D$3:$E$4,2,FALSE)) ->  | O173: =IF(F173="","",VLOOKUP(F173,'Param masqué'!$J$3:$K$14,2,FALSE)) ->  | P173: =IF(H173="","",VLOOKUP(H173,'Param masqué'!$R$3:$T$82,3,FALSE)) ->  | Q173: =IF(I173="","",VLOOKUP(I173,'Param masqué'!$AD$1:$AE$16,2,FALSE)) ->  | W173: A | X173: A_ | Y173: A_ | AB173: =IFERROR(VLOOKUP($G173,'Param masqué'!$AT$2:$AU$13,2,FALSE),0) -> 0 | AD173: =VLOOKUP(Y173,'Param masqué'!AG:AJ,4,FALSE) ->  | AF173: =VLOOKUP(K173,Tableau2[[Code Ecomaison]:[Mesure]],7,FALSE) -> 
B174: Ref 169 | L174: =IF(K174="","",IFERROR(VLOOKUP(K174,Codes!$C$2:$N$9845,12,FALSE),"Cette combinaison de matériau non certifié et de prime pour mise à disposition de pièces détachées n'est pas permise")) ->  | M174: =IFERROR(VLOOKUP('ABJ - saisie multiple'!$K174,Codes!$C:$J,8,FALSE),"") ->  | N174: =IF(E174="","",VLOOKUP(E174,'Param masqué'!$D$3:$E$4,2,FALSE)) ->  | O174: =IF(F174="","",VLOOKUP(F174,'Param masqué'!$J$3:$K$14,2,FALSE)) ->  | P174: =IF(H174="","",VLOOKUP(H174,'Param masqué'!$R$3:$T$82,3,FALSE)) ->  | Q174: =IF(I174="","",VLOOKUP(I174,'Param masqué'!$AD$1:$AE$16,2,FALSE)) ->  | W174: A | X174: A_ | Y174: A_ | AB174: =IFERROR(VLOOKUP($G174,'Param masqué'!$AT$2:$AU$13,2,FALSE),0) -> 0 | AD174: =VLOOKUP(Y174,'Param masqué'!AG:AJ,4,FALSE) ->  | AF174: =VLOOKUP(K174,Tableau2[[Code Ecomaison]:[Mesure]],7,FALSE) -> 
B175: Ref 170 | L175: =IF(K175="","",IFERROR(VLOOKUP(K175,Codes!$C$2:$N$9845,12,FALSE),"Cette combinaison de matériau non certifié et de prime pour mise à disposition de pièces détachées n'est pas permise")) ->  | M175: =IFERROR(VLOOKUP('ABJ - saisie multiple'!$K175,Codes!$C:$J,8,FALSE),"") ->  | N175: =IF(E175="","",VLOOKUP(E175,'Param masqué'!$D$3:$E$4,2,FALSE)) ->  | O175: =IF(F175="","",VLOOKUP(F175,'Param masqué'!$J$3:$K$14,2,FALSE)) ->  | P175: =IF(H175="","",VLOOKUP(H175,'Param masqué'!$R$3:$T$82,3,FALSE)) ->  | Q175: =IF(I175="","",VLOOKUP(I175,'Param masqué'!$AD$1:$AE$16,2,FALSE)) ->  | W175: A | X175: A_ | Y175: A_ | AB175: =IFERROR(VLOOKUP($G175,'Param masqué'!$AT$2:$AU$13,2,FALSE),0) -> 0 | AD175: =VLOOKUP(Y175,'Param masqué'!AG:AJ,4,FALSE) ->  | AF175: =VLOOKUP(K175,Tableau2[[Code Ecomaison]:[Mesure]],7,FALSE) -> 
B176: Ref 171 | L176: =IF(K176="","",IFERROR(VLOOKUP(K176,Codes!$C$2:$N$9845,12,FALSE),"Cette combinaison de matériau non certifié et de prime pour mise à disposition de pièces détachées n'est pas permise")) ->  | M176: =IFERROR(VLOOKUP('ABJ - saisie multiple'!$K176,Codes!$C:$J,8,FALSE),"") ->  | N176: =IF(E176="","",VLOOKUP(E176,'Param masqué'!$D$3:$E$4,2,FALSE)) ->  | O176: =IF(F176="","",VLOOKUP(F176,'Param masqué'!$J$3:$K$14,2,FALSE)) ->  | P176: =IF(H176="","",VLOOKUP(H176,'Param masqué'!$R$3:$T$82,3,FALSE)) ->  | Q176: =IF(I176="","",VLOOKUP(I176,'Param masqué'!$AD$1:$AE$16,2,FALSE)) ->  | W176: A | X176: A_ | Y176: A_ | AB176: =IFERROR(VLOOKUP($G176,'Param masqué'!$AT$2:$AU$13,2,FALSE),0) -> 0 | AD176: =VLOOKUP(Y176,'Param masqué'!AG:AJ,4,FALSE) ->  | AF176: =VLOOKUP(K176,Tableau2[[Code Ecomaison]:[Mesure]],7,FALSE) -> 
B177: Ref 172 | L177: =IF(K177="","",IFERROR(VLOOKUP(K177,Codes!$C$2:$N$9845,12,FALSE),"Cette combinaison de matériau non certifié et de prime pour mise à disposition de pièces détachées n'est pas permise")) ->  | M177: =IFERROR(VLOOKUP('ABJ - saisie multiple'!$K177,Codes!$C:$J,8,FALSE),"") ->  | N177: =IF(E177="","",VLOOKUP(E177,'Param masqué'!$D$3:$E$4,2,FALSE)) ->  | O177: =IF(F177="","",VLOOKUP(F177,'Param masqué'!$J$3:$K$14,2,FALSE)) ->  | P177: =IF(H177="","",VLOOKUP(H177,'Param masqué'!$R$3:$T$82,3,FALSE)) ->  | Q177: =IF(I177="","",VLOOKUP(I177,'Param masqué'!$AD$1:$AE$16,2,FALSE)) ->  | W177: A | X177: A_ | Y177: A_ | AB177: =IFERROR(VLOOKUP($G177,'Param masqué'!$AT$2:$AU$13,2,FALSE),0) -> 0 | AD177: =VLOOKUP(Y177,'Param masqué'!AG:AJ,4,FALSE) ->  | AF177: =VLOOKUP(K177,Tableau2[[Code Ecomaison]:[Mesure]],7,FALSE) -> 
B178: Ref 173 | L178: =IF(K178="","",IFERROR(VLOOKUP(K178,Codes!$C$2:$N$9845,12,FALSE),"Cette combinaison de matériau non certifié et de prime pour mise à disposition de pièces détachées n'est pas permise")) ->  | M178: =IFERROR(VLOOKUP('ABJ - saisie multiple'!$K178,Codes!$C:$J,8,FALSE),"") ->  | N178: =IF(E178="","",VLOOKUP(E178,'Param masqué'!$D$3:$E$4,2,FALSE)) ->  | O178: =IF(F178="","",VLOOKUP(F178,'Param masqué'!$J$3:$K$14,2,FALSE)) ->  | P178: =IF(H178="","",VLOOKUP(H178,'Param masqué'!$R$3:$T$82,3,FALSE)) ->  | Q178: =IF(I178="","",VLOOKUP(I178,'Param masqué'!$AD$1:$AE$16,2,FALSE)) ->  | W178: A | X178: A_ | Y178: A_ | AB178: =IFERROR(VLOOKUP($G178,'Param masqué'!$AT$2:$AU$13,2,FALSE),0) -> 0 | AD178: =VLOOKUP(Y178,'Param masqué'!AG:AJ,4,FALSE) ->  | AF178: =VLOOKUP(K178,Tableau2[[Code Ecomaison]:[Mesure]],7,FALSE) -> 
B179: Ref 174 | L179: =IF(K179="","",IFERROR(VLOOKUP(K179,Codes!$C$2:$N$9845,12,FALSE),"Cette combinaison de matériau non certifié et de prime pour mise à disposition de pièces détachées n'est pas permise")) ->  | M179: =IFERROR(VLOOKUP('ABJ - saisie multiple'!$K179,Codes!$C:$J,8,FALSE),"") ->  | N179: =IF(E179="","",VLOOKUP(E179,'Param masqué'!$D$3:$E$4,2,FALSE)) ->  | O179: =IF(F179="","",VLOOKUP(F179,'Param masqué'!$J$3:$K$14,2,FALSE)) ->  | P179: =IF(H179="","",VLOOKUP(H179,'Param masqué'!$R$3:$T$82,3,FALSE)) ->  | Q179: =IF(I179="","",VLOOKUP(I179,'Param masqué'!$AD$1:$AE$16,2,FALSE)) ->  | W179: A | X179: A_ | Y179: A_ | AB179: =IFERROR(VLOOKUP($G179,'Param masqué'!$AT$2:$AU$13,2,FALSE),0) -> 0 | AD179: =VLOOKUP(Y179,'Param masqué'!AG:AJ,4,FALSE) ->  | AF179: =VLOOKUP(K179,Tableau2[[Code Ecomaison]:[Mesure]],7,FALSE) -> 
B180: Ref 175 | L180: =IF(K180="","",IFERROR(VLOOKUP(K180,Codes!$C$2:$N$9845,12,FALSE),"Cette combinaison de matériau non certifié et de prime pour mise à disposition de pièces détachées n'est pas permise")) ->  | M180: =IFERROR(VLOOKUP('ABJ - saisie multiple'!$K180,Codes!$C:$J,8,FALSE),"") ->  | N180: =IF(E180="","",VLOOKUP(E180,'Param masqué'!$D$3:$E$4,2,FALSE)) ->  | O180: =IF(F180="","",VLOOKUP(F180,'Param masqué'!$J$3:$K$14,2,FALSE)) ->  | P180: =IF(H180="","",VLOOKUP(H180,'Param masqué'!$R$3:$T$82,3,FALSE)) ->  | Q180: =IF(I180="","",VLOOKUP(I180,'Param masqué'!$AD$1:$AE$16,2,FALSE)) ->  | W180: A | X180: A_ | Y180: A_ | AB180: =IFERROR(VLOOKUP($G180,'Param masqué'!$AT$2:$AU$13,2,FALSE),0) -> 0 | AD180: =VLOOKUP(Y180,'Param masqué'!AG:AJ,4,FALSE) ->  | AF180: =VLOOKUP(K180,Tableau2[[Code Ecomaison]:[Mesure]],7,FALSE) -> 
B181: Ref 176 | L181: =IF(K181="","",IFERROR(VLOOKUP(K181,Codes!$C$2:$N$9845,12,FALSE),"Cette combinaison de matériau non certifié et de prime pour mise à disposition de pièces détachées n'est pas permise")) ->  | M181: =IFERROR(VLOOKUP('ABJ - saisie multiple'!$K181,Codes!$C:$J,8,FALSE),"") ->  | N181: =IF(E181="","",VLOOKUP(E181,'Param masqué'!$D$3:$E$4,2,FALSE)) ->  | O181: =IF(F181="","",VLOOKUP(F181,'Param masqué'!$J$3:$K$14,2,FALSE)) ->  | P181: =IF(H181="","",VLOOKUP(H181,'Param masqué'!$R$3:$T$82,3,FALSE)) ->  | Q181: =IF(I181="","",VLOOKUP(I181,'Param masqué'!$AD$1:$AE$16,2,FALSE)) ->  | W181: A | X181: A_ | Y181: A_ | AB181: =IFERROR(VLOOKUP($G181,'Param masqué'!$AT$2:$AU$13,2,FALSE),0) -> 0 | AD181: =VLOOKUP(Y181,'Param masqué'!AG:AJ,4,FALSE) ->  | AF181: =VLOOKUP(K181,Tableau2[[Code Ecomaison]:[Mesure]],7,FALSE) -> 
B182: Ref 177 | L182: =IF(K182="","",IFERROR(VLOOKUP(K182,Codes!$C$2:$N$9845,12,FALSE),"Cette combinaison de matériau non certifié et de prime pour mise à disposition de pièces détachées n'est pas permise")) ->  | M182: =IFERROR(VLOOKUP('ABJ - saisie multiple'!$K182,Codes!$C:$J,8,FALSE),"") ->  | N182: =IF(E182="","",VLOOKUP(E182,'Param masqué'!$D$3:$E$4,2,FALSE)) ->  | O182: =IF(F182="","",VLOOKUP(F182,'Param masqué'!$J$3:$K$14,2,FALSE)) ->  | P182: =IF(H182="","",VLOOKUP(H182,'Param masqué'!$R$3:$T$82,3,FALSE)) ->  | Q182: =IF(I182="","",VLOOKUP(I182,'Param masqué'!$AD$1:$AE$16,2,FALSE)) ->  | W182: A | X182: A_ | Y182: A_ | AB182: =IFERROR(VLOOKUP($G182,'Param masqué'!$AT$2:$AU$13,2,FALSE),0) -> 0 | AD182: =VLOOKUP(Y182,'Param masqué'!AG:AJ,4,FALSE) ->  | AF182: =VLOOKUP(K182,Tableau2[[Code Ecomaison]:[Mesure]],7,FALSE) -> 
B183: Ref 178 | L183: =IF(K183="","",IFERROR(VLOOKUP(K183,Codes!$C$2:$N$9845,12,FALSE),"Cette combinaison de matériau non certifié et de prime pour mise à disposition de pièces détachées n'est pas permise")) ->  | M183: =IFERROR(VLOOKUP('ABJ - saisie multiple'!$K183,Codes!$C:$J,8,FALSE),"") ->  | N183: =IF(E183="","",VLOOKUP(E183,'Param masqué'!$D$3:$E$4,2,FALSE)) ->  | O183: =IF(F183="","",VLOOKUP(F183,'Param masqué'!$J$3:$K$14,2,FALSE)) ->  | P183: =IF(H183="","",VLOOKUP(H183,'Param masqué'!$R$3:$T$82,3,FALSE)) ->  | Q183: =IF(I183="","",VLOOKUP(I183,'Param masqué'!$AD$1:$AE$16,2,FALSE)) ->  | W183: A | X183: A_ | Y183: A_ | AB183: =IFERROR(VLOOKUP($G183,'Param masqué'!$AT$2:$AU$13,2,FALSE),0) -> 0 | AD183: =VLOOKUP(Y183,'Param masqué'!AG:AJ,4,FALSE) ->  | AF183: =VLOOKUP(K183,Tableau2[[Code Ecomaison]:[Mesure]],7,FALSE) -> 
B184: Ref 179 | L184: =IF(K184="","",IFERROR(VLOOKUP(K184,Codes!$C$2:$N$9845,12,FALSE),"Cette combinaison de matériau non certifié et de prime pour mise à disposition de pièces détachées n'est pas permise")) ->  | M184: =IFERROR(VLOOKUP('ABJ - saisie multiple'!$K184,Codes!$C:$J,8,FALSE),"") ->  | N184: =IF(E184="","",VLOOKUP(E184,'Param masqué'!$D$3:$E$4,2,FALSE)) ->  | O184: =IF(F184="","",VLOOKUP(F184,'Param masqué'!$J$3:$K$14,2,FALSE)) ->  | P184: =IF(H184="","",VLOOKUP(H184,'Param masqué'!$R$3:$T$82,3,FALSE)) ->  | Q184: =IF(I184="","",VLOOKUP(I184,'Param masqué'!$AD$1:$AE$16,2,FALSE)) ->  | W184: A | X184: A_ | Y184: A_ | AB184: =IFERROR(VLOOKUP($G184,'Param masqué'!$AT$2:$AU$13,2,FALSE),0) -> 0 | AD184: =VLOOKUP(Y184,'Param masqué'!AG:AJ,4,FALSE) ->  | AF184: =VLOOKUP(K184,Tableau2[[Code Ecomaison]:[Mesure]],7,FALSE) -> 
B185: Ref 180 | L185: =IF(K185="","",IFERROR(VLOOKUP(K185,Codes!$C$2:$N$9845,12,FALSE),"Cette combinaison de matériau non certifié et de prime pour mise à disposition de pièces détachées n'est pas permise")) ->  | M185: =IFERROR(VLOOKUP('ABJ - saisie multiple'!$K185,Codes!$C:$J,8,FALSE),"") ->  | N185: =IF(E185="","",VLOOKUP(E185,'Param masqué'!$D$3:$E$4,2,FALSE)) ->  | O185: =IF(F185="","",VLOOKUP(F185,'Param masqué'!$J$3:$K$14,2,FALSE)) ->  | P185: =IF(H185="","",VLOOKUP(H185,'Param masqué'!$R$3:$T$82,3,FALSE)) ->  | Q185: =IF(I185="","",VLOOKUP(I185,'Param masqué'!$AD$1:$AE$16,2,FALSE)) ->  | W185: A | X185: A_ | Y185: A_ | AB185: =IFERROR(VLOOKUP($G185,'Param masqué'!$AT$2:$AU$13,2,FALSE),0) -> 0 | AD185: =VLOOKUP(Y185,'Param masqué'!AG:AJ,4,FALSE) ->  | AF185: =VLOOKUP(K185,Tableau2[[Code Ecomaison]:[Mesure]],7,FALSE) -> 
B186: Ref 181 | L186: =IF(K186="","",IFERROR(VLOOKUP(K186,Codes!$C$2:$N$9845,12,FALSE),"Cette combinaison de matériau non certifié et de prime pour mise à disposition de pièces détachées n'est pas permise")) ->  | M186: =IFERROR(VLOOKUP('ABJ - saisie multiple'!$K186,Codes!$C:$J,8,FALSE),"") ->  | N186: =IF(E186="","",VLOOKUP(E186,'Param masqué'!$D$3:$E$4,2,FALSE)) ->  | O186: =IF(F186="","",VLOOKUP(F186,'Param masqué'!$J$3:$K$14,2,FALSE)) ->  | P186: =IF(H186="","",VLOOKUP(H186,'Param masqué'!$R$3:$T$82,3,FALSE)) ->  | Q186: =IF(I186="","",VLOOKUP(I186,'Param masqué'!$AD$1:$AE$16,2,FALSE)) ->  | W186: A | X186: A_ | Y186: A_ | AB186: =IFERROR(VLOOKUP($G186,'Param masqué'!$AT$2:$AU$13,2,FALSE),0) -> 0 | AD186: =VLOOKUP(Y186,'Param masqué'!AG:AJ,4,FALSE) ->  | AF186: =VLOOKUP(K186,Tableau2[[Code Ecomaison]:[Mesure]],7,FALSE) -> 
B187: Ref 182 | L187: =IF(K187="","",IFERROR(VLOOKUP(K187,Codes!$C$2:$N$9845,12,FALSE),"Cette combinaison de matériau non certifié et de prime pour mise à disposition de pièces détachées n'est pas permise")) ->  | M187: =IFERROR(VLOOKUP('ABJ - saisie multiple'!$K187,Codes!$C:$J,8,FALSE),"") ->  | N187: =IF(E187="","",VLOOKUP(E187,'Param masqué'!$D$3:$E$4,2,FALSE)) ->  | O187: =IF(F187="","",VLOOKUP(F187,'Param masqué'!$J$3:$K$14,2,FALSE)) ->  | P187: =IF(H187="","",VLOOKUP(H187,'Param masqué'!$R$3:$T$82,3,FALSE)) ->  | Q187: =IF(I187="","",VLOOKUP(I187,'Param masqué'!$AD$1:$AE$16,2,FALSE)) ->  | W187: A | X187: A_ | Y187: A_ | AB187: =IFERROR(VLOOKUP($G187,'Param masqué'!$AT$2:$AU$13,2,FALSE),0) -> 0 | AD187: =VLOOKUP(Y187,'Param masqué'!AG:AJ,4,FALSE) ->  | AF187: =VLOOKUP(K187,Tableau2[[Code Ecomaison]:[Mesure]],7,FALSE) -> 
B188: Ref 183 | L188: =IF(K188="","",IFERROR(VLOOKUP(K188,Codes!$C$2:$N$9845,12,FALSE),"Cette combinaison de matériau non certifié et de prime pour mise à disposition de pièces détachées n'est pas permise")) ->  | M188: =IFERROR(VLOOKUP('ABJ - saisie multiple'!$K188,Codes!$C:$J,8,FALSE),"") ->  | N188: =IF(E188="","",VLOOKUP(E188,'Param masqué'!$D$3:$E$4,2,FALSE)) ->  | O188: =IF(F188="","",VLOOKUP(F188,'Param masqué'!$J$3:$K$14,2,FALSE)) ->  | P188: =IF(H188="","",VLOOKUP(H188,'Param masqué'!$R$3:$T$82,3,FALSE)) ->  | Q188: =IF(I188="","",VLOOKUP(I188,'Param masqué'!$AD$1:$AE$16,2,FALSE)) ->  | W188: A | X188: A_ | Y188: A_ | AB188: =IFERROR(VLOOKUP($G188,'Param masqué'!$AT$2:$AU$13,2,FALSE),0) -> 0 | AD188: =VLOOKUP(Y188,'Param masqué'!AG:AJ,4,FALSE) ->  | AF188: =VLOOKUP(K188,Tableau2[[Code Ecomaison]:[Mesure]],7,FALSE) -> 
B189: Ref 184 | L189: =IF(K189="","",IFERROR(VLOOKUP(K189,Codes!$C$2:$N$9845,12,FALSE),"Cette combinaison de matériau non certifié et de prime pour mise à disposition de pièces détachées n'est pas permise")) ->  | M189: =IFERROR(VLOOKUP('ABJ - saisie multiple'!$K189,Codes!$C:$J,8,FALSE),"") ->  | N189: =IF(E189="","",VLOOKUP(E189,'Param masqué'!$D$3:$E$4,2,FALSE)) ->  | O189: =IF(F189="","",VLOOKUP(F189,'Param masqué'!$J$3:$K$14,2,FALSE)) ->  | P189: =IF(H189="","",VLOOKUP(H189,'Param masqué'!$R$3:$T$82,3,FALSE)) ->  | Q189: =IF(I189="","",VLOOKUP(I189,'Param masqué'!$AD$1:$AE$16,2,FALSE)) ->  | W189: A | X189: A_ | Y189: A_ | AB189: =IFERROR(VLOOKUP($G189,'Param masqué'!$AT$2:$AU$13,2,FALSE),0) -> 0 | AD189: =VLOOKUP(Y189,'Param masqué'!AG:AJ,4,FALSE) ->  | AF189: =VLOOKUP(K189,Tableau2[[Code Ecomaison]:[Mesure]],7,FALSE) -> 
B190: Ref 185 | L190: =IF(K190="","",IFERROR(VLOOKUP(K190,Codes!$C$2:$N$9845,12,FALSE),"Cette combinaison de matériau non certifié et de prime pour mise à disposition de pièces détachées n'est pas permise")) ->  | M190: =IFERROR(VLOOKUP('ABJ - saisie multiple'!$K190,Codes!$C:$J,8,FALSE),"") ->  | N190: =IF(E190="","",VLOOKUP(E190,'Param masqué'!$D$3:$E$4,2,FALSE)) ->  | O190: =IF(F190="","",VLOOKUP(F190,'Param masqué'!$J$3:$K$14,2,FALSE)) ->  | P190: =IF(H190="","",VLOOKUP(H190,'Param masqué'!$R$3:$T$82,3,FALSE)) ->  | Q190: =IF(I190="","",VLOOKUP(I190,'Param masqué'!$AD$1:$AE$16,2,FALSE)) ->  | W190: A | X190: A_ | Y190: A_ | AB190: =IFERROR(VLOOKUP($G190,'Param masqué'!$AT$2:$AU$13,2,FALSE),0) -> 0 | AD190: =VLOOKUP(Y190,'Param masqué'!AG:AJ,4,FALSE) ->  | AF190: =VLOOKUP(K190,Tableau2[[Code Ecomaison]:[Mesure]],7,FALSE) -> 
B191: Ref 186 | L191: =IF(K191="","",IFERROR(VLOOKUP(K191,Codes!$C$2:$N$9845,12,FALSE),"Cette combinaison de matériau non certifié et de prime pour mise à disposition de pièces détachées n'est pas permise")) ->  | M191: =IFERROR(VLOOKUP('ABJ - saisie multiple'!$K191,Codes!$C:$J,8,FALSE),"") ->  | N191: =IF(E191="","",VLOOKUP(E191,'Param masqué'!$D$3:$E$4,2,FALSE)) ->  | O191: =IF(F191="","",VLOOKUP(F191,'Param masqué'!$J$3:$K$14,2,FALSE)) ->  | P191: =IF(H191="","",VLOOKUP(H191,'Param masqué'!$R$3:$T$82,3,FALSE)) ->  | Q191: =IF(I191="","",VLOOKUP(I191,'Param masqué'!$AD$1:$AE$16,2,FALSE)) ->  | W191: A | X191: A_ | Y191: A_ | AB191: =IFERROR(VLOOKUP($G191,'Param masqué'!$AT$2:$AU$13,2,FALSE),0) -> 0 | AD191: =VLOOKUP(Y191,'Param masqué'!AG:AJ,4,FALSE) ->  | AF191: =VLOOKUP(K191,Tableau2[[Code Ecomaison]:[Mesure]],7,FALSE) -> 
B192: Ref 187 | L192: =IF(K192="","",IFERROR(VLOOKUP(K192,Codes!$C$2:$N$9845,12,FALSE),"Cette combinaison de matériau non certifié et de prime pour mise à disposition de pièces détachées n'est pas permise")) ->  | M192: =IFERROR(VLOOKUP('ABJ - saisie multiple'!$K192,Codes!$C:$J,8,FALSE),"") ->  | N192: =IF(E192="","",VLOOKUP(E192,'Param masqué'!$D$3:$E$4,2,FALSE)) ->  | O192: =IF(F192="","",VLOOKUP(F192,'Param masqué'!$J$3:$K$14,2,FALSE)) ->  | P192: =IF(H192="","",VLOOKUP(H192,'Param masqué'!$R$3:$T$82,3,FALSE)) ->  | Q192: =IF(I192="","",VLOOKUP(I192,'Param masqué'!$AD$1:$AE$16,2,FALSE)) ->  | W192: A | X192: A_ | Y192: A_ | AB192: =IFERROR(VLOOKUP($G192,'Param masqué'!$AT$2:$AU$13,2,FALSE),0) -> 0 | AD192: =VLOOKUP(Y192,'Param masqué'!AG:AJ,4,FALSE) ->  | AF192: =VLOOKUP(K192,Tableau2[[Code Ecomaison]:[Mesure]],7,FALSE) -> 
B193: Ref 188 | L193: =IF(K193="","",IFERROR(VLOOKUP(K193,Codes!$C$2:$N$9845,12,FALSE),"Cette combinaison de matériau non certifié et de prime pour mise à disposition de pièces détachées n'est pas permise")) ->  | M193: =IFERROR(VLOOKUP('ABJ - saisie multiple'!$K193,Codes!$C:$J,8,FALSE),"") ->  | N193: =IF(E193="","",VLOOKUP(E193,'Param masqué'!$D$3:$E$4,2,FALSE)) ->  | O193: =IF(F193="","",VLOOKUP(F193,'Param masqué'!$J$3:$K$14,2,FALSE)) ->  | P193: =IF(H193="","",VLOOKUP(H193,'Param masqué'!$R$3:$T$82,3,FALSE)) ->  | Q193: =IF(I193="","",VLOOKUP(I193,'Param masqué'!$AD$1:$AE$16,2,FALSE)) ->  | W193: A | X193: A_ | Y193: A_ | AB193: =IFERROR(VLOOKUP($G193,'Param masqué'!$AT$2:$AU$13,2,FALSE),0) -> 0 | AD193: =VLOOKUP(Y193,'Param masqué'!AG:AJ,4,FALSE) ->  | AF193: =VLOOKUP(K193,Tableau2[[Code Ecomaison]:[Mesure]],7,FALSE) -> 
B194: Ref 189 | L194: =IF(K194="","",IFERROR(VLOOKUP(K194,Codes!$C$2:$N$9845,12,FALSE),"Cette combinaison de matériau non certifié et de prime pour mise à disposition de pièces détachées n'est pas permise")) ->  | M194: =IFERROR(VLOOKUP('ABJ - saisie multiple'!$K194,Codes!$C:$J,8,FALSE),"") ->  | N194: =IF(E194="","",VLOOKUP(E194,'Param masqué'!$D$3:$E$4,2,FALSE)) ->  | O194: =IF(F194="","",VLOOKUP(F194,'Param masqué'!$J$3:$K$14,2,FALSE)) ->  | P194: =IF(H194="","",VLOOKUP(H194,'Param masqué'!$R$3:$T$82,3,FALSE)) ->  | Q194: =IF(I194="","",VLOOKUP(I194,'Param masqué'!$AD$1:$AE$16,2,FALSE)) ->  | W194: A | X194: A_ | Y194: A_ | AB194: =IFERROR(VLOOKUP($G194,'Param masqué'!$AT$2:$AU$13,2,FALSE),0) -> 0 | AD194: =VLOOKUP(Y194,'Param masqué'!AG:AJ,4,FALSE) ->  | AF194: =VLOOKUP(K194,Tableau2[[Code Ecomaison]:[Mesure]],7,FALSE) -> 
B195: Ref 190 | L195: =IF(K195="","",IFERROR(VLOOKUP(K195,Codes!$C$2:$N$9845,12,FALSE),"Cette combinaison de matériau non certifié et de prime pour mise à disposition de pièces détachées n'est pas permise")) ->  | M195: =IFERROR(VLOOKUP('ABJ - saisie multiple'!$K195,Codes!$C:$J,8,FALSE),"") ->  | N195: =IF(E195="","",VLOOKUP(E195,'Param masqué'!$D$3:$E$4,2,FALSE)) ->  | O195: =IF(F195="","",VLOOKUP(F195,'Param masqué'!$J$3:$K$14,2,FALSE)) ->  | P195: =IF(H195="","",VLOOKUP(H195,'Param masqué'!$R$3:$T$82,3,FALSE)) ->  | Q195: =IF(I195="","",VLOOKUP(I195,'Param masqué'!$AD$1:$AE$16,2,FALSE)) ->  | W195: A | X195: A_ | Y195: A_ | AB195: =IFERROR(VLOOKUP($G195,'Param masqué'!$AT$2:$AU$13,2,FALSE),0) -> 0 | AD195: =VLOOKUP(Y195,'Param masqué'!AG:AJ,4,FALSE) ->  | AF195: =VLOOKUP(K195,Tableau2[[Code Ecomaison]:[Mesure]],7,FALSE) -> 
B196: Ref 191 | L196: =IF(K196="","",IFERROR(VLOOKUP(K196,Codes!$C$2:$N$9845,12,FALSE),"Cette combinaison de matériau non certifié et de prime pour mise à disposition de pièces détachées n'est pas permise")) ->  | M196: =IFERROR(VLOOKUP('ABJ - saisie multiple'!$K196,Codes!$C:$J,8,FALSE),"") ->  | N196: =IF(E196="","",VLOOKUP(E196,'Param masqué'!$D$3:$E$4,2,FALSE)) ->  | O196: =IF(F196="","",VLOOKUP(F196,'Param masqué'!$J$3:$K$14,2,FALSE)) ->  | P196: =IF(H196="","",VLOOKUP(H196,'Param masqué'!$R$3:$T$82,3,FALSE)) ->  | Q196: =IF(I196="","",VLOOKUP(I196,'Param masqué'!$AD$1:$AE$16,2,FALSE)) ->  | W196: A | X196: A_ | Y196: A_ | AB196: =IFERROR(VLOOKUP($G196,'Param masqué'!$AT$2:$AU$13,2,FALSE),0) -> 0 | AD196: =VLOOKUP(Y196,'Param masqué'!AG:AJ,4,FALSE) ->  | AF196: =VLOOKUP(K196,Tableau2[[Code Ecomaison]:[Mesure]],7,FALSE) -> 
B197: Ref 192 | L197: =IF(K197="","",IFERROR(VLOOKUP(K197,Codes!$C$2:$N$9845,12,FALSE),"Cette combinaison de matériau non certifié et de prime pour mise à disposition de pièces détachées n'est pas permise")) ->  | M197: =IFERROR(VLOOKUP('ABJ - saisie multiple'!$K197,Codes!$C:$J,8,FALSE),"") ->  | N197: =IF(E197="","",VLOOKUP(E197,'Param masqué'!$D$3:$E$4,2,FALSE)) ->  | O197: =IF(F197="","",VLOOKUP(F197,'Param masqué'!$J$3:$K$14,2,FALSE)) ->  | P197: =IF(H197="","",VLOOKUP(H197,'Param masqué'!$R$3:$T$82,3,FALSE)) ->  | Q197: =IF(I197="","",VLOOKUP(I197,'Param masqué'!$AD$1:$AE$16,2,FALSE)) ->  | W197: A | X197: A_ | Y197: A_ | AB197: =IFERROR(VLOOKUP($G197,'Param masqué'!$AT$2:$AU$13,2,FALSE),0) -> 0 | AD197: =VLOOKUP(Y197,'Param masqué'!AG:AJ,4,FALSE) ->  | AF197: =VLOOKUP(K197,Tableau2[[Code Ecomaison]:[Mesure]],7,FALSE) -> 
B198: Ref 193 | L198: =IF(K198="","",IFERROR(VLOOKUP(K198,Codes!$C$2:$N$9845,12,FALSE),"Cette combinaison de matériau non certifié et de prime pour mise à disposition de pièces détachées n'est pas permise")) ->  | M198: =IFERROR(VLOOKUP('ABJ - saisie multiple'!$K198,Codes!$C:$J,8,FALSE),"") ->  | N198: =IF(E198="","",VLOOKUP(E198,'Param masqué'!$D$3:$E$4,2,FALSE)) ->  | O198: =IF(F198="","",VLOOKUP(F198,'Param masqué'!$J$3:$K$14,2,FALSE)) ->  | P198: =IF(H198="","",VLOOKUP(H198,'Param masqué'!$R$3:$T$82,3,FALSE)) ->  | Q198: =IF(I198="","",VLOOKUP(I198,'Param masqué'!$AD$1:$AE$16,2,FALSE)) ->  | W198: A | X198: A_ | Y198: A_ | AB198: =IFERROR(VLOOKUP($G198,'Param masqué'!$AT$2:$AU$13,2,FALSE),0) -> 0 | AD198: =VLOOKUP(Y198,'Param masqué'!AG:AJ,4,FALSE) ->  | AF198: =VLOOKUP(K198,Tableau2[[Code Ecomaison]:[Mesure]],7,FALSE) -> 
B199: Ref 194 | K199: =IF(OR(I199="",H199="",F199="",E199=""),"",CONCATENATE(N199,O199,P199,Q199,IF(J199="Oui",1,0))) ->  | L199: =IF(K199="","",IFERROR(VLOOKUP(K199,Codes!$C$2:$N$9845,12,FALSE),"Cette combinaison de matériau non certifié et de prime pour mise à disposition de pièces détachées n'est pas permise")) ->  | M199: =IFERROR(VLOOKUP('ABJ - saisie multiple'!$K199,Codes!$C:$J,8,FALSE),"") ->  | N199: =IF(E199="","",VLOOKUP(E199,'Param masqué'!$D$3:$E$4,2,FALSE)) ->  | O199: =IF(F199="","",VLOOKUP(F199,'Param masqué'!$J$3:$K$14,2,FALSE)) ->  | P199: =IF(H199="","",VLOOKUP(H199,'Param masqué'!$R$3:$T$82,3,FALSE)) ->  | Q199: =IF(I199="","",VLOOKUP(I199,'Param masqué'!$AD$1:$AE$16,2,FALSE)) ->  | R199: =IFERROR(IF(AF199="€/unité",M199,D199*M199/1000),"") ->  | W199: A | X199: =W199&"_"&N199 -> A_ | Y199: =W199&"_"&O199 -> A_ | AB199: =IFERROR(VLOOKUP($G199,'Param masqué'!$AT$2:$AU$13,2,FALSE),0) -> 0 | AD199: =VLOOKUP(Y199,'Param masqué'!AG:AJ,4,FALSE) ->  | AF199: =VLOOKUP(K199,Tableau2[[Code Ecomaison]:[Mesure]],7,FALSE) -> 
B200: Ref 195 | L200: =IF(K200="","",IFERROR(VLOOKUP(K200,Codes!$C$2:$N$9845,12,FALSE),"Cette combinaison de matériau non certifié et de prime pour mise à disposition de pièces détachées n'est pas permise")) ->  | M200: =IFERROR(VLOOKUP('ABJ - saisie multiple'!$K200,Codes!$C:$J,8,FALSE),"") ->  | N200: =IF(E200="","",VLOOKUP(E200,'Param masqué'!$D$3:$E$4,2,FALSE)) ->  | O200: =IF(F200="","",VLOOKUP(F200,'Param masqué'!$J$3:$K$14,2,FALSE)) ->  | P200: =IF(H200="","",VLOOKUP(H200,'Param masqué'!$R$3:$T$82,3,FALSE)) ->  | Q200: =IF(I200="","",VLOOKUP(I200,'Param masqué'!$AD$1:$AE$16,2,FALSE)) ->  | W200: A | X200: A_ | Y200: A_ | AB200: =IFERROR(VLOOKUP($G200,'Param masqué'!$AT$2:$AU$13,2,FALSE),0) -> 0 | AD200: =VLOOKUP(Y200,'Param masqué'!AG:AJ,4,FALSE) ->  | AF200: =VLOOKUP(K200,Tableau2[[Code Ecomaison]:[Mesure]],7,FALSE) -> 
B201: Ref 196 | L201: =IF(K201="","",IFERROR(VLOOKUP(K201,Codes!$C$2:$N$9845,12,FALSE),"Cette combinaison de matériau non certifié et de prime pour mise à disposition de pièces détachées n'est pas permise")) ->  | M201: =IFERROR(VLOOKUP('ABJ - saisie multiple'!$K201,Codes!$C:$J,8,FALSE),"") ->  | N201: =IF(E201="","",VLOOKUP(E201,'Param masqué'!$D$3:$E$4,2,FALSE)) ->  | O201: =IF(F201="","",VLOOKUP(F201,'Param masqué'!$J$3:$K$14,2,FALSE)) ->  | P201: =IF(H201="","",VLOOKUP(H201,'Param masqué'!$R$3:$T$82,3,FALSE)) ->  | Q201: =IF(I201="","",VLOOKUP(I201,'Param masqué'!$AD$1:$AE$16,2,FALSE)) ->  | W201: A | X201: A_ | Y201: A_ | AB201: =IFERROR(VLOOKUP($G201,'Param masqué'!$AT$2:$AU$13,2,FALSE),0) -> 0 | AD201: =VLOOKUP(Y201,'Param masqué'!AG:AJ,4,FALSE) ->  | AF201: =VLOOKUP(K201,Tableau2[[Code Ecomaison]:[Mesure]],7,FALSE) -> 
B202: Ref 197 | L202: =IF(K202="","",IFERROR(VLOOKUP(K202,Codes!$C$2:$N$9845,12,FALSE),"Cette combinaison de matériau non certifié et de prime pour mise à disposition de pièces détachées n'est pas permise")) ->  | M202: =IFERROR(VLOOKUP('ABJ - saisie multiple'!$K202,Codes!$C:$J,8,FALSE),"") ->  | N202: =IF(E202="","",VLOOKUP(E202,'Param masqué'!$D$3:$E$4,2,FALSE)) ->  | O202: =IF(F202="","",VLOOKUP(F202,'Param masqué'!$J$3:$K$14,2,FALSE)) ->  | P202: =IF(H202="","",VLOOKUP(H202,'Param masqué'!$R$3:$T$82,3,FALSE)) ->  | Q202: =IF(I202="","",VLOOKUP(I202,'Param masqué'!$AD$1:$AE$16,2,FALSE)) ->  | W202: A | X202: A_ | Y202: A_ | AB202: =IFERROR(VLOOKUP($G202,'Param masqué'!$AT$2:$AU$13,2,FALSE),0) -> 0 | AD202: =VLOOKUP(Y202,'Param masqué'!AG:AJ,4,FALSE) ->  | AF202: =VLOOKUP(K202,Tableau2[[Code Ecomaison]:[Mesure]],7,FALSE) -> 
... 1947 more rows

Sheet Retrouvez vos tarifs 2026
A1: Retrouvez vos tarifs 2026 - Générateur de code produit - ABJ
A2: Saisissez vos codes Ecomaison (à 11 chiffres) dans la colonne A pour retrouver le tarif associé applicable à partir du 1er janvier 2026
A4: Code Ecomaison 2025 | B4: Mesure | C4: Eco-participation 2026 HT | D4: Rayon | E4: Catégorie de produits | F4: Matériaux | G4: Tranches de dimensions | H4: Code Ecomodulé | I4: Code Eco part
A5: 21100280000 | B5: =_xlfn.XLOOKUP(A5,Codes!C:C,Codes!I:I) -> € / Tonne | C5: =_xlfn.XLOOKUP(A5,Codes!C:C,Codes!J:J) -> 22 | D5: =_xlfn.XLOOKUP(A5,Codes!C:C,Codes!E:E) -> Articles de bricolage | E5: =_xlfn.XLOOKUP(A5,Codes!C:C,Codes!F:F) -> Outillage à main et leurs accessoires | F5: =_xlfn.XLOOKUP(A5,Codes!C:C,Codes!G:G) -> Métal >95% | G5: =_xlfn.XLOOKUP(A5,Codes!C:C,Codes!H:H) -> Eléments de toutes dimensions et poids | H5: =_xlfn.XLOOKUP(A5,Codes!C:C,Codes!D:D) -> 0 | I5: =_xlfn.XLOOKUP(A5,Codes!C:C,Codes!L:L) -> 555
A6: 22152970210 | B6: =_xlfn.XLOOKUP(A6,Codes!C:C,Codes!I:I) -> €/unité | C6: =_xlfn.XLOOKUP(A6,Codes!C:C,Codes!J:J) -> 0.02 | D6: =_xlfn.XLOOKUP(A6,Codes!C:C,Codes!E:E) -> Entretien et aménagement du jardin | E6: =_xlfn.XLOOKUP(A6,Codes!C:C,Codes!F:F) -> Pots de fleur et contenants | F6: =_xlfn.XLOOKUP(A6,Codes!C:C,Codes!G:G) -> Céramique >95% | G6: =_xlfn.XLOOKUP(A6,Codes!C:C,Codes!H:H) -> Compris entre 0,5 kg et 1 kg exclus | H6: =_xlfn.XLOOKUP(A6,Codes!C:C,Codes!D:D) -> 0 | I6: =_xlfn.XLOOKUP(A6,Codes!C:C,Codes!L:L) -> 047
A7: 22154480001 | B7: =_xlfn.XLOOKUP(A7,Codes!C:C,Codes!I:I) -> € / Tonne | C7: =_xlfn.XLOOKUP(A7,Codes!C:C,Codes!J:J) -> 58.5 | D7: =_xlfn.XLOOKUP(A7,Codes!C:C,Codes!E:E) -> Entretien et aménagement du jardin | E7: =_xlfn.XLOOKUP(A7,Codes!C:C,Codes!F:F) -> Equipements de plein air et leurs accessoires (hors bâches, filets, housses) | F7: =_xlfn.XLOOKUP(A7,Codes!C:C,Codes!G:G) -> PVC >95% | G7: =_xlfn.XLOOKUP(A7,Codes!C:C,Codes!H:H) -> Eléments de toutes dimensions et poids | H7: =_xlfn.XLOOKUP(A7,Codes!C:C,Codes!D:D) -> modulé | I7: =_xlfn.XLOOKUP(A7,Codes!C:C,Codes!L:L) -> 942
B8: =_xlfn.XLOOKUP(A8,Codes!C:C,Codes!I:I) -> 0 | C8: =_xlfn.XLOOKUP(A8,Codes!C:C,Codes!J:J) -> 0 | D8: =_xlfn.XLOOKUP(A8,Codes!C:C,Codes!E:E) -> 0 | E8: =_xlfn.XLOOKUP(A8,Codes!C:C,Codes!F:F) -> 0 | F8: =_xlfn.XLOOKUP(A8,Codes!C:C,Codes!G:G) -> 0 | G8: =_xlfn.XLOOKUP(A8,Codes!C:C,Codes!H:H) -> 0 | H8: =_xlfn.XLOOKUP(A8,Codes!C:C,Codes!D:D) -> 0 | I8: =_xlfn.XLOOKUP(A8,Codes!C:C,Codes!L:L) -> 0
B9: =_xlfn.XLOOKUP(A9,Codes!C:C,Codes!I:I) -> 0 | C9: =_xlfn.XLOOKUP(A9,Codes!C:C,Codes!J:J) -> 0 | D9: =_xlfn.XLOOKUP(A9,Codes!C:C,Codes!E:E) -> 0 | E9: =_xlfn.XLOOKUP(A9,Codes!C:C,Codes!F:F) -> 0 | F9: =_xlfn.XLOOKUP(A9,Codes!C:C,Codes!G:G) -> 0 | G9: =_xlfn.XLOOKUP(A9,Codes!C:C,Codes!H:H) -> 0 | H9: =_xlfn.XLOOKUP(A9,Codes!C:C,Codes!D:D) -> 0 | I9: =_xlfn.XLOOKUP(A9,Codes!C:C,Codes!L:L) -> 0
B10: =_xlfn.XLOOKUP(A10,Codes!C:C,Codes!I:I) -> 0 | C10: =_xlfn.XLOOKUP(A10,Codes!C:C,Codes!J:J) -> 0 | D10: =_xlfn.XLOOKUP(A10,Codes!C:C,Codes!E:E) -> 0 | E10: =_xlfn.XLOOKUP(A10,Codes!C:C,Codes!F:F) -> 0 | F10: =_xlfn.XLOOKUP(A10,Codes!C:C,Codes!G:G) -> 0 | G10: =_xlfn.XLOOKUP(A10,Codes!C:C,Codes!H:H) -> 0 | H10: =_xlfn.XLOOKUP(A10,Codes!C:C,Codes!D:D) -> 0 | I10: =_xlfn.XLOOKUP(A10,Codes!C:C,Codes!L:L) -> 0
B11: =_xlfn.XLOOKUP(A11,Codes!C:C,Codes!I:I) -> 0 | C11: =_xlfn.XLOOKUP(A11,Codes!C:C,Codes!J:J) -> 0 | D11: =_xlfn.XLOOKUP(A11,Codes!C:C,Codes!E:E) -> 0 | E11: =_xlfn.XLOOKUP(A11,Codes!C:C,Codes!F:F) -> 0 | F11: =_xlfn.XLOOKUP(A11,Codes!C:C,Codes!G:G) -> 0 | G11: =_xlfn.XLOOKUP(A11,Codes!C:C,Codes!H:H) -> 0 | H11: =_xlfn.XLOOKUP(A11,Codes!C:C,Codes!D:D) -> 0 | I11: =_xlfn.XLOOKUP(A11,Codes!C:C,Codes!L:L) -> 0
B12: =_xlfn.XLOOKUP(A12,Codes!C:C,Codes!I:I) -> 0 | C12: =_xlfn.XLOOKUP(A12,Codes!C:C,Codes!J:J) -> 0 | D12: =_xlfn.XLOOKUP(A12,Codes!C:C,Codes!E:E) -> 0 | E12: =_xlfn.XLOOKUP(A12,Codes!C:C,Codes!F:F) -> 0 | F12: =_xlfn.XLOOKUP(A12,Codes!C:C,Codes!G:G) -> 0 | G12: =_xlfn.XLOOKUP(A12,Codes!C:C,Codes!H:H) -> 0 | H12: =_xlfn.XLOOKUP(A12,Codes!C:C,Codes!D:D) -> 0 | I12: =_xlfn.XLOOKUP(A12,Codes!C:C,Codes!L:L) -> 0
B13: =_xlfn.XLOOKUP(A13,Codes!C:C,Codes!I:I) -> 0 | C13: =_xlfn.XLOOKUP(A13,Codes!C:C,Codes!J:J) -> 0 | D13: =_xlfn.XLOOKUP(A13,Codes!C:C,Codes!E:E) -> 0 | E13: =_xlfn.XLOOKUP(A13,Codes!C:C,Codes!F:F) -> 0 | F13: =_xlfn.XLOOKUP(A13,Codes!C:C,Codes!G:G) -> 0 | G13: =_xlfn.XLOOKUP(A13,Codes!C:C,Codes!H:H) -> 0 | H13: =_xlfn.XLOOKUP(A13,Codes!C:C,Codes!D:D) -> 0 | I13: =_xlfn.XLOOKUP(A13,Codes!C:C,Codes!L:L) -> 0
B14: =_xlfn.XLOOKUP(A14,Codes!C:C,Codes!I:I) -> 0 | C14: =_xlfn.XLOOKUP(A14,Codes!C:C,Codes!J:J) -> 0 | D14: =_xlfn.XLOOKUP(A14,Codes!C:C,Codes!E:E) -> 0 | E14: =_xlfn.XLOOKUP(A14,Codes!C:C,Codes!F:F) -> 0 | F14: =_xlfn.XLOOKUP(A14,Codes!C:C,Codes!G:G) -> 0 | G14: =_xlfn.XLOOKUP(A14,Codes!C:C,Codes!H:H) -> 0 | H14: =_xlfn.XLOOKUP(A14,Codes!C:C,Codes!D:D) -> 0 | I14: =_xlfn.XLOOKUP(A14,Codes!C:C,Codes!L:L) -> 0
B15: =_xlfn.XLOOKUP(A15,Codes!C:C,Codes!I:I) -> 0 | C15: =_xlfn.XLOOKUP(A15,Codes!C:C,Codes!J:J) -> 0 | D15: =_xlfn.XLOOKUP(A15,Codes!C:C,Codes!E:E) -> 0 | E15: =_xlfn.XLOOKUP(A15,Codes!C:C,Codes!F:F) -> 0 | F15: =_xlfn.XLOOKUP(A15,Codes!C:C,Codes!G:G) -> 0 | G15: =_xlfn.XLOOKUP(A15,Codes!C:C,Codes!H:H) -> 0 | H15: =_xlfn.XLOOKUP(A15,Codes!C:C,Codes!D:D) -> 0 | I15: =_xlfn.XLOOKUP(A15,Codes!C:C,Codes!L:L) -> 0
B16: =_xlfn.XLOOKUP(A16,Codes!C:C,Codes!I:I) -> 0 | C16: =_xlfn.XLOOKUP(A16,Codes!C:C,Codes!J:J) -> 0 | D16: =_xlfn.XLOOKUP(A16,Codes!C:C,Codes!E:E) -> 0 | E16: =_xlfn.XLOOKUP(A16,Codes!C:C,Codes!F:F) -> 0 | F16: =_xlfn.XLOOKUP(A16,Codes!C:C,Codes!G:G) -> 0 | G16: =_xlfn.XLOOKUP(A16,Codes!C:C,Codes!H:H) -> 0 | H16: =_xlfn.XLOOKUP(A16,Codes!C:C,Codes!D:D) -> 0 | I16: =_xlfn.XLOOKUP(A16,Codes!C:C,Codes!L:L) -> 0
B17: =_xlfn.XLOOKUP(A17,Codes!C:C,Codes!I:I) -> 0 | C17: =_xlfn.XLOOKUP(A17,Codes!C:C,Codes!J:J) -> 0 | D17: =_xlfn.XLOOKUP(A17,Codes!C:C,Codes!E:E) -> 0 | E17: =_xlfn.XLOOKUP(A17,Codes!C:C,Codes!F:F) -> 0 | F17: =_xlfn.XLOOKUP(A17,Codes!C:C,Codes!G:G) -> 0 | G17: =_xlfn.XLOOKUP(A17,Codes!C:C,Codes!H:H) -> 0 | H17: =_xlfn.XLOOKUP(A17,Codes!C:C,Codes!D:D) -> 0 | I17: =_xlfn.XLOOKUP(A17,Codes!C:C,Codes!L:L) -> 0
B18: =_xlfn.XLOOKUP(A18,Codes!C:C,Codes!I:I) -> 0 | C18: =_xlfn.XLOOKUP(A18,Codes!C:C,Codes!J:J) -> 0 | D18: =_xlfn.XLOOKUP(A18,Codes!C:C,Codes!E:E) -> 0 | E18: =_xlfn.XLOOKUP(A18,Codes!C:C,Codes!F:F) -> 0 | F18: =_xlfn.XLOOKUP(A18,Codes!C:C,Codes!G:G) -> 0 | G18: =_xlfn.XLOOKUP(A18,Codes!C:C,Codes!H:H) -> 0 | H18: =_xlfn.XLOOKUP(A18,Codes!C:C,Codes!D:D) -> 0 | I18: =_xlfn.XLOOKUP(A18,Codes!C:C,Codes!L:L) -> 0
B19: =_xlfn.XLOOKUP(A19,Codes!C:C,Codes!I:I) -> 0 | C19: =_xlfn.XLOOKUP(A19,Codes!C:C,Codes!J:J) -> 0 | D19: =_xlfn.XLOOKUP(A19,Codes!C:C,Codes!E:E) -> 0 | E19: =_xlfn.XLOOKUP(A19,Codes!C:C,Codes!F:F) -> 0 | F19: =_xlfn.XLOOKUP(A19,Codes!C:C,Codes!G:G) -> 0 | G19: =_xlfn.XLOOKUP(A19,Codes!C:C,Codes!H:H) -> 0 | H19: =_xlfn.XLOOKUP(A19,Codes!C:C,Codes!D:D) -> 0 | I19: =_xlfn.XLOOKUP(A19,Codes!C:C,Codes!L:L) -> 0
B20: =_xlfn.XLOOKUP(A20,Codes!C:C,Codes!I:I) -> 0 | C20: =_xlfn.XLOOKUP(A20,Codes!C:C,Codes!J:J) -> 0 | D20: =_xlfn.XLOOKUP(A20,Codes!C:C,Codes!E:E) -> 0 | E20: =_xlfn.XLOOKUP(A20,Codes!C:C,Codes!F:F) -> 0 | F20: =_xlfn.XLOOKUP(A20,Codes!C:C,Codes!G:G) -> 0 | G20: =_xlfn.XLOOKUP(A20,Codes!C:C,Codes!H:H) -> 0 | H20: =_xlfn.XLOOKUP(A20,Codes!C:C,Codes!D:D) -> 0 | I20: =_xlfn.XLOOKUP(A20,Codes!C:C,Codes!L:L) -> 0
B21: =_xlfn.XLOOKUP(A21,Codes!C:C,Codes!I:I) -> 0 | C21: =_xlfn.XLOOKUP(A21,Codes!C:C,Codes!J:J) -> 0 | D21: =_xlfn.XLOOKUP(A21,Codes!C:C,Codes!E:E) -> 0 | E21: =_xlfn.XLOOKUP(A21,Codes!C:C,Codes!F:F) -> 0 | F21: =_xlfn.XLOOKUP(A21,Codes!C:C,Codes!G:G) -> 0 | G21: =_xlfn.XLOOKUP(A21,Codes!C:C,Codes!H:H) -> 0 | H21: =_xlfn.XLOOKUP(A21,Codes!C:C,Codes!D:D) -> 0 | I21: =_xlfn.XLOOKUP(A21,Codes!C:C,Codes!L:L) -> 0
B22: =_xlfn.XLOOKUP(A22,Codes!C:C,Codes!I:I) -> 0 | C22: =_xlfn.XLOOKUP(A22,Codes!C:C,Codes!J:J) -> 0 | D22: =_xlfn.XLOOKUP(A22,Codes!C:C,Codes!E:E) -> 0 | E22: =_xlfn.XLOOKUP(A22,Codes!C:C,Codes!F:F) -> 0 | F22: =_xlfn.XLOOKUP(A22,Codes!C:C,Codes!G:G) -> 0 | G22: =_xlfn.XLOOKUP(A22,Codes!C:C,Codes!H:H) -> 0 | H22: =_xlfn.XLOOKUP(A22,Codes!C:C,Codes!D:D) -> 0 | I22: =_xlfn.XLOOKUP(A22,Codes!C:C,Codes!L:L) -> 0
B23: =_xlfn.XLOOKUP(A23,Codes!C:C,Codes!I:I) -> 0 | C23: =_xlfn.XLOOKUP(A23,Codes!C:C,Codes!J:J) -> 0 | D23: =_xlfn.XLOOKUP(A23,Codes!C:C,Codes!E:E) -> 0 | E23: =_xlfn.XLOOKUP(A23,Codes!C:C,Codes!F:F) -> 0 | F23: =_xlfn.XLOOKUP(A23,Codes!C:C,Codes!G:G) -> 0 | G23: =_xlfn.XLOOKUP(A23,Codes!C:C,Codes!H:H) -> 0 | H23: =_xlfn.XLOOKUP(A23,Codes!C:C,Codes!D:D) -> 0 | I23: =_xlfn.XLOOKUP(A23,Codes!C:C,Codes!L:L) -> 0
B24: =_xlfn.XLOOKUP(A24,Codes!C:C,Codes!I:I) -> 0 | C24: =_xlfn.XLOOKUP(A24,Codes!C:C,Codes!J:J) -> 0 | D24: =_xlfn.XLOOKUP(A24,Codes!C:C,Codes!E:E) -> 0 | E24: =_xlfn.XLOOKUP(A24,Codes!C:C,Codes!F:F) -> 0 | F24: =_xlfn.XLOOKUP(A24,Codes!C:C,Codes!G:G) -> 0 | G24: =_xlfn.XLOOKUP(A24,Codes!C:C,Codes!H:H) -> 0 | H24: =_xlfn.XLOOKUP(A24,Codes!C:C,Codes!D:D) -> 0 | I24: =_xlfn.XLOOKUP(A24,Codes!C:C,Codes!L:L) -> 0
B25: =_xlfn.XLOOKUP(A25,Codes!C:C,Codes!I:I) -> 0 | C25: =_xlfn.XLOOKUP(A25,Codes!C:C,Codes!J:J) -> 0 | D25: =_xlfn.XLOOKUP(A25,Codes!C:C,Codes!E:E) -> 0 | E25: =_xlfn.XLOOKUP(A25,Codes!C:C,Codes!F:F) -> 0 | F25: =_xlfn.XLOOKUP(A25,Codes!C:C,Codes!G:G) -> 0 | G25: =_xlfn.XLOOKUP(A25,Codes!C:C,Codes!H:H) -> 0 | H25: =_xlfn.XLOOKUP(A25,Codes!C:C,Codes!D:D) -> 0 | I25: =_xlfn.XLOOKUP(A25,Codes!C:C,Codes!L:L) -> 0
B26: =_xlfn.XLOOKUP(A26,Codes!C:C,Codes!I:I) -> 0 | C26: =_xlfn.XLOOKUP(A26,Codes!C:C,Codes!J:J) -> 0 | D26: =_xlfn.XLOOKUP(A26,Codes!C:C,Codes!E:E) -> 0 | E26: =_xlfn.XLOOKUP(A26,Codes!C:C,Codes!F:F) -> 0 | F26: =_xlfn.XLOOKUP(A26,Codes!C:C,Codes!G:G) -> 0 | G26: =_xlfn.XLOOKUP(A26,Codes!C:C,Codes!H:H) -> 0 | H26: =_xlfn.XLOOKUP(A26,Codes!C:C,Codes!D:D) -> 0 | I26: =_xlfn.XLOOKUP(A26,Codes!C:C,Codes!L:L) -> 0
B27: =_xlfn.XLOOKUP(A27,Codes!C:C,Codes!I:I) -> 0 | C27: =_xlfn.XLOOKUP(A27,Codes!C:C,Codes!J:J) -> 0 | D27: =_xlfn.XLOOKUP(A27,Codes!C:C,Codes!E:E) -> 0 | E27: =_xlfn.XLOOKUP(A27,Codes!C:C,Codes!F:F) -> 0 | F27: =_xlfn.XLOOKUP(A27,Codes!C:C,Codes!G:G) -> 0 | G27: =_xlfn.XLOOKUP(A27,Codes!C:C,Codes!H:H) -> 0 | H27: =_xlfn.XLOOKUP(A27,Codes!C:C,Codes!D:D) -> 0 | I27: =_xlfn.XLOOKUP(A27,Codes!C:C,Codes!L:L) -> 0
B28: =_xlfn.XLOOKUP(A28,Codes!C:C,Codes!I:I) -> 0 | C28: =_xlfn.XLOOKUP(A28,Codes!C:C,Codes!J:J) -> 0 | D28: =_xlfn.XLOOKUP(A28,Codes!C:C,Codes!E:E) -> 0 | E28: =_xlfn.XLOOKUP(A28,Codes!C:C,Codes!F:F) -> 0 | F28: =_xlfn.XLOOKUP(A28,Codes!C:C,Codes!G:G) -> 0 | G28: =_xlfn.XLOOKUP(A28,Codes!C:C,Codes!H:H) -> 0 | H28: =_xlfn.XLOOKUP(A28,Codes!C:C,Codes!D:D) -> 0 | I28: =_xlfn.XLOOKUP(A28,Codes!C:C,Codes!L:L) -> 0
B29: =_xlfn.XLOOKUP(A29,Codes!C:C,Codes!I:I) -> 0 | C29: =_xlfn.XLOOKUP(A29,Codes!C:C,Codes!J:J) -> 0 | D29: =_xlfn.XLOOKUP(A29,Codes!C:C,Codes!E:E) -> 0 | E29: =_xlfn.XLOOKUP(A29,Codes!C:C,Codes!F:F) -> 0 | F29: =_xlfn.XLOOKUP(A29,Codes!C:C,Codes!G:G) -> 0 | G29: =_xlfn.XLOOKUP(A29,Codes!C:C,Codes!H:H) -> 0 | H29: =_xlfn.XLOOKUP(A29,Codes!C:C,Codes!D:D) -> 0 | I29: =_xlfn.XLOOKUP(A29,Codes!C:C,Codes!L:L) -> 0
B30: =_xlfn.XLOOKUP(A30,Codes!C:C,Codes!I:I) -> 0 | C30: =_xlfn.XLOOKUP(A30,Codes!C:C,Codes!J:J) -> 0 | D30: =_xlfn.XLOOKUP(A30,Codes!C:C,Codes!E:E) -> 0 | E30: =_xlfn.XLOOKUP(A30,Codes!C:C,Codes!F:F) -> 0 | F30: =_xlfn.XLOOKUP(A30,Codes!C:C,Codes!G:G) -> 0 | G30: =_xlfn.XLOOKUP(A30,Codes!C:C,Codes!H:H) -> 0 | H30: =_xlfn.XLOOKUP(A30,Codes!C:C,Codes!D:D) -> 0 | I30: =_xlfn.XLOOKUP(A30,Codes!C:C,Codes!L:L) -> 0
B31: =_xlfn.XLOOKUP(A31,Codes!C:C,Codes!I:I) -> 0 | C31: =_xlfn.XLOOKUP(A31,Codes!C:C,Codes!J:J) -> 0 | D31: =_xlfn.XLOOKUP(A31,Codes!C:C,Codes!E:E) -> 0 | E31: =_xlfn.XLOOKUP(A31,Codes!C:C,Codes!F:F) -> 0 | F31: =_xlfn.XLOOKUP(A31,Codes!C:C,Codes!G:G) -> 0 | G31: =_xlfn.XLOOKUP(A31,Codes!C:C,Codes!H:H) -> 0 | H31: =_xlfn.XLOOKUP(A31,Codes!C:C,Codes!D:D) -> 0 | I31: =_xlfn.XLOOKUP(A31,Codes!C:C,Codes!L:L) -> 0
B32: =_xlfn.XLOOKUP(A32,Codes!C:C,Codes!I:I) -> 0 | C32: =_xlfn.XLOOKUP(A32,Codes!C:C,Codes!J:J) -> 0 | D32: =_xlfn.XLOOKUP(A32,Codes!C:C,Codes!E:E) -> 0 | E32: =_xlfn.XLOOKUP(A32,Codes!C:C,Codes!F:F) -> 0 | F32: =_xlfn.XLOOKUP(A32,Codes!C:C,Codes!G:G) -> 0 | G32: =_xlfn.XLOOKUP(A32,Codes!C:C,Codes!H:H) -> 0 | H32: =_xlfn.XLOOKUP(A32,Codes!C:C,Codes!D:D) -> 0 | I32: =_xlfn.XLOOKUP(A32,Codes!C:C,Codes!L:L) -> 0
B33: =_xlfn.XLOOKUP(A33,Codes!C:C,Codes!I:I) -> 0 | C33: =_xlfn.XLOOKUP(A33,Codes!C:C,Codes!J:J) -> 0 | D33: =_xlfn.XLOOKUP(A33,Codes!C:C,Codes!E:E) -> 0 | E33: =_xlfn.XLOOKUP(A33,Codes!C:C,Codes!F:F) -> 0 | F33: =_xlfn.XLOOKUP(A33,Codes!C:C,Codes!G:G) -> 0 | G33: =_xlfn.XLOOKUP(A33,Codes!C:C,Codes!H:H) -> 0 | H33: =_xlfn.XLOOKUP(A33,Codes!C:C,Codes!D:D) -> 0 | I33: =_xlfn.XLOOKUP(A33,Codes!C:C,Codes!L:L) -> 0
B34: =_xlfn.XLOOKUP(A34,Codes!C:C,Codes!I:I) -> 0 | C34: =_xlfn.XLOOKUP(A34,Codes!C:C,Codes!J:J) -> 0 | D34: =_xlfn.XLOOKUP(A34,Codes!C:C,Codes!E:E) -> 0 | E34: =_xlfn.XLOOKUP(A34,Codes!C:C,Codes!F:F) -> 0 | F34: =_xlfn.XLOOKUP(A34,Codes!C:C,Codes!G:G) -> 0 | G34: =_xlfn.XLOOKUP(A34,Codes!C:C,Codes!H:H) -> 0 | H34: =_xlfn.XLOOKUP(A34,Codes!C:C,Codes!D:D) -> 0 | I34: =_xlfn.XLOOKUP(A34,Codes!C:C,Codes!L:L) -> 0
B35: =_xlfn.XLOOKUP(A35,Codes!C:C,Codes!I:I) -> 0 | C35: =_xlfn.XLOOKUP(A35,Codes!C:C,Codes!J:J) -> 0 | D35: =_xlfn.XLOOKUP(A35,Codes!C:C,Codes!E:E) -> 0 | E35: =_xlfn.XLOOKUP(A35,Codes!C:C,Codes!F:F) -> 0 | F35: =_xlfn.XLOOKUP(A35,Codes!C:C,Codes!G:G) -> 0 | G35: =_xlfn.XLOOKUP(A35,Codes!C:C,Codes!H:H) -> 0 | H35: =_xlfn.XLOOKUP(A35,Codes!C:C,Codes!D:D) -> 0 | I35: =_xlfn.XLOOKUP(A35,Codes!C:C,Codes!L:L) -> 0
B36: =_xlfn.XLOOKUP(A36,Codes!C:C,Codes!I:I) -> 0 | C36: =_xlfn.XLOOKUP(A36,Codes!C:C,Codes!J:J) -> 0 | D36: =_xlfn.XLOOKUP(A36,Codes!C:C,Codes!E:E) -> 0 | E36: =_xlfn.XLOOKUP(A36,Codes!C:C,Codes!F:F) -> 0 | F36: =_xlfn.XLOOKUP(A36,Codes!C:C,Codes!G:G) -> 0 | G36: =_xlfn.XLOOKUP(A36,Codes!C:C,Codes!H:H) -> 0 | H36: =_xlfn.XLOOKUP(A36,Codes!C:C,Codes!D:D) -> 0 | I36: =_xlfn.XLOOKUP(A36,Codes!C:C,Codes!L:L) -> 0
B37: =_xlfn.XLOOKUP(A37,Codes!C:C,Codes!I:I) -> 0 | C37: =_xlfn.XLOOKUP(A37,Codes!C:C,Codes!J:J) -> 0 | D37: =_xlfn.XLOOKUP(A37,Codes!C:C,Codes!E:E) -> 0 | E37: =_xlfn.XLOOKUP(A37,Codes!C:C,Codes!F:F) -> 0 | F37: =_xlfn.XLOOKUP(A37,Codes!C:C,Codes!G:G) -> 0 | G37: =_xlfn.XLOOKUP(A37,Codes!C:C,Codes!H:H) -> 0 | H37: =_xlfn.XLOOKUP(A37,Codes!C:C,Codes!D:D) -> 0 | I37: =_xlfn.XLOOKUP(A37,Codes!C:C,Codes!L:L) -> 0
B38: =_xlfn.XLOOKUP(A38,Codes!C:C,Codes!I:I) -> 0 | C38: =_xlfn.XLOOKUP(A38,Codes!C:C,Codes!J:J) -> 0 | D38: =_xlfn.XLOOKUP(A38,Codes!C:C,Codes!E:E) -> 0 | E38: =_xlfn.XLOOKUP(A38,Codes!C:C,Codes!F:F) -> 0 | F38: =_xlfn.XLOOKUP(A38,Codes!C:C,Codes!G:G) -> 0 | G38: =_xlfn.XLOOKUP(A38,Codes!C:C,Codes!H:H) -> 0 | H38: =_xlfn.XLOOKUP(A38,Codes!C:C,Codes!D:D) -> 0 | I38: =_xlfn.XLOOKUP(A38,Codes!C:C,Codes!L:L) -> 0
B39: =_xlfn.XLOOKUP(A39,Codes!C:C,Codes!I:I) -> 0 | C39: =_xlfn.XLOOKUP(A39,Codes!C:C,Codes!J:J) -> 0 | D39: =_xlfn.XLOOKUP(A39,Codes!C:C,Codes!E:E) -> 0 | E39: =_xlfn.XLOOKUP(A39,Codes!C:C,Codes!F:F) -> 0 | F39: =_xlfn.XLOOKUP(A39,Codes!C:C,Codes!G:G) -> 0 | G39: =_xlfn.XLOOKUP(A39,Codes!C:C,Codes!H:H) -> 0 | H39: =_xlfn.XLOOKUP(A39,Codes!C:C,Codes!D:D) -> 0 | I39: =_xlfn.XLOOKUP(A39,Codes!C:C,Codes!L:L) -> 0
B40: =_xlfn.XLOOKUP(A40,Codes!C:C,Codes!I:I) -> 0 | C40: =_xlfn.XLOOKUP(A40,Codes!C:C,Codes!J:J) -> 0 | D40: =_xlfn.XLOOKUP(A40,Codes!C:C,Codes!E:E) -> 0 | E40: =_xlfn.XLOOKUP(A40,Codes!C:C,Codes!F:F) -> 0 | F40: =_xlfn.XLOOKUP(A40,Codes!C:C,Codes!G:G) -> 0 | G40: =_xlfn.XLOOKUP(A40,Codes!C:C,Codes!H:H) -> 0 | H40: =_xlfn.XLOOKUP(A40,Codes!C:C,Codes!D:D) -> 0 | I40: =_xlfn.XLOOKUP(A40,Codes!C:C,Codes!L:L) -> 0
B41: =_xlfn.XLOOKUP(A41,Codes!C:C,Codes!I:I) -> 0 | C41: =_xlfn.XLOOKUP(A41,Codes!C:C,Codes!J:J) -> 0 | D41: =_xlfn.XLOOKUP(A41,Codes!C:C,Codes!E:E) -> 0 | E41: =_xlfn.XLOOKUP(A41,Codes!C:C,Codes!F:F) -> 0 | F41: =_xlfn.XLOOKUP(A41,Codes!C:C,Codes!G:G) -> 0 | G41: =_xlfn.XLOOKUP(A41,Codes!C:C,Codes!H:H) -> 0 | H41: =_xlfn.XLOOKUP(A41,Codes!C:C,Codes!D:D) -> 0 | I41: =_xlfn.XLOOKUP(A41,Codes!C:C,Codes!L:L) -> 0
B42: =_xlfn.XLOOKUP(A42,Codes!C:C,Codes!I:I) -> 0 | C42: =_xlfn.XLOOKUP(A42,Codes!C:C,Codes!J:J) -> 0 | D42: =_xlfn.XLOOKUP(A42,Codes!C:C,Codes!E:E) -> 0 | E42: =_xlfn.XLOOKUP(A42,Codes!C:C,Codes!F:F) -> 0 | F42: =_xlfn.XLOOKUP(A42,Codes!C:C,Codes!G:G) -> 0 | G42: =_xlfn.XLOOKUP(A42,Codes!C:C,Codes!H:H) -> 0 | H42: =_xlfn.XLOOKUP(A42,Codes!C:C,Codes!D:D) -> 0 | I42: =_xlfn.XLOOKUP(A42,Codes!C:C,Codes!L:L) -> 0
B43: =_xlfn.XLOOKUP(A43,Codes!C:C,Codes!I:I) -> 0 | C43: =_xlfn.XLOOKUP(A43,Codes!C:C,Codes!J:J) -> 0 | D43: =_xlfn.XLOOKUP(A43,Codes!C:C,Codes!E:E) -> 0 | E43: =_xlfn.XLOOKUP(A43,Codes!C:C,Codes!F:F) -> 0 | F43: =_xlfn.XLOOKUP(A43,Codes!C:C,Codes!G:G) -> 0 | G43: =_xlfn.XLOOKUP(A43,Codes!C:C,Codes!H:H) -> 0 | H43: =_xlfn.XLOOKUP(A43,Codes!C:C,Codes!D:D) -> 0 | I43: =_xlfn.XLOOKUP(A43,Codes!C:C,Codes!L:L) -> 0
B44: =_xlfn.XLOOKUP(A44,Codes!C:C,Codes!I:I) -> 0 | C44: =_xlfn.XLOOKUP(A44,Codes!C:C,Codes!J:J) -> 0 | D44: =_xlfn.XLOOKUP(A44,Codes!C:C,Codes!E:E) -> 0 | E44: =_xlfn.XLOOKUP(A44,Codes!C:C,Codes!F:F) -> 0 | F44: =_xlfn.XLOOKUP(A44,Codes!C:C,Codes!G:G) -> 0 | G44: =_xlfn.XLOOKUP(A44,Codes!C:C,Codes!H:H) -> 0 | H44: =_xlfn.XLOOKUP(A44,Codes!C:C,Codes!D:D) -> 0 | I44: =_xlfn.XLOOKUP(A44,Codes!C:C,Codes!L:L) -> 0
B45: =_xlfn.XLOOKUP(A45,Codes!C:C,Codes!I:I) -> 0 | C45: =_xlfn.XLOOKUP(A45,Codes!C:C,Codes!J:J) -> 0 | D45: =_xlfn.XLOOKUP(A45,Codes!C:C,Codes!E:E) -> 0 | E45: =_xlfn.XLOOKUP(A45,Codes!C:C,Codes!F:F) -> 0 | F45: =_xlfn.XLOOKUP(A45,Codes!C:C,Codes!G:G) -> 0 | G45: =_xlfn.XLOOKUP(A45,Codes!C:C,Codes!H:H) -> 0 | H45: =_xlfn.XLOOKUP(A45,Codes!C:C,Codes!D:D) -> 0 | I45: =_xlfn.XLOOKUP(A45,Codes!C:C,Codes!L:L) -> 0
B46: =_xlfn.XLOOKUP(A46,Codes!C:C,Codes!I:I) -> 0 | C46: =_xlfn.XLOOKUP(A46,Codes!C:C,Codes!J:J) -> 0 | D46: =_xlfn.XLOOKUP(A46,Codes!C:C,Codes!E:E) -> 0 | E46: =_xlfn.XLOOKUP(A46,Codes!C:C,Codes!F:F) -> 0 | F46: =_xlfn.XLOOKUP(A46,Codes!C:C,Codes!G:G) -> 0 | G46: =_xlfn.XLOOKUP(A46,Codes!C:C,Codes!H:H) -> 0 | H46: =_xlfn.XLOOKUP(A46,Codes!C:C,Codes!D:D) -> 0 | I46: =_xlfn.XLOOKUP(A46,Codes!C:C,Codes!L:L) -> 0
B47: =_xlfn.XLOOKUP(A47,Codes!C:C,Codes!I:I) -> 0 | C47: =_xlfn.XLOOKUP(A47,Codes!C:C,Codes!J:J) -> 0 | D47: =_xlfn.XLOOKUP(A47,Codes!C:C,Codes!E:E) -> 0 | E47: =_xlfn.XLOOKUP(A47,Codes!C:C,Codes!F:F) -> 0 | F47: =_xlfn.XLOOKUP(A47,Codes!C:C,Codes!G:G) -> 0 | G47: =_xlfn.XLOOKUP(A47,Codes!C:C,Codes!H:H) -> 0 | H47: =_xlfn.XLOOKUP(A47,Codes!C:C,Codes!D:D) -> 0 | I47: =_xlfn.XLOOKUP(A47,Codes!C:C,Codes!L:L) -> 0
B48: =_xlfn.XLOOKUP(A48,Codes!C:C,Codes!I:I) -> 0 | C48: =_xlfn.XLOOKUP(A48,Codes!C:C,Codes!J:J) -> 0 | D48: =_xlfn.XLOOKUP(A48,Codes!C:C,Codes!E:E) -> 0 | E48: =_xlfn.XLOOKUP(A48,Codes!C:C,Codes!F:F) -> 0 | F48: =_xlfn.XLOOKUP(A48,Codes!C:C,Codes!G:G) -> 0 | G48: =_xlfn.XLOOKUP(A48,Codes!C:C,Codes!H:H) -> 0 | H48: =_xlfn.XLOOKUP(A48,Codes!C:C,Codes!D:D) -> 0 | I48: =_xlfn.XLOOKUP(A48,Codes!C:C,Codes!L:L) -> 0
B49: =_xlfn.XLOOKUP(A49,Codes!C:C,Codes!I:I) -> 0 | C49: =_xlfn.XLOOKUP(A49,Codes!C:C,Codes!J:J) -> 0 | D49: =_xlfn.XLOOKUP(A49,Codes!C:C,Codes!E:E) -> 0 | E49: =_xlfn.XLOOKUP(A49,Codes!C:C,Codes!F:F) -> 0 | F49: =_xlfn.XLOOKUP(A49,Codes!C:C,Codes!G:G) -> 0 | G49: =_xlfn.XLOOKUP(A49,Codes!C:C,Codes!H:H) -> 0 | H49: =_xlfn.XLOOKUP(A49,Codes!C:C,Codes!D:D) -> 0 | I49: =_xlfn.XLOOKUP(A49,Codes!C:C,Codes!L:L) -> 0
B50: =_xlfn.XLOOKUP(A50,Codes!C:C,Codes!I:I) -> 0 | C50: =_xlfn.XLOOKUP(A50,Codes!C:C,Codes!J:J) -> 0 | D50: =_xlfn.XLOOKUP(A50,Codes!C:C,Codes!E:E) -> 0 | E50: =_xlfn.XLOOKUP(A50,Codes!C:C,Codes!F:F) -> 0 | F50: =_xlfn.XLOOKUP(A50,Codes!C:C,Codes!G:G) -> 0 | G50: =_xlfn.XLOOKUP(A50,Codes!C:C,Codes!H:H) -> 0 | H50: =_xlfn.XLOOKUP(A50,Codes!C:C,Codes!D:D) -> 0 | I50: =_xlfn.XLOOKUP(A50,Codes!C:C,Codes!L:L) -> 0
B51: =_xlfn.XLOOKUP(A51,Codes!C:C,Codes!I:I) -> 0 | C51: =_xlfn.XLOOKUP(A51,Codes!C:C,Codes!J:J) -> 0 | D51: =_xlfn.XLOOKUP(A51,Codes!C:C,Codes!E:E) -> 0 | E51: =_xlfn.XLOOKUP(A51,Codes!C:C,Codes!F:F) -> 0 | F51: =_xlfn.XLOOKUP(A51,Codes!C:C,Codes!G:G) -> 0 | G51: =_xlfn.XLOOKUP(A51,Codes!C:C,Codes!H:H) -> 0 | H51: =_xlfn.XLOOKUP(A51,Codes!C:C,Codes!D:D) -> 0 | I51: =_xlfn.XLOOKUP(A51,Codes!C:C,Codes!L:L) -> 0
B52: =_xlfn.XLOOKUP(A52,Codes!C:C,Codes!I:I) -> 0 | C52: =_xlfn.XLOOKUP(A52,Codes!C:C,Codes!J:J) -> 0 | D52: =_xlfn.XLOOKUP(A52,Codes!C:C,Codes!E:E) -> 0 | E52: =_xlfn.XLOOKUP(A52,Codes!C:C,Codes!F:F) -> 0 | F52: =_xlfn.XLOOKUP(A52,Codes!C:C,Codes!G:G) -> 0 | G52: =_xlfn.XLOOKUP(A52,Codes!C:C,Codes!H:H) -> 0 | H52: =_xlfn.XLOOKUP(A52,Codes!C:C,Codes!D:D) -> 0 | I52: =_xlfn.XLOOKUP(A52,Codes!C:C,Codes!L:L) -> 0
B53: =_xlfn.XLOOKUP(A53,Codes!C:C,Codes!I:I) -> 0 | C53: =_xlfn.XLOOKUP(A53,Codes!C:C,Codes!J:J) -> 0 | D53: =_xlfn.XLOOKUP(A53,Codes!C:C,Codes!E:E) -> 0 | E53: =_xlfn.XLOOKUP(A53,Codes!C:C,Codes!F:F) -> 0 | F53: =_xlfn.XLOOKUP(A53,Codes!C:C,Codes!G:G) -> 0 | G53: =_xlfn.XLOOKUP(A53,Codes!C:C,Codes!H:H) -> 0 | H53: =_xlfn.XLOOKUP(A53,Codes!C:C,Codes!D:D) -> 0 | I53: =_xlfn.XLOOKUP(A53,Codes!C:C,Codes!L:L) -> 0
B54: =_xlfn.XLOOKUP(A54,Codes!C:C,Codes!I:I) -> 0 | C54: =_xlfn.XLOOKUP(A54,Codes!C:C,Codes!J:J) -> 0 | D54: =_xlfn.XLOOKUP(A54,Codes!C:C,Codes!E:E) -> 0 | E54: =_xlfn.XLOOKUP(A54,Codes!C:C,Codes!F:F) -> 0 | F54: =_xlfn.XLOOKUP(A54,Codes!C:C,Codes!G:G) -> 0 | G54: =_xlfn.XLOOKUP(A54,Codes!C:C,Codes!H:H) -> 0 | H54: =_xlfn.XLOOKUP(A54,Codes!C:C,Codes!D:D) -> 0 | I54: =_xlfn.XLOOKUP(A54,Codes!C:C,Codes!L:L) -> 0
B55: =_xlfn.XLOOKUP(A55,Codes!C:C,Codes!I:I) -> 0 | C55: =_xlfn.XLOOKUP(A55,Codes!C:C,Codes!J:J) -> 0 | D55: =_xlfn.XLOOKUP(A55,Codes!C:C,Codes!E:E) -> 0 | E55: =_xlfn.XLOOKUP(A55,Codes!C:C,Codes!F:F) -> 0 | F55: =_xlfn.XLOOKUP(A55,Codes!C:C,Codes!G:G) -> 0 | G55: =_xlfn.XLOOKUP(A55,Codes!C:C,Codes!H:H) -> 0 | H55: =_xlfn.XLOOKUP(A55,Codes!C:C,Codes!D:D) -> 0 | I55: =_xlfn.XLOOKUP(A55,Codes!C:C,Codes!L:L) -> 0
B56: =_xlfn.XLOOKUP(A56,Codes!C:C,Codes!I:I) -> 0 | C56: =_xlfn.XLOOKUP(A56,Codes!C:C,Codes!J:J) -> 0 | D56: =_xlfn.XLOOKUP(A56,Codes!C:C,Codes!E:E) -> 0 | E56: =_xlfn.XLOOKUP(A56,Codes!C:C,Codes!F:F) -> 0 | F56: =_xlfn.XLOOKUP(A56,Codes!C:C,Codes!G:G) -> 0 | G56: =_xlfn.XLOOKUP(A56,Codes!C:C,Codes!H:H) -> 0 | H56: =_xlfn.XLOOKUP(A56,Codes!C:C,Codes!D:D) -> 0 | I56: =_xlfn.XLOOKUP(A56,Codes!C:C,Codes!L:L) -> 0
B57: =_xlfn.XLOOKUP(A57,Codes!C:C,Codes!I:I) -> 0 | C57: =_xlfn.XLOOKUP(A57,Codes!C:C,Codes!J:J) -> 0 | D57: =_xlfn.XLOOKUP(A57,Codes!C:C,Codes!E:E) -> 0 | E57: =_xlfn.XLOOKUP(A57,Codes!C:C,Codes!F:F) -> 0 | F57: =_xlfn.XLOOKUP(A57,Codes!C:C,Codes!G:G) -> 0 | G57: =_xlfn.XLOOKUP(A57,Codes!C:C,Codes!H:H) -> 0 | H57: =_xlfn.XLOOKUP(A57,Codes!C:C,Codes!D:D) -> 0 | I57: =_xlfn.XLOOKUP(A57,Codes!C:C,Codes!L:L) -> 0
B58: =_xlfn.XLOOKUP(A58,Codes!C:C,Codes!I:I) -> 0 | C58: =_xlfn.XLOOKUP(A58,Codes!C:C,Codes!J:J) -> 0 | D58: =_xlfn.XLOOKUP(A58,Codes!C:C,Codes!E:E) -> 0 | E58: =_xlfn.XLOOKUP(A58,Codes!C:C,Codes!F:F) -> 0 | F58: =_xlfn.XLOOKUP(A58,Codes!C:C,Codes!G:G) -> 0 | G58: =_xlfn.XLOOKUP(A58,Codes!C:C,Codes!H:H) -> 0 | H58: =_xlfn.XLOOKUP(A58,Codes!C:C,Codes!D:D) -> 0 | I58: =_xlfn.XLOOKUP(A58,Codes!C:C,Codes!L:L) -> 0
B59: =_xlfn.XLOOKUP(A59,Codes!C:C,Codes!I:I) -> 0 | C59: =_xlfn.XLOOKUP(A59,Codes!C:C,Codes!J:J) -> 0 | D59: =_xlfn.XLOOKUP(A59,Codes!C:C,Codes!E:E) -> 0 | E59: =_xlfn.XLOOKUP(A59,Codes!C:C,Codes!F:F) -> 0 | F59: =_xlfn.XLOOKUP(A59,Codes!C:C,Codes!G:G) -> 0 | G59: =_xlfn.XLOOKUP(A59,Codes!C:C,Codes!H:H) -> 0 | H59: =_xlfn.XLOOKUP(A59,Codes!C:C,Codes!D:D) -> 0 | I59: =_xlfn.XLOOKUP(A59,Codes!C:C,Codes!L:L) -> 0
B60: =_xlfn.XLOOKUP(A60,Codes!C:C,Codes!I:I) -> 0 | C60: =_xlfn.XLOOKUP(A60,Codes!C:C,Codes!J:J) -> 0 | D60: =_xlfn.XLOOKUP(A60,Codes!C:C,Codes!E:E) -> 0 | E60: =_xlfn.XLOOKUP(A60,Codes!C:C,Codes!F:F) -> 0 | F60: =_xlfn.XLOOKUP(A60,Codes!C:C,Codes!G:G) -> 0 | G60: =_xlfn.XLOOKUP(A60,Codes!C:C,Codes!H:H) -> 0 | H60: =_xlfn.XLOOKUP(A60,Codes!C:C,Codes!D:D) -> 0 | I60: =_xlfn.XLOOKUP(A60,Codes!C:C,Codes!L:L) -> 0
B61: =_xlfn.XLOOKUP(A61,Codes!C:C,Codes!I:I) -> 0 | C61: =_xlfn.XLOOKUP(A61,Codes!C:C,Codes!J:J) -> 0 | D61: =_xlfn.XLOOKUP(A61,Codes!C:C,Codes!E:E) -> 0 | E61: =_xlfn.XLOOKUP(A61,Codes!C:C,Codes!F:F) -> 0 | F61: =_xlfn.XLOOKUP(A61,Codes!C:C,Codes!G:G) -> 0 | G61: =_xlfn.XLOOKUP(A61,Codes!C:C,Codes!H:H) -> 0 | H61: =_xlfn.XLOOKUP(A61,Codes!C:C,Codes!D:D) -> 0 | I61: =_xlfn.XLOOKUP(A61,Codes!C:C,Codes!L:L) -> 0
B62: =_xlfn.XLOOKUP(A62,Codes!C:C,Codes!I:I) -> 0 | C62: =_xlfn.XLOOKUP(A62,Codes!C:C,Codes!J:J) -> 0 | D62: =_xlfn.XLOOKUP(A62,Codes!C:C,Codes!E:E) -> 0 | E62: =_xlfn.XLOOKUP(A62,Codes!C:C,Codes!F:F) -> 0 | F62: =_xlfn.XLOOKUP(A62,Codes!C:C,Codes!G:G) -> 0 | G62: =_xlfn.XLOOKUP(A62,Codes!C:C,Codes!H:H) -> 0 | H62: =_xlfn.XLOOKUP(A62,Codes!C:C,Codes!D:D) -> 0 | I62: =_xlfn.XLOOKUP(A62,Codes!C:C,Codes!L:L) -> 0
B63: =_xlfn.XLOOKUP(A63,Codes!C:C,Codes!I:I) -> 0 | C63: =_xlfn.XLOOKUP(A63,Codes!C:C,Codes!J:J) -> 0 | D63: =_xlfn.XLOOKUP(A63,Codes!C:C,Codes!E:E) -> 0 | E63: =_xlfn.XLOOKUP(A63,Codes!C:C,Codes!F:F) -> 0 | F63: =_xlfn.XLOOKUP(A63,Codes!C:C,Codes!G:G) -> 0 | G63: =_xlfn.XLOOKUP(A63,Codes!C:C,Codes!H:H) -> 0 | H63: =_xlfn.XLOOKUP(A63,Codes!C:C,Codes!D:D) -> 0 | I63: =_xlfn.XLOOKUP(A63,Codes!C:C,Codes!L:L) -> 0
B64: =_xlfn.XLOOKUP(A64,Codes!C:C,Codes!I:I) -> 0 | C64: =_xlfn.XLOOKUP(A64,Codes!C:C,Codes!J:J) -> 0 | D64: =_xlfn.XLOOKUP(A64,Codes!C:C,Codes!E:E) -> 0 | E64: =_xlfn.XLOOKUP(A64,Codes!C:C,Codes!F:F) -> 0 | F64: =_xlfn.XLOOKUP(A64,Codes!C:C,Codes!G:G) -> 0 | G64: =_xlfn.XLOOKUP(A64,Codes!C:C,Codes!H:H) -> 0 | H64: =_xlfn.XLOOKUP(A64,Codes!C:C,Codes!D:D) -> 0 | I64: =_xlfn.XLOOKUP(A64,Codes!C:C,Codes!L:L) -> 0
B65: =_xlfn.XLOOKUP(A65,Codes!C:C,Codes!I:I) -> 0 | C65: =_xlfn.XLOOKUP(A65,Codes!C:C,Codes!J:J) -> 0 | D65: =_xlfn.XLOOKUP(A65,Codes!C:C,Codes!E:E) -> 0 | E65: =_xlfn.XLOOKUP(A65,Codes!C:C,Codes!F:F) -> 0 | F65: =_xlfn.XLOOKUP(A65,Codes!C:C,Codes!G:G) -> 0 | G65: =_xlfn.XLOOKUP(A65,Codes!C:C,Codes!H:H) -> 0 | H65: =_xlfn.XLOOKUP(A65,Codes!C:C,Codes!D:D) -> 0 | I65: =_xlfn.XLOOKUP(A65,Codes!C:C,Codes!L:L) -> 0
B66: =_xlfn.XLOOKUP(A66,Codes!C:C,Codes!I:I) -> 0 | C66: =_xlfn.XLOOKUP(A66,Codes!C:C,Codes!J:J) -> 0 | D66: =_xlfn.XLOOKUP(A66,Codes!C:C,Codes!E:E) -> 0 | E66: =_xlfn.XLOOKUP(A66,Codes!C:C,Codes!F:F) -> 0 | F66: =_xlfn.XLOOKUP(A66,Codes!C:C,Codes!G:G) -> 0 | G66: =_xlfn.XLOOKUP(A66,Codes!C:C,Codes!H:H) -> 0 | H66: =_xlfn.XLOOKUP(A66,Codes!C:C,Codes!D:D) -> 0 | I66: =_xlfn.XLOOKUP(A66,Codes!C:C,Codes!L:L) -> 0
B67: =_xlfn.XLOOKUP(A67,Codes!C:C,Codes!I:I) -> 0 | C67: =_xlfn.XLOOKUP(A67,Codes!C:C,Codes!J:J) -> 0 | D67: =_xlfn.XLOOKUP(A67,Codes!C:C,Codes!E:E) -> 0 | E67: =_xlfn.XLOOKUP(A67,Codes!C:C,Codes!F:F) -> 0 | F67: =_xlfn.XLOOKUP(A67,Codes!C:C,Codes!G:G) -> 0 | G67: =_xlfn.XLOOKUP(A67,Codes!C:C,Codes!H:H) -> 0 | H67: =_xlfn.XLOOKUP(A67,Codes!C:C,Codes!D:D) -> 0 | I67: =_xlfn.XLOOKUP(A67,Codes!C:C,Codes!L:L) -> 0
B68: =_xlfn.XLOOKUP(A68,Codes!C:C,Codes!I:I) -> 0 | C68: =_xlfn.XLOOKUP(A68,Codes!C:C,Codes!J:J) -> 0 | D68: =_xlfn.XLOOKUP(A68,Codes!C:C,Codes!E:E) -> 0 | E68: =_xlfn.XLOOKUP(A68,Codes!C:C,Codes!F:F) -> 0 | F68: =_xlfn.XLOOKUP(A68,Codes!C:C,Codes!G:G) -> 0 | G68: =_xlfn.XLOOKUP(A68,Codes!C:C,Codes!H:H) -> 0 | H68: =_xlfn.XLOOKUP(A68,Codes!C:C,Codes!D:D) -> 0 | I68: =_xlfn.XLOOKUP(A68,Codes!C:C,Codes!L:L) -> 0
B69: =_xlfn.XLOOKUP(A69,Codes!C:C,Codes!I:I) -> 0 | C69: =_xlfn.XLOOKUP(A69,Codes!C:C,Codes!J:J) -> 0 | D69: =_xlfn.XLOOKUP(A69,Codes!C:C,Codes!E:E) -> 0 | E69: =_xlfn.XLOOKUP(A69,Codes!C:C,Codes!F:F) -> 0 | F69: =_xlfn.XLOOKUP(A69,Codes!C:C,Codes!G:G) -> 0 | G69: =_xlfn.XLOOKUP(A69,Codes!C:C,Codes!H:H) -> 0 | H69: =_xlfn.XLOOKUP(A69,Codes!C:C,Codes!D:D) -> 0 | I69: =_xlfn.XLOOKUP(A69,Codes!C:C,Codes!L:L) -> 0
B70: =_xlfn.XLOOKUP(A70,Codes!C:C,Codes!I:I) -> 0 | C70: =_xlfn.XLOOKUP(A70,Codes!C:C,Codes!J:J) -> 0 | D70: =_xlfn.XLOOKUP(A70,Codes!C:C,Codes!E:E) -> 0 | E70: =_xlfn.XLOOKUP(A70,Codes!C:C,Codes!F:F) -> 0 | F70: =_xlfn.XLOOKUP(A70,Codes!C:C,Codes!G:G) -> 0 | G70: =_xlfn.XLOOKUP(A70,Codes!C:C,Codes!H:H) -> 0 | H70: =_xlfn.XLOOKUP(A70,Codes!C:C,Codes!D:D) -> 0 | I70: =_xlfn.XLOOKUP(A70,Codes!C:C,Codes!L:L) -> 0
B71: =_xlfn.XLOOKUP(A71,Codes!C:C,Codes!I:I) -> 0 | C71: =_xlfn.XLOOKUP(A71,Codes!C:C,Codes!J:J) -> 0 | D71: =_xlfn.XLOOKUP(A71,Codes!C:C,Codes!E:E) -> 0 | E71: =_xlfn.XLOOKUP(A71,Codes!C:C,Codes!F:F) -> 0 | F71: =_xlfn.XLOOKUP(A71,Codes!C:C,Codes!G:G) -> 0 | G71: =_xlfn.XLOOKUP(A71,Codes!C:C,Codes!H:H) -> 0 | H71: =_xlfn.XLOOKUP(A71,Codes!C:C,Codes!D:D) -> 0 | I71: =_xlfn.XLOOKUP(A71,Codes!C:C,Codes!L:L) -> 0
B72: =_xlfn.XLOOKUP(A72,Codes!C:C,Codes!I:I) -> 0 | C72: =_xlfn.XLOOKUP(A72,Codes!C:C,Codes!J:J) -> 0 | D72: =_xlfn.XLOOKUP(A72,Codes!C:C,Codes!E:E) -> 0 | E72: =_xlfn.XLOOKUP(A72,Codes!C:C,Codes!F:F) -> 0 | F72: =_xlfn.XLOOKUP(A72,Codes!C:C,Codes!G:G) -> 0 | G72: =_xlfn.XLOOKUP(A72,Codes!C:C,Codes!H:H) -> 0 | H72: =_xlfn.XLOOKUP(A72,Codes!C:C,Codes!D:D) -> 0 | I72: =_xlfn.XLOOKUP(A72,Codes!C:C,Codes!L:L) -> 0
B73: =_xlfn.XLOOKUP(A73,Codes!C:C,Codes!I:I) -> 0 | C73: =_xlfn.XLOOKUP(A73,Codes!C:C,Codes!J:J) -> 0 | D73: =_xlfn.XLOOKUP(A73,Codes!C:C,Codes!E:E) -> 0 | E73: =_xlfn.XLOOKUP(A73,Codes!C:C,Codes!F:F) -> 0 | F73: =_xlfn.XLOOKUP(A73,Codes!C:C,Codes!G:G) -> 0 | G73: =_xlfn.XLOOKUP(A73,Codes!C:C,Codes!H:H) -> 0 | H73: =_xlfn.XLOOKUP(A73,Codes!C:C,Codes!D:D) -> 0 | I73: =_xlfn.XLOOKUP(A73,Codes!C:C,Codes!L:L) -> 0
B74: =_xlfn.XLOOKUP(A74,Codes!C:C,Codes!I:I) -> 0 | C74: =_xlfn.XLOOKUP(A74,Codes!C:C,Codes!J:J) -> 0 | D74: =_xlfn.XLOOKUP(A74,Codes!C:C,Codes!E:E) -> 0 | E74: =_xlfn.XLOOKUP(A74,Codes!C:C,Codes!F:F) -> 0 | F74: =_xlfn.XLOOKUP(A74,Codes!C:C,Codes!G:G) -> 0 | G74: =_xlfn.XLOOKUP(A74,Codes!C:C,Codes!H:H) -> 0 | H74: =_xlfn.XLOOKUP(A74,Codes!C:C,Codes!D:D) -> 0 | I74: =_xlfn.XLOOKUP(A74,Codes!C:C,Codes!L:L) -> 0
B75: =_xlfn.XLOOKUP(A75,Codes!C:C,Codes!I:I) -> 0 | C75: =_xlfn.XLOOKUP(A75,Codes!C:C,Codes!J:J) -> 0 | D75: =_xlfn.XLOOKUP(A75,Codes!C:C,Codes!E:E) -> 0 | E75: =_xlfn.XLOOKUP(A75,Codes!C:C,Codes!F:F) -> 0 | F75: =_xlfn.XLOOKUP(A75,Codes!C:C,Codes!G:G) -> 0 | G75: =_xlfn.XLOOKUP(A75,Codes!C:C,Codes!H:H) -> 0 | H75: =_xlfn.XLOOKUP(A75,Codes!C:C,Codes!D:D) -> 0 | I75: =_xlfn.XLOOKUP(A75,Codes!C:C,Codes!L:L) -> 0
B76: =_xlfn.XLOOKUP(A76,Codes!C:C,Codes!I:I) -> 0 | C76: =_xlfn.XLOOKUP(A76,Codes!C:C,Codes!J:J) -> 0 | D76: =_xlfn.XLOOKUP(A76,Codes!C:C,Codes!E:E) -> 0 | E76: =_xlfn.XLOOKUP(A76,Codes!C:C,Codes!F:F) -> 0 | F76: =_xlfn.XLOOKUP(A76,Codes!C:C,Codes!G:G) -> 0 | G76: =_xlfn.XLOOKUP(A76,Codes!C:C,Codes!H:H) -> 0 | H76: =_xlfn.XLOOKUP(A76,Codes!C:C,Codes!D:D) -> 0 | I76: =_xlfn.XLOOKUP(A76,Codes!C:C,Codes!L:L) -> 0
B77: =_xlfn.XLOOKUP(A77,Codes!C:C,Codes!I:I) -> 0 | C77: =_xlfn.XLOOKUP(A77,Codes!C:C,Codes!J:J) -> 0 | D77: =_xlfn.XLOOKUP(A77,Codes!C:C,Codes!E:E) -> 0 | E77: =_xlfn.XLOOKUP(A77,Codes!C:C,Codes!F:F) -> 0 | F77: =_xlfn.XLOOKUP(A77,Codes!C:C,Codes!G:G) -> 0 | G77: =_xlfn.XLOOKUP(A77,Codes!C:C,Codes!H:H) -> 0 | H77: =_xlfn.XLOOKUP(A77,Codes!C:C,Codes!D:D) -> 0 | I77: =_xlfn.XLOOKUP(A77,Codes!C:C,Codes!L:L) -> 0
B78: =_xlfn.XLOOKUP(A78,Codes!C:C,Codes!I:I) -> 0 | C78: =_xlfn.XLOOKUP(A78,Codes!C:C,Codes!J:J) -> 0 | D78: =_xlfn.XLOOKUP(A78,Codes!C:C,Codes!E:E) -> 0 | E78: =_xlfn.XLOOKUP(A78,Codes!C:C,Codes!F:F) -> 0 | F78: =_xlfn.XLOOKUP(A78,Codes!C:C,Codes!G:G) -> 0 | G78: =_xlfn.XLOOKUP(A78,Codes!C:C,Codes!H:H) -> 0 | H78: =_xlfn.XLOOKUP(A78,Codes!C:C,Codes!D:D) -> 0 | I78: =_xlfn.XLOOKUP(A78,Codes!C:C,Codes!L:L) -> 0
B79: =_xlfn.XLOOKUP(A79,Codes!C:C,Codes!I:I) -> 0 | C79: =_xlfn.XLOOKUP(A79,Codes!C:C,Codes!J:J) -> 0 | D79: =_xlfn.XLOOKUP(A79,Codes!C:C,Codes!E:E) -> 0 | E79: =_xlfn.XLOOKUP(A79,Codes!C:C,Codes!F:F) -> 0 | F79: =_xlfn.XLOOKUP(A79,Codes!C:C,Codes!G:G) -> 0 | G79: =_xlfn.XLOOKUP(A79,Codes!C:C,Codes!H:H) -> 0 | H79: =_xlfn.XLOOKUP(A79,Codes!C:C,Codes!D:D) -> 0 | I79: =_xlfn.XLOOKUP(A79,Codes!C:C,Codes!L:L) -> 0
B80: =_xlfn.XLOOKUP(A80,Codes!C:C,Codes!I:I) -> 0 | C80: =_xlfn.XLOOKUP(A80,Codes!C:C,Codes!J:J) -> 0 | D80: =_xlfn.XLOOKUP(A80,Codes!C:C,Codes!E:E) -> 0 | E80: =_xlfn.XLOOKUP(A80,Codes!C:C,Codes!F:F) -> 0 | F80: =_xlfn.XLOOKUP(A80,Codes!C:C,Codes!G:G) -> 0 | G80: =_xlfn.XLOOKUP(A80,Codes!C:C,Codes!H:H) -> 0 | H80: =_xlfn.XLOOKUP(A80,Codes!C:C,Codes!D:D) -> 0 | I80: =_xlfn.XLOOKUP(A80,Codes!C:C,Codes!L:L) -> 0
B81: =_xlfn.XLOOKUP(A81,Codes!C:C,Codes!I:I) -> 0 | C81: =_xlfn.XLOOKUP(A81,Codes!C:C,Codes!J:J) -> 0 | D81: =_xlfn.XLOOKUP(A81,Codes!C:C,Codes!E:E) -> 0 | E81: =_xlfn.XLOOKUP(A81,Codes!C:C,Codes!F:F) -> 0 | F81: =_xlfn.XLOOKUP(A81,Codes!C:C,Codes!G:G) -> 0 | G81: =_xlfn.XLOOKUP(A81,Codes!C:C,Codes!H:H) -> 0 | H81: =_xlfn.XLOOKUP(A81,Codes!C:C,Codes!D:D) -> 0 | I81: =_xlfn.XLOOKUP(A81,Codes!C:C,Codes!L:L) -> 0
B82: =_xlfn.XLOOKUP(A82,Codes!C:C,Codes!I:I) -> 0 | C82: =_xlfn.XLOOKUP(A82,Codes!C:C,Codes!J:J) -> 0 | D82: =_xlfn.XLOOKUP(A82,Codes!C:C,Codes!E:E) -> 0 | E82: =_xlfn.XLOOKUP(A82,Codes!C:C,Codes!F:F) -> 0 | F82: =_xlfn.XLOOKUP(A82,Codes!C:C,Codes!G:G) -> 0 | G82: =_xlfn.XLOOKUP(A82,Codes!C:C,Codes!H:H) -> 0 | H82: =_xlfn.XLOOKUP(A82,Codes!C:C,Codes!D:D) -> 0 | I82: =_xlfn.XLOOKUP(A82,Codes!C:C,Codes!L:L) -> 0
B83: =_xlfn.XLOOKUP(A83,Codes!C:C,Codes!I:I) -> 0 | C83: =_xlfn.XLOOKUP(A83,Codes!C:C,Codes!J:J) -> 0 | D83: =_xlfn.XLOOKUP(A83,Codes!C:C,Codes!E:E) -> 0 | E83: =_xlfn.XLOOKUP(A83,Codes!C:C,Codes!F:F) -> 0 | F83: =_xlfn.XLOOKUP(A83,Codes!C:C,Codes!G:G) -> 0 | G83: =_xlfn.XLOOKUP(A83,Codes!C:C,Codes!H:H) -> 0 | H83: =_xlfn.XLOOKUP(A83,Codes!C:C,Codes!D:D) -> 0 | I83: =_xlfn.XLOOKUP(A83,Codes!C:C,Codes!L:L) -> 0
B84: =_xlfn.XLOOKUP(A84,Codes!C:C,Codes!I:I) -> 0 | C84: =_xlfn.XLOOKUP(A84,Codes!C:C,Codes!J:J) -> 0 | D84: =_xlfn.XLOOKUP(A84,Codes!C:C,Codes!E:E) -> 0 | E84: =_xlfn.XLOOKUP(A84,Codes!C:C,Codes!F:F) -> 0 | F84: =_xlfn.XLOOKUP(A84,Codes!C:C,Codes!G:G) -> 0 | G84: =_xlfn.XLOOKUP(A84,Codes!C:C,Codes!H:H) -> 0 | H84: =_xlfn.XLOOKUP(A84,Codes!C:C,Codes!D:D) -> 0 | I84: =_xlfn.XLOOKUP(A84,Codes!C:C,Codes!L:L) -> 0
B85: =_xlfn.XLOOKUP(A85,Codes!C:C,Codes!I:I) -> 0 | C85: =_xlfn.XLOOKUP(A85,Codes!C:C,Codes!J:J) -> 0 | D85: =_xlfn.XLOOKUP(A85,Codes!C:C,Codes!E:E) -> 0 | E85: =_xlfn.XLOOKUP(A85,Codes!C:C,Codes!F:F) -> 0 | F85: =_xlfn.XLOOKUP(A85,Codes!C:C,Codes!G:G) -> 0 | G85: =_xlfn.XLOOKUP(A85,Codes!C:C,Codes!H:H) -> 0 | H85: =_xlfn.XLOOKUP(A85,Codes!C:C,Codes!D:D) -> 0 | I85: =_xlfn.XLOOKUP(A85,Codes!C:C,Codes!L:L) -> 0
B86: =_xlfn.XLOOKUP(A86,Codes!C:C,Codes!I:I) -> 0 | C86: =_xlfn.XLOOKUP(A86,Codes!C:C,Codes!J:J) -> 0 | D86: =_xlfn.XLOOKUP(A86,Codes!C:C,Codes!E:E) -> 0 | E86: =_xlfn.XLOOKUP(A86,Codes!C:C,Codes!F:F) -> 0 | F86: =_xlfn.XLOOKUP(A86,Codes!C:C,Codes!G:G) -> 0 | G86: =_xlfn.XLOOKUP(A86,Codes!C:C,Codes!H:H) -> 0 | H86: =_xlfn.XLOOKUP(A86,Codes!C:C,Codes!D:D) -> 0 | I86: =_xlfn.XLOOKUP(A86,Codes!C:C,Codes!L:L) -> 0
B87: =_xlfn.XLOOKUP(A87,Codes!C:C,Codes!I:I) -> 0 | C87: =_xlfn.XLOOKUP(A87,Codes!C:C,Codes!J:J) -> 0 | D87: =_xlfn.XLOOKUP(A87,Codes!C:C,Codes!E:E) -> 0 | E87: =_xlfn.XLOOKUP(A87,Codes!C:C,Codes!F:F) -> 0 | F87: =_xlfn.XLOOKUP(A87,Codes!C:C,Codes!G:G) -> 0 | G87: =_xlfn.XLOOKUP(A87,Codes!C:C,Codes!H:H) -> 0 | H87: =_xlfn.XLOOKUP(A87,Codes!C:C,Codes!D:D) -> 0 | I87: =_xlfn.XLOOKUP(A87,Codes!C:C,Codes!L:L) -> 0
B88: =_xlfn.XLOOKUP(A88,Codes!C:C,Codes!I:I) -> 0 | C88: =_xlfn.XLOOKUP(A88,Codes!C:C,Codes!J:J) -> 0 | D88: =_xlfn.XLOOKUP(A88,Codes!C:C,Codes!E:E) -> 0 | E88: =_xlfn.XLOOKUP(A88,Codes!C:C,Codes!F:F) -> 0 | F88: =_xlfn.XLOOKUP(A88,Codes!C:C,Codes!G:G) -> 0 | G88: =_xlfn.XLOOKUP(A88,Codes!C:C,Codes!H:H) -> 0 | H88: =_xlfn.XLOOKUP(A88,Codes!C:C,Codes!D:D) -> 0 | I88: =_xlfn.XLOOKUP(A88,Codes!C:C,Codes!L:L) -> 0
B89: =_xlfn.XLOOKUP(A89,Codes!C:C,Codes!I:I) -> 0 | C89: =_xlfn.XLOOKUP(A89,Codes!C:C,Codes!J:J) -> 0 | D89: =_xlfn.XLOOKUP(A89,Codes!C:C,Codes!E:E) -> 0 | E89: =_xlfn.XLOOKUP(A89,Codes!C:C,Codes!F:F) -> 0 | F89: =_xlfn.XLOOKUP(A89,Codes!C:C,Codes!G:G) -> 0 | G89: =_xlfn.XLOOKUP(A89,Codes!C:C,Codes!H:H) -> 0 | H89: =_xlfn.XLOOKUP(A89,Codes!C:C,Codes!D:D) -> 0 | I89: =_xlfn.XLOOKUP(A89,Codes!C:C,Codes!L:L) -> 0
B90: =_xlfn.XLOOKUP(A90,Codes!C:C,Codes!I:I) -> 0 | C90: =_xlfn.XLOOKUP(A90,Codes!C:C,Codes!J:J) -> 0 | D90: =_xlfn.XLOOKUP(A90,Codes!C:C,Codes!E:E) -> 0 | E90: =_xlfn.XLOOKUP(A90,Codes!C:C,Codes!F:F) -> 0 | F90: =_xlfn.XLOOKUP(A90,Codes!C:C,Codes!G:G) -> 0 | G90: =_xlfn.XLOOKUP(A90,Codes!C:C,Codes!H:H) -> 0 | H90: =_xlfn.XLOOKUP(A90,Codes!C:C,Codes!D:D) -> 0 | I90: =_xlfn.XLOOKUP(A90,Codes!C:C,Codes!L:L) -> 0
B91: =_xlfn.XLOOKUP(A91,Codes!C:C,Codes!I:I) -> 0 | C91: =_xlfn.XLOOKUP(A91,Codes!C:C,Codes!J:J) -> 0 | D91: =_xlfn.XLOOKUP(A91,Codes!C:C,Codes!E:E) -> 0 | E91: =_xlfn.XLOOKUP(A91,Codes!C:C,Codes!F:F) -> 0 | F91: =_xlfn.XLOOKUP(A91,Codes!C:C,Codes!G:G) -> 0 | G91: =_xlfn.XLOOKUP(A91,Codes!C:C,Codes!H:H) -> 0 | H91: =_xlfn.XLOOKUP(A91,Codes!C:C,Codes!D:D) -> 0 | I91: =_xlfn.XLOOKUP(A91,Codes!C:C,Codes!L:L) -> 0
B92: =_xlfn.XLOOKUP(A92,Codes!C:C,Codes!I:I) -> 0 | C92: =_xlfn.XLOOKUP(A92,Codes!C:C,Codes!J:J) -> 0 | D92: =_xlfn.XLOOKUP(A92,Codes!C:C,Codes!E:E) -> 0 | E92: =_xlfn.XLOOKUP(A92,Codes!C:C,Codes!F:F) -> 0 | F92: =_xlfn.XLOOKUP(A92,Codes!C:C,Codes!G:G) -> 0 | G92: =_xlfn.XLOOKUP(A92,Codes!C:C,Codes!H:H) -> 0 | H92: =_xlfn.XLOOKUP(A92,Codes!C:C,Codes!D:D) -> 0 | I92: =_xlfn.XLOOKUP(A92,Codes!C:C,Codes!L:L) -> 0
B93: =_xlfn.XLOOKUP(A93,Codes!C:C,Codes!I:I) -> 0 | C93: =_xlfn.XLOOKUP(A93,Codes!C:C,Codes!J:J) -> 0 | D93: =_xlfn.XLOOKUP(A93,Codes!C:C,Codes!E:E) -> 0 | E93: =_xlfn.XLOOKUP(A93,Codes!C:C,Codes!F:F) -> 0 | F93: =_xlfn.XLOOKUP(A93,Codes!C:C,Codes!G:G) -> 0 | G93: =_xlfn.XLOOKUP(A93,Codes!C:C,Codes!H:H) -> 0 | H93: =_xlfn.XLOOKUP(A93,Codes!C:C,Codes!D:D) -> 0 | I93: =_xlfn.XLOOKUP(A93,Codes!C:C,Codes!L:L) -> 0
B94: =_xlfn.XLOOKUP(A94,Codes!C:C,Codes!I:I) -> 0 | C94: =_xlfn.XLOOKUP(A94,Codes!C:C,Codes!J:J) -> 0 | D94: =_xlfn.XLOOKUP(A94,Codes!C:C,Codes!E:E) -> 0 | E94: =_xlfn.XLOOKUP(A94,Codes!C:C,Codes!F:F) -> 0 | F94: =_xlfn.XLOOKUP(A94,Codes!C:C,Codes!G:G) -> 0 | G94: =_xlfn.XLOOKUP(A94,Codes!C:C,Codes!H:H) -> 0 | H94: =_xlfn.XLOOKUP(A94,Codes!C:C,Codes!D:D) -> 0 | I94: =_xlfn.XLOOKUP(A94,Codes!C:C,Codes!L:L) -> 0
B95: =_xlfn.XLOOKUP(A95,Codes!C:C,Codes!I:I) -> 0 | C95: =_xlfn.XLOOKUP(A95,Codes!C:C,Codes!J:J) -> 0 | D95: =_xlfn.XLOOKUP(A95,Codes!C:C,Codes!E:E) -> 0 | E95: =_xlfn.XLOOKUP(A95,Codes!C:C,Codes!F:F) -> 0 | F95: =_xlfn.XLOOKUP(A95,Codes!C:C,Codes!G:G) -> 0 | G95: =_xlfn.XLOOKUP(A95,Codes!C:C,Codes!H:H) -> 0 | H95: =_xlfn.XLOOKUP(A95,Codes!C:C,Codes!D:D) -> 0 | I95: =_xlfn.XLOOKUP(A95,Codes!C:C,Codes!L:L) -> 0
B96: =_xlfn.XLOOKUP(A96,Codes!C:C,Codes!I:I) -> 0 | C96: =_xlfn.XLOOKUP(A96,Codes!C:C,Codes!J:J) -> 0 | D96: =_xlfn.XLOOKUP(A96,Codes!C:C,Codes!E:E) -> 0 | E96: =_xlfn.XLOOKUP(A96,Codes!C:C,Codes!F:F) -> 0 | F96: =_xlfn.XLOOKUP(A96,Codes!C:C,Codes!G:G) -> 0 | G96: =_xlfn.XLOOKUP(A96,Codes!C:C,Codes!H:H) -> 0 | H96: =_xlfn.XLOOKUP(A96,Codes!C:C,Codes!D:D) -> 0 | I96: =_xlfn.XLOOKUP(A96,Codes!C:C,Codes!L:L) -> 0
B97: =_xlfn.XLOOKUP(A97,Codes!C:C,Codes!I:I) -> 0 | C97: =_xlfn.XLOOKUP(A97,Codes!C:C,Codes!J:J) -> 0 | D97: =_xlfn.XLOOKUP(A97,Codes!C:C,Codes!E:E) -> 0 | E97: =_xlfn.XLOOKUP(A97,Codes!C:C,Codes!F:F) -> 0 | F97: =_xlfn.XLOOKUP(A97,Codes!C:C,Codes!G:G) -> 0 | G97: =_xlfn.XLOOKUP(A97,Codes!C:C,Codes!H:H) -> 0 | H97: =_xlfn.XLOOKUP(A97,Codes!C:C,Codes!D:D) -> 0 | I97: =_xlfn.XLOOKUP(A97,Codes!C:C,Codes!L:L) -> 0
B98: =_xlfn.XLOOKUP(A98,Codes!C:C,Codes!I:I) -> 0 | C98: =_xlfn.XLOOKUP(A98,Codes!C:C,Codes!J:J) -> 0 | D98: =_xlfn.XLOOKUP(A98,Codes!C:C,Codes!E:E) -> 0 | E98: =_xlfn.XLOOKUP(A98,Codes!C:C,Codes!F:F) -> 0 | F98: =_xlfn.XLOOKUP(A98,Codes!C:C,Codes!G:G) -> 0 | G98: =_xlfn.XLOOKUP(A98,Codes!C:C,Codes!H:H) -> 0 | H98: =_xlfn.XLOOKUP(A98,Codes!C:C,Codes!D:D) -> 0 | I98: =_xlfn.XLOOKUP(A98,Codes!C:C,Codes!L:L) -> 0
B99: =_xlfn.XLOOKUP(A99,Codes!C:C,Codes!I:I) -> 0 | C99: =_xlfn.XLOOKUP(A99,Codes!C:C,Codes!J:J) -> 0 | D99: =_xlfn.XLOOKUP(A99,Codes!C:C,Codes!E:E) -> 0 | E99: =_xlfn.XLOOKUP(A99,Codes!C:C,Codes!F:F) -> 0 | F99: =_xlfn.XLOOKUP(A99,Codes!C:C,Codes!G:G) -> 0 | G99: =_xlfn.XLOOKUP(A99,Codes!C:C,Codes!H:H) -> 0 | H99: =_xlfn.XLOOKUP(A99,Codes!C:C,Codes!D:D) -> 0 | I99: =_xlfn.XLOOKUP(A99,Codes!C:C,Codes!L:L) -> 0
B100: =_xlfn.XLOOKUP(A100,Codes!C:C,Codes!I:I) -> 0 | C100: =_xlfn.XLOOKUP(A100,Codes!C:C,Codes!J:J) -> 0 | D100: =_xlfn.XLOOKUP(A100,Codes!C:C,Codes!E:E) -> 0 | E100: =_xlfn.XLOOKUP(A100,Codes!C:C,Codes!F:F) -> 0 | F100: =_xlfn.XLOOKUP(A100,Codes!C:C,Codes!G:G) -> 0 | G100: =_xlfn.XLOOKUP(A100,Codes!C:C,Codes!H:H) -> 0 | H100: =_xlfn.XLOOKUP(A100,Codes!C:C,Codes!D:D) -> 0 | I100: =_xlfn.XLOOKUP(A100,Codes!C:C,Codes!L:L) -> 0
B101: =_xlfn.XLOOKUP(A101,Codes!C:C,Codes!I:I) -> 0 | C101: =_xlfn.XLOOKUP(A101,Codes!C:C,Codes!J:J) -> 0 | D101: =_xlfn.XLOOKUP(A101,Codes!C:C,Codes!E:E) -> 0 | E101: =_xlfn.XLOOKUP(A101,Codes!C:C,Codes!F:F) -> 0 | F101: =_xlfn.XLOOKUP(A101,Codes!C:C,Codes!G:G) -> 0 | G101: =_xlfn.XLOOKUP(A101,Codes!C:C,Codes!H:H) -> 0 | H101: =_xlfn.XLOOKUP(A101,Codes!C:C,Codes!D:D) -> 0 | I101: =_xlfn.XLOOKUP(A101,Codes!C:C,Codes!L:L) -> 0
B102: =_xlfn.XLOOKUP(A102,Codes!C:C,Codes!I:I) -> 0 | C102: =_xlfn.XLOOKUP(A102,Codes!C:C,Codes!J:J) -> 0 | D102: =_xlfn.XLOOKUP(A102,Codes!C:C,Codes!E:E) -> 0 | E102: =_xlfn.XLOOKUP(A102,Codes!C:C,Codes!F:F) -> 0 | F102: =_xlfn.XLOOKUP(A102,Codes!C:C,Codes!G:G) -> 0 | G102: =_xlfn.XLOOKUP(A102,Codes!C:C,Codes!H:H) -> 0 | H102: =_xlfn.XLOOKUP(A102,Codes!C:C,Codes!D:D) -> 0 | I102: =_xlfn.XLOOKUP(A102,Codes!C:C,Codes!L:L) -> 0
B103: =_xlfn.XLOOKUP(A103,Codes!C:C,Codes!I:I) -> 0 | C103: =_xlfn.XLOOKUP(A103,Codes!C:C,Codes!J:J) -> 0 | D103: =_xlfn.XLOOKUP(A103,Codes!C:C,Codes!E:E) -> 0 | E103: =_xlfn.XLOOKUP(A103,Codes!C:C,Codes!F:F) -> 0 | F103: =_xlfn.XLOOKUP(A103,Codes!C:C,Codes!G:G) -> 0 | G103: =_xlfn.XLOOKUP(A103,Codes!C:C,Codes!H:H) -> 0 | H103: =_xlfn.XLOOKUP(A103,Codes!C:C,Codes!D:D) -> 0 | I103: =_xlfn.XLOOKUP(A103,Codes!C:C,Codes!L:L) -> 0
B104: =_xlfn.XLOOKUP(A104,Codes!C:C,Codes!I:I) -> 0 | C104: =_xlfn.XLOOKUP(A104,Codes!C:C,Codes!J:J) -> 0 | D104: =_xlfn.XLOOKUP(A104,Codes!C:C,Codes!E:E) -> 0 | E104: =_xlfn.XLOOKUP(A104,Codes!C:C,Codes!F:F) -> 0 | F104: =_xlfn.XLOOKUP(A104,Codes!C:C,Codes!G:G) -> 0 | G104: =_xlfn.XLOOKUP(A104,Codes!C:C,Codes!H:H) -> 0 | H104: =_xlfn.XLOOKUP(A104,Codes!C:C,Codes!D:D) -> 0 | I104: =_xlfn.XLOOKUP(A104,Codes!C:C,Codes!L:L) -> 0

Sheet Param masqué (hidden)
B1: REP | C1: _ | D1: Rayon | E1: Code Rayon | G1: REP | H1: _ | I1: Rayon | J1: Catégorie | K1: Code Produit | Q1: Type de matériaux | R1: Matériaux | S1: Exemples de matériaux | T1: Code matériaux | W1: A_100 | AB1: Type de mesure | AC1: Mode de calcul | AD1: Périmètres produits d'application | AE1: Code Mesure | AG1: code produit | AH1: Tranches de dimensions | AI1: unité | AJ1: meta cat | AN1: Typo | AO1: Tranches de dimensions | AP1: Code | AY1: Cat1 | BF1: Taux de TVA
W2: 1 - Métal | X2: =VLOOKUP(W2,$AT$2:$AU$13,2,FALSE) -> Cat_1 | AF2: 100 | AG2: A_100 | AH2: Eléments de toutes dimensions et poids | AI2: € / Tonne | AJ2: Dim_2 | AN2: Dim_1 | AO2: Eléments de toutes dimensions et poids (T) | AP2: 000 | AT2: 1 - Métal | AU2: Cat_1 | AV2: 1 | AX2: 28 | AY2: Métal >95% | AZ2: =VLOOKUP(AY2,'Comprendre la codification'!$D$45:$F$124,3,FALSE) -> 28 | BB2: Prix au poids | BD2: Oui | BF2: 0.085
A3: =E3 -> 21 | B3: Articles Bricolage et Jardin - ABJ | C3: A | D3: Articles de bricolage | E3: =VLOOKUP(D3,'Comprendre la codification'!$D$16:$F$21,3,FALSE) -> 21 | G3: ABJ | H3: ="A_"&VLOOKUP(I3,$D$3:$E$4,2,FALSE) -> A_21 | I3: Articles de bricolage | J3: Outillage à main et leurs accessoires | K3: =VLOOKUP(J3,'Comprendre la codification'!$E$23:$F$39,2,FALSE) -> 100 | M3: 1 - Métal | N3: MAT_1 | O3: 28 | P3: MAT_1 | Q3: 1 - Métal | R3: Métal >95% | S3: Ferreux (Acier, Acier inoxydable, Fer forgé, Fonte, Acier au carbone, acier zingué, tole, alliages…) et non-ferreux (Aluminium, plomb, zinc, étain, chrome, cuivre, bronze, argent, zamac, nickel, titane, laiton...) | T3: =VLOOKUP(R3,'Comprendre la codification'!$D$41:$F$124,3,FALSE) -> 28 | W3: 2 - Bois et dérivés de bois | X3: =VLOOKUP(W3,$AT$2:$AU$13,2,FALSE) -> Cat_2 | AB3: Général | AC3: € / Tonne | AD3: Eléments de toutes dimensions et poids (T) | AE3: 000 | AF3: 101 | AG3: A_101 | AH3: Eléments de toutes dimensions et poids | AI3: € / Tonne | AJ3: Dim_1 | AN3: Dim_1 | AO3: Inférieur strictement à 0,5 kg | AP3: 020 | AT3: 2 - Bois et dérivés de bois | AU3: Cat_2 | AV3: 2 | AX3: 02 | AY3: Assemblage avec métal >50% et autres matériaux | AZ3: =VLOOKUP(AY3,'Comprendre la codification'!$D$45:$F$124,3,FALSE) -> 02 | BB3: Prix en fonction d'une autre unité fonctionelle | BD3: Non | BF3: 0.1
A4: =E4 -> 22 | B4: Articles Bricolage et Jardin - ABJ | C4: A | D4: Entretien et aménagement du jardin | E4: =VLOOKUP(D4,'Comprendre la codification'!$D$16:$F$21,3,FALSE) -> 22 | G4: ABJ | H4: A_21 | I4: Articles de bricolage | J4: Gros objets et machines non électriques et non thermiques et leurs accessoires | K4: =VLOOKUP(J4,'Comprendre la codification'!$E$23:$F$39,2,FALSE) -> 101 | M4: 2 - Bois et dérivés de bois | N4: MAT_2 | O4: 02 | P4: MAT_1 | Q4: 1 - Métal | R4: Assemblage avec métal >50% et autres matériaux | S4: Assemblage métal-bois, métal-plastique, métal-inertes … | T4: =VLOOKUP(R4,'Comprendre la codification'!$D$41:$F$124,3,FALSE) -> 02 | W4: 3 - Papier carton | X4: Cat_3 | AD4: Inférieur strictement à 0,5 kg | AE4: 020 | AF4: 102 | AG4: A_102 | AH4: Eléments de toutes dimensions et poids | AI4: € / Tonne | AJ4: Dim_1 | AN4: Dim_1 | AO4: Compris entre 0,5 kg et 1 kg exclus | AP4: 021 | AT4: 3 - Papier carton | AU4: Cat_3 | AV4: 3 | AY4: Cat2 | BF4: 0.2
G5: ABJ | H5: A_21 | I5: Articles de bricolage | J5: Outils et supports de travail en hauteur | K5: =VLOOKUP(J5,'Comprendre la codification'!$E$23:$F$39,2,FALSE) -> 102 | M5: 3 - Papier carton | N5: MAT_3 | W5: 4 - Matériaux et fibres d'origine végétal ou animal autres que bois et papier, carton | X5: Cat_4 | AD5: Compris entre 0,5 kg et 1 kg exclus | AE5: 021 | AF5: 103 | AG5: A_103 | AH5: Eléments de toutes dimensions et poids | AI5: € / Tonne | AJ5: Dim_2 | AN5: Dim_1 | AO5: Compris entre 1 kg et 2 kg exclus | AP5: 022 | AT5: 4 - Matériaux et fibres d'origine végétal ou animal autres que bois et papier, carton | AU5: Cat_4 | AV5: 4 | AX5: 52 | AY5: Massif et assimilés certifiés >95% | AZ5: =VLOOKUP(AY5,'Comprendre la codification'!$D$45:$F$124,3,FALSE) -> 52
G6: ABJ | H6: A_21 | I6: Articles de bricolage | J6: Equipement personnel et accessoires de protection de bricolage | K6: =VLOOKUP(J6,'Comprendre la codification'!$E$23:$F$39,2,FALSE) -> 103 | M6: 4 - Matériaux et fibres d'origine végétal ou animal autres que bois et papier, carton | N6: MAT_4 | O6: 52 | P6: MAT_2 | Q6: 2 - Bois et dérivés de bois | R6: Massif et assimilés certifiés >95% | S6: Toutes essences (douglas, sapin, chène, hêtre, pin maritime, pin sylvestre, moabi , mélèze, teak, épicea ...), dont contreplaqué, contrecollé, lamellé, plaqué | T6: =VLOOKUP(R6,'Comprendre la codification'!$D$41:$F$124,3,FALSE) -> 52 | W6: 5 - Plastique, matériaux et fibres synthétiques | X6: Cat_5 | AD6: Compris entre 1 kg et 2 kg exclus | AE6: 022 | AF6: 104 | AG6: A_104 | AH6: Eléments de toutes dimensions et poids | AI6: € / Tonne | AJ6: Dim_2 | AN6: Dim_1 | AO6: Compris entre 2 kg et 3 kg exclus | AP6: 052 | AT6: 5 - Plastique, matériaux et fibres synthétiques | AU6: Cat_5 | AV6: 5 | AX6: 20 | AY6: Massif et assimilés certifiés >75% | AZ6: =VLOOKUP(AY6,'Comprendre la codification'!$D$45:$F$124,3,FALSE) -> 20
G7: ABJ | H7: A_21 | I7: Articles de bricolage | J7: Bâches, housses, filets et films de bricolage | K7: =VLOOKUP(J7,'Comprendre la codification'!$E$23:$F$39,2,FALSE) -> 104 | M7: 5 - Plastique, matériaux et fibres synthétiques | N7: MAT_5 | O7: 20 | P7: MAT_2 | Q7: 2 - Bois et dérivés de bois | R7: Massif et assimilés certifiés >75% | S7: Toutes essences (douglas, sapin, chène, hêtre, pin maritime, pin sylvestre, moabi , mélèze, teak, épicea ...), dont contreplaqué, contrecollé, lamellé, plaqué | T7: =VLOOKUP(R7,'Comprendre la codification'!$D$41:$F$124,3,FALSE) -> 20 | W7: 6 - Verre et parois vitrées | X7: Cat_6 | AD7: Compris entre 2 kg et 3 kg exclus | AE7: 052 | AF7: 105 | AG7: A_105 | AH7: Eléments de toutes dimensions et poids | AI7: € / Tonne | AJ7: Dim_2 | AN7: Dim_1 | AO7: Compris entre 3 kg et 5 kg exclus | AP7: 053 | AT7: 6 - Verre et parois vitrées | AU7: Cat_6 | AV7: 6 | AX7: 53 | AY7: Massif et assimilés non certifiés >95% | AZ7: =VLOOKUP(AY7,'Comprendre la codification'!$D$45:$F$124,3,FALSE) -> 53
G8: ABJ | H8: ="A_"&VLOOKUP(I8,$D$3:$E$4,2,FALSE) -> A_21 | I8: Articles de bricolage | J8: Seaux, auges et contenants | K8: =VLOOKUP(J8,'Comprendre la codification'!$E$23:$F$39,2,FALSE) -> 105 | M8: 6 - Verre et parois vitrées | N8: MAT_6 | O8: 53 | P8: MAT_2 | Q8: 2 - Bois et dérivés de bois | R8: Massif et assimilés non certifiés >95% | S8: Toutes essences (douglas, sapin, chène, hêtre, pin maritime, pin sylvestre, moabi , mélèze, teak, épicea ...), dont contreplaqué, contrecollé, lamellé, plaqué | T8: =VLOOKUP(R8,'Comprendre la codification'!$D$41:$F$124,3,FALSE) -> 53 | W8: 10 - Autres mix matériaux ou matériaux non classés ou non spécifiés | X8: Cat_10 | AD8: Compris entre 3 kg et 5 kg exclus | AE8: 053 | AF8: 150 | AG8: A_150 | AH8: Eléments de toutes dimensions et poids | AI8: € / Tonne | AJ8: Dim_2 | AN8: Dim_1 | AO8: Compris entre 5 kg et 7 kg exclus | AP8: 054 | AT8: 7 - Plâtre (Cat. e du décret) | AU8: Cat_7 | AV8: 7 | AX8: 21 | AY8: Massif et assimilés non certifiés >75% | AZ8: =VLOOKUP(AY8,'Comprendre la codification'!$D$45:$F$124,3,FALSE) -> 21
G9: ABJ | H9: A_22 | I9: Entretien et aménagement du jardin | J9: Outils à main d’entretien du jardin et petits accessoires | K9: =VLOOKUP(J9,'Comprendre la codification'!$E$23:$F$39,2,FALSE) -> 150 | M9: 7 - Plâtre | N9: MAT_7 | O9: 21 | P9: MAT_2 | Q9: 2 - Bois et dérivés de bois | R9: Massif et assimilés non certifiés >75% | S9: Toutes essences (douglas, sapin, chène, hêtre, pin maritime, pin sylvestre, moabi , mélèze, teak, épicea ...), dont contreplaqué, contrecollé, lamellé, plaqué | T9: =VLOOKUP(R9,'Comprendre la codification'!$D$41:$F$124,3,FALSE) -> 21 | W9: A_101 | AD9: Compris entre 5 kg et 7 kg exclus | AE9: 054 | AF9: 151 | AG9: A_151 | AH9: Eléments de toutes dimensions et poids | AI9: € / Tonne | AJ9: Dim_2 | AN9: Dim_1 | AO9: Compris entre 7 kg et 10 kg exclus | AP9: 055 | AT9: 8- Laines de verre et laines de roches (Cat. h et i du décret) | AU9: Cat_8 | AV9: 8 | AX9: 59 | AY9: Panneaux de particules ou OSB certifiés >95% | AZ9: =VLOOKUP(AY9,'Comprendre la codification'!$D$45:$F$124,3,FALSE) -> 59
G10: ABJ | H10: A_22 | I10: Entretien et aménagement du jardin | J10: Equipement personnel et accessoires de protection de jardinage | K10: =VLOOKUP(J10,'Comprendre la codification'!$E$23:$F$39,2,FALSE) -> 151 | M10: 8 - Laines de verre et laines de roches | N10: MAT_8 | O10: 59 | P10: MAT_2 | Q10: 2 - Bois et dérivés de bois | R10: Panneaux de particules ou OSB certifiés >95% | S10: Panneaux de particules, OSB | T10: =VLOOKUP(R10,'Comprendre la codification'!$D$41:$F$124,3,FALSE) -> 59 | W10: 1 - Métal | X10: =VLOOKUP(W10,$AT$2:$AU$13,2,FALSE) -> Cat_1 | AD10: Compris entre 7 kg et 10 kg exclus | AE10: 055 | AF10: 152 | AG10: A_152 | AH10: Eléments de toutes dimensions et poids | AI10: € / Tonne | AJ10: Dim_3 | AN10: Dim_1 | AO10: Compris entre 10 kg et 15 kg exclus | AP10: 056 | AT10: 9 - Membranes bitumineuses (Cat. g du décret) | AU10: Cat_9 | AV10: 9 | AX10: 60 | AY10: Panneaux de particules ou OSB certifiés >75% | AZ10: =VLOOKUP(AY10,'Comprendre la codification'!$D$45:$F$124,3,FALSE) -> 60
G11: ABJ | H11: A_22 | I11: Entretien et aménagement du jardin | J11: Pots de fleur et contenants | K11: =VLOOKUP(J11,'Comprendre la codification'!$E$23:$F$39,2,FALSE) -> 152 | M11: 9 - Membranes bitumineuses | N11: MAT_9 | O11: 60 | P11: MAT_2 | Q11: 2 - Bois et dérivés de bois | R11: Panneaux de particules ou OSB certifiés >75% | S11: Panneaux de particules, OSB | T11: =VLOOKUP(R11,'Comprendre la codification'!$D$41:$F$124,3,FALSE) -> 60 | W11: 2 - Bois et dérivés de bois | X11: Cat_2 | AD11: Compris entre 10 kg et 15 kg exclus | AE11: 056 | AF11: 153 | AG11: A_153 | AH11: Eléments de toutes dimensions et poids | AI11: € / Tonne | AJ11: Dim_2 | AN11: Dim_1 | AO11: Compris entre 15 kg et 20 kg exclus | AP11: 057 | AT11: 10 - Autres mix matériaux ou matériaux non classés ou non spécifiés | AU11: Cat_10 | AV11: 10 | AX11: 61 | AY11: Panneaux de particules ou OSB non certifiés >95% | AZ11: =VLOOKUP(AY11,'Comprendre la codification'!$D$45:$F$124,3,FALSE) -> 61
G12: ABJ | H12: A_22 | I12: Entretien et aménagement du jardin | J12: Bâches, housses, filets et films de jardinage | K12: =VLOOKUP(J12,'Comprendre la codification'!$E$23:$F$39,2,FALSE) -> 153 | M12: 10 - Autres mix matériaux ou matériaux non classés ou non spécifiés | N12: MAT_10 | O12: 61 | P12: MAT_2 | Q12: 2 - Bois et dérivés de bois | R12: Panneaux de particules ou OSB non certifiés >95% | S12: Panneaux de particules, OSB | T12: =VLOOKUP(R12,'Comprendre la codification'!$D$41:$F$124,3,FALSE) -> 61 | W12: 3 - Papier carton | X12: Cat_3 | AD12: Compris entre 15 kg et 20 kg exclus | AE12: 057 | AF12: 154 | AG12: A_154 | AH12: Eléments de toutes dimensions et poids | AI12: € / Tonne | AJ12: Dim_1 | AN12: Dim_1 | AO12: Compris entre 20 kg et 25 kg exclus | AP12: 058 | AT12: 11 - Mortiers, enduits, peintures, vernis, résines, produits de préparation (Cat. c du décret) | AU12: Cat_11 | AV12: 11 | AX12: 25 | AY12: Panneaux de particules ou OSB non certifiés >75% | AZ12: =VLOOKUP(AY12,'Comprendre la codification'!$D$45:$F$124,3,FALSE) -> 25
G13: ABJ | H13: A_22 | I13: Entretien et aménagement du jardin | J13: Equipements de plein air et leurs accessoires (hors bâches, filets, housses) | K13: =VLOOKUP(J13,'Comprendre la codification'!$E$23:$F$39,2,FALSE) -> 154 | M13: 11 - Mortiers, enduits, peintures, vernis, résines, produits de préparation | N13: MAT_11 | O13: 25 | P13: MAT_2 | Q13: 2 - Bois et dérivés de bois | R13: Panneaux de particules ou OSB non certifiés >75% | S13: Panneaux de particules, OSB | T13: =VLOOKUP(R13,'Comprendre la codification'!$D$41:$F$124,3,FALSE) -> 25 | W13: 4 - Matériaux et fibres d'origine végétal ou animal autres que bois et papier, carton | X13: Cat_4 | AD13: Compris entre 20 kg et 25 kg exclus | AE13: 058 | AF13: 155 | AG13: A_155 | AH13: Eléments de toutes dimensions et poids | AI13: € / Tonne | AJ13: Dim_1 | AN13: Dim_1 | AO13: Compris entre 25 kg et 30 kg exclus | AP13: 059 | AT13: 12 - Matériaux inertes | AU13: Cat_12 | AV13: 12 | AX13: 62 | AY13: Dérivés de bois >95% certifiés | AZ13: =VLOOKUP(AY13,'Comprendre la codification'!$D$45:$F$124,3,FALSE) -> 62
G14: ABJ | H14: A_22 | I14: Entretien et aménagement du jardin | J14: Structures extérieures non-maçonnées | K14: =VLOOKUP(J14,'Comprendre la codification'!$E$23:$F$39,2,FALSE) -> 155 | M14: 12 - Matériaux inertes | N14: MAT_12 | O14: 62 | P14: MAT_2 | Q14: 2 - Bois et dérivés de bois | R14: Dérivés de bois >95% certifiés | S14: Bois composite, MDF, HDF, alvéolaire, stratifé, HPL…. | T14: 62 | W14: 5 - Plastique, matériaux et fibres synthétiques | X14: Cat_5 | AD14: Compris entre 25 kg et 30 kg exclus | AE14: 059 | AN14: Dim_1 | AO14: Compris entre 30 kg et 40 kg exclus | AP14: 027 | AX14: 54 | AY14: Dérivés de bois >95% non certifiés | AZ14: =VLOOKUP(AY14,'Comprendre la codification'!$D$45:$F$124,3,FALSE) -> 54
O15: 54 | P15: MAT_2 | Q15: 2 - Bois et dérivés de bois | R15: Dérivés de bois >95% non certifiés | S15: Bois composite, MDF, HDF, alvéolaire, stratifé, HPL…. | T15: 54 | W15: 6 - Verre et parois vitrées | X15: Cat_6 | AD15: Compris entre 30 kg et 40 kg exclus | AE15: 027 | AN15: Dim_1 | AO15: Compris entre 40 kg et 50 kg exclus | AP15: 060 | AX15: 01 | AY15: Assemblage de bois, dérivés de bois à plus de 50% avec d'autres matériaux ou bois composite (hors verre) | AZ15: =VLOOKUP(AY15,'Comprendre la codification'!$D$45:$F$124,3,FALSE) -> 01
O16: 01 | P16: MAT_2 | Q16: 2 - Bois et dérivés de bois | R16: Assemblage de bois, dérivés de bois à plus de 50% avec d'autres matériaux ou bois composite (hors verre) certifiés | S16: Assemblage bois-métal, bois-plastique … | T16: 01 | W16: 10 - Autres mix matériaux ou matériaux non classés ou non spécifiés | X16: Cat_10 | AD16: Compris entre 40 kg et 50 kg exclus | AE16: 060 | AN16: Dim_2 | AO16: Eléments de toutes dimensions et poids (T) | AP16: 000 | AX16: 51 | AY16: Assemblage de bois, dérivés de bois à plus de 50% avec d'autres matériaux ou bois composite (hors verre) non certifiés | AZ16: =VLOOKUP(AY16,'Comprendre la codification'!$D$45:$F$124,3,FALSE) -> 51
O17: 51 | P17: MAT_2 | Q17: 2 - Bois et dérivés de bois | R17: Assemblage de bois, dérivés de bois à plus de 50% avec d'autres matériaux ou bois composite (hors verre) non certifiés | S17: Assemblage bois-métal, bois-plastique … | T17: 51 | W17: 12 - Matériaux inertes | X17: Cat_12 | AN17: Dim_2 | AO17: Inférieur strictement à 0,5 kg | AP17: 020 | AY17: Cat3
W18: A_103 | AN18: Dim_2 | AO18: Compris entre 0,5 kg et 1 kg exclus | AP18: 021 | AX18: 19 | AY18: Papier carton >50% avec d'autres matériaux (hors verre) | AZ18: =VLOOKUP(AY18,'Comprendre la codification'!$D$45:$F$124,3,FALSE) -> 19
O19: 19 | P19: MAT_3 | Q19: 3 - Papier carton | R19: Papier carton >50% avec d'autres matériaux (hors verre) | S19: Papier, Carton, Compact, Papier Kraft | T19: =VLOOKUP(R19,'Comprendre la codification'!$D$41:$F$124,3,FALSE) -> 19 | W19: 1 - Métal | X19: =VLOOKUP(W19,$AT$2:$AU$13,2,FALSE) -> Cat_1 | AN19: Dim_2 | AO19: Compris entre 1 kg et 2 kg exclus | AP19: 022 | AY19: Cat4
W20: 2 - Bois et dérivés de bois | X20: Cat_2 | AN20: Dim_2 | AO20: Compris entre 2 kg et 3 kg exclus | AP20: 052 | AX20: 64 | AY20: Caoutchouc naturel >50% | AZ20: =VLOOKUP(AY20,'Comprendre la codification'!$D$45:$F$124,3,FALSE) -> 64
O21: 55 | P21: MAT_4 | Q21: 4 - Matériaux et fibres d'origine végétal ou animal autres que bois et papier, carton | R21: Matériaux bio sourcés ou textiles non synthétiques >95% | S21: Tiges végétales (bambou, rotin, osiers, jute, paille, liège), textiles naturels d'origine végétale non mélangés (coton, lin, chanvre, soie, ramie, fibres de noix de coco, rafia…) | T21: =VLOOKUP(R21,'Comprendre la codification'!$D$41:$F$124,3,FALSE) -> 55 | W21: 3 - Papier carton | X21: Cat_3 | AN21: Dim_2 | AO21: Compris entre 3 kg et 5 kg exclus | AP21: 053 | AX21: 63 | AY21: Caoutchouc naturel >95% | AZ21: =VLOOKUP(AY21,'Comprendre la codification'!$D$45:$F$124,3,FALSE) -> 63
O22: 04 | P22: MAT_4 | Q22: 4 - Matériaux et fibres d'origine végétal ou animal autres que bois et papier, carton | R22: Matériaux bio sourcés ou textiles non synthétiques >50% | S22: Assemblage de matériaux bio sourcés avec du plastique, du métal … | T22: =VLOOKUP(R22,'Comprendre la codification'!$D$41:$F$124,3,FALSE) -> 04 | W22: 4 - Matériaux et fibres d'origine végétal ou animal autres que bois et papier, carton | X22: Cat_4 | AN22: Dim_2 | AO22: Compris entre 5 kg et 7 kg exclus | AP22: 054 | AX22: 04 | AY22: Matériaux bio sourcés ou textiles non synthétiques >50% | AZ22: =VLOOKUP(AY22,'Comprendre la codification'!$D$45:$F$124,3,FALSE) -> 04
O23: 63 | P23: MAT_4 | Q23: 4 - Matériaux et fibres d'origine végétal ou animal autres que bois et papier, carton | R23: Caoutchouc naturel >95% | S23: Caoutchouc, latex | T23: =VLOOKUP(R23,'Comprendre la codification'!$D$41:$F$124,3,FALSE) -> 63 | W23: 5 - Plastique, matériaux et fibres synthétiques | X23: Cat_5 | AN23: Dim_3 | AO23: Eléments de toutes dimensions et poids (T) | AP23: 000 | AX23: 55 | AY23: Matériaux bio sourcés ou textiles non synthétiques >95% | AZ23: =VLOOKUP(AY23,'Comprendre la codification'!$D$45:$F$124,3,FALSE) -> 55
O24: 64 | P24: MAT_4 | Q24: 4 - Matériaux et fibres d'origine végétal ou animal autres que bois et papier, carton | R24: Caoutchouc naturel >50% | S24: Caoutchouc, latex | T24: =VLOOKUP(R24,'Comprendre la codification'!$D$41:$F$124,3,FALSE) -> 64 | W24: 6 - Verre et parois vitrées | X24: Cat_6 | AN24: Dim_3 | AO24: Inférieur strictement à 0,5 kg | AP24: 020 | AX24: 06 | AY24: Matériaux d'origine animale >50% | AZ24: =VLOOKUP(AY24,'Comprendre la codification'!$D$45:$F$124,3,FALSE) -> 06
O25: 06 | P25: MAT_4 | Q25: 4 - Matériaux et fibres d'origine végétal ou animal autres que bois et papier, carton | R25: Matériaux d'origine animale >50% | S25: Matières textiles ou rembourrages d'origine animale (laine, feutre, mohair, plumes, duvets, poils, cuirs...) | T25: =VLOOKUP(R25,'Comprendre la codification'!$D$41:$F$124,3,FALSE) -> 06 | W25: 10 - Autres mix matériaux ou matériaux non classés ou non spécifiés | X25: Cat_10 | AN25: Dim_3 | AO25: Compris entre 0,5 kg et 1 kg exclus | AP25: 021 | AY25: Cat5
W26: A_104 | AN26: Dim_3 | AO26: Compris entre 1 kg et 2 kg exclus | AP26: 022 | AX26: 41 | AY26: Plastiques (mono résine) >95% | AZ26: =VLOOKUP(AY26,'Comprendre la codification'!$D$45:$F$124,3,FALSE) -> 41
O27: 41 | P27: MAT_5 | Q27: 5 - Plastique, matériaux et fibres synthétiques | R27: Plastiques (mono résine) >95% | S27: Plastiques et autres matériaux synthétiques : acrylique, PP, PE, PS, XPS, EPS, PER, Nylon, Polyamide, PU, PVC, vinyle, époxy, fibres synthétiques, PL, matériaux composites, carbone…. | T27: =VLOOKUP(R27,'Comprendre la codification'!$D$41:$F$124,3,FALSE) -> 41 | W27: 3 - Papier carton | X27: =VLOOKUP(W27,$AT$2:$AU$13,2,FALSE) -> Cat_3 | AN27: Dim_3 | AO27: Compris entre 2 kg et 3 kg exclus | AP27: 052 | AX27: 45 | AY27: PE ou PP ou mélange PP/PE >95% | AZ27: =VLOOKUP(AY27,'Comprendre la codification'!$D$45:$F$124,3,FALSE) -> 45
O28: 45 | P28: MAT_5 | Q28: 5 - Plastique, matériaux et fibres synthétiques | R28: PE ou PP ou mélange PP/PE >95% | S28: Polyéthylène (PE), Polypropylène (PP), mélange PP/PE | T28: =VLOOKUP(R28,'Comprendre la codification'!$D$41:$F$124,3,FALSE) -> 45 | W28: 4 - Matériaux et fibres d'origine végétal ou animal autres que bois et papier, carton | X28: Cat_4 | AN28: Dim_3 | AO28: Compris entre 3 kg et 5 kg exclus | AP28: 053 | AX28: 46 | AY28: ABS >95% | AZ28: =VLOOKUP(AY28,'Comprendre la codification'!$D$45:$F$124,3,FALSE) -> 46
O29: 48 | P29: MAT_5 | Q29: 5 - Plastique, matériaux et fibres synthétiques | R29: PVC >95% | T29: =VLOOKUP(R29,'Comprendre la codification'!$D$41:$F$124,3,FALSE) -> 48 | W29: 5 - Plastique, matériaux et fibres synthétiques | X29: Cat_5 | AN29: Dim_3 | AO29: Compris entre 5 kg et 7 kg exclus | AP29: 054 | AX29: 48 | AY29: PVC >95% | AZ29: =VLOOKUP(AY29,'Comprendre la codification'!$D$45:$F$124,3,FALSE) -> 48
O30: 42 | P30: MAT_5 | Q30: 5 - Plastique, matériaux et fibres synthétiques | R30: Polyterephtalate d'Ethylène (PET) >95% | T30: =VLOOKUP(R30,'Comprendre la codification'!$D$41:$F$124,3,FALSE) -> 42 | W30: 10 - Autres mix matériaux ou matériaux non classés ou non spécifiés | X30: Cat_10 | AN30: Dim_3 | AO30: Compris entre 7 kg et 10 kg exclus | AP30: 055 | AX30: 47 | AY30: Polystyrène >95% | AZ30: =VLOOKUP(AY30,'Comprendre la codification'!$D$45:$F$124,3,FALSE) -> 47
O31: 46 | P31: MAT_5 | Q31: 5 - Plastique, matériaux et fibres synthétiques | R31: ABS >95% | T31: =VLOOKUP(R31,'Comprendre la codification'!$D$41:$F$124,3,FALSE) -> 46 | W31: A_102 | AN31: Dim_3 | AO31: Compris entre 10 kg et 15 kg exclus | AP31: 056 | AX31: 42 | AY31: Polyterephtalate d'Ethylène (PET) >95% | AZ31: =VLOOKUP(AY31,'Comprendre la codification'!$D$45:$F$124,3,FALSE) -> 42
O32: 47 | P32: MAT_5 | Q32: 5 - Plastique, matériaux et fibres synthétiques | R32: Polystyrène >95% | T32: =VLOOKUP(R32,'Comprendre la codification'!$D$41:$F$124,3,FALSE) -> 47 | W32: 1 - Métal | X32: =VLOOKUP(W32,$AT$2:$AU$13,2,FALSE) -> Cat_1 | AN32: Dim_3 | AO32: Compris entre 15 kg et 20 kg exclus | AP32: 057 | AX32: 49 | AY32: Caoutchouc synthétique >95% | AZ32: =VLOOKUP(AY32,'Comprendre la codification'!$D$45:$F$124,3,FALSE) -> 49
O33: 05 | P33: MAT_5 | Q33: 5 - Plastique, matériaux et fibres synthétiques | R33: Plastiques ou autres matériaux synthétiques >50% | S33: Assemblage de matériaux et textiles synthétiques, ensemble | T33: =VLOOKUP(R33,'Comprendre la codification'!$D$41:$F$124,3,FALSE) -> 05 | W33: 2 - Bois et dérivés de bois | X33: Cat_2 | AX33: 65 | AY33: Matériaux ou fibres synthétiques >95% | AZ33: =VLOOKUP(AY33,'Comprendre la codification'!$D$45:$F$124,3,FALSE) -> 65
O34: 49 | P34: MAT_5 | Q34: 5 - Plastique, matériaux et fibres synthétiques | R34: Caoutchouc synthétique >95% | S34: Caoutchouc | T34: =VLOOKUP(R34,'Comprendre la codification'!$D$41:$F$124,3,FALSE) -> 49 | W34: 3 - Papier carton | X34: Cat_3 | AX34: 05 | AY34: Plastiques ou autres matériaux synthétiques >50% | AZ34: =VLOOKUP(AY34,'Comprendre la codification'!$D$45:$F$124,3,FALSE) -> 05
O35: 10 | P35: MAT_5 | Q35: 5 - Plastique, matériaux et fibres synthétiques | R35: Eléments contenant du latex | S35: Latex | T35: =VLOOKUP(R35,'Comprendre la codification'!$D$41:$F$124,3,FALSE) -> 10 | W35: 4 - Matériaux et fibres d'origine végétal ou animal autres que bois et papier, carton | X35: Cat_4 | AX35: 40 | AY35: Assemblage caoutchouc synthétique ou latex >50% avec d'autres matériaux | AZ35: =VLOOKUP(AY35,'Comprendre la codification'!$D$45:$F$124,3,FALSE) -> 40
O36: 40 | P36: MAT_5 | Q36: 5 - Plastique, matériaux et fibres synthétiques | R36: Assemblage caoutchouc synthétique ou latex >50% avec d'autres matériaux | S36: Caoutchouc, latex avec d'autres matériaux synthétiques, du bois, du métal … | T36: =VLOOKUP(R36,'Comprendre la codification'!$D$41:$F$124,3,FALSE) -> 40 | W36: 5 - Plastique, matériaux et fibres synthétiques | X36: Cat_5 | AX36: 67 | AY36: Assemblage matériaux ou fibres synthétiques >50% avec d'autres matériaux | AZ36: =VLOOKUP(AY36,'Comprendre la codification'!$D$45:$F$124,3,FALSE) -> 67
O37: 65 | P37: MAT_5 | Q37: 5 - Plastique, matériaux et fibres synthétiques | R37: Matériaux ou fibres synthétiques >95% | S37: Polyamides, nylon, polyester (PES) et polyterephtalate d'Ethylène (PET), viscose, polyester, élastane, mousses … | T37: =VLOOKUP(R37,'Comprendre la codification'!$D$41:$F$124,3,FALSE) -> 65 | W37: 6 - Verre et parois vitrées | X37: Cat_6 | AY37: Cat6
O38: 66 | P38: MAT_5 | Q38: 5 - Plastique, matériaux et fibres synthétiques | R38: Textile et rembourrage en polyester >95% | S38: Polyester | T38: =VLOOKUP(R38,'Comprendre la codification'!$D$41:$F$124,3,FALSE) -> 66 | W38: 10 - Autres mix matériaux ou matériaux non classés ou non spécifiés | X38: Cat_10 | AX38: 72 | AY38: Assemblage verre à plus de 50% avec bois ou dérivés de bois | AZ38: =VLOOKUP(AY38,'Comprendre la codification'!$D$45:$F$124,3,FALSE) -> 72
O39: 09 | P39: MAT_5 | Q39: 5 - Plastique, matériaux et fibres synthétiques | R39: Eléments contenant de la mousse | T39: =VLOOKUP(R39,'Comprendre la codification'!$D$41:$F$124,3,FALSE) -> 09 | W39: 12 - Matériaux inertes | X39: Cat_12 | AX39: 71 | AY39: Assemblage verre à plus de 50% avec Inerte | AZ39: =VLOOKUP(AY39,'Comprendre la codification'!$D$45:$F$124,3,FALSE) -> 71
O40: 11 | P40: MAT_5 | Q40: 5 - Plastique, matériaux et fibres synthétiques | R40: Eléments textiles contenant des ressorts | T40: =VLOOKUP(R40,'Comprendre la codification'!$D$41:$F$124,3,FALSE) -> 11 | W40: A_153 | AX40: 70 | AY40: Assemblage verre à plus de 50% avec métal | AZ40: =VLOOKUP(AY40,'Comprendre la codification'!$D$45:$F$124,3,FALSE) -> 70
O41: 67 | P41: MAT_5 | Q41: 5 - Plastique, matériaux et fibres synthétiques | R41: Assemblage matériaux ou fibres synthétiques >50% avec d'autres matériaux | S41: Assemblage de matériaux et textiles synthétiques avec du métal, du bois … | T41: =VLOOKUP(R41,'Comprendre la codification'!$D$41:$F$124,3,FALSE) -> 67 | W41: 3 - Papier carton | X41: =VLOOKUP(W41,$AT$2:$AU$13,2,FALSE) -> Cat_3 | AX41: 73 | AY41: Assemblage verre à plus de 50% avec plastique | AZ41: =VLOOKUP(AY41,'Comprendre la codification'!$D$45:$F$124,3,FALSE) -> 73
W42: 4 - Matériaux et fibres d'origine végétal ou animal autres que bois et papier, carton | X42: Cat_4 | AX42: 68 | AY42: Verre >95% | AZ42: =VLOOKUP(AY42,'Comprendre la codification'!$D$45:$F$124,3,FALSE) -> 68
O43: 68 | P43: MAT_6 | Q43: 6 - Verre et parois vitrées | R43: Verre >95% | S43: Verre plat, brique de verre … | T43: =VLOOKUP(R43,'Comprendre la codification'!$D$41:$F$124,3,FALSE) -> 68 | W43: 5 - Plastique, matériaux et fibres synthétiques | X43: Cat_5 | AY43: Cat7
O44: 70 | P44: MAT_6 | Q44: 6 - Verre et parois vitrées | R44: Assemblage verre à plus de 50% avec métal | S44: Assemblage de verre avec des métaux | T44: =VLOOKUP(R44,'Comprendre la codification'!$D$41:$F$124,3,FALSE) -> 70 | W44: 10 - Autres mix matériaux ou matériaux non classés ou non spécifiés | X44: Cat_10 | AX44: 75 | AY44: Plâtre >95% | AZ44: =VLOOKUP(AY44,'Comprendre la codification'!$D$45:$F$124,3,FALSE) -> 75
O45: 71 | P45: MAT_6 | Q45: 6 - Verre et parois vitrées | R45: Assemblage verre à plus de 50% avec Inerte | S45: Assemblage de verre avec de l'inerte | T45: =VLOOKUP(R45,'Comprendre la codification'!$D$41:$F$124,3,FALSE) -> 71 | W45: A_151 | AX45: 76 | AY45: Plâtre >50% | AZ45: =VLOOKUP(AY45,'Comprendre la codification'!$D$45:$F$124,3,FALSE) -> 76
O46: 72 | P46: MAT_6 | Q46: 6 - Verre et parois vitrées | R46: Assemblage verre à plus de 50% avec bois ou dérivés de bois | S46: Assemblage de verre avec du bois ou des matériaux biosourcés | T46: =VLOOKUP(R46,'Comprendre la codification'!$D$41:$F$124,3,FALSE) -> 72 | W46: 1 - Métal | X46: =VLOOKUP(W46,$AT$2:$AU$13,2,FALSE) -> Cat_1 | AY46: Cat8
O47: 73 | P47: MAT_6 | Q47: 6 - Verre et parois vitrées | R47: Assemblage verre à plus de 50% avec plastique | S47: Assemblage de verre avec du plastique | T47: =VLOOKUP(R47,'Comprendre la codification'!$D$41:$F$124,3,FALSE) -> 73 | W47: 2 - Bois et dérivés de bois | X47: Cat_2 | AX47: 77 | AY47: Laines de roche à plus de 95 % | AZ47: =VLOOKUP(AY47,'Comprendre la codification'!$D$45:$F$124,3,FALSE) -> 77
O48: 69 | P48: MAT_6 | Q48: 6 - Verre et parois vitrées | R48: Miroir >95% | S48: Miroir | T48: =VLOOKUP(R48,'Comprendre la codification'!$D$41:$F$124,3,FALSE) -> 69 | W48: 3 - Papier carton | X48: Cat_3 | AX48: 78 | AY48: Laine de verre à plus de 95 % | AZ48: =VLOOKUP(AY48,'Comprendre la codification'!$D$45:$F$124,3,FALSE) -> 78
W49: 4 - Matériaux et fibres d'origine végétal ou animal autres que bois et papier, carton | X49: Cat_4 | AX49: 79 | AY49: Assemblage de laines de verre ou laines de roches à plus de 50% et d'autres matériaux | AZ49: =VLOOKUP(AY49,'Comprendre la codification'!$D$45:$F$124,3,FALSE) -> 79
O50: 75 | P50: MAT_7 | Q50: 7 - Plâtre | R50: Plâtre >95% | S50: Matière en plâtre, plaque de plâtre (placo) et fibre gypse | T50: =VLOOKUP(R50,'Comprendre la codification'!$D$41:$F$124,3,FALSE) -> 75 | W50: 5 - Plastique, matériaux et fibres synthétiques | X50: Cat_5 | AY50: Cat9
O51: 76 | P51: MAT_7 | Q51: 7 - Plâtre | R51: Plâtre >50% | S51: Elément composé majoritaitement de plâtre et associé à d'autres matériaux | T51: =VLOOKUP(R51,'Comprendre la codification'!$D$41:$F$124,3,FALSE) -> 76 | W51: 6 - Verre et parois vitrées | X51: Cat_6 | AX51: 80 | AY51: Membranes bitumineuses à plus de 95 % | AZ51: =VLOOKUP(AY51,'Comprendre la codification'!$D$45:$F$124,3,FALSE) -> 80
W52: 10 - Autres mix matériaux ou matériaux non classés ou non spécifiés | X52: Cat_10 | AY52: Cat10
O53: 77 | P53: MAT_8 | Q53: 8 - Laines de verre et laines de roches | R53: Laines de roche à plus de 95 % | S53: Matière isolante fabriquée à partir d'un matériau naturel issu de l'activité volcanique | T53: =VLOOKUP(R53,'Comprendre la codification'!$D$41:$F$124,3,FALSE) -> 77 | W53: A_154 | AX53: 82 | AY53: Assemblage de 3 matériaux ou plus sans un matériau à plus de 50% | AZ53: =VLOOKUP(AY53,'Comprendre la codification'!$D$45:$F$124,3,FALSE) -> 82
O54: 78 | P54: MAT_8 | Q54: 8 - Laines de verre et laines de roches | R54: Laine de verre à plus de 95 % | S54: Matière composée de fils de verre, utilisé comme filtrant ou isolant | T54: =VLOOKUP(R54,'Comprendre la codification'!$D$41:$F$124,3,FALSE) -> 78 | W54: 1 - Métal | X54: =VLOOKUP(W54,$AT$2:$AU$13,2,FALSE) -> Cat_1 | AX54: 00 | AY54: Non connu ou non spécifié par l'entreprise | AZ54: =VLOOKUP(AY54,'Comprendre la codification'!$D$45:$F$124,3,FALSE) -> 00
O55: 79 | P55: MAT_8 | Q55: 8 - Laines de verre et laines de roches | R55: Assemblage de laines de verre ou laines de roches à plus de 50% et d'autres matériaux | S55: Elément composé majoritaitement de laine minérale | T55: =VLOOKUP(R55,'Comprendre la codification'!$D$41:$F$124,3,FALSE) -> 79 | W55: 2 - Bois et dérivés de bois | X55: Cat_2 | AY55: Cat12
W56: 3 - Papier carton | X56: Cat_3 | AX56: 84 | AY56: Ardoise >95% | AZ56: =VLOOKUP(AY56,'Comprendre la codification'!$D$45:$F$124,3,FALSE) -> 84
O57: 80 | P57: MAT_9 | Q57: 9 - Membranes bitumineuses | R57: Membranes bitumineuses à plus de 95 % | S57: Membrane d'étanchéité synthétique | T57: =VLOOKUP(R57,'Comprendre la codification'!$D$41:$F$124,3,FALSE) -> 80 | W57: 4 - Matériaux et fibres d'origine végétal ou animal autres que bois et papier, carton | X57: Cat_4 | AX57: 08 | AY57: Assemblage de matériaux avec de l'inerte >50% | AZ57: =VLOOKUP(AY57,'Comprendre la codification'!$D$45:$F$124,3,FALSE) -> 08
W58: 5 - Plastique, matériaux et fibres synthétiques | X58: Cat_5 | AX58: 74 | AY58: Béton >95% | AZ58: =VLOOKUP(AY58,'Comprendre la codification'!$D$45:$F$124,3,FALSE) -> 74
O59: 81 | P59: MAT_10 | Q59: 10 - Autres mix matériaux ou matériaux non classés ou non spécifiés | R59: Assemblage dont la composition conjointe en bois, dérivés de bois et en métal dépasse 95% | T59: =VLOOKUP(R59,'Comprendre la codification'!$D$41:$F$124,3,FALSE) -> 81 | W59: 6 - Verre et parois vitrées | X59: Cat_6 | AX59: 97 | AY59: Céramique >95% | AZ59: =VLOOKUP(AY59,'Comprendre la codification'!$D$45:$F$124,3,FALSE) -> 97
O60: 82 | P60: MAT_10 | Q60: 10 - Autres mix matériaux ou matériaux non classés ou non spécifiés | R60: Assemblage de 3 matériaux ou plus sans un matériau à plus de 50% | S60: Elément composé de parties en matériaux divers avec souvent mais non exclusivement une partie de plastique ou de textile synthétique | T60: =VLOOKUP(R60,'Comprendre la codification'!$D$41:$F$124,3,FALSE) -> 82 | W60: 10 - Autres mix matériaux ou matériaux non classés ou non spécifiés | X60: Cat_10 | AX60: 90 | AY60: Ciment >95% | AZ60: =VLOOKUP(AY60,'Comprendre la codification'!$D$45:$F$124,3,FALSE) -> 90
O61: 00 | P61: MAT_10 | Q61: 10 - Autres mix matériaux ou matériaux non classés ou non spécifiés | R61: Non connu ou non spécifié par l'entreprise | S61: Non connu ou non spécifié par l'entreprise | T61: =VLOOKUP(R61,'Comprendre la codification'!$D$41:$F$124,3,FALSE) -> 00 | W61: 12 - Matériaux inertes | X61: Cat_12 | AX61: 15 | AY61: Composites et autres matériaux minéraux reconstitués >50% | AZ61: =VLOOKUP(AY61,'Comprendre la codification'!$D$45:$F$124,3,FALSE) -> 15
W62: A_150 | AX62: 91 | AY62: Granit >95% | AZ62: =VLOOKUP(AY62,'Comprendre la codification'!$D$45:$F$124,3,FALSE) -> 91
O63: 83 | P63: MAT_11 | Q63: 11 - Mortiers, enduits, peintures, vernis, résines, produits de préparation | R63: Produits liquides, y.c. dangereux >95% | S63: Sous couches, préparation des sols et étanchéité, Peintures extérieures, Traitement des sols et toitures, Peintures intérieures, Colles et adhésifs, Résines PU et expansive (aérosol), Mastics, joints et mousses PU, Adjuvants, Traitement des bois, Traitement des matériaux (aérosol), Traitement des matériaux hors bois, Vernis et vitrificateurs et dérivés, Vernis et vitrificateurs et dérivés (aérosols), Enduits poudre, Enduits pate | T63: =VLOOKUP(R63,'Comprendre la codification'!$D$41:$F$124,3,FALSE) -> 83 | W63: 1 - Métal | X63: =VLOOKUP(W63,$AT$2:$AU$13,2,FALSE) -> Cat_1 | AX63: 94 | AY63: Grès >95% | AZ63: =VLOOKUP(AY63,'Comprendre la codification'!$D$45:$F$124,3,FALSE) -> 94
W64: 2 - Bois et dérivés de bois | X64: Cat_2 | AX64: 87 | AY64: Lave >95% | AZ64: =VLOOKUP(AY64,'Comprendre la codification'!$D$45:$F$124,3,FALSE) -> 87
O65: 08 | P65: MAT_12 | Q65: 12 - Matériaux inertes | R65: Assemblage de matériaux avec de l'inerte >50% | T65: =VLOOKUP(R65,'Comprendre la codification'!$D$41:$F$124,3,FALSE) -> 08 | W65: 3 - Papier carton | X65: Cat_3 | AX65: 98 | AY65: Pierre artificielle >95% | AZ65: =VLOOKUP(AY65,'Comprendre la codification'!$D$45:$F$124,3,FALSE) -> 98
O66: 15 | P66: MAT_12 | Q66: 12 - Matériaux inertes | R66: Composites et autres matériaux minéraux reconstitués >50% | T66: =VLOOKUP(R66,'Comprendre la codification'!$D$41:$F$124,3,FALSE) -> 15 | W66: 4 - Matériaux et fibres d'origine végétal ou animal autres que bois et papier, carton | X66: Cat_4 | AX66: 86 | AY66: Pierre calcaire >95% | AZ66: =VLOOKUP(AY66,'Comprendre la codification'!$D$45:$F$124,3,FALSE) -> 86
O67: 84 | P67: MAT_12 | Q67: 12 - Matériaux inertes | R67: Ardoise >95% | S67: Ardoise | T67: =VLOOKUP(R67,'Comprendre la codification'!$D$41:$F$124,3,FALSE) -> 84 | W67: 5 - Plastique, matériaux et fibres synthétiques | X67: Cat_5 | AX67: 89 | AY67: Terre cuite ou crue >95% | AZ67: =VLOOKUP(AY67,'Comprendre la codification'!$D$45:$F$124,3,FALSE) -> 89
O68: 85 | P68: MAT_12 | Q68: 12 - Matériaux inertes | R68: Granulats hors pierre >95% | S68: Matière minérale de petite taille (granulats, gravillons, sable, grave, gravier, moellon, concassé, …) hors pierre | T68: =VLOOKUP(R68,'Comprendre la codification'!$D$41:$F$124,3,FALSE) -> 85 | W68: 6 - Verre et parois vitrées | X68: Cat_6
O69: 86 | P69: MAT_12 | Q69: 12 - Matériaux inertes | R69: Pierre calcaire >95% | S69: Matière minérale de grosse taille, hors granulats, gravillons, sable et hors pierres spécifiques comme l'ardoise | T69: =VLOOKUP(R69,'Comprendre la codification'!$D$41:$F$124,3,FALSE) -> 86 | W69: 10 - Autres mix matériaux ou matériaux non classés ou non spécifiés | X69: Cat_10
O70: 87 | P70: MAT_12 | Q70: 12 - Matériaux inertes | R70: Lave >95% | T70: =VLOOKUP(R70,'Comprendre la codification'!$D$41:$F$124,3,FALSE) -> 87 | W70: A_152
O71: 88 | P71: MAT_12 | Q71: 12 - Matériaux inertes | R71: Mélange bitumineux >95% | S71: Matière liquide à base de bitume | T71: =VLOOKUP(R71,'Comprendre la codification'!$D$41:$F$124,3,FALSE) -> 88 | W71: 1 - Métal | X71: =VLOOKUP(W71,$AT$2:$AU$13,2,FALSE) -> Cat_1
O72: 89 | P72: MAT_12 | Q72: 12 - Matériaux inertes | R72: Terre cuite ou crue >95% | S72: Matière terre cuite | T72: =VLOOKUP(R72,'Comprendre la codification'!$D$41:$F$124,3,FALSE) -> 89 | W72: 2 - Bois et dérivés de bois | X72: Cat_2
O73: 74 | P73: MAT_12 | Q73: 12 - Matériaux inertes | R73: Béton >95% | S73: Assemblage de granulats (graviers, gravillons, sables, etc.), d'un liant (ciment, bitume, argile) d'adjuvants et d'eau | T73: =VLOOKUP(R73,'Comprendre la codification'!$D$41:$F$124,3,FALSE) -> 74 | W73: 3 - Papier carton | X73: Cat_3
O74: 96 | P74: MAT_12 | Q74: 12 - Matériaux inertes | R74: Béton cellulaire >95% | T74: =VLOOKUP(R74,'Comprendre la codification'!$D$41:$F$124,3,FALSE) -> 96 | W74: 4 - Matériaux et fibres d'origine végétal ou animal autres que bois et papier, carton | X74: Cat_4
O75: 90 | P75: MAT_12 | Q75: 12 - Matériaux inertes | R75: Ciment >95% | T75: =VLOOKUP(R75,'Comprendre la codification'!$D$41:$F$124,3,FALSE) -> 90 | W75: 5 - Plastique, matériaux et fibres synthétiques | X75: Cat_5
O76: 91 | P76: MAT_12 | Q76: 12 - Matériaux inertes | R76: Granit >95% | S76: Matière à base de faïence ou grès | T76: =VLOOKUP(R76,'Comprendre la codification'!$D$41:$F$124,3,FALSE) -> 91 | W76: 6 - Verre et parois vitrées | X76: Cat_6
O77: 97 | P77: MAT_12 | Q77: 12 - Matériaux inertes | R77: Céramique >95% | T77: =VLOOKUP(R77,'Comprendre la codification'!$D$41:$F$124,3,FALSE) -> 97 | W77: 10 - Autres mix matériaux ou matériaux non classés ou non spécifiés | X77: Cat_10
O78: 92 | P78: MAT_12 | Q78: 12 - Matériaux inertes | R78: Mortier >95% | T78: =VLOOKUP(R78,'Comprendre la codification'!$D$41:$F$124,3,FALSE) -> 92 | W78: 12 - Matériaux inertes | X78: Cat_12
O79: 93 | P79: MAT_12 | Q79: 12 - Matériaux inertes | R79: Adjuvants >95% | T79: =VLOOKUP(R79,'Comprendre la codification'!$D$41:$F$124,3,FALSE) -> 93 | W79: A_155
O80: 94 | P80: MAT_12 | Q80: 12 - Matériaux inertes | R80: Grès >95% | T80: =VLOOKUP(R80,'Comprendre la codification'!$D$41:$F$124,3,FALSE) -> 94 | W80: 1 - Métal | X80: =VLOOKUP(W80,$AT$2:$AU$13,2,FALSE) -> Cat_1
O81: 95 | P81: MAT_12 | Q81: 12 - Matériaux inertes | R81: Chaux >95% | S81: Matériau obtenu par moulage d'agrégats divers, charges et liants (béton, pierre reconstituée) ou par synthèse chimique | T81: =VLOOKUP(R81,'Comprendre la codification'!$D$41:$F$124,3,FALSE) -> 95 | W81: 2 - Bois et dérivés de bois | X81: Cat_2
O82: 98 | P82: MAT_12 | Q82: 12 - Matériaux inertes | R82: Pierre artificielle >95% | T82: =VLOOKUP(R82,'Comprendre la codification'!$D$41:$F$124,3,FALSE) -> 98 | W82: 3 - Papier carton | X82: Cat_3
W83: 4 - Matériaux et fibres d'origine végétal ou animal autres que bois et papier, carton | X83: Cat_4
W84: 5 - Plastique, matériaux et fibres synthétiques | X84: Cat_5
W85: 6 - Verre et parois vitrées | X85: Cat_6
W86: 10 - Autres mix matériaux ou matériaux non classés ou non spécifiés | X86: Cat_10
W87: 12 - Matériaux inertes | X87: Cat_12
W89: A_105
W90: 1 - Métal | X90: =VLOOKUP(W90,$AT$2:$AU$13,2,FALSE) -> Cat_1
W91: 2 - Bois et dérivés de bois | X91: Cat_2
W92: 3 - Papier carton | X92: Cat_3
W93: 4 - Matériaux et fibres d'origine végétal ou animal autres que bois et papier, carton | X93: Cat_4
W94: 5 - Plastique, matériaux et fibres synthétiques | X94: Cat_5
W95: 6 - Verre et parois vitrées | X95: Cat_6
W96: 10 - Autres mix matériaux ou matériaux non classés ou non spécifiés | X96: Cat_10
W97: 12 - Matériaux inertes | X97: Cat_12
D174: Textile et rembourrage en polyester >90%
B175: Code Mesure : 00 000 00 XXX 0

Sheet Codes éco-part (hidden)
B1: Codes éco-participation communs aux 4 filières | F1: 0
B2: La table ci-dessous contient les codes éco-participations et les montants correspondants pour 2024 et 2025
B5: Code éco-participation | C5: Montant € HT / article | D5: Montant € TTC / article (TVA à 20%)
B6: 618 | C6: 1.58 | D6: =C6*1.2 -> 1.896 | E6: =B6 -> 618
B7: 619 | C7: 0.77 | D7: =C7*1.2 -> 0.924 | E7: =B7 -> 619
B8: 002 | C8: 0.04 | D8: 0.048 | E8: 002
B9: 003 | C9: 0.08 | D9: 0.096 | E9: 003
B10: 004 | C10: 0.13 | D10: 0.156 | E10: 004
B11: 005 | C11: 0.17 | D11: 0.204 | E11: 005
B12: 006 | C12: 0.33 | D12: 0.396 | E12: 006
B13: 008 | C13: 0.83 | D13: 0.996 | E13: 008
B14: 009 | C14: 1.25 | D14: 1.5 | E14: 009
B15: 010 | C15: 1.67 | D15: 2.004 | E15: 010
B16: 011 | C16: 2.08 | D16: 2.496 | E16: 011
B17: 012 | C17: 2.5 | D17: 3 | E17: 012
B18: 013 | C18: 2.92 | D18: 3.504 | E18: 013
B19: 014 | C19: 3.33 | D19: 3.996 | E19: 014
B20: 015 | C20: 3.75 | D20: 4.5 | E20: 015
B21: 016 | C21: 4.17 | D21: 5.004 | E21: 016
B22: 017 | C22: 5.42 | D22: 6.504 | E22: 017
B23: 018 | C23: 5.83 | D23: 6.996 | E23: 018
B24: 019 | C24: 6.67 | D24: 8.004 | E24: 019
B25: 020 | C25: 7.5 | D25: 9 | E25: 020
B26: 021 | C26: 8.33 | D26: 9.996 | E26: 021
B27: 022 | C27: 10.83 | D27: 12.996 | E27: 022
B28: 023 | C28: 15 | D28: 18 | E28: 023
B29: 024 | C29: 19.17 | D29: 23.004 | E29: 024
B30: 026 | C30: 27.5 | D30: 33 | E30: 026
B31: 027 | C31: 31.67 | D31: 38.004 | E31: 027
B32: 029 | C32: 40 | D32: 48 | E32: 029
B33: 032 | C33: 52.5 | D33: 63 | E33: 032
B34: 036 | C34: 69.17 | D34: 83.004 | E34: 036
B35: 042 | C35: 5 | D35: 6 | E35: 042
B36: 043 | C36: 0.34 | D36: 0.408 | E36: 043
B37: 044 | C37: 0.68 | D37: 0.816 | E37: 044
B38: 047 | C38: 0.02 | D38: 0.024 | E38: 047
B39: 048 | C39: 0.05 | D39: 0.06 | E39: 048
B40: 049 | C40: 0.09 | D40: 0.108 | E40: 049
B41: 050 | C41: 0.15 | D41: 0.18 | E41: 050
B42: 051 | C42: 0.21 | D42: 0.252 | E42: 051
B43: 053 | C43: 0.5 | D43: 0.6 | E43: 053
B44: 054 | C44: 0.92 | D44: 1.104 | E44: 054
B45: 055 | C45: 0.96 | D45: 1.152 | E45: 055
B46: 056 | C46: 1 | D46: 1.2 | E46: 056
B47: 057 | C47: 1.42 | D47: 1.704 | E47: 057
B48: 058 | C48: 1.46 | D48: 1.752 | E48: 058
B49: 059 | C49: 1.5 | D49: 1.8 | E49: 059
B50: 060 | C50: 1.92 | D50: 2.304 | E50: 060
B51: 061 | C51: 2 | D51: 2.4 | E51: 061
B52: 062 | C52: 2.33 | D52: 2.796 | E52: 062
B53: 065 | C53: 4.58 | D53: 5.496 | E53: 065
B54: 067 | C54: 7.08 | D54: 8.496 | E54: 067
B55: 068 | C55: 7.92 | D55: 9.504 | E55: 068
B56: 069 | C56: 8.75 | D56: 10.5 | E56: 069
B57: 070 | C57: 9.17 | D57: 11.004 | E57: 070
B58: 072 | C58: 12.5 | D58: 15 | E58: 072
B59: 073 | C59: 17.5 | D59: 21 | E59: 073
B60: 074 | C60: 21.67 | D60: 26.004 | E60: 074
B61: 075 | C61: 26.67 | D61: 32.004 | E61: 075
B62: 079 | C62: 51.67 | D62: 62.004 | E62: 079
B63: 080 | C63: 61.67 | D63: 74.004 | E63: 080
B64: 083 | C64: 76.67 | D64: 92.004 | E64: 083
B65: 084 | C65: 86.67 | D65: 104.004 | E65: 084
B66: 088 | C66: 106.67 | D66: 128.004 | E66: 088
B67: 092 | C67: 0.03 | D67: 0.036 | E67: 092
B68: 094 | C68: 0.1 | D68: 0.12 | E68: 094
B69: 095 | C69: 0.25 | D69: 0.3 | E69: 095
B70: 096 | C70: 0.06 | D70: 0.072 | E70: 096
B71: 097 | C71: 0.12 | D71: =C71*1.2 -> 0.144 | E71: =B71 -> 097
B72: 098 | C72: 0.14 | D72: 0.168 | E72: 098
B73: 099 | C73: 0.16 | D73: 0.192 | E73: 099
B74: 100 | C74: 0.18 | D74: 0.216 | E74: 100
B75: 101 | C75: 0.2 | D75: 0.24 | E75: 101
B76: 103 | C76: 0.27 | D76: 0.324 | E76: 103
B77: 104 | C77: 0.31 | D77: 0.372 | E77: 104
B78: 105 | C78: 0.4 | D78: 0.48 | E78: 105
B79: 106 | C79: 0.46 | D79: 0.552 | E79: 106
B80: 107 | C80: 0.47 | D80: 0.564 | E80: 107
